Workbook

Sheet Control
A1: State Inventory Tool - Industrial Processes Module Version 2024.2
A2: This module provides default activity data, emission factors, and other relevant metrics for 1990-2021. Emission Factors are proxied for 2022-2025.
A3: 1. Choose a State
A4: This is very important - it selects the correct default variables for your state.
A7: 2.- 16. Enter emission factors and proceed to the sector worksheet to complete activity data for the following industrial processes:
A8: Either type in the value/percentage or click the default box
A9: CO2 Emission Factors in Units of CO2 Emitted per Unit of Production or Consumption
A10: Process | B10: Default Factor | D10: Factor Used | F10: Use the Default? (Check for Yes)
A11: 2. Cement Production
A12: Clinker | B12: 0.507 | C12: Metric Tons CO2 Emitted / Metric Ton of Clinker Produced
A13: Cement Kiln Dust (CKD) | B13: 0.02 | C13: Metric Tons CKD CO2 Emitted / Metric Ton of Clinker CO2 Emitted
A14: 3. Lime Manufacture
A15: High-Calcium Lime | B15: 0.75 | C15: Metric Tons CO2 Emitted / Metric Ton High-Calcium Lime Produced
A16: Dolomitic Lime | B16: 0.87 | C16: Metric Tons CO2 Emitted / Metric Ton Dolomitic Lime Produced
A17: 4. Limestone and Dolomite Use
A18: Limestone | B18: 0.44 | C18: Metric Tons CO2 Emitted / Metric Ton Limestone (Calcite)
A19: Dolomite | B19: 0.484 | C19: Metric Tons CO2 Emitted / Metric Ton Limestone (Dolomite)
A20: Magnesium Produced from Dolomite | B20: 1.797 | C20: Metric Tons CO2 emitted / Metric Ton Magnesium Produced
A21: 5. Soda Ash Manufacture and Consumption
A22: Manufacture | B22: 0.097 | C22: Metric Tons CO2 Emitted / Metric Ton Trona
A23: Consumption | B23: 0.415 | C23: Metric Tons CO2 Emitted / Metric Ton Soda Ash
A24: 6. Iron and Steel Production
A25: Basic Oxygen Furnace (BOF) at Integrated Mill with Coke Ovens | B25: 1.72 | C25: Metric Tons CO2 Emitted / Metric Ton Crude Steel Produced
A26: Basic Oxygen Furnace (BOF) at Integrated Mill without Coke Ovens | B26: 1.46 | C26: Metric Tons CO2 Emitted / Metric Ton Crude Steel Produced
A27: Electric Arc Furnace (EAF) | B27: 0.08 | C27: Metric Tons CO2 Emitted / Metric Ton Crude Steel Produced
A28: OHF | B28: 1.72 | C28: Metric Tons CO2 Emitted / Metric Ton Crude Steel Produced
A29: 7. Ammonia Manufacture
A30: Ammonia Production | B30: =IF(StateID="KS",EF!C129,EF!C130) -> 1.2 | C30: Metric Tons CO2 Emitted / Metric NH3 Produced
A31: Urea Production | B31: =EF!C131 -> 0.73 | C31: Metric Tons CO2 Emitted / Metric NH3 Produced
A32: 8. Aluminum Production
A33: Aluminum Production - Prebake | B33: =EF!D2 -> 0.4363636364 | C33: Metric Tons CO2 Emitted / Metric Ton Aluminum Produced
A34: Aluminum Production - Søderberg | B34: =EF!D3 -> 0.4636363636 | C34: Metric Tons CO2 Emitted / Metric Ton Aluminum Produced
A36: N2O Emission Factors in Units of N2O Emitted per Unit of Production or Consumption
A37: 9. Nitric Acid Production | B37: 0.008 | C37: Metric Tons N2O Emitted / Metric Ton Nitric Acid Produced
A38: 10. Adipic Acid Production | B38: 0.3 | C38: Metric Tons N2O Emitted / Metric Ton Adipic Acid Produced
A40: HFC, PFC, NF3 and SF6 Emission Factors
A41: 11. Aluminum Production | B41: Variable by year | C41: Metric Tons C Equivalent Emitted / Metric Ton Aluminum Produced
A42: 12. HCFC-22 Production | B42: 0.02 | C42: Metric Tons HFC-23 Emitted / Metric Ton HCFC-22 Produced
A43: 13. Consumption of Substitutes for Ozone-Depleting Substances (ODS)*
A44: 14. Semiconductor Manufacture*
A45: 15. Electric Power Transmission and Distribution | B45: 1 | C45: Metric Tons SF6 Emitted / Metric Ton SF6 Consumed (Sold)
A46: 16. Magnesium Production and Processing
A47: Primary Production | B47: Variable by year | C47: Metric Tons SF6 Emitted / Metric Ton Magnesium Produced
A48: Secondary Production | B48: Variable by year | C48: Metric Tons SF6 Emitted / Metric Ton Magnesium Produced
A49: Casting | B49: Variable by year | C49: Metric Tons SF6 Emitted / Metric Ton Magnesium Processed
A51: 17. Enter emission estimates for facilities reporting to EPA's Greenhouse Gas Reporting Program and/or any additional emission sources (OPTIONAL) If you have additional emission sources by gas that have not been included elsewhere, you can include here. Otherwise, you may skip this sheet.
A52: These rows are hidden b/c petrochems and si carbide are not in the latest eiip inventory. Use them and the boxes to the right if ever adding them.
A53: CH4 Emission Factors
A54: Petrochemical Production
A55: Carbon Black | B55: 0.011 | C55: Metric Tons CH4 Emitted / Metric Ton Carbon Black Produced
A56: Ethylene | B56: 0.001 | C56: Metric Tons CH4 Emitted / Metric Ton Ethylene Produced
A57: Ethelyene Dichloride | B57: 0.0004 | C57: Metric Tons CH4 Emitted / Metric Ton Ethylene Dichloride Produced
A58: Styrene | B58: 0.004 | C58: Metric Tons CH4 Emitted / Metric Ton Styrene Produced
A59: Methanol | B59: 0.002 | C59: Metric Tons CH4 Emitted / Metric Ton Methanol Produced
A60: Silicon Carbide Production | B60: 0.0116 | C60: Metric Tons CH4 Emitted / Metric Ton Silicon Carbide Produced
A73: ="18. Go to the Summary Worksheet to see the emission totals for "&'List Data'!B3 -> 18. Go to the Summary Worksheet to see the emission totals for Select a State . . .
A78: 19. Export the results for use in the Synthesis Tool.
A84: *According to the most recent inventory guidance, emissions of HFCs, PFCs, NF3, and SF6 from ODS substitutes and semiconductor production can be estimated by apportioning regional and national emissions respectively to each state based on population. Because this tool apportions emissions based on state population, no emission factors are required for these sources.
A87: Other Factors Used
A88: Conversion Factors
A89: Short tons to Metric tons | B89: Multiply by | C89: 0.9071847
A90: CO2 Equivalent to C Equiv. | B90: Multiply by | C90: =12/44 -> 0.2727272727
A92: Global Warming Potentials
A93: The default GWPs used in this module are from the IPCC Fifth Assessment Report (AR5) but can be adjusted in the cells below to reflect other sources. | F93: IPCC AR5 GWPs
A94: Methane (CH4) | C94: 28 | F94: 28
A95: Nitrous Oxide (N2O) | C95: =F95 -> 265 | F95: 265
A96: HFC-134a | C96: 1300 | F96: 1300
A97: HFC-143a | C97: 4800 | F97: 4800
A98: HFC-125 | C98: 3170 | F98: 3170
A99: HFC-23 | C99: 12400 | F99: 12400
A100: HFC-32 | C100: 677 | F100: 677
A101: Sulfur Hexafluoride (SF6) | C101: 23500 | F101: 23500
A102: Nitrogen Trifluoride (NF3) | C102: 16100 | F102: 16100

Sheet Dataframe (hidden)
A1: MMTCO2E | B1: Category | C1: 1990 | D1: 1991 | E1: 1992 | F1: 1993 | G1: 1994 | H1: 1995 | I1: 1996 | J1: 1997 | K1: 1998 | L1: 1999 | M1: 2000 | N1: 2001 | O1: 2002 | P1: 2003 | Q1: 2004 | R1: 2005 | S1: 2006 | T1: 2007 | U1: 2008 | V1: 2009 | W1: 2010 | X1: 2011 | Y1: 2012 | Z1: 2013 | AA1: 2014 | AB1: 2015 | AC1: 2016 | AD1: 2017 | AE1: 2018 | AF1: 2019 | AG1: 2020 | AH1: 2021 | AI1: 2022 | AJ1: 2023 | AK1: 2024 | AL1: 2025
A2: Carbon Dioxide Emissions | B2: Industrial Processes - Carbon Dioxide Emissions | C2: =('Summary, MTCO2E'!C6)/1000000 -> 0 | D2: =('Summary, MTCO2E'!D6)/1000000 -> 0 | E2: =('Summary, MTCO2E'!E6)/1000000 -> 0 | F2: =('Summary, MTCO2E'!F6)/1000000 -> 0 | G2: =('Summary, MTCO2E'!G6)/1000000 -> 0 | H2: =('Summary, MTCO2E'!H6)/1000000 -> 0 | I2: =('Summary, MTCO2E'!I6)/1000000 -> 0 | J2: =('Summary, MTCO2E'!J6)/1000000 -> 0 | K2: =('Summary, MTCO2E'!K6)/1000000 -> 0 | L2: =('Summary, MTCO2E'!L6)/1000000 -> 0 | M2: =('Summary, MTCO2E'!M6)/1000000 -> 0 | N2: =('Summary, MTCO2E'!N6)/1000000 -> 0 | O2: =('Summary, MTCO2E'!O6)/1000000 -> 0 | P2: =('Summary, MTCO2E'!P6)/1000000 -> 0 | Q2: =('Summary, MTCO2E'!Q6)/1000000 -> 0 | R2: =('Summary, MTCO2E'!R6)/1000000 -> 0 | S2: =('Summary, MTCO2E'!S6)/1000000 -> 0 | T2: =('Summary, MTCO2E'!T6)/1000000 -> 0 | U2: =('Summary, MTCO2E'!U6)/1000000 -> 0 | V2: =('Summary, MTCO2E'!V6)/1000000 -> 0 | W2: =('Summary, MTCO2E'!W6)/1000000 -> 0 | X2: =('Summary, MTCO2E'!X6)/1000000 -> 0 | Y2: =('Summary, MTCO2E'!Y6)/1000000 -> 0 | Z2: =('Summary, MTCO2E'!Z6)/1000000 -> 0 | AA2: =('Summary, MTCO2E'!AA6)/1000000 -> 0 | AB2: =('Summary, MTCO2E'!AB6)/1000000 -> 0 | AC2: =('Summary, MTCO2E'!AC6)/1000000 -> 0 | AD2: =('Summary, MTCO2E'!AD6)/1000000 -> 0 | AE2: =('Summary, MTCO2E'!AE6)/1000000 -> 0 | AF2: =('Summary, MTCO2E'!AF6)/1000000 -> 0 | AG2: =('Summary, MTCO2E'!AG6)/1000000 -> 0 | AH2: =('Summary, MTCO2E'!AH6)/1000000 -> 0 | AI2: =('Summary, MTCO2E'!AI6)/1000000 -> 0 | AJ2: =('Summary, MTCO2E'!AJ6)/1000000 -> 0 | AK2: =('Summary, MTCO2E'!AK6)/1000000 -> 0 | AL2: =('Summary, MTCO2E'!AL6)/1000000 -> 0
A3: Cement Manufacture | B3: Industrial Processes - Carbon Dioxide Emissions - Cement Manufacture | C3: =('Summary, MTCO2E'!C7)/1000000 -> 0 | D3: =('Summary, MTCO2E'!D7)/1000000 -> 0 | E3: =('Summary, MTCO2E'!E7)/1000000 -> 0 | F3: =('Summary, MTCO2E'!F7)/1000000 -> 0 | G3: =('Summary, MTCO2E'!G7)/1000000 -> 0 | H3: =('Summary, MTCO2E'!H7)/1000000 -> 0 | I3: =('Summary, MTCO2E'!I7)/1000000 -> 0 | J3: =('Summary, MTCO2E'!J7)/1000000 -> 0 | K3: =('Summary, MTCO2E'!K7)/1000000 -> 0 | L3: =('Summary, MTCO2E'!L7)/1000000 -> 0 | M3: =('Summary, MTCO2E'!M7)/1000000 -> 0 | N3: =('Summary, MTCO2E'!N7)/1000000 -> 0 | O3: =('Summary, MTCO2E'!O7)/1000000 -> 0 | P3: =('Summary, MTCO2E'!P7)/1000000 -> 0 | Q3: =('Summary, MTCO2E'!Q7)/1000000 -> 0 | R3: =('Summary, MTCO2E'!R7)/1000000 -> 0 | S3: =('Summary, MTCO2E'!S7)/1000000 -> 0 | T3: =('Summary, MTCO2E'!T7)/1000000 -> 0 | U3: =('Summary, MTCO2E'!U7)/1000000 -> 0 | V3: =('Summary, MTCO2E'!V7)/1000000 -> 0 | W3: =('Summary, MTCO2E'!W7)/1000000 -> 0 | X3: =('Summary, MTCO2E'!X7)/1000000 -> 0 | Y3: =('Summary, MTCO2E'!Y7)/1000000 -> 0 | Z3: =('Summary, MTCO2E'!Z7)/1000000 -> 0 | AA3: =('Summary, MTCO2E'!AA7)/1000000 -> 0 | AB3: =('Summary, MTCO2E'!AB7)/1000000 -> 0 | AC3: =('Summary, MTCO2E'!AC7)/1000000 -> 0 | AD3: =('Summary, MTCO2E'!AD7)/1000000 -> 0 | AE3: =('Summary, MTCO2E'!AE7)/1000000 -> 0 | AF3: =('Summary, MTCO2E'!AF7)/1000000 -> 0 | AG3: =('Summary, MTCO2E'!AG7)/1000000 -> 0 | AH3: =('Summary, MTCO2E'!AH7)/1000000 -> 0 | AI3: =('Summary, MTCO2E'!AI7)/1000000 -> 0 | AJ3: =('Summary, MTCO2E'!AJ7)/1000000 -> 0 | AK3: =('Summary, MTCO2E'!AK7)/1000000 -> 0 | AL3: =('Summary, MTCO2E'!AL7)/1000000 -> 0
A4: Lime Manufacture | B4: Industrial Processes - Carbon Dioxide Emissions - Lime Manufacture | C4: =('Summary, MTCO2E'!C8)/1000000 -> 0 | D4: =('Summary, MTCO2E'!D8)/1000000 -> 0 | E4: =('Summary, MTCO2E'!E8)/1000000 -> 0 | F4: =('Summary, MTCO2E'!F8)/1000000 -> 0 | G4: =('Summary, MTCO2E'!G8)/1000000 -> 0 | H4: =('Summary, MTCO2E'!H8)/1000000 -> 0 | I4: =('Summary, MTCO2E'!I8)/1000000 -> 0 | J4: =('Summary, MTCO2E'!J8)/1000000 -> 0 | K4: =('Summary, MTCO2E'!K8)/1000000 -> 0 | L4: =('Summary, MTCO2E'!L8)/1000000 -> 0 | M4: =('Summary, MTCO2E'!M8)/1000000 -> 0 | N4: =('Summary, MTCO2E'!N8)/1000000 -> 0 | O4: =('Summary, MTCO2E'!O8)/1000000 -> 0 | P4: =('Summary, MTCO2E'!P8)/1000000 -> 0 | Q4: =('Summary, MTCO2E'!Q8)/1000000 -> 0 | R4: =('Summary, MTCO2E'!R8)/1000000 -> 0 | S4: =('Summary, MTCO2E'!S8)/1000000 -> 0 | T4: =('Summary, MTCO2E'!T8)/1000000 -> 0 | U4: =('Summary, MTCO2E'!U8)/1000000 -> 0 | V4: =('Summary, MTCO2E'!V8)/1000000 -> 0 | W4: =('Summary, MTCO2E'!W8)/1000000 -> 0 | X4: =('Summary, MTCO2E'!X8)/1000000 -> 0 | Y4: =('Summary, MTCO2E'!Y8)/1000000 -> 0 | Z4: =('Summary, MTCO2E'!Z8)/1000000 -> 0 | AA4: =('Summary, MTCO2E'!AA8)/1000000 -> 0 | AB4: =('Summary, MTCO2E'!AB8)/1000000 -> 0 | AC4: =('Summary, MTCO2E'!AC8)/1000000 -> 0 | AD4: =('Summary, MTCO2E'!AD8)/1000000 -> 0 | AE4: =('Summary, MTCO2E'!AE8)/1000000 -> 0 | AF4: =('Summary, MTCO2E'!AF8)/1000000 -> 0 | AG4: =('Summary, MTCO2E'!AG8)/1000000 -> 0 | AH4: =('Summary, MTCO2E'!AH8)/1000000 -> 0 | AI4: =('Summary, MTCO2E'!AI8)/1000000 -> 0 | AJ4: =('Summary, MTCO2E'!AJ8)/1000000 -> 0 | AK4: =('Summary, MTCO2E'!AK8)/1000000 -> 0 | AL4: =('Summary, MTCO2E'!AL8)/1000000 -> 0
A5: Limestone and Dolomite Use | B5: Industrial Processes - Carbon Dioxide Emissions - Limestone and Dolomite Use | C5: =('Summary, MTCO2E'!C9)/1000000 -> 0 | D5: =('Summary, MTCO2E'!D9)/1000000 -> 0 | E5: =('Summary, MTCO2E'!E9)/1000000 -> 0 | F5: =('Summary, MTCO2E'!F9)/1000000 -> 0 | G5: =('Summary, MTCO2E'!G9)/1000000 -> 0 | H5: =('Summary, MTCO2E'!H9)/1000000 -> 0 | I5: =('Summary, MTCO2E'!I9)/1000000 -> 0 | J5: =('Summary, MTCO2E'!J9)/1000000 -> 0 | K5: =('Summary, MTCO2E'!K9)/1000000 -> 0 | L5: =('Summary, MTCO2E'!L9)/1000000 -> 0 | M5: =('Summary, MTCO2E'!M9)/1000000 -> 0 | N5: =('Summary, MTCO2E'!N9)/1000000 -> 0 | O5: =('Summary, MTCO2E'!O9)/1000000 -> 0 | P5: =('Summary, MTCO2E'!P9)/1000000 -> 0 | Q5: =('Summary, MTCO2E'!Q9)/1000000 -> 0 | R5: =('Summary, MTCO2E'!R9)/1000000 -> 0 | S5: =('Summary, MTCO2E'!S9)/1000000 -> 0 | T5: =('Summary, MTCO2E'!T9)/1000000 -> 0 | U5: =('Summary, MTCO2E'!U9)/1000000 -> 0 | V5: =('Summary, MTCO2E'!V9)/1000000 -> 0 | W5: =('Summary, MTCO2E'!W9)/1000000 -> 0 | X5: =('Summary, MTCO2E'!X9)/1000000 -> 0 | Y5: =('Summary, MTCO2E'!Y9)/1000000 -> 0 | Z5: =('Summary, MTCO2E'!Z9)/1000000 -> 0 | AA5: =('Summary, MTCO2E'!AA9)/1000000 -> 0 | AB5: =('Summary, MTCO2E'!AB9)/1000000 -> 0 | AC5: =('Summary, MTCO2E'!AC9)/1000000 -> 0 | AD5: =('Summary, MTCO2E'!AD9)/1000000 -> 0 | AE5: =('Summary, MTCO2E'!AE9)/1000000 -> 0 | AF5: =('Summary, MTCO2E'!AF9)/1000000 -> 0 | AG5: =('Summary, MTCO2E'!AG9)/1000000 -> 0 | AH5: =('Summary, MTCO2E'!AH9)/1000000 -> 0 | AI5: =('Summary, MTCO2E'!AI9)/1000000 -> 0 | AJ5: =('Summary, MTCO2E'!AJ9)/1000000 -> 0 | AK5: =('Summary, MTCO2E'!AK9)/1000000 -> 0 | AL5: =('Summary, MTCO2E'!AL9)/1000000 -> 0
A6: Soda Ash | B6: Industrial Processes - Carbon Dioxide Emissions - Soda Ash | C6: =('Summary, MTCO2E'!C10)/1000000 -> 0 | D6: =('Summary, MTCO2E'!D10)/1000000 -> 0 | E6: =('Summary, MTCO2E'!E10)/1000000 -> 0 | F6: =('Summary, MTCO2E'!F10)/1000000 -> 0 | G6: =('Summary, MTCO2E'!G10)/1000000 -> 0 | H6: =('Summary, MTCO2E'!H10)/1000000 -> 0 | I6: =('Summary, MTCO2E'!I10)/1000000 -> 0 | J6: =('Summary, MTCO2E'!J10)/1000000 -> 0 | K6: =('Summary, MTCO2E'!K10)/1000000 -> 0 | L6: =('Summary, MTCO2E'!L10)/1000000 -> 0 | M6: =('Summary, MTCO2E'!M10)/1000000 -> 0 | N6: =('Summary, MTCO2E'!N10)/1000000 -> 0 | O6: =('Summary, MTCO2E'!O10)/1000000 -> 0 | P6: =('Summary, MTCO2E'!P10)/1000000 -> 0 | Q6: =('Summary, MTCO2E'!Q10)/1000000 -> 0 | R6: =('Summary, MTCO2E'!R10)/1000000 -> 0 | S6: =('Summary, MTCO2E'!S10)/1000000 -> 0 | T6: =('Summary, MTCO2E'!T10)/1000000 -> 0 | U6: =('Summary, MTCO2E'!U10)/1000000 -> 0 | V6: =('Summary, MTCO2E'!V10)/1000000 -> 0 | W6: =('Summary, MTCO2E'!W10)/1000000 -> 0 | X6: =('Summary, MTCO2E'!X10)/1000000 -> 0 | Y6: =('Summary, MTCO2E'!Y10)/1000000 -> 0 | Z6: =('Summary, MTCO2E'!Z10)/1000000 -> 0 | AA6: =('Summary, MTCO2E'!AA10)/1000000 -> 0 | AB6: =('Summary, MTCO2E'!AB10)/1000000 -> 0 | AC6: =('Summary, MTCO2E'!AC10)/1000000 -> 0 | AD6: =('Summary, MTCO2E'!AD10)/1000000 -> 0 | AE6: =('Summary, MTCO2E'!AE10)/1000000 -> 0 | AF6: =('Summary, MTCO2E'!AF10)/1000000 -> 0 | AG6: =('Summary, MTCO2E'!AG10)/1000000 -> 0 | AH6: =('Summary, MTCO2E'!AH10)/1000000 -> 0 | AI6: =('Summary, MTCO2E'!AI10)/1000000 -> 0 | AJ6: =('Summary, MTCO2E'!AJ10)/1000000 -> 0 | AK6: =('Summary, MTCO2E'!AK10)/1000000 -> 0 | AL6: =('Summary, MTCO2E'!AL10)/1000000 -> 0
A7: Aluminum Production, CO2 | B7: Industrial Processes - Carbon Dioxide Emissions - Aluminum Production, CO2 | C7: =('Summary, MTCO2E'!C11)/1000000 -> 0 | D7: =('Summary, MTCO2E'!D11)/1000000 -> 0 | E7: =('Summary, MTCO2E'!E11)/1000000 -> 0 | F7: =('Summary, MTCO2E'!F11)/1000000 -> 0 | G7: =('Summary, MTCO2E'!G11)/1000000 -> 0 | H7: =('Summary, MTCO2E'!H11)/1000000 -> 0 | I7: =('Summary, MTCO2E'!I11)/1000000 -> 0 | J7: =('Summary, MTCO2E'!J11)/1000000 -> 0 | K7: =('Summary, MTCO2E'!K11)/1000000 -> 0 | L7: =('Summary, MTCO2E'!L11)/1000000 -> 0 | M7: =('Summary, MTCO2E'!M11)/1000000 -> 0 | N7: =('Summary, MTCO2E'!N11)/1000000 -> 0 | O7: =('Summary, MTCO2E'!O11)/1000000 -> 0 | P7: =('Summary, MTCO2E'!P11)/1000000 -> 0 | Q7: =('Summary, MTCO2E'!Q11)/1000000 -> 0 | R7: =('Summary, MTCO2E'!R11)/1000000 -> 0 | S7: =('Summary, MTCO2E'!S11)/1000000 -> 0 | T7: =('Summary, MTCO2E'!T11)/1000000 -> 0 | U7: =('Summary, MTCO2E'!U11)/1000000 -> 0 | V7: =('Summary, MTCO2E'!V11)/1000000 -> 0 | W7: =('Summary, MTCO2E'!W11)/1000000 -> 0 | X7: =('Summary, MTCO2E'!X11)/1000000 -> 0 | Y7: =('Summary, MTCO2E'!Y11)/1000000 -> 0 | Z7: =('Summary, MTCO2E'!Z11)/1000000 -> 0 | AA7: =('Summary, MTCO2E'!AA11)/1000000 -> 0 | AB7: =('Summary, MTCO2E'!AB11)/1000000 -> 0 | AC7: =('Summary, MTCO2E'!AC11)/1000000 -> 0 | AD7: =('Summary, MTCO2E'!AD11)/1000000 -> 0 | AE7: =('Summary, MTCO2E'!AE11)/1000000 -> 0 | AF7: =('Summary, MTCO2E'!AF11)/1000000 -> 0 | AG7: =('Summary, MTCO2E'!AG11)/1000000 -> 0 | AH7: =('Summary, MTCO2E'!AH11)/1000000 -> 0 | AI7: =('Summary, MTCO2E'!AI11)/1000000 -> 0 | AJ7: =('Summary, MTCO2E'!AJ11)/1000000 -> 0 | AK7: =('Summary, MTCO2E'!AK11)/1000000 -> 0 | AL7: =('Summary, MTCO2E'!AL11)/1000000 -> 0
A8: Iron & Steel Production | B8: Industrial Processes - Carbon Dioxide Emissions - Iron & Steel Production | C8: =('Summary, MTCO2E'!C12)/1000000 -> 0 | D8: =('Summary, MTCO2E'!D12)/1000000 -> 0 | E8: =('Summary, MTCO2E'!E12)/1000000 -> 0 | F8: =('Summary, MTCO2E'!F12)/1000000 -> 0 | G8: =('Summary, MTCO2E'!G12)/1000000 -> 0 | H8: =('Summary, MTCO2E'!H12)/1000000 -> 0 | I8: =('Summary, MTCO2E'!I12)/1000000 -> 0 | J8: =('Summary, MTCO2E'!J12)/1000000 -> 0 | K8: =('Summary, MTCO2E'!K12)/1000000 -> 0 | L8: =('Summary, MTCO2E'!L12)/1000000 -> 0 | M8: =('Summary, MTCO2E'!M12)/1000000 -> 0 | N8: =('Summary, MTCO2E'!N12)/1000000 -> 0 | O8: =('Summary, MTCO2E'!O12)/1000000 -> 0 | P8: =('Summary, MTCO2E'!P12)/1000000 -> 0 | Q8: =('Summary, MTCO2E'!Q12)/1000000 -> 0 | R8: =('Summary, MTCO2E'!R12)/1000000 -> 0 | S8: =('Summary, MTCO2E'!S12)/1000000 -> 0 | T8: =('Summary, MTCO2E'!T12)/1000000 -> 0 | U8: =('Summary, MTCO2E'!U12)/1000000 -> 0 | V8: =('Summary, MTCO2E'!V12)/1000000 -> 0 | W8: =('Summary, MTCO2E'!W12)/1000000 -> 0 | X8: =('Summary, MTCO2E'!X12)/1000000 -> 0 | Y8: =('Summary, MTCO2E'!Y12)/1000000 -> 0 | Z8: =('Summary, MTCO2E'!Z12)/1000000 -> 0 | AA8: =('Summary, MTCO2E'!AA12)/1000000 -> 0 | AB8: =('Summary, MTCO2E'!AB12)/1000000 -> 0 | AC8: =('Summary, MTCO2E'!AC12)/1000000 -> 0 | AD8: =('Summary, MTCO2E'!AD12)/1000000 -> 0 | AE8: =('Summary, MTCO2E'!AE12)/1000000 -> 0 | AF8: =('Summary, MTCO2E'!AF12)/1000000 -> 0 | AG8: =('Summary, MTCO2E'!AG12)/1000000 -> 0 | AH8: =('Summary, MTCO2E'!AH12)/1000000 -> 0 | AI8: =('Summary, MTCO2E'!AI12)/1000000 -> 0 | AJ8: =('Summary, MTCO2E'!AJ12)/1000000 -> 0 | AK8: =('Summary, MTCO2E'!AK12)/1000000 -> 0 | AL8: =('Summary, MTCO2E'!AL12)/1000000 -> 0
A9: Ammonia Production | B9: Industrial Processes - Carbon Dioxide Emissions - Ammonia Production | C9: =('Summary, MTCO2E'!C13)/1000000 -> 0 | D9: =('Summary, MTCO2E'!D13)/1000000 -> 0 | E9: =('Summary, MTCO2E'!E13)/1000000 -> 0 | F9: =('Summary, MTCO2E'!F13)/1000000 -> 0 | G9: =('Summary, MTCO2E'!G13)/1000000 -> 0 | H9: =('Summary, MTCO2E'!H13)/1000000 -> 0 | I9: =('Summary, MTCO2E'!I13)/1000000 -> 0 | J9: =('Summary, MTCO2E'!J13)/1000000 -> 0 | K9: =('Summary, MTCO2E'!K13)/1000000 -> 0 | L9: =('Summary, MTCO2E'!L13)/1000000 -> 0 | M9: =('Summary, MTCO2E'!M13)/1000000 -> 0 | N9: =('Summary, MTCO2E'!N13)/1000000 -> 0 | O9: =('Summary, MTCO2E'!O13)/1000000 -> 0 | P9: =('Summary, MTCO2E'!P13)/1000000 -> 0 | Q9: =('Summary, MTCO2E'!Q13)/1000000 -> 0 | R9: =('Summary, MTCO2E'!R13)/1000000 -> 0 | S9: =('Summary, MTCO2E'!S13)/1000000 -> 0 | T9: =('Summary, MTCO2E'!T13)/1000000 -> 0 | U9: =('Summary, MTCO2E'!U13)/1000000 -> 0 | V9: =('Summary, MTCO2E'!V13)/1000000 -> 0 | W9: =('Summary, MTCO2E'!W13)/1000000 -> 0 | X9: =('Summary, MTCO2E'!X13)/1000000 -> 0 | Y9: =('Summary, MTCO2E'!Y13)/1000000 -> 0 | Z9: =('Summary, MTCO2E'!Z13)/1000000 -> 0 | AA9: =('Summary, MTCO2E'!AA13)/1000000 -> 0 | AB9: =('Summary, MTCO2E'!AB13)/1000000 -> 0 | AC9: =('Summary, MTCO2E'!AC13)/1000000 -> 0 | AD9: =('Summary, MTCO2E'!AD13)/1000000 -> 0 | AE9: =('Summary, MTCO2E'!AE13)/1000000 -> 0 | AF9: =('Summary, MTCO2E'!AF13)/1000000 -> 0 | AG9: =('Summary, MTCO2E'!AG13)/1000000 -> 0 | AH9: =('Summary, MTCO2E'!AH13)/1000000 -> 0 | AI9: =('Summary, MTCO2E'!AI13)/1000000 -> 0 | AJ9: =('Summary, MTCO2E'!AJ13)/1000000 -> 0 | AK9: =('Summary, MTCO2E'!AK13)/1000000 -> 0 | AL9: =('Summary, MTCO2E'!AL13)/1000000 -> 0
A10: Urea Consumption | B10: Industrial Processes - Carbon Dioxide Emissions - Urea Consumption | C10: =('Summary, MTCO2E'!C14)/1000000 -> 0 | D10: =('Summary, MTCO2E'!D14)/1000000 -> 0 | E10: =('Summary, MTCO2E'!E14)/1000000 -> 0 | F10: =('Summary, MTCO2E'!F14)/1000000 -> 0 | G10: =('Summary, MTCO2E'!G14)/1000000 -> 0 | H10: =('Summary, MTCO2E'!H14)/1000000 -> 0 | I10: =('Summary, MTCO2E'!I14)/1000000 -> 0 | J10: =('Summary, MTCO2E'!J14)/1000000 -> 0 | K10: =('Summary, MTCO2E'!K14)/1000000 -> 0 | L10: =('Summary, MTCO2E'!L14)/1000000 -> 0 | M10: =('Summary, MTCO2E'!M14)/1000000 -> 0 | N10: =('Summary, MTCO2E'!N14)/1000000 -> 0 | O10: =('Summary, MTCO2E'!O14)/1000000 -> 0 | P10: =('Summary, MTCO2E'!P14)/1000000 -> 0 | Q10: =('Summary, MTCO2E'!Q14)/1000000 -> 0 | R10: =('Summary, MTCO2E'!R14)/1000000 -> 0 | S10: =('Summary, MTCO2E'!S14)/1000000 -> 0 | T10: =('Summary, MTCO2E'!T14)/1000000 -> 0 | U10: =('Summary, MTCO2E'!U14)/1000000 -> 0 | V10: =('Summary, MTCO2E'!V14)/1000000 -> 0 | W10: =('Summary, MTCO2E'!W14)/1000000 -> 0 | X10: =('Summary, MTCO2E'!X14)/1000000 -> 0 | Y10: =('Summary, MTCO2E'!Y14)/1000000 -> 0 | Z10: =('Summary, MTCO2E'!Z14)/1000000 -> 0 | AA10: =('Summary, MTCO2E'!AA14)/1000000 -> 0 | AB10: =('Summary, MTCO2E'!AB14)/1000000 -> 0 | AC10: =('Summary, MTCO2E'!AC14)/1000000 -> 0 | AD10: =('Summary, MTCO2E'!AD14)/1000000 -> 0 | AE10: =('Summary, MTCO2E'!AE14)/1000000 -> 0 | AF10: =('Summary, MTCO2E'!AF14)/1000000 -> 0 | AG10: =('Summary, MTCO2E'!AG14)/1000000 -> 0 | AH10: =('Summary, MTCO2E'!AH14)/1000000 -> 0 | AI10: =('Summary, MTCO2E'!AI14)/1000000 -> 0 | AJ10: =('Summary, MTCO2E'!AJ14)/1000000 -> 0 | AK10: =('Summary, MTCO2E'!AK14)/1000000 -> 0 | AL10: =('Summary, MTCO2E'!AL14)/1000000 -> 0
A11: Nitrous Oxide Emissions | B11: Industrial Processes - Nitrous Oxide Emissions | C11: =('Summary, MTCO2E'!C16)/1000000 -> 0 | D11: =('Summary, MTCO2E'!D16)/1000000 -> 0 | E11: =('Summary, MTCO2E'!E16)/1000000 -> 0 | F11: =('Summary, MTCO2E'!F16)/1000000 -> 0 | G11: =('Summary, MTCO2E'!G16)/1000000 -> 0 | H11: =('Summary, MTCO2E'!H16)/1000000 -> 0 | I11: =('Summary, MTCO2E'!I16)/1000000 -> 0 | J11: =('Summary, MTCO2E'!J16)/1000000 -> 0 | K11: =('Summary, MTCO2E'!K16)/1000000 -> 0 | L11: =('Summary, MTCO2E'!L16)/1000000 -> 0 | M11: =('Summary, MTCO2E'!M16)/1000000 -> 0 | N11: =('Summary, MTCO2E'!N16)/1000000 -> 0 | O11: =('Summary, MTCO2E'!O16)/1000000 -> 0 | P11: =('Summary, MTCO2E'!P16)/1000000 -> 0 | Q11: =('Summary, MTCO2E'!Q16)/1000000 -> 0 | R11: =('Summary, MTCO2E'!R16)/1000000 -> 0 | S11: =('Summary, MTCO2E'!S16)/1000000 -> 0 | T11: =('Summary, MTCO2E'!T16)/1000000 -> 0 | U11: =('Summary, MTCO2E'!U16)/1000000 -> 0 | V11: =('Summary, MTCO2E'!V16)/1000000 -> 0 | W11: =('Summary, MTCO2E'!W16)/1000000 -> 0 | X11: =('Summary, MTCO2E'!X16)/1000000 -> 0 | Y11: =('Summary, MTCO2E'!Y16)/1000000 -> 0 | Z11: =('Summary, MTCO2E'!Z16)/1000000 -> 0 | AA11: =('Summary, MTCO2E'!AA16)/1000000 -> 0 | AB11: =('Summary, MTCO2E'!AB16)/1000000 -> 0 | AC11: =('Summary, MTCO2E'!AC16)/1000000 -> 0 | AD11: =('Summary, MTCO2E'!AD16)/1000000 -> 0 | AE11: =('Summary, MTCO2E'!AE16)/1000000 -> 0 | AF11: =('Summary, MTCO2E'!AF16)/1000000 -> 0 | AG11: =('Summary, MTCO2E'!AG16)/1000000 -> 0 | AH11: =('Summary, MTCO2E'!AH16)/1000000 -> 0 | AI11: =('Summary, MTCO2E'!AI16)/1000000 -> 0 | AJ11: =('Summary, MTCO2E'!AJ16)/1000000 -> 0 | AK11: =('Summary, MTCO2E'!AK16)/1000000 -> 0 | AL11: =('Summary, MTCO2E'!AL16)/1000000 -> 0
A12: Nitric Acid Production | B12: Industrial Processes - Nitrous Oxide Emissions - Nitric Acid Production | C12: =('Summary, MTCO2E'!C17)/1000000 -> 0 | D12: =('Summary, MTCO2E'!D17)/1000000 -> 0 | E12: =('Summary, MTCO2E'!E17)/1000000 -> 0 | F12: =('Summary, MTCO2E'!F17)/1000000 -> 0 | G12: =('Summary, MTCO2E'!G17)/1000000 -> 0 | H12: =('Summary, MTCO2E'!H17)/1000000 -> 0 | I12: =('Summary, MTCO2E'!I17)/1000000 -> 0 | J12: =('Summary, MTCO2E'!J17)/1000000 -> 0 | K12: =('Summary, MTCO2E'!K17)/1000000 -> 0 | L12: =('Summary, MTCO2E'!L17)/1000000 -> 0 | M12: =('Summary, MTCO2E'!M17)/1000000 -> 0 | N12: =('Summary, MTCO2E'!N17)/1000000 -> 0 | O12: =('Summary, MTCO2E'!O17)/1000000 -> 0 | P12: =('Summary, MTCO2E'!P17)/1000000 -> 0 | Q12: =('Summary, MTCO2E'!Q17)/1000000 -> 0 | R12: =('Summary, MTCO2E'!R17)/1000000 -> 0 | S12: =('Summary, MTCO2E'!S17)/1000000 -> 0 | T12: =('Summary, MTCO2E'!T17)/1000000 -> 0 | U12: =('Summary, MTCO2E'!U17)/1000000 -> 0 | V12: =('Summary, MTCO2E'!V17)/1000000 -> 0 | W12: =('Summary, MTCO2E'!W17)/1000000 -> 0 | X12: =('Summary, MTCO2E'!X17)/1000000 -> 0 | Y12: =('Summary, MTCO2E'!Y17)/1000000 -> 0 | Z12: =('Summary, MTCO2E'!Z17)/1000000 -> 0 | AA12: =('Summary, MTCO2E'!AA17)/1000000 -> 0 | AB12: =('Summary, MTCO2E'!AB17)/1000000 -> 0 | AC12: =('Summary, MTCO2E'!AC17)/1000000 -> 0 | AD12: =('Summary, MTCO2E'!AD17)/1000000 -> 0 | AE12: =('Summary, MTCO2E'!AE17)/1000000 -> 0 | AF12: =('Summary, MTCO2E'!AF17)/1000000 -> 0 | AG12: =('Summary, MTCO2E'!AG17)/1000000 -> 0 | AH12: =('Summary, MTCO2E'!AH17)/1000000 -> 0 | AI12: =('Summary, MTCO2E'!AI17)/1000000 -> 0 | AJ12: =('Summary, MTCO2E'!AJ17)/1000000 -> 0 | AK12: =('Summary, MTCO2E'!AK17)/1000000 -> 0 | AL12: =('Summary, MTCO2E'!AL17)/1000000 -> 0
A13: Adipic Acid Production | B13: Industrial Processes - Nitrous Oxide Emissions - Adipic Acid Production | C13: =('Summary, MTCO2E'!C18)/1000000 -> 0 | D13: =('Summary, MTCO2E'!D18)/1000000 -> 0 | E13: =('Summary, MTCO2E'!E18)/1000000 -> 0 | F13: =('Summary, MTCO2E'!F18)/1000000 -> 0 | G13: =('Summary, MTCO2E'!G18)/1000000 -> 0 | H13: =('Summary, MTCO2E'!H18)/1000000 -> 0 | I13: =('Summary, MTCO2E'!I18)/1000000 -> 0 | J13: =('Summary, MTCO2E'!J18)/1000000 -> 0 | K13: =('Summary, MTCO2E'!K18)/1000000 -> 0 | L13: =('Summary, MTCO2E'!L18)/1000000 -> 0 | M13: =('Summary, MTCO2E'!M18)/1000000 -> 0 | N13: =('Summary, MTCO2E'!N18)/1000000 -> 0 | O13: =('Summary, MTCO2E'!O18)/1000000 -> 0 | P13: =('Summary, MTCO2E'!P18)/1000000 -> 0 | Q13: =('Summary, MTCO2E'!Q18)/1000000 -> 0 | R13: =('Summary, MTCO2E'!R18)/1000000 -> 0 | S13: =('Summary, MTCO2E'!S18)/1000000 -> 0 | T13: =('Summary, MTCO2E'!T18)/1000000 -> 0 | U13: =('Summary, MTCO2E'!U18)/1000000 -> 0 | V13: =('Summary, MTCO2E'!V18)/1000000 -> 0 | W13: =('Summary, MTCO2E'!W18)/1000000 -> 0 | X13: =('Summary, MTCO2E'!X18)/1000000 -> 0 | Y13: =('Summary, MTCO2E'!Y18)/1000000 -> 0 | Z13: =('Summary, MTCO2E'!Z18)/1000000 -> 0 | AA13: =('Summary, MTCO2E'!AA18)/1000000 -> 0 | AB13: =('Summary, MTCO2E'!AB18)/1000000 -> 0 | AC13: =('Summary, MTCO2E'!AC18)/1000000 -> 0 | AD13: =('Summary, MTCO2E'!AD18)/1000000 -> 0 | AE13: =('Summary, MTCO2E'!AE18)/1000000 -> 0 | AF13: =('Summary, MTCO2E'!AF18)/1000000 -> 0 | AG13: =('Summary, MTCO2E'!AG18)/1000000 -> 0 | AH13: =('Summary, MTCO2E'!AH18)/1000000 -> 0 | AI13: =('Summary, MTCO2E'!AI18)/1000000 -> 0 | AJ13: =('Summary, MTCO2E'!AJ18)/1000000 -> 0 | AK13: =('Summary, MTCO2E'!AK18)/1000000 -> 0 | AL13: =('Summary, MTCO2E'!AL18)/1000000 -> 0
A14: HFC, PFC, NF3, and SF6 Emissions | B14: Industrial Processes - HFC, PFC, NF3, and SF6 Emissions | C14: =('Summary, MTCO2E'!C20)/1000000 -> 0 | D14: =('Summary, MTCO2E'!D20)/1000000 -> 0 | E14: =('Summary, MTCO2E'!E20)/1000000 -> 0 | F14: =('Summary, MTCO2E'!F20)/1000000 -> 0 | G14: =('Summary, MTCO2E'!G20)/1000000 -> 0 | H14: =('Summary, MTCO2E'!H20)/1000000 -> 0 | I14: =('Summary, MTCO2E'!I20)/1000000 -> 0 | J14: =('Summary, MTCO2E'!J20)/1000000 -> 0 | K14: =('Summary, MTCO2E'!K20)/1000000 -> 0 | L14: =('Summary, MTCO2E'!L20)/1000000 -> 0 | M14: =('Summary, MTCO2E'!M20)/1000000 -> 0 | N14: =('Summary, MTCO2E'!N20)/1000000 -> 0 | O14: =('Summary, MTCO2E'!O20)/1000000 -> 0 | P14: =('Summary, MTCO2E'!P20)/1000000 -> 0 | Q14: =('Summary, MTCO2E'!Q20)/1000000 -> 0 | R14: =('Summary, MTCO2E'!R20)/1000000 -> 0 | S14: =('Summary, MTCO2E'!S20)/1000000 -> 0 | T14: =('Summary, MTCO2E'!T20)/1000000 -> 0 | U14: =('Summary, MTCO2E'!U20)/1000000 -> 0 | V14: =('Summary, MTCO2E'!V20)/1000000 -> 0 | W14: =('Summary, MTCO2E'!W20)/1000000 -> 0 | X14: =('Summary, MTCO2E'!X20)/1000000 -> 0 | Y14: =('Summary, MTCO2E'!Y20)/1000000 -> 0 | Z14: =('Summary, MTCO2E'!Z20)/1000000 -> 0 | AA14: =('Summary, MTCO2E'!AA20)/1000000 -> 0 | AB14: =('Summary, MTCO2E'!AB20)/1000000 -> 0 | AC14: =('Summary, MTCO2E'!AC20)/1000000 -> 0 | AD14: =('Summary, MTCO2E'!AD20)/1000000 -> 0 | AE14: =('Summary, MTCO2E'!AE20)/1000000 -> 0 | AF14: =('Summary, MTCO2E'!AF20)/1000000 -> 0 | AG14: =('Summary, MTCO2E'!AG20)/1000000 -> 0 | AH14: =('Summary, MTCO2E'!AH20)/1000000 -> 0 | AI14: =('Summary, MTCO2E'!AI20)/1000000 -> 0 | AJ14: =('Summary, MTCO2E'!AJ20)/1000000 -> 0 | AK14: =('Summary, MTCO2E'!AK20)/1000000 -> 0 | AL14: =('Summary, MTCO2E'!AL20)/1000000 -> 0
A15: ODS Substitutes | B15: Industrial Processes - HFC, PFC, NF3, and SF6 Emissions - ODS Substitutes | C15: =('Summary, MTCO2E'!C21)/1000000 -> 0 | D15: =('Summary, MTCO2E'!D21)/1000000 -> 0 | E15: =('Summary, MTCO2E'!E21)/1000000 -> 0 | F15: =('Summary, MTCO2E'!F21)/1000000 -> 0 | G15: =('Summary, MTCO2E'!G21)/1000000 -> 0 | H15: =('Summary, MTCO2E'!H21)/1000000 -> 0 | I15: =('Summary, MTCO2E'!I21)/1000000 -> 0 | J15: =('Summary, MTCO2E'!J21)/1000000 -> 0 | K15: =('Summary, MTCO2E'!K21)/1000000 -> 0 | L15: =('Summary, MTCO2E'!L21)/1000000 -> 0 | M15: =('Summary, MTCO2E'!M21)/1000000 -> 0 | N15: =('Summary, MTCO2E'!N21)/1000000 -> 0 | O15: =('Summary, MTCO2E'!O21)/1000000 -> 0 | P15: =('Summary, MTCO2E'!P21)/1000000 -> 0 | Q15: =('Summary, MTCO2E'!Q21)/1000000 -> 0 | R15: =('Summary, MTCO2E'!R21)/1000000 -> 0 | S15: =('Summary, MTCO2E'!S21)/1000000 -> 0 | T15: =('Summary, MTCO2E'!T21)/1000000 -> 0 | U15: =('Summary, MTCO2E'!U21)/1000000 -> 0 | V15: =('Summary, MTCO2E'!V21)/1000000 -> 0 | W15: =('Summary, MTCO2E'!W21)/1000000 -> 0 | X15: =('Summary, MTCO2E'!X21)/1000000 -> 0 | Y15: =('Summary, MTCO2E'!Y21)/1000000 -> 0 | Z15: =('Summary, MTCO2E'!Z21)/1000000 -> 0 | AA15: =('Summary, MTCO2E'!AA21)/1000000 -> 0 | AB15: =('Summary, MTCO2E'!AB21)/1000000 -> 0 | AC15: =('Summary, MTCO2E'!AC21)/1000000 -> 0 | AD15: =('Summary, MTCO2E'!AD21)/1000000 -> 0 | AE15: =('Summary, MTCO2E'!AE21)/1000000 -> 0 | AF15: =('Summary, MTCO2E'!AF21)/1000000 -> 0 | AG15: =('Summary, MTCO2E'!AG21)/1000000 -> 0 | AH15: =('Summary, MTCO2E'!AH21)/1000000 -> 0 | AI15: =('Summary, MTCO2E'!AI21)/1000000 -> 0 | AJ15: =('Summary, MTCO2E'!AJ21)/1000000 -> 0 | AK15: =('Summary, MTCO2E'!AK21)/1000000 -> 0 | AL15: =('Summary, MTCO2E'!AL21)/1000000 -> 0
A16: Semiconductor Manufacturing | B16: Industrial Processes - HFC, PFC, NF3, and SF6 Emissions - Semiconductor Manufacturing | C16: =('Summary, MTCO2E'!C22)/1000000 -> 0 | D16: =('Summary, MTCO2E'!D22)/1000000 -> 0 | E16: =('Summary, MTCO2E'!E22)/1000000 -> 0 | F16: =('Summary, MTCO2E'!F22)/1000000 -> 0 | G16: =('Summary, MTCO2E'!G22)/1000000 -> 0 | H16: =('Summary, MTCO2E'!H22)/1000000 -> 0 | I16: =('Summary, MTCO2E'!I22)/1000000 -> 0 | J16: =('Summary, MTCO2E'!J22)/1000000 -> 0 | K16: =('Summary, MTCO2E'!K22)/1000000 -> 0 | L16: =('Summary, MTCO2E'!L22)/1000000 -> 0 | M16: =('Summary, MTCO2E'!M22)/1000000 -> 0 | N16: =('Summary, MTCO2E'!N22)/1000000 -> 0 | O16: =('Summary, MTCO2E'!O22)/1000000 -> 0 | P16: =('Summary, MTCO2E'!P22)/1000000 -> 0 | Q16: =('Summary, MTCO2E'!Q22)/1000000 -> 0 | R16: =('Summary, MTCO2E'!R22)/1000000 -> 0 | S16: =('Summary, MTCO2E'!S22)/1000000 -> 0 | T16: =('Summary, MTCO2E'!T22)/1000000 -> 0 | U16: =('Summary, MTCO2E'!U22)/1000000 -> 0 | V16: =('Summary, MTCO2E'!V22)/1000000 -> 0 | W16: =('Summary, MTCO2E'!W22)/1000000 -> 0 | X16: =('Summary, MTCO2E'!X22)/1000000 -> 0 | Y16: =('Summary, MTCO2E'!Y22)/1000000 -> 0 | Z16: =('Summary, MTCO2E'!Z22)/1000000 -> 0 | AA16: =('Summary, MTCO2E'!AA22)/1000000 -> 0 | AB16: =('Summary, MTCO2E'!AB22)/1000000 -> 0 | AC16: =('Summary, MTCO2E'!AC22)/1000000 -> 0 | AD16: =('Summary, MTCO2E'!AD22)/1000000 -> 0 | AE16: =('Summary, MTCO2E'!AE22)/1000000 -> 0 | AF16: =('Summary, MTCO2E'!AF22)/1000000 -> 0 | AG16: =('Summary, MTCO2E'!AG22)/1000000 -> 0 | AH16: =('Summary, MTCO2E'!AH22)/1000000 -> 0 | AI16: =('Summary, MTCO2E'!AI22)/1000000 -> 0 | AJ16: =('Summary, MTCO2E'!AJ22)/1000000 -> 0 | AK16: =('Summary, MTCO2E'!AK22)/1000000 -> 0 | AL16: =('Summary, MTCO2E'!AL22)/1000000 -> 0
A17: Magnesium Production | B17: Industrial Processes - HFC, PFC, NF3, and SF6 Emissions - Magnesium Production | C17: =('Summary, MTCO2E'!C23)/1000000 -> 0 | D17: =('Summary, MTCO2E'!D23)/1000000 -> 0 | E17: =('Summary, MTCO2E'!E23)/1000000 -> 0 | F17: =('Summary, MTCO2E'!F23)/1000000 -> 0 | G17: =('Summary, MTCO2E'!G23)/1000000 -> 0 | H17: =('Summary, MTCO2E'!H23)/1000000 -> 0 | I17: =('Summary, MTCO2E'!I23)/1000000 -> 0 | J17: =('Summary, MTCO2E'!J23)/1000000 -> 0 | K17: =('Summary, MTCO2E'!K23)/1000000 -> 0 | L17: =('Summary, MTCO2E'!L23)/1000000 -> 0 | M17: =('Summary, MTCO2E'!M23)/1000000 -> 0 | N17: =('Summary, MTCO2E'!N23)/1000000 -> 0 | O17: =('Summary, MTCO2E'!O23)/1000000 -> 0 | P17: =('Summary, MTCO2E'!P23)/1000000 -> 0 | Q17: =('Summary, MTCO2E'!Q23)/1000000 -> 0 | R17: =('Summary, MTCO2E'!R23)/1000000 -> 0 | S17: =('Summary, MTCO2E'!S23)/1000000 -> 0 | T17: =('Summary, MTCO2E'!T23)/1000000 -> 0 | U17: =('Summary, MTCO2E'!U23)/1000000 -> 0 | V17: =('Summary, MTCO2E'!V23)/1000000 -> 0 | W17: =('Summary, MTCO2E'!W23)/1000000 -> 0 | X17: =('Summary, MTCO2E'!X23)/1000000 -> 0 | Y17: =('Summary, MTCO2E'!Y23)/1000000 -> 0 | Z17: =('Summary, MTCO2E'!Z23)/1000000 -> 0 | AA17: =('Summary, MTCO2E'!AA23)/1000000 -> 0 | AB17: =('Summary, MTCO2E'!AB23)/1000000 -> 0 | AC17: =('Summary, MTCO2E'!AC23)/1000000 -> 0 | AD17: =('Summary, MTCO2E'!AD23)/1000000 -> 0 | AE17: =('Summary, MTCO2E'!AE23)/1000000 -> 0 | AF17: =('Summary, MTCO2E'!AF23)/1000000 -> 0 | AG17: =('Summary, MTCO2E'!AG23)/1000000 -> 0 | AH17: =('Summary, MTCO2E'!AH23)/1000000 -> 0 | AI17: =('Summary, MTCO2E'!AI23)/1000000 -> 0 | AJ17: =('Summary, MTCO2E'!AJ23)/1000000 -> 0 | AK17: =('Summary, MTCO2E'!AK23)/1000000 -> 0 | AL17: =('Summary, MTCO2E'!AL23)/1000000 -> 0
A18: Electric Power Transmission and Distribution Systems | B18: Industrial Processes - HFC, PFC, NF3, and SF6 Emissions - Electric Power Transmission and Distribution Systems | C18: =('Summary, MTCO2E'!C24)/1000000 -> 0 | D18: =('Summary, MTCO2E'!D24)/1000000 -> 0 | E18: =('Summary, MTCO2E'!E24)/1000000 -> 0 | F18: =('Summary, MTCO2E'!F24)/1000000 -> 0 | G18: =('Summary, MTCO2E'!G24)/1000000 -> 0 | H18: =('Summary, MTCO2E'!H24)/1000000 -> 0 | I18: =('Summary, MTCO2E'!I24)/1000000 -> 0 | J18: =('Summary, MTCO2E'!J24)/1000000 -> 0 | K18: =('Summary, MTCO2E'!K24)/1000000 -> 0 | L18: =('Summary, MTCO2E'!L24)/1000000 -> 0 | M18: =('Summary, MTCO2E'!M24)/1000000 -> 0 | N18: =('Summary, MTCO2E'!N24)/1000000 -> 0 | O18: =('Summary, MTCO2E'!O24)/1000000 -> 0 | P18: =('Summary, MTCO2E'!P24)/1000000 -> 0 | Q18: =('Summary, MTCO2E'!Q24)/1000000 -> 0 | R18: =('Summary, MTCO2E'!R24)/1000000 -> 0 | S18: =('Summary, MTCO2E'!S24)/1000000 -> 0 | T18: =('Summary, MTCO2E'!T24)/1000000 -> 0 | U18: =('Summary, MTCO2E'!U24)/1000000 -> 0 | V18: =('Summary, MTCO2E'!V24)/1000000 -> 0 | W18: =('Summary, MTCO2E'!W24)/1000000 -> 0 | X18: =('Summary, MTCO2E'!X24)/1000000 -> 0 | Y18: =('Summary, MTCO2E'!Y24)/1000000 -> 0 | Z18: =('Summary, MTCO2E'!Z24)/1000000 -> 0 | AA18: =('Summary, MTCO2E'!AA24)/1000000 -> 0 | AB18: =('Summary, MTCO2E'!AB24)/1000000 -> 0 | AC18: =('Summary, MTCO2E'!AC24)/1000000 -> 0 | AD18: =('Summary, MTCO2E'!AD24)/1000000 -> 0 | AE18: =('Summary, MTCO2E'!AE24)/1000000 -> 0 | AF18: =('Summary, MTCO2E'!AF24)/1000000 -> 0 | AG18: =('Summary, MTCO2E'!AG24)/1000000 -> 0 | AH18: =('Summary, MTCO2E'!AH24)/1000000 -> 0 | AI18: =('Summary, MTCO2E'!AI24)/1000000 -> 0 | AJ18: =('Summary, MTCO2E'!AJ24)/1000000 -> 0 | AK18: =('Summary, MTCO2E'!AK24)/1000000 -> 0 | AL18: =('Summary, MTCO2E'!AL24)/1000000 -> 0
A19: HCFC-22 Production | B19: Industrial Processes - HFC, PFC, NF3, and SF6 Emissions - HCFC-22 Production | C19: =('Summary, MTCO2E'!C25)/1000000 -> 0 | D19: =('Summary, MTCO2E'!D25)/1000000 -> 0 | E19: =('Summary, MTCO2E'!E25)/1000000 -> 0 | F19: =('Summary, MTCO2E'!F25)/1000000 -> 0 | G19: =('Summary, MTCO2E'!G25)/1000000 -> 0 | H19: =('Summary, MTCO2E'!H25)/1000000 -> 0 | I19: =('Summary, MTCO2E'!I25)/1000000 -> 0 | J19: =('Summary, MTCO2E'!J25)/1000000 -> 0 | K19: =('Summary, MTCO2E'!K25)/1000000 -> 0 | L19: =('Summary, MTCO2E'!L25)/1000000 -> 0 | M19: =('Summary, MTCO2E'!M25)/1000000 -> 0 | N19: =('Summary, MTCO2E'!N25)/1000000 -> 0 | O19: =('Summary, MTCO2E'!O25)/1000000 -> 0 | P19: =('Summary, MTCO2E'!P25)/1000000 -> 0 | Q19: =('Summary, MTCO2E'!Q25)/1000000 -> 0 | R19: =('Summary, MTCO2E'!R25)/1000000 -> 0 | S19: =('Summary, MTCO2E'!S25)/1000000 -> 0 | T19: =('Summary, MTCO2E'!T25)/1000000 -> 0 | U19: =('Summary, MTCO2E'!U25)/1000000 -> 0 | V19: =('Summary, MTCO2E'!V25)/1000000 -> 0 | W19: =('Summary, MTCO2E'!W25)/1000000 -> 0 | X19: =('Summary, MTCO2E'!X25)/1000000 -> 0 | Y19: =('Summary, MTCO2E'!Y25)/1000000 -> 0 | Z19: =('Summary, MTCO2E'!Z25)/1000000 -> 0 | AA19: =('Summary, MTCO2E'!AA25)/1000000 -> 0 | AB19: =('Summary, MTCO2E'!AB25)/1000000 -> 0 | AC19: =('Summary, MTCO2E'!AC25)/1000000 -> 0 | AD19: =('Summary, MTCO2E'!AD25)/1000000 -> 0 | AE19: =('Summary, MTCO2E'!AE25)/1000000 -> 0 | AF19: =('Summary, MTCO2E'!AF25)/1000000 -> 0 | AG19: =('Summary, MTCO2E'!AG25)/1000000 -> 0 | AH19: =('Summary, MTCO2E'!AH25)/1000000 -> 0 | AI19: =('Summary, MTCO2E'!AI25)/1000000 -> 0 | AJ19: =('Summary, MTCO2E'!AJ25)/1000000 -> 0 | AK19: =('Summary, MTCO2E'!AK25)/1000000 -> 0 | AL19: =('Summary, MTCO2E'!AL25)/1000000 -> 0
A20: Aluminum Production, PFCs | B20: Industrial Processes - HFC, PFC, NF3, and SF6 Emissions - Aluminum Production, PFCs | C20: =('Summary, MTCO2E'!C26)/1000000 -> 0 | D20: =('Summary, MTCO2E'!D26)/1000000 -> 0 | E20: =('Summary, MTCO2E'!E26)/1000000 -> 0 | F20: =('Summary, MTCO2E'!F26)/1000000 -> 0 | G20: =('Summary, MTCO2E'!G26)/1000000 -> 0 | H20: =('Summary, MTCO2E'!H26)/1000000 -> 0 | I20: =('Summary, MTCO2E'!I26)/1000000 -> 0 | J20: =('Summary, MTCO2E'!J26)/1000000 -> 0 | K20: =('Summary, MTCO2E'!K26)/1000000 -> 0 | L20: =('Summary, MTCO2E'!L26)/1000000 -> 0 | M20: =('Summary, MTCO2E'!M26)/1000000 -> 0 | N20: =('Summary, MTCO2E'!N26)/1000000 -> 0 | O20: =('Summary, MTCO2E'!O26)/1000000 -> 0 | P20: =('Summary, MTCO2E'!P26)/1000000 -> 0 | Q20: =('Summary, MTCO2E'!Q26)/1000000 -> 0 | R20: =('Summary, MTCO2E'!R26)/1000000 -> 0 | S20: =('Summary, MTCO2E'!S26)/1000000 -> 0 | T20: =('Summary, MTCO2E'!T26)/1000000 -> 0 | U20: =('Summary, MTCO2E'!U26)/1000000 -> 0 | V20: =('Summary, MTCO2E'!V26)/1000000 -> 0 | W20: =('Summary, MTCO2E'!W26)/1000000 -> 0 | X20: =('Summary, MTCO2E'!X26)/1000000 -> 0 | Y20: =('Summary, MTCO2E'!Y26)/1000000 -> 0 | Z20: =('Summary, MTCO2E'!Z26)/1000000 -> 0 | AA20: =('Summary, MTCO2E'!AA26)/1000000 -> 0 | AB20: =('Summary, MTCO2E'!AB26)/1000000 -> 0 | AC20: =('Summary, MTCO2E'!AC26)/1000000 -> 0 | AD20: =('Summary, MTCO2E'!AD26)/1000000 -> 0 | AE20: =('Summary, MTCO2E'!AE26)/1000000 -> 0 | AF20: =('Summary, MTCO2E'!AF26)/1000000 -> 0 | AG20: =('Summary, MTCO2E'!AG26)/1000000 -> 0 | AH20: =('Summary, MTCO2E'!AH26)/1000000 -> 0 | AI20: =('Summary, MTCO2E'!AI26)/1000000 -> 0 | AJ20: =('Summary, MTCO2E'!AJ26)/1000000 -> 0 | AK20: =('Summary, MTCO2E'!AK26)/1000000 -> 0 | AL20: =('Summary, MTCO2E'!AL26)/1000000 -> 0

Sheet Dataframe_Sum (hidden)
A1: MMTCO2E | B1: Category | C1: 1990 | D1: 1991 | E1: 1992 | F1: 1993 | G1: 1994 | H1: 1995 | I1: 1996 | J1: 1997 | K1: 1998 | L1: 1999 | M1: 2000 | N1: 2001 | O1: 2002 | P1: 2003 | Q1: 2004 | R1: 2005 | S1: 2006 | T1: 2007 | U1: 2008 | V1: 2009 | W1: 2010 | X1: 2011 | Y1: 2012 | Z1: 2013 | AA1: 2014 | AB1: 2015 | AC1: 2016 | AD1: 2017 | AE1: 2018 | AF1: 2019 | AG1: 2020 | AH1: 2021 | AI1: 2022 | AJ1: 2023 | AK1: 2024 | AL1: 2025
A2: Carbon Dioxide Emissions | B2: Industrial Processes - Carbon Dioxide Emissions | C2: =('Summary, MTCO2E'!C6)/1000000 -> 0 | D2: =('Summary, MTCO2E'!D6)/1000000 -> 0 | E2: =('Summary, MTCO2E'!E6)/1000000 -> 0 | F2: =('Summary, MTCO2E'!F6)/1000000 -> 0 | G2: =('Summary, MTCO2E'!G6)/1000000 -> 0 | H2: =('Summary, MTCO2E'!H6)/1000000 -> 0 | I2: =('Summary, MTCO2E'!I6)/1000000 -> 0 | J2: =('Summary, MTCO2E'!J6)/1000000 -> 0 | K2: =('Summary, MTCO2E'!K6)/1000000 -> 0 | L2: =('Summary, MTCO2E'!L6)/1000000 -> 0 | M2: =('Summary, MTCO2E'!M6)/1000000 -> 0 | N2: =('Summary, MTCO2E'!N6)/1000000 -> 0 | O2: =('Summary, MTCO2E'!O6)/1000000 -> 0 | P2: =('Summary, MTCO2E'!P6)/1000000 -> 0 | Q2: =('Summary, MTCO2E'!Q6)/1000000 -> 0 | R2: =('Summary, MTCO2E'!R6)/1000000 -> 0 | S2: =('Summary, MTCO2E'!S6)/1000000 -> 0 | T2: =('Summary, MTCO2E'!T6)/1000000 -> 0 | U2: =('Summary, MTCO2E'!U6)/1000000 -> 0 | V2: =('Summary, MTCO2E'!V6)/1000000 -> 0 | W2: =('Summary, MTCO2E'!W6)/1000000 -> 0 | X2: =('Summary, MTCO2E'!X6)/1000000 -> 0 | Y2: =('Summary, MTCO2E'!Y6)/1000000 -> 0 | Z2: =('Summary, MTCO2E'!Z6)/1000000 -> 0 | AA2: =('Summary, MTCO2E'!AA6)/1000000 -> 0 | AB2: =('Summary, MTCO2E'!AB6)/1000000 -> 0 | AC2: =('Summary, MTCO2E'!AC6)/1000000 -> 0 | AD2: =('Summary, MTCO2E'!AD6)/1000000 -> 0 | AE2: =('Summary, MTCO2E'!AE6)/1000000 -> 0 | AF2: =('Summary, MTCO2E'!AF6)/1000000 -> 0 | AG2: =('Summary, MTCO2E'!AG6)/1000000 -> 0 | AH2: =('Summary, MTCO2E'!AH6)/1000000 -> 0 | AI2: =('Summary, MTCO2E'!AI6)/1000000 -> 0 | AJ2: =('Summary, MTCO2E'!AJ6)/1000000 -> 0 | AK2: =('Summary, MTCO2E'!AK6)/1000000 -> 0 | AL2: =('Summary, MTCO2E'!AL6)/1000000 -> 0
A3: Nitrous Oxide Emissions | B3: Industrial Processes - Nitrous Oxide Emissions | C3: =('Summary, MTCO2E'!C16)/1000000 -> 0 | D3: =('Summary, MTCO2E'!D16)/1000000 -> 0 | E3: =('Summary, MTCO2E'!E16)/1000000 -> 0 | F3: =('Summary, MTCO2E'!F16)/1000000 -> 0 | G3: =('Summary, MTCO2E'!G16)/1000000 -> 0 | H3: =('Summary, MTCO2E'!H16)/1000000 -> 0 | I3: =('Summary, MTCO2E'!I16)/1000000 -> 0 | J3: =('Summary, MTCO2E'!J16)/1000000 -> 0 | K3: =('Summary, MTCO2E'!K16)/1000000 -> 0 | L3: =('Summary, MTCO2E'!L16)/1000000 -> 0 | M3: =('Summary, MTCO2E'!M16)/1000000 -> 0 | N3: =('Summary, MTCO2E'!N16)/1000000 -> 0 | O3: =('Summary, MTCO2E'!O16)/1000000 -> 0 | P3: =('Summary, MTCO2E'!P16)/1000000 -> 0 | Q3: =('Summary, MTCO2E'!Q16)/1000000 -> 0 | R3: =('Summary, MTCO2E'!R16)/1000000 -> 0 | S3: =('Summary, MTCO2E'!S16)/1000000 -> 0 | T3: =('Summary, MTCO2E'!T16)/1000000 -> 0 | U3: =('Summary, MTCO2E'!U16)/1000000 -> 0 | V3: =('Summary, MTCO2E'!V16)/1000000 -> 0 | W3: =('Summary, MTCO2E'!W16)/1000000 -> 0 | X3: =('Summary, MTCO2E'!X16)/1000000 -> 0 | Y3: =('Summary, MTCO2E'!Y16)/1000000 -> 0 | Z3: =('Summary, MTCO2E'!Z16)/1000000 -> 0 | AA3: =('Summary, MTCO2E'!AA16)/1000000 -> 0 | AB3: =('Summary, MTCO2E'!AB16)/1000000 -> 0 | AC3: =('Summary, MTCO2E'!AC16)/1000000 -> 0 | AD3: =('Summary, MTCO2E'!AD16)/1000000 -> 0 | AE3: =('Summary, MTCO2E'!AE16)/1000000 -> 0 | AF3: =('Summary, MTCO2E'!AF16)/1000000 -> 0 | AG3: =('Summary, MTCO2E'!AG16)/1000000 -> 0 | AH3: =('Summary, MTCO2E'!AH16)/1000000 -> 0 | AI3: =('Summary, MTCO2E'!AI16)/1000000 -> 0 | AJ3: =('Summary, MTCO2E'!AJ16)/1000000 -> 0 | AK3: =('Summary, MTCO2E'!AK16)/1000000 -> 0 | AL3: =('Summary, MTCO2E'!AL16)/1000000 -> 0
A4: HFC, PFC, NF3, and SF6 Emissions | B4: Industrial Processes - HFC, PFC, NF3, and SF6 Emissions | C4: =('Summary, MTCO2E'!C20)/1000000 -> 0 | D4: =('Summary, MTCO2E'!D20)/1000000 -> 0 | E4: =('Summary, MTCO2E'!E20)/1000000 -> 0 | F4: =('Summary, MTCO2E'!F20)/1000000 -> 0 | G4: =('Summary, MTCO2E'!G20)/1000000 -> 0 | H4: =('Summary, MTCO2E'!H20)/1000000 -> 0 | I4: =('Summary, MTCO2E'!I20)/1000000 -> 0 | J4: =('Summary, MTCO2E'!J20)/1000000 -> 0 | K4: =('Summary, MTCO2E'!K20)/1000000 -> 0 | L4: =('Summary, MTCO2E'!L20)/1000000 -> 0 | M4: =('Summary, MTCO2E'!M20)/1000000 -> 0 | N4: =('Summary, MTCO2E'!N20)/1000000 -> 0 | O4: =('Summary, MTCO2E'!O20)/1000000 -> 0 | P4: =('Summary, MTCO2E'!P20)/1000000 -> 0 | Q4: =('Summary, MTCO2E'!Q20)/1000000 -> 0 | R4: =('Summary, MTCO2E'!R20)/1000000 -> 0 | S4: =('Summary, MTCO2E'!S20)/1000000 -> 0 | T4: =('Summary, MTCO2E'!T20)/1000000 -> 0 | U4: =('Summary, MTCO2E'!U20)/1000000 -> 0 | V4: =('Summary, MTCO2E'!V20)/1000000 -> 0 | W4: =('Summary, MTCO2E'!W20)/1000000 -> 0 | X4: =('Summary, MTCO2E'!X20)/1000000 -> 0 | Y4: =('Summary, MTCO2E'!Y20)/1000000 -> 0 | Z4: =('Summary, MTCO2E'!Z20)/1000000 -> 0 | AA4: =('Summary, MTCO2E'!AA20)/1000000 -> 0 | AB4: =('Summary, MTCO2E'!AB20)/1000000 -> 0 | AC4: =('Summary, MTCO2E'!AC20)/1000000 -> 0 | AD4: =('Summary, MTCO2E'!AD20)/1000000 -> 0 | AE4: =('Summary, MTCO2E'!AE20)/1000000 -> 0 | AF4: =('Summary, MTCO2E'!AF20)/1000000 -> 0 | AG4: =('Summary, MTCO2E'!AG20)/1000000 -> 0 | AH4: =('Summary, MTCO2E'!AH20)/1000000 -> 0 | AI4: =('Summary, MTCO2E'!AI20)/1000000 -> 0 | AJ4: =('Summary, MTCO2E'!AJ20)/1000000 -> 0 | AK4: =('Summary, MTCO2E'!AK20)/1000000 -> 0 | AL4: =('Summary, MTCO2E'!AL20)/1000000 -> 0
A5: Total | B5: Industrial Processes - Total | C5: ='Summary, MTCO2E'!C28/1000000 -> 0 | D5: ='Summary, MTCO2E'!D28/1000000 -> 0 | E5: ='Summary, MTCO2E'!E28/1000000 -> 0 | F5: ='Summary, MTCO2E'!F28/1000000 -> 0 | G5: ='Summary, MTCO2E'!G28/1000000 -> 0 | H5: ='Summary, MTCO2E'!H28/1000000 -> 0 | I5: ='Summary, MTCO2E'!I28/1000000 -> 0 | J5: ='Summary, MTCO2E'!J28/1000000 -> 0 | K5: ='Summary, MTCO2E'!K28/1000000 -> 0 | L5: ='Summary, MTCO2E'!L28/1000000 -> 0 | M5: ='Summary, MTCO2E'!M28/1000000 -> 0 | N5: ='Summary, MTCO2E'!N28/1000000 -> 0 | O5: ='Summary, MTCO2E'!O28/1000000 -> 0 | P5: ='Summary, MTCO2E'!P28/1000000 -> 0 | Q5: ='Summary, MTCO2E'!Q28/1000000 -> 0 | R5: ='Summary, MTCO2E'!R28/1000000 -> 0 | S5: ='Summary, MTCO2E'!S28/1000000 -> 0 | T5: ='Summary, MTCO2E'!T28/1000000 -> 0 | U5: ='Summary, MTCO2E'!U28/1000000 -> 0 | V5: ='Summary, MTCO2E'!V28/1000000 -> 0 | W5: ='Summary, MTCO2E'!W28/1000000 -> 0 | X5: ='Summary, MTCO2E'!X28/1000000 -> 0 | Y5: ='Summary, MTCO2E'!Y28/1000000 -> 0 | Z5: ='Summary, MTCO2E'!Z28/1000000 -> 0 | AA5: ='Summary, MTCO2E'!AA28/1000000 -> 0 | AB5: ='Summary, MTCO2E'!AB28/1000000 -> 0 | AC5: ='Summary, MTCO2E'!AC28/1000000 -> 0 | AD5: ='Summary, MTCO2E'!AD28/1000000 -> 0 | AE5: ='Summary, MTCO2E'!AE28/1000000 -> 0 | AF5: ='Summary, MTCO2E'!AF28/1000000 -> 0 | AG5: ='Summary, MTCO2E'!AG28/1000000 -> 0 | AH5: ='Summary, MTCO2E'!AH28/1000000 -> 0 | AI5: ='Summary, MTCO2E'!AI28/1000000 -> 0 | AJ5: ='Summary, MTCO2E'!AJ28/1000000 -> 0 | AK5: ='Summary, MTCO2E'!AK28/1000000 -> 0 | AL5: ='Summary, MTCO2E'!AL28/1000000 -> 0

Sheet Cement
B1: ="2. Cement Production in "&'List Data'!B3 -> 2. Cement Production in Select a State . . .
D2: ='List Data'!$A$3 -> XX | E2: Cement | F2: =" " -> 
E4: Production | G4: Emission Factor | I4: Emissions | K4: Emissions from Cement Kiln Dust | M4: Emissions | O4: Emissions
E5: (Metric Tons) | G5: (t CO2/t production) | I5: (Metric Tons CO2) | K5: (Metric Tons CO2) | M5: (MTCE) | O5: (MTCO2E)
B7: 1990 | D7: Clinker | F7: x | G7: =INDIRECT($E$2&LEFT(D7,2)&"Factor") -> 0 | H7: = | I7: =IF(ISERROR(E7*G7),0,E7*G7) -> 0 | J7: + | K7: =I7*CKDFactor -> 0 | L7: = | M7: =(I7+K7)*CO2_C -> 0 | N7: = | O7: =M7/CO2_C -> 0
B9: =B7+1 -> 1991 | D9: Clinker | F9: x | G9: =INDIRECT($E$2&LEFT(D9,2)&"Factor") -> 0 | H9: = | I9: =IF(ISERROR(E9*G9),0,E9*G9) -> 0 | J9: + | K9: =I9*CKDFactor -> 0 | L9: = | M9: =(I9+K9)*CO2_C -> 0 | N9: = | O9: =M9/CO2_C -> 0
B11: =B9+1 -> 1992 | D11: =$D$7 -> Clinker | F11: x | G11: =INDIRECT($E$2&LEFT(D11,2)&"Factor") -> 0 | H11: = | I11: =IF(ISERROR(E11*G11),0,E11*G11) -> 0 | J11: + | K11: =I11*CKDFactor -> 0 | L11: = | M11: =(I11+K11)*CO2_C -> 0 | N11: = | O11: =M11/CO2_C -> 0
B13: =B11+1 -> 1993 | D13: =$D$7 -> Clinker | F13: x | G13: =INDIRECT($E$2&LEFT(D13,2)&"Factor") -> 0 | H13: = | I13: =IF(ISERROR(E13*G13),0,E13*G13) -> 0 | J13: + | K13: =I13*CKDFactor -> 0 | L13: = | M13: =(I13+K13)*CO2_C -> 0 | N13: = | O13: =M13/CO2_C -> 0
B15: =B13+1 -> 1994 | D15: =$D$7 -> Clinker | F15: x | G15: =INDIRECT($E$2&LEFT(D15,2)&"Factor") -> 0 | H15: = | I15: =IF(ISERROR(E15*G15),0,E15*G15) -> 0 | J15: + | K15: =I15*CKDFactor -> 0 | L15: = | M15: =(I15+K15)*CO2_C -> 0 | N15: = | O15: =M15/CO2_C -> 0
B17: =B15+1 -> 1995 | D17: =$D$7 -> Clinker | F17: x | G17: =INDIRECT($E$2&LEFT(D17,2)&"Factor") -> 0 | H17: = | I17: =IF(ISERROR(E17*G17),0,E17*G17) -> 0 | J17: + | K17: =I17*CKDFactor -> 0 | L17: = | M17: =(I17+K17)*CO2_C -> 0 | N17: = | O17: =M17/CO2_C -> 0
B19: =B17+1 -> 1996 | D19: =$D$7 -> Clinker | F19: x | G19: =INDIRECT($E$2&LEFT(D19,2)&"Factor") -> 0 | H19: = | I19: =IF(ISERROR(E19*G19),0,E19*G19) -> 0 | J19: + | K19: =I19*CKDFactor -> 0 | L19: = | M19: =(I19+K19)*CO2_C -> 0 | N19: = | O19: =M19/CO2_C -> 0
B21: =B19+1 -> 1997 | D21: =$D$7 -> Clinker | F21: x | G21: =INDIRECT($E$2&LEFT(D21,2)&"Factor") -> 0 | H21: = | I21: =IF(ISERROR(E21*G21),0,E21*G21) -> 0 | J21: + | K21: =I21*CKDFactor -> 0 | L21: = | M21: =(I21+K21)*CO2_C -> 0 | N21: = | O21: =M21/CO2_C -> 0
B23: =B21+1 -> 1998 | D23: =$D$7 -> Clinker | F23: x | G23: =INDIRECT($E$2&LEFT(D23,2)&"Factor") -> 0 | H23: = | I23: =IF(ISERROR(E23*G23),0,E23*G23) -> 0 | J23: + | K23: =I23*CKDFactor -> 0 | L23: = | M23: =(I23+K23)*CO2_C -> 0 | N23: = | O23: =M23/CO2_C -> 0
B25: =B23+1 -> 1999 | D25: =$D$7 -> Clinker | F25: x | G25: =INDIRECT($E$2&LEFT(D25,2)&"Factor") -> 0 | H25: = | I25: =IF(ISERROR(E25*G25),0,E25*G25) -> 0 | J25: + | K25: =I25*CKDFactor -> 0 | L25: = | M25: =(I25+K25)*CO2_C -> 0 | N25: = | O25: =M25/CO2_C -> 0
B27: =B25+1 -> 2000 | D27: =$D$7 -> Clinker | F27: x | G27: =INDIRECT($E$2&LEFT(D27,2)&"Factor") -> 0 | H27: = | I27: =IF(ISERROR(E27*G27),0,E27*G27) -> 0 | J27: + | K27: =I27*CKDFactor -> 0 | L27: = | M27: =(I27+K27)*CO2_C -> 0 | N27: = | O27: =M27/CO2_C -> 0
B29: =B27+1 -> 2001 | D29: =$D$7 -> Clinker | F29: x | G29: =INDIRECT($E$2&LEFT(D29,2)&"Factor") -> 0 | H29: = | I29: =IF(ISERROR(E29*G29),0,E29*G29) -> 0 | J29: + | K29: =I29*CKDFactor -> 0 | L29: = | M29: =(I29+K29)*CO2_C -> 0 | N29: = | O29: =M29/CO2_C -> 0
B31: =B29+1 -> 2002 | D31: =$D$7 -> Clinker | F31: x | G31: =INDIRECT($E$2&LEFT(D31,2)&"Factor") -> 0 | H31: = | I31: =IF(ISERROR(E31*G31),0,E31*G31) -> 0 | J31: + | K31: =I31*CKDFactor -> 0 | L31: = | M31: =(I31+K31)*CO2_C -> 0 | N31: = | O31: =M31/CO2_C -> 0
B33: =B31+1 -> 2003 | D33: =$D$7 -> Clinker | F33: x | G33: =INDIRECT($E$2&LEFT(D33,2)&"Factor") -> 0 | H33: = | I33: =IF(ISERROR(E33*G33),0,E33*G33) -> 0 | J33: + | K33: =I33*CKDFactor -> 0 | L33: = | M33: =(I33+K33)*CO2_C -> 0 | N33: = | O33: =M33/CO2_C -> 0
B35: =B33+1 -> 2004 | D35: =$D$7 -> Clinker | F35: x | G35: =INDIRECT($E$2&LEFT(D35,2)&"Factor") -> 0 | H35: = | I35: =IF(ISERROR(E35*G35),0,E35*G35) -> 0 | J35: + | K35: =I35*CKDFactor -> 0 | L35: = | M35: =(I35+K35)*CO2_C -> 0 | N35: = | O35: =M35/CO2_C -> 0
B37: =B35+1 -> 2005 | D37: =$D$7 -> Clinker | F37: x | G37: =INDIRECT($E$2&LEFT(D37,2)&"Factor") -> 0 | H37: = | I37: =IF(ISERROR(E37*G37),0,E37*G37) -> 0 | J37: + | K37: =I37*CKDFactor -> 0 | L37: = | M37: =(I37+K37)*CO2_C -> 0 | N37: = | O37: =M37/CO2_C -> 0
B39: =B37+1 -> 2006 | D39: =$D$7 -> Clinker | F39: x | G39: =INDIRECT($E$2&LEFT(D39,2)&"Factor") -> 0 | H39: = | I39: =IF(ISERROR(E39*G39),0,E39*G39) -> 0 | J39: + | K39: =I39*CKDFactor -> 0 | L39: = | M39: =(I39+K39)*CO2_C -> 0 | N39: = | O39: =M39/CO2_C -> 0
B41: =B39+1 -> 2007 | D41: =$D$7 -> Clinker | F41: x | G41: =INDIRECT($E$2&LEFT(D41,2)&"Factor") -> 0 | H41: = | I41: =IF(ISERROR(E41*G41),0,E41*G41) -> 0 | J41: + | K41: =I41*CKDFactor -> 0 | L41: = | M41: =(I41+K41)*CO2_C -> 0 | N41: = | O41: =M41/CO2_C -> 0
B43: =B41+1 -> 2008 | D43: =$D$7 -> Clinker | F43: x | G43: =INDIRECT($E$2&LEFT(D43,2)&"Factor") -> 0 | H43: = | I43: =IF(ISERROR(E43*G43),0,E43*G43) -> 0 | J43: + | K43: =I43*CKDFactor -> 0 | L43: = | M43: =(I43+K43)*CO2_C -> 0 | N43: = | O43: =M43/CO2_C -> 0
B45: =B43+1 -> 2009 | D45: =$D$7 -> Clinker | F45: x | G45: =INDIRECT($E$2&LEFT(D45,2)&"Factor") -> 0 | H45: = | I45: =IF(ISERROR(E45*G45),0,E45*G45) -> 0 | J45: + | K45: =I45*CKDFactor -> 0 | L45: = | M45: =(I45+K45)*CO2_C -> 0 | N45: = | O45: =M45/CO2_C -> 0
B47: =B45+1 -> 2010 | D47: =$D$7 -> Clinker | F47: x | G47: =INDIRECT($E$2&LEFT(D47,2)&"Factor") -> 0 | H47: = | I47: =IF(ISERROR(E47*G47),0,E47*G47) -> 0 | J47: + | K47: =I47*CKDFactor -> 0 | L47: = | M47: =(I47+K47)*CO2_C -> 0 | N47: = | O47: =M47/CO2_C -> 0
B49: =B47+1 -> 2011 | D49: =$D$7 -> Clinker | F49: x | G49: =INDIRECT($E$2&LEFT(D49,2)&"Factor") -> 0 | H49: = | I49: =IF(ISERROR(E49*G49),0,E49*G49) -> 0 | J49: + | K49: =I49*CKDFactor -> 0 | L49: = | M49: =(I49+K49)*CO2_C -> 0 | N49: = | O49: =M49/CO2_C -> 0
B51: =B49+1 -> 2012 | D51: =$D$7 -> Clinker | F51: x | G51: =INDIRECT($E$2&LEFT(D51,2)&"Factor") -> 0 | H51: = | I51: =IF(ISERROR(E51*G51),0,E51*G51) -> 0 | J51: + | K51: =I51*CKDFactor -> 0 | L51: = | M51: =(I51+K51)*CO2_C -> 0 | N51: = | O51: =M51/CO2_C -> 0
B53: =B51+1 -> 2013 | D53: =$D$7 -> Clinker | F53: x | G53: =INDIRECT($E$2&LEFT(D53,2)&"Factor") -> 0 | H53: = | I53: =IF(ISERROR(E53*G53),0,E53*G53) -> 0 | J53: + | K53: =I53*CKDFactor -> 0 | L53: = | M53: =(I53+K53)*CO2_C -> 0 | N53: = | O53: =M53/CO2_C -> 0
B55: =B53+1 -> 2014 | D55: =$D$7 -> Clinker | F55: x | G55: =INDIRECT($E$2&LEFT(D55,2)&"Factor") -> 0 | H55: = | I55: =IF(ISERROR(E55*G55),0,E55*G55) -> 0 | J55: + | K55: =I55*CKDFactor -> 0 | L55: = | M55: =(I55+K55)*CO2_C -> 0 | N55: = | O55: =M55/CO2_C -> 0
B57: =B55+1 -> 2015 | D57: =$D$7 -> Clinker | F57: x | G57: =INDIRECT($E$2&LEFT(D57,2)&"Factor") -> 0 | H57: = | I57: =IF(ISERROR(E57*G57),0,E57*G57) -> 0 | J57: + | K57: =I57*CKDFactor -> 0 | L57: = | M57: =(I57+K57)*CO2_C -> 0 | N57: = | O57: =M57/CO2_C -> 0
B59: =B57+1 -> 2016 | D59: =$D$7 -> Clinker | F59: x | G59: =INDIRECT($E$2&LEFT(D59,2)&"Factor") -> 0 | H59: = | I59: =IF(ISERROR(E59*G59),0,E59*G59) -> 0 | J59: + | K59: =I59*CKDFactor -> 0 | L59: = | M59: =(I59+K59)*CO2_C -> 0 | N59: = | O59: =M59/CO2_C -> 0
B61: =B59+1 -> 2017 | D61: =$D$7 -> Clinker | F61: x | G61: =INDIRECT($E$2&LEFT(D61,2)&"Factor") -> 0 | H61: = | I61: =IF(ISERROR(E61*G61),0,E61*G61) -> 0 | J61: + | K61: =I61*CKDFactor -> 0 | L61: = | M61: =(I61+K61)*CO2_C -> 0 | N61: = | O61: =M61/CO2_C -> 0
B63: =B61+1 -> 2018 | D63: =$D$7 -> Clinker | F63: x | G63: =INDIRECT($E$2&LEFT(D63,2)&"Factor") -> 0 | H63: = | I63: =IF(ISERROR(E63*G63),0,E63*G63) -> 0 | J63: + | K63: =I63*CKDFactor -> 0 | L63: = | M63: =(I63+K63)*CO2_C -> 0 | N63: = | O63: =M63/CO2_C -> 0
B65: =B63+1 -> 2019 | D65: =$D$7 -> Clinker | F65: x | G65: =INDIRECT($E$2&LEFT(D65,2)&"Factor") -> 0 | H65: = | I65: =IF(ISERROR(E65*G65),0,E65*G65) -> 0 | J65: + | K65: =I65*CKDFactor -> 0 | L65: = | M65: =(I65+K65)*CO2_C -> 0 | N65: = | O65: =M65/CO2_C -> 0
B67: =B65+1 -> 2020 | D67: =$D$7 -> Clinker | F67: x | G67: =INDIRECT($E$2&LEFT(D67,2)&"Factor") -> 0 | H67: = | I67: =IF(ISERROR(E67*G67),0,E67*G67) -> 0 | J67: + | K67: =I67*CKDFactor -> 0 | L67: = | M67: =(I67+K67)*CO2_C -> 0 | N67: = | O67: =M67/CO2_C -> 0
B69: =B67+1 -> 2021 | D69: =$D$7 -> Clinker | F69: x | G69: =INDIRECT($E$2&LEFT(D69,2)&"Factor") -> 0 | H69: = | I69: =IF(ISERROR(E69*G69),0,E69*G69) -> 0 | J69: + | K69: =I69*CKDFactor -> 0 | L69: = | M69: =(I69+K69)*CO2_C -> 0 | N69: = | O69: =M69/CO2_C -> 0
B71: =B69+1 -> 2022 | D71: =$D$7 -> Clinker | F71: x | G71: =INDIRECT($E$2&LEFT(D71,2)&"Factor") -> 0 | H71: = | I71: =IF(ISERROR(E71*G71),0,E71*G71) -> 0 | J71: + | K71: =I71*CKDFactor -> 0 | L71: = | M71: =(I71+K71)*CO2_C -> 0 | N71: = | O71: =M71/CO2_C -> 0
B73: =B71+1 -> 2023 | D73: =$D$7 -> Clinker | F73: x | G73: =INDIRECT($E$2&LEFT(D73,2)&"Factor") -> 0 | H73: = | I73: =IF(ISERROR(E73*G73),0,E73*G73) -> 0 | J73: + | K73: =I73*CKDFactor -> 0 | L73: = | M73: =(I73+K73)*CO2_C -> 0 | N73: = | O73: =M73/CO2_C -> 0
B75: =B73+1 -> 2024 | D75: =$D$7 -> Clinker | F75: x | G75: =INDIRECT($E$2&LEFT(D75,2)&"Factor") -> 0 | H75: = | I75: =IF(ISERROR(E75*G75),0,E75*G75) -> 0 | J75: + | K75: =I75*CKDFactor -> 0 | L75: = | M75: =(I75+K75)*CO2_C -> 0 | N75: = | O75: =M75/CO2_C -> 0
B77: =B75+1 -> 2025 | D77: =$D$7 -> Clinker | F77: x | G77: =INDIRECT($E$2&LEFT(D77,2)&"Factor") -> 0 | H77: = | I77: =IF(ISERROR(E77*G77),0,E77*G77) -> 0 | J77: + | K77: =I77*CKDFactor -> 0 | L77: = | M77: =(I77+K77)*CO2_C -> 0 | N77: = | O77: =M77/CO2_C -> 0

Sheet Lime
B1: ="3. Lime Manufacture in "&'List Data'!B3 -> 3. Lime Manufacture in Select a State . . .
D2: ='List Data'!$A$3 -> XX | E2: Lime | L2: =" " -> 
F4: Production | H4: Use In Sugar Refining and Precipitated Calcium Carbonate Production | J4: CO2 Reabsorption Factor | M4: Emission Factor | O4: Emissions | Q4: Emissions
F5: (Metric Tons) | H5: (Metric Tons) | M5: (t CO2/t production) | O5: (MTCE) | Q5: (MTCO2E)
B7: 1990 | D7: High-Calcium Lime | E7: { | G7: - | I7: x | J7: 0.8 | K7: } | L7: x | M7: =LimeFactor -> 0 | N7: = | O7: =Q7*CO2_C -> 0 | P7: = | Q7: =(F7-(H7*J7))*M7 -> 0
D8: Dolomitic Lime | E8: { | G8: - | I8: x | J8: 0.8 | K8: } | L8: x | M8: =DoloLimeFactor -> 0 | N8: = | O8: =Q8*CO2_C -> 0 | P8: = | Q8: =(F8-(H8*J8))*M8 -> 0
B10: 1991 | D10: High-Calcium Lime | E10: { | G10: - | I10: x | J10: 0.8 | K10: } | L10: x | M10: =LimeFactor -> 0 | N10: = | O10: =Q10*CO2_C -> 0 | P10: = | Q10: =(F10-(H10*J10))*M10 -> 0
D11: Dolomitic Lime | E11: { | G11: - | I11: x | J11: 0.8 | K11: } | L11: x | M11: =DoloLimeFactor -> 0 | N11: = | O11: =Q11*CO2_C -> 0 | P11: = | Q11: =(F11-(H11*J11))*M11 -> 0
B13: 1992 | D13: High-Calcium Lime | E13: { | G13: - | I13: x | J13: 0.8 | K13: } | L13: x | M13: =LimeFactor -> 0 | N13: = | O13: =Q13*CO2_C -> 0 | P13: = | Q13: =(F13-(H13*J13))*M13 -> 0
D14: Dolomitic Lime | E14: { | G14: - | I14: x | J14: 0.8 | K14: } | L14: x | M14: =DoloLimeFactor -> 0 | N14: = | O14: =Q14*CO2_C -> 0 | P14: = | Q14: =(F14-(H14*J14))*M14 -> 0
B16: 1993 | D16: High-Calcium Lime | E16: { | G16: - | I16: x | J16: 0.8 | K16: } | L16: x | M16: =LimeFactor -> 0 | N16: = | O16: =Q16*CO2_C -> 0 | P16: = | Q16: =(F16-(H16*J16))*M16 -> 0
D17: Dolomitic Lime | E17: { | G17: - | I17: x | J17: 0.8 | K17: } | L17: x | M17: =DoloLimeFactor -> 0 | N17: = | O17: =Q17*CO2_C -> 0 | P17: = | Q17: =(F17-(H17*J17))*M17 -> 0
B19: 1994 | D19: High-Calcium Lime | E19: { | G19: - | I19: x | J19: 0.8 | K19: } | L19: x | M19: =LimeFactor -> 0 | N19: = | O19: =Q19*CO2_C -> 0 | P19: = | Q19: =(F19-(H19*J19))*M19 -> 0
D20: Dolomitic Lime | E20: { | G20: - | I20: x | J20: 0.8 | K20: } | L20: x | M20: =DoloLimeFactor -> 0 | N20: = | O20: =Q20*CO2_C -> 0 | P20: = | Q20: =(F20-(H20*J20))*M20 -> 0
B22: 1995 | D22: High-Calcium Lime | E22: { | G22: - | I22: x | J22: 0.8 | K22: } | L22: x | M22: =LimeFactor -> 0 | N22: = | O22: =Q22*CO2_C -> 0 | P22: = | Q22: =(F22-(H22*J22))*M22 -> 0
D23: Dolomitic Lime | E23: { | G23: - | I23: x | J23: 0.8 | K23: } | L23: x | M23: =DoloLimeFactor -> 0 | N23: = | O23: =Q23*CO2_C -> 0 | P23: = | Q23: =(F23-(H23*J23))*M23 -> 0
B25: 1996 | D25: High-Calcium Lime | E25: { | G25: - | I25: x | J25: 0.8 | K25: } | L25: x | M25: =LimeFactor -> 0 | N25: = | O25: =Q25*CO2_C -> 0 | P25: = | Q25: =(F25-(H25*J25))*M25 -> 0
D26: Dolomitic Lime | E26: { | G26: - | I26: x | J26: 0.8 | K26: } | L26: x | M26: =DoloLimeFactor -> 0 | N26: = | O26: =Q26*CO2_C -> 0 | P26: = | Q26: =(F26-(H26*J26))*M26 -> 0
B28: 1997 | D28: High-Calcium Lime | E28: { | G28: - | I28: x | J28: 0.8 | K28: } | L28: x | M28: =LimeFactor -> 0 | N28: = | O28: =Q28*CO2_C -> 0 | P28: = | Q28: =(F28-(H28*J28))*M28 -> 0
D29: Dolomitic Lime | E29: { | G29: - | I29: x | J29: 0.8 | K29: } | L29: x | M29: =DoloLimeFactor -> 0 | N29: = | O29: =Q29*CO2_C -> 0 | P29: = | Q29: =(F29-(H29*J29))*M29 -> 0
B31: 1998 | D31: High-Calcium Lime | E31: { | G31: - | I31: x | J31: 0.8 | K31: } | L31: x | M31: =LimeFactor -> 0 | N31: = | O31: =Q31*CO2_C -> 0 | P31: = | Q31: =(F31-(H31*J31))*M31 -> 0
D32: Dolomitic Lime | E32: { | G32: - | I32: x | J32: 0.8 | K32: } | L32: x | M32: =DoloLimeFactor -> 0 | N32: = | O32: =Q32*CO2_C -> 0 | P32: = | Q32: =(F32-(H32*J32))*M32 -> 0
B34: 1999 | D34: High-Calcium Lime | E34: { | G34: - | I34: x | J34: 0.8 | K34: } | L34: x | M34: =LimeFactor -> 0 | N34: = | O34: =Q34*CO2_C -> 0 | P34: = | Q34: =(F34-(H34*J34))*M34 -> 0
D35: Dolomitic Lime | E35: { | G35: - | I35: x | J35: 0.8 | K35: } | L35: x | M35: =DoloLimeFactor -> 0 | N35: = | O35: =Q35*CO2_C -> 0 | P35: = | Q35: =(F35-(H35*J35))*M35 -> 0
B37: 2000 | D37: High-Calcium Lime | E37: { | G37: - | I37: x | J37: 0.8 | K37: } | L37: x | M37: =LimeFactor -> 0 | N37: = | O37: =Q37*CO2_C -> 0 | P37: = | Q37: =(F37-(H37*J37))*M37 -> 0
D38: Dolomitic Lime | E38: { | G38: - | I38: x | J38: 0.8 | K38: } | L38: x | M38: =DoloLimeFactor -> 0 | N38: = | O38: =Q38*CO2_C -> 0 | P38: = | Q38: =(F38-(H38*J38))*M38 -> 0
B40: 2001 | D40: High-Calcium Lime | E40: { | G40: - | I40: x | J40: 0.8 | K40: } | L40: x | M40: =LimeFactor -> 0 | N40: = | O40: =Q40*CO2_C -> 0 | P40: = | Q40: =(F40-(H40*J40))*M40 -> 0
D41: Dolomitic Lime | E41: { | G41: - | I41: x | J41: 0.8 | K41: } | L41: x | M41: =DoloLimeFactor -> 0 | N41: = | O41: =Q41*CO2_C -> 0 | P41: = | Q41: =(F41-(H41*J41))*M41 -> 0
B43: 2002 | D43: High-Calcium Lime | E43: { | G43: - | I43: x | J43: 0.8 | K43: } | L43: x | M43: =LimeFactor -> 0 | N43: = | O43: =Q43*CO2_C -> 0 | P43: = | Q43: =(F43-(H43*J43))*M43 -> 0
D44: Dolomitic Lime | E44: { | G44: - | I44: x | J44: 0.8 | K44: } | L44: x | M44: =DoloLimeFactor -> 0 | N44: = | O44: =Q44*CO2_C -> 0 | P44: = | Q44: =(F44-(H44*J44))*M44 -> 0
B46: 2003 | D46: High-Calcium Lime | E46: { | G46: - | I46: x | J46: 0.8 | K46: } | L46: x | M46: =LimeFactor -> 0 | N46: = | O46: =Q46*CO2_C -> 0 | P46: = | Q46: =(F46-(H46*J46))*M46 -> 0
D47: Dolomitic Lime | E47: { | G47: - | I47: x | J47: 0.8 | K47: } | L47: x | M47: =DoloLimeFactor -> 0 | N47: = | O47: =Q47*CO2_C -> 0 | P47: = | Q47: =(F47-(H47*J47))*M47 -> 0
B49: 2004 | D49: High-Calcium Lime | E49: { | G49: - | I49: x | J49: 0.8 | K49: } | L49: x | M49: =LimeFactor -> 0 | N49: = | O49: =Q49*CO2_C -> 0 | P49: = | Q49: =(F49-(H49*J49))*M49 -> 0
D50: Dolomitic Lime | E50: { | G50: - | I50: x | J50: 0.8 | K50: } | L50: x | M50: =DoloLimeFactor -> 0 | N50: = | O50: =Q50*CO2_C -> 0 | P50: = | Q50: =(F50-(H50*J50))*M50 -> 0
B52: 2005 | D52: High-Calcium Lime | E52: { | G52: - | I52: x | J52: 0.8 | K52: } | L52: x | M52: =LimeFactor -> 0 | N52: = | O52: =Q52*CO2_C -> 0 | P52: = | Q52: =(F52-(H52*J52))*M52 -> 0
D53: Dolomitic Lime | E53: { | G53: - | I53: x | J53: 0.8 | K53: } | L53: x | M53: =DoloLimeFactor -> 0 | N53: = | O53: =Q53*CO2_C -> 0 | P53: = | Q53: =(F53-(H53*J53))*M53 -> 0
B55: 2006 | D55: High-Calcium Lime | E55: { | G55: - | I55: x | J55: 0.8 | K55: } | L55: x | M55: =LimeFactor -> 0 | N55: = | O55: =Q55*CO2_C -> 0 | P55: = | Q55: =(F55-(H55*J55))*M55 -> 0
D56: Dolomitic Lime | E56: { | G56: - | I56: x | J56: 0.8 | K56: } | L56: x | M56: =DoloLimeFactor -> 0 | N56: = | O56: =Q56*CO2_C -> 0 | P56: = | Q56: =(F56-(H56*J56))*M56 -> 0
B58: 2007 | D58: High-Calcium Lime | E58: { | G58: - | I58: x | J58: 0.8 | K58: } | L58: x | M58: =LimeFactor -> 0 | N58: = | O58: =Q58*CO2_C -> 0 | P58: = | Q58: =(F58-(H58*J58))*M58 -> 0
D59: Dolomitic Lime | E59: { | G59: - | I59: x | J59: 0.8 | K59: } | L59: x | M59: =DoloLimeFactor -> 0 | N59: = | O59: =Q59*CO2_C -> 0 | P59: = | Q59: =(F59-(H59*J59))*M59 -> 0
B61: 2008 | D61: High-Calcium Lime | E61: { | G61: - | I61: x | J61: 0.8 | K61: } | L61: x | M61: =LimeFactor -> 0 | N61: = | O61: =Q61*CO2_C -> 0 | P61: = | Q61: =(F61-(H61*J61))*M61 -> 0
D62: Dolomitic Lime | E62: { | G62: - | I62: x | J62: 0.8 | K62: } | L62: x | M62: =DoloLimeFactor -> 0 | N62: = | O62: =Q62*CO2_C -> 0 | P62: = | Q62: =(F62-(H62*J62))*M62 -> 0
B64: 2009 | D64: High-Calcium Lime | E64: { | G64: - | I64: x | J64: 0.8 | K64: } | L64: x | M64: =LimeFactor -> 0 | N64: = | O64: =Q64*CO2_C -> 0 | P64: = | Q64: =(F64-(H64*J64))*M64 -> 0
D65: Dolomitic Lime | E65: { | G65: - | I65: x | J65: 0.8 | K65: } | L65: x | M65: =DoloLimeFactor -> 0 | N65: = | O65: =Q65*CO2_C -> 0 | P65: = | Q65: =(F65-(H65*J65))*M65 -> 0
B67: 2010 | D67: High-Calcium Lime | E67: { | G67: - | I67: x | J67: 0.8 | K67: } | L67: x | M67: =LimeFactor -> 0 | N67: = | O67: =Q67*CO2_C -> 0 | P67: = | Q67: =(F67-(H67*J67))*M67 -> 0
D68: Dolomitic Lime | E68: { | G68: - | I68: x | J68: 0.8 | K68: } | L68: x | M68: =DoloLimeFactor -> 0 | N68: = | O68: =Q68*CO2_C -> 0 | P68: = | Q68: =(F68-(H68*J68))*M68 -> 0
B70: 2011 | D70: High-Calcium Lime | E70: { | G70: - | I70: x | J70: 0.8 | K70: } | L70: x | M70: =LimeFactor -> 0 | N70: = | O70: =Q70*CO2_C -> 0 | P70: = | Q70: =(F70-(H70*J70))*M70 -> 0
D71: Dolomitic Lime | E71: { | G71: - | I71: x | J71: 0.8 | K71: } | L71: x | M71: =DoloLimeFactor -> 0 | N71: = | O71: =Q71*CO2_C -> 0 | P71: = | Q71: =(F71-(H71*J71))*M71 -> 0
B73: 2012 | D73: High-Calcium Lime | E73: { | G73: - | I73: x | J73: 0.8 | K73: } | L73: x | M73: =LimeFactor -> 0 | N73: = | O73: =Q73*CO2_C -> 0 | P73: = | Q73: =(F73-(H73*J73))*M73 -> 0
D74: Dolomitic Lime | E74: { | G74: - | I74: x | J74: 0.8 | K74: } | L74: x | M74: =DoloLimeFactor -> 0 | N74: = | O74: =Q74*CO2_C -> 0 | P74: = | Q74: =(F74-(H74*J74))*M74 -> 0
B76: 2013 | D76: High-Calcium Lime | E76: { | G76: - | I76: x | J76: 0.8 | K76: } | L76: x | M76: =LimeFactor -> 0 | N76: = | O76: =Q76*CO2_C -> 0 | P76: = | Q76: =(F76-(H76*J76))*M76 -> 0
D77: Dolomitic Lime | E77: { | G77: - | I77: x | J77: 0.8 | K77: } | L77: x | M77: =DoloLimeFactor -> 0 | N77: = | O77: =Q77*CO2_C -> 0 | P77: = | Q77: =(F77-(H77*J77))*M77 -> 0
B79: 2014 | D79: High-Calcium Lime | E79: { | G79: - | I79: x | J79: 0.8 | K79: } | L79: x | M79: =LimeFactor -> 0 | N79: = | O79: =Q79*CO2_C -> 0 | P79: = | Q79: =(F79-(H79*J79))*M79 -> 0
D80: Dolomitic Lime | E80: { | G80: - | I80: x | J80: 0.8 | K80: } | L80: x | M80: =DoloLimeFactor -> 0 | N80: = | O80: =Q80*CO2_C -> 0 | P80: = | Q80: =(F80-(H80*J80))*M80 -> 0
B82: 2015 | D82: High-Calcium Lime | E82: { | G82: - | I82: x | J82: 0.8 | K82: } | L82: x | M82: =LimeFactor -> 0 | N82: = | O82: =Q82*CO2_C -> 0 | P82: = | Q82: =(F82-(H82*J82))*M82 -> 0
D83: Dolomitic Lime | E83: { | G83: - | I83: x | J83: 0.8 | K83: } | L83: x | M83: =DoloLimeFactor -> 0 | N83: = | O83: =Q83*CO2_C -> 0 | P83: = | Q83: =(F83-(H83*J83))*M83 -> 0
B85: 2016 | D85: High-Calcium Lime | E85: { | G85: - | I85: x | J85: 0.8 | K85: } | L85: x | M85: =LimeFactor -> 0 | N85: = | O85: =Q85*CO2_C -> 0 | P85: = | Q85: =(F85-(H85*J85))*M85 -> 0
D86: Dolomitic Lime | E86: { | G86: - | I86: x | J86: 0.8 | K86: } | L86: x | M86: =DoloLimeFactor -> 0 | N86: = | O86: =Q86*CO2_C -> 0 | P86: = | Q86: =(F86-(H86*J86))*M86 -> 0
B88: 2017 | D88: High-Calcium Lime | E88: { | G88: - | I88: x | J88: 0.8 | K88: } | L88: x | M88: =LimeFactor -> 0 | N88: = | O88: =Q88*CO2_C -> 0 | P88: = | Q88: =(F88-(H88*J88))*M88 -> 0
D89: Dolomitic Lime | E89: { | G89: - | I89: x | J89: 0.8 | K89: } | L89: x | M89: =DoloLimeFactor -> 0 | N89: = | O89: =Q89*CO2_C -> 0 | P89: = | Q89: =(F89-(H89*J89))*M89 -> 0
B91: 2018 | D91: High-Calcium Lime | E91: { | G91: - | I91: x | J91: 0.8 | K91: } | L91: x | M91: =LimeFactor -> 0 | N91: = | O91: =Q91*CO2_C -> 0 | P91: = | Q91: =(F91-(H91*J91))*M91 -> 0
D92: Dolomitic Lime | E92: { | G92: - | I92: x | J92: 0.8 | K92: } | L92: x | M92: =DoloLimeFactor -> 0 | N92: = | O92: =Q92*CO2_C -> 0 | P92: = | Q92: =(F92-(H92*J92))*M92 -> 0
B94: 2019 | D94: High-Calcium Lime | E94: { | G94: - | I94: x | J94: 0.8 | K94: } | L94: x | M94: =LimeFactor -> 0 | N94: = | O94: =Q94*CO2_C -> 0 | P94: = | Q94: =(F94-(H94*J94))*M94 -> 0
D95: Dolomitic Lime | E95: { | G95: - | I95: x | J95: 0.8 | K95: } | L95: x | M95: =DoloLimeFactor -> 0 | N95: = | O95: =Q95*CO2_C -> 0 | P95: = | Q95: =(F95-(H95*J95))*M95 -> 0
B97: 2020 | D97: High-Calcium Lime | E97: { | G97: - | I97: x | J97: 0.8 | K97: } | L97: x | M97: =LimeFactor -> 0 | N97: = | O97: =Q97*CO2_C -> 0 | P97: = | Q97: =(F97-(H97*J97))*M97 -> 0
D98: Dolomitic Lime | E98: { | G98: - | I98: x | J98: 0.8 | K98: } | L98: x | M98: =DoloLimeFactor -> 0 | N98: = | O98: =Q98*CO2_C -> 0 | P98: = | Q98: =(F98-(H98*J98))*M98 -> 0
B100: 2021 | D100: High-Calcium Lime | E100: { | G100: - | I100: x | J100: 0.8 | K100: } | L100: x | M100: =LimeFactor -> 0 | N100: = | O100: =Q100*CO2_C -> 0 | P100: = | Q100: =(F100-(H100*J100))*M100 -> 0
D101: Dolomitic Lime | E101: { | G101: - | I101: x | J101: 0.8 | K101: } | L101: x | M101: =DoloLimeFactor -> 0 | N101: = | O101: =Q101*CO2_C -> 0 | P101: = | Q101: =(F101-(H101*J101))*M101 -> 0
B103: 2022 | D103: High-Calcium Lime | E103: { | G103: - | I103: x | J103: 0.8 | K103: } | L103: x | M103: =LimeFactor -> 0 | N103: = | O103: =Q103*CO2_C -> 0 | P103: = | Q103: =(F103-(H103*J103))*M103 -> 0
D104: Dolomitic Lime | E104: { | G104: - | I104: x | J104: 0.8 | K104: } | L104: x | M104: =DoloLimeFactor -> 0 | N104: = | O104: =Q104*CO2_C -> 0 | P104: = | Q104: =(F104-(H104*J104))*M104 -> 0
B106: 2023 | D106: High-Calcium Lime | E106: { | G106: - | I106: x | J106: 0.8 | K106: } | L106: x | M106: =LimeFactor -> 0 | N106: = | O106: =Q106*CO2_C -> 0 | P106: = | Q106: =(F106-(H106*J106))*M106 -> 0
D107: Dolomitic Lime | E107: { | G107: - | I107: x | J107: 0.8 | K107: } | L107: x | M107: =DoloLimeFactor -> 0 | N107: = | O107: =Q107*CO2_C -> 0 | P107: = | Q107: =(F107-(H107*J107))*M107 -> 0
B109: 2024 | D109: High-Calcium Lime | E109: { | G109: - | I109: x | J109: 0.8 | K109: } | L109: x | M109: =LimeFactor -> 0 | N109: = | O109: =Q109*CO2_C -> 0 | P109: = | Q109: =(F109-(H109*J109))*M109 -> 0
D110: Dolomitic Lime | E110: { | G110: - | I110: x | J110: 0.8 | K110: } | L110: x | M110: =DoloLimeFactor -> 0 | N110: = | O110: =Q110*CO2_C -> 0 | P110: = | Q110: =(F110-(H110*J110))*M110 -> 0
B112: 2025 | D112: High-Calcium Lime | E112: { | G112: - | I112: x | J112: 0.8 | K112: } | L112: x | M112: =LimeFactor -> 0 | N112: = | O112: =Q112*CO2_C -> 0 | P112: = | Q112: =(F112-(H112*J112))*M112 -> 0
D113: Dolomitic Lime | E113: { | G113: - | I113: x | J113: 0.8 | K113: } | L113: x | M113: =DoloLimeFactor -> 0 | N113: = | O113: =Q113*CO2_C -> 0 | P113: = | Q113: =(F113-(H113*J113))*M113 -> 0

Sheet Limestone
B1: ="4. Limestone and Dolomite Use in "&'List Data'!B3 -> 4. Limestone and Dolomite Use in Select a State . . .
D2: ='List Data'!$A$3 -> XX | E2: Limestone | F2: =" " ->  | G2: =AdipicCheck -> 0
E4: Consumption | G4: Emission Factor | I4: Emissions | K4: Emissions
E5: (Metric Tons) | G5: (t CO2/t production) | I5: (MTCE) | K5: (MTCO2E)
B7: 1990 | D7: Limestone | F7: x | G7: =INDIRECT($E$2&LEFT(D7,2)&"Factor") -> 0 | H7: = | I7: =K7*CO2_C -> 0 | J7: = | K7: =IF(ISERROR(E7*G7),0,E7*G7) -> 0
B8: =B7 -> 1990 | D8: Dolomite | F8: x | G8: =INDIRECT($E$2&LEFT(D8,2)&"Factor") -> 0 | H8: = | I8: =K8*CO2_C -> 0 | J8: = | K8: =IF(ISERROR(E8*G8),0,E8*G8) -> 0
D9: Magnesium Production from Dolomite | F9: x | G9: =INDIRECT($E$2&LEFT(D9,2)&"Factor") -> 0 | H9: = | I9: =K9*CO2_C -> 0 | J9: = | K9: =IF(ISERROR(E9*G9),0,E9*G9) -> 0
B11: =B7+1 -> 1991 | D11: Limestone | F11: x | G11: =INDIRECT($E$2&LEFT(D11,2)&"Factor") -> 0 | H11: = | I11: =K11*CO2_C -> 0 | J11: = | K11: =IF(ISERROR(E11*G11),0,E11*G11) -> 0
B12: =B11 -> 1991 | D12: Dolomite | F12: x | G12: =INDIRECT($E$2&LEFT(D12,2)&"Factor") -> 0 | H12: = | I12: =K12*CO2_C -> 0 | J12: = | K12: =IF(ISERROR(E12*G12),0,E12*G12) -> 0
D13: Magnesium Production from Dolomite | F13: x | G13: =INDIRECT($E$2&LEFT(D13,2)&"Factor") -> 0 | H13: = | I13: =K13*CO2_C -> 0 | J13: = | K13: =IF(ISERROR(E13*G13),0,E13*G13) -> 0
B15: =B11+1 -> 1992 | D15: Limestone | F15: x | G15: =INDIRECT($E$2&LEFT(D15,2)&"Factor") -> 0 | H15: = | I15: =K15*CO2_C -> 0 | J15: = | K15: =IF(ISERROR(E15*G15),0,E15*G15) -> 0
B16: =B15 -> 1992 | D16: Dolomite | F16: x | G16: =INDIRECT($E$2&LEFT(D16,2)&"Factor") -> 0 | H16: = | I16: =K16*CO2_C -> 0 | J16: = | K16: =IF(ISERROR(E16*G16),0,E16*G16) -> 0
D17: Magnesium Production from Dolomite | F17: x | G17: =INDIRECT($E$2&LEFT(D17,2)&"Factor") -> 0 | H17: = | I17: =K17*CO2_C -> 0 | J17: = | K17: =IF(ISERROR(E17*G17),0,E17*G17) -> 0
B19: =B15+1 -> 1993 | D19: Limestone | F19: x | G19: =INDIRECT($E$2&LEFT(D19,2)&"Factor") -> 0 | H19: = | I19: =K19*CO2_C -> 0 | J19: = | K19: =IF(ISERROR(E19*G19),0,E19*G19) -> 0
B20: =B19 -> 1993 | D20: Dolomite | F20: x | G20: =INDIRECT($E$2&LEFT(D20,2)&"Factor") -> 0 | H20: = | I20: =K20*CO2_C -> 0 | J20: = | K20: =IF(ISERROR(E20*G20),0,E20*G20) -> 0
D21: Magnesium Production from Dolomite | F21: x | G21: =INDIRECT($E$2&LEFT(D21,2)&"Factor") -> 0 | H21: = | I21: =K21*CO2_C -> 0 | J21: = | K21: =IF(ISERROR(E21*G21),0,E21*G21) -> 0
B23: =B19+1 -> 1994 | D23: Limestone | F23: x | G23: =INDIRECT($E$2&LEFT(D23,2)&"Factor") -> 0 | H23: = | I23: =K23*CO2_C -> 0 | J23: = | K23: =IF(ISERROR(E23*G23),0,E23*G23) -> 0
B24: =B23 -> 1994 | D24: Dolomite | F24: x | G24: =INDIRECT($E$2&LEFT(D24,2)&"Factor") -> 0 | H24: = | I24: =K24*CO2_C -> 0 | J24: = | K24: =IF(ISERROR(E24*G24),0,E24*G24) -> 0
D25: Magnesium Production from Dolomite | F25: x | G25: =INDIRECT($E$2&LEFT(D25,2)&"Factor") -> 0 | H25: = | I25: =K25*CO2_C -> 0 | J25: = | K25: =IF(ISERROR(E25*G25),0,E25*G25) -> 0
B27: =B23+1 -> 1995 | D27: Limestone | F27: x | G27: =INDIRECT($E$2&LEFT(D27,2)&"Factor") -> 0 | H27: = | I27: =K27*CO2_C -> 0 | J27: = | K27: =IF(ISERROR(E27*G27),0,E27*G27) -> 0
B28: =B27 -> 1995 | D28: Dolomite | F28: x | G28: =INDIRECT($E$2&LEFT(D28,2)&"Factor") -> 0 | H28: = | I28: =K28*CO2_C -> 0 | J28: = | K28: =IF(ISERROR(E28*G28),0,E28*G28) -> 0
D29: Magnesium Production from Dolomite | F29: x | G29: =INDIRECT($E$2&LEFT(D29,2)&"Factor") -> 0 | H29: = | I29: =K29*CO2_C -> 0 | J29: = | K29: =IF(ISERROR(E29*G29),0,E29*G29) -> 0
B31: =B27+1 -> 1996 | D31: Limestone | F31: x | G31: =INDIRECT($E$2&LEFT(D31,2)&"Factor") -> 0 | H31: = | I31: =K31*CO2_C -> 0 | J31: = | K31: =IF(ISERROR(E31*G31),0,E31*G31) -> 0
B32: =B31 -> 1996 | D32: Dolomite | F32: x | G32: =INDIRECT($E$2&LEFT(D32,2)&"Factor") -> 0 | H32: = | I32: =K32*CO2_C -> 0 | J32: = | K32: =IF(ISERROR(E32*G32),0,E32*G32) -> 0
D33: Magnesium Production from Dolomite | F33: x | G33: =INDIRECT($E$2&LEFT(D33,2)&"Factor") -> 0 | H33: = | I33: =K33*CO2_C -> 0 | J33: = | K33: =IF(ISERROR(E33*G33),0,E33*G33) -> 0
B35: =B31+1 -> 1997 | D35: Limestone | F35: x | G35: =INDIRECT($E$2&LEFT(D35,2)&"Factor") -> 0 | H35: = | I35: =K35*CO2_C -> 0 | J35: = | K35: =IF(ISERROR(E35*G35),0,E35*G35) -> 0
B36: =B35 -> 1997 | D36: Dolomite | F36: x | G36: =INDIRECT($E$2&LEFT(D36,2)&"Factor") -> 0 | H36: = | I36: =K36*CO2_C -> 0 | J36: = | K36: =IF(ISERROR(E36*G36),0,E36*G36) -> 0
D37: Magnesium Production from Dolomite | F37: x | G37: =INDIRECT($E$2&LEFT(D37,2)&"Factor") -> 0 | H37: = | I37: =K37*CO2_C -> 0 | J37: = | K37: =IF(ISERROR(E37*G37),0,E37*G37) -> 0
B39: =B35+1 -> 1998 | D39: Limestone | F39: x | G39: =INDIRECT($E$2&LEFT(D39,2)&"Factor") -> 0 | H39: = | I39: =K39*CO2_C -> 0 | J39: = | K39: =IF(ISERROR(E39*G39),0,E39*G39) -> 0
B40: =B39 -> 1998 | D40: Dolomite | F40: x | G40: =INDIRECT($E$2&LEFT(D40,2)&"Factor") -> 0 | H40: = | I40: =K40*CO2_C -> 0 | J40: = | K40: =IF(ISERROR(E40*G40),0,E40*G40) -> 0
D41: Magnesium Production from Dolomite | F41: x | G41: =INDIRECT($E$2&LEFT(D41,2)&"Factor") -> 0 | H41: = | I41: =K41*CO2_C -> 0 | J41: = | K41: =IF(ISERROR(E41*G41),0,E41*G41) -> 0
B43: =B39+1 -> 1999 | D43: Limestone | F43: x | G43: =INDIRECT($E$2&LEFT(D43,2)&"Factor") -> 0 | H43: = | I43: =K43*CO2_C -> 0 | J43: = | K43: =IF(ISERROR(E43*G43),0,E43*G43) -> 0
B44: =B43 -> 1999 | D44: Dolomite | F44: x | G44: =INDIRECT($E$2&LEFT(D44,2)&"Factor") -> 0 | H44: = | I44: =K44*CO2_C -> 0 | J44: = | K44: =IF(ISERROR(E44*G44),0,E44*G44) -> 0
D45: Magnesium Production from Dolomite | F45: x | G45: =INDIRECT($E$2&LEFT(D45,2)&"Factor") -> 0 | H45: = | I45: =K45*CO2_C -> 0 | J45: = | K45: =IF(ISERROR(E45*G45),0,E45*G45) -> 0
B47: =B43+1 -> 2000 | D47: Limestone | F47: x | G47: =INDIRECT($E$2&LEFT(D47,2)&"Factor") -> 0 | H47: = | I47: =K47*CO2_C -> 0 | J47: = | K47: =IF(ISERROR(E47*G47),0,E47*G47) -> 0
B48: =B47 -> 2000 | D48: Dolomite | F48: x | G48: =INDIRECT($E$2&LEFT(D48,2)&"Factor") -> 0 | H48: = | I48: =K48*CO2_C -> 0 | J48: = | K48: =IF(ISERROR(E48*G48),0,E48*G48) -> 0
D49: Magnesium Production from Dolomite | F49: x | G49: =INDIRECT($E$2&LEFT(D49,2)&"Factor") -> 0 | H49: = | I49: =K49*CO2_C -> 0 | J49: = | K49: =IF(ISERROR(E49*G49),0,E49*G49) -> 0
B51: =B47+1 -> 2001 | D51: Limestone | F51: x | G51: =INDIRECT($E$2&LEFT(D51,2)&"Factor") -> 0 | H51: = | I51: =K51*CO2_C -> 0 | J51: = | K51: =IF(ISERROR(E51*G51),0,E51*G51) -> 0
B52: =B51 -> 2001 | D52: Dolomite | F52: x | G52: =INDIRECT($E$2&LEFT(D52,2)&"Factor") -> 0 | H52: = | I52: =K52*CO2_C -> 0 | J52: = | K52: =IF(ISERROR(E52*G52),0,E52*G52) -> 0
D53: Magnesium Production from Dolomite | F53: x | G53: =INDIRECT($E$2&LEFT(D53,2)&"Factor") -> 0 | H53: = | I53: =K53*CO2_C -> 0 | J53: = | K53: =IF(ISERROR(E53*G53),0,E53*G53) -> 0
B55: =B51+1 -> 2002 | D55: Limestone | F55: x | G55: =INDIRECT($E$2&LEFT(D55,2)&"Factor") -> 0 | H55: = | I55: =K55*CO2_C -> 0 | J55: = | K55: =IF(ISERROR(E55*G55),0,E55*G55) -> 0
B56: =B55 -> 2002 | D56: Dolomite | F56: x | G56: =INDIRECT($E$2&LEFT(D56,2)&"Factor") -> 0 | H56: = | I56: =K56*CO2_C -> 0 | J56: = | K56: =IF(ISERROR(E56*G56),0,E56*G56) -> 0
D57: Magnesium Production from Dolomite | F57: x | G57: =INDIRECT($E$2&LEFT(D57,2)&"Factor") -> 0 | H57: = | I57: =K57*CO2_C -> 0 | J57: = | K57: =IF(ISERROR(E57*G57),0,E57*G57) -> 0
B59: =B55+1 -> 2003 | D59: Limestone | F59: x | G59: =INDIRECT($E$2&LEFT(D59,2)&"Factor") -> 0 | H59: = | I59: =K59*CO2_C -> 0 | J59: = | K59: =IF(ISERROR(E59*G59),0,E59*G59) -> 0
B60: =B59 -> 2003 | D60: Dolomite | F60: x | G60: =INDIRECT($E$2&LEFT(D60,2)&"Factor") -> 0 | H60: = | I60: =K60*CO2_C -> 0 | J60: = | K60: =IF(ISERROR(E60*G60),0,E60*G60) -> 0
D61: Magnesium Production from Dolomite | F61: x | G61: =INDIRECT($E$2&LEFT(D61,2)&"Factor") -> 0 | H61: = | I61: =K61*CO2_C -> 0 | J61: = | K61: =IF(ISERROR(E61*G61),0,E61*G61) -> 0
B63: =B59+1 -> 2004 | D63: Limestone | F63: x | G63: =INDIRECT($E$2&LEFT(D63,2)&"Factor") -> 0 | H63: = | I63: =K63*CO2_C -> 0 | J63: = | K63: =IF(ISERROR(E63*G63),0,E63*G63) -> 0
B64: =B63 -> 2004 | D64: Dolomite | F64: x | G64: =INDIRECT($E$2&LEFT(D64,2)&"Factor") -> 0 | H64: = | I64: =K64*CO2_C -> 0 | J64: = | K64: =IF(ISERROR(E64*G64),0,E64*G64) -> 0
D65: Magnesium Production from Dolomite | F65: x | G65: =INDIRECT($E$2&LEFT(D65,2)&"Factor") -> 0 | H65: = | I65: =K65*CO2_C -> 0 | J65: = | K65: =IF(ISERROR(E65*G65),0,E65*G65) -> 0
B67: =B63+1 -> 2005 | D67: Limestone | F67: x | G67: =INDIRECT($E$2&LEFT(D67,2)&"Factor") -> 0 | H67: = | I67: =K67*CO2_C -> 0 | J67: = | K67: =IF(ISERROR(E67*G67),0,E67*G67) -> 0
B68: =B67 -> 2005 | D68: Dolomite | F68: x | G68: =INDIRECT($E$2&LEFT(D68,2)&"Factor") -> 0 | H68: = | I68: =K68*CO2_C -> 0 | J68: = | K68: =IF(ISERROR(E68*G68),0,E68*G68) -> 0
D69: Magnesium Production from Dolomite | F69: x | G69: =INDIRECT($E$2&LEFT(D69,2)&"Factor") -> 0 | H69: = | I69: =K69*CO2_C -> 0 | J69: = | K69: =IF(ISERROR(E69*G69),0,E69*G69) -> 0
B71: =B67+1 -> 2006 | D71: Limestone | F71: x | G71: =INDIRECT($E$2&LEFT(D71,2)&"Factor") -> 0 | H71: = | I71: =K71*CO2_C -> 0 | J71: = | K71: =IF(ISERROR(E71*G71),0,E71*G71) -> 0
B72: =B71 -> 2006 | D72: Dolomite | F72: x | G72: =INDIRECT($E$2&LEFT(D72,2)&"Factor") -> 0 | H72: = | I72: =K72*CO2_C -> 0 | J72: = | K72: =IF(ISERROR(E72*G72),0,E72*G72) -> 0
D73: Magnesium Production from Dolomite | F73: x | G73: =INDIRECT($E$2&LEFT(D73,2)&"Factor") -> 0 | H73: = | I73: =K73*CO2_C -> 0 | J73: = | K73: =IF(ISERROR(E73*G73),0,E73*G73) -> 0
B75: =B71+1 -> 2007 | D75: Limestone | F75: x | G75: =INDIRECT($E$2&LEFT(D75,2)&"Factor") -> 0 | H75: = | I75: =K75*CO2_C -> 0 | J75: = | K75: =IF(ISERROR(E75*G75),0,E75*G75) -> 0
B76: =B75 -> 2007 | D76: Dolomite | F76: x | G76: =INDIRECT($E$2&LEFT(D76,2)&"Factor") -> 0 | H76: = | I76: =K76*CO2_C -> 0 | J76: = | K76: =IF(ISERROR(E76*G76),0,E76*G76) -> 0
D77: Magnesium Production from Dolomite | F77: x | G77: =INDIRECT($E$2&LEFT(D77,2)&"Factor") -> 0 | H77: = | I77: =K77*CO2_C -> 0 | J77: = | K77: =IF(ISERROR(E77*G77),0,E77*G77) -> 0
B79: =B75+1 -> 2008 | D79: Limestone | F79: x | G79: =INDIRECT($E$2&LEFT(D79,2)&"Factor") -> 0 | H79: = | I79: =K79*CO2_C -> 0 | J79: = | K79: =IF(ISERROR(E79*G79),0,E79*G79) -> 0
B80: =B79 -> 2008 | D80: Dolomite | F80: x | G80: =INDIRECT($E$2&LEFT(D80,2)&"Factor") -> 0 | H80: = | I80: =K80*CO2_C -> 0 | J80: = | K80: =IF(ISERROR(E80*G80),0,E80*G80) -> 0
D81: Magnesium Production from Dolomite | F81: x | G81: =INDIRECT($E$2&LEFT(D81,2)&"Factor") -> 0 | H81: = | I81: =K81*CO2_C -> 0 | J81: = | K81: =IF(ISERROR(E81*G81),0,E81*G81) -> 0
B83: =B79+1 -> 2009 | D83: Limestone | F83: x | G83: =INDIRECT($E$2&LEFT(D83,2)&"Factor") -> 0 | H83: = | I83: =K83*CO2_C -> 0 | J83: = | K83: =IF(ISERROR(E83*G83),0,E83*G83) -> 0
B84: =B83 -> 2009 | D84: Dolomite | F84: x | G84: =INDIRECT($E$2&LEFT(D84,2)&"Factor") -> 0 | H84: = | I84: =K84*CO2_C -> 0 | J84: = | K84: =IF(ISERROR(E84*G84),0,E84*G84) -> 0
D85: Magnesium Production from Dolomite | F85: x | G85: =INDIRECT($E$2&LEFT(D85,2)&"Factor") -> 0 | H85: = | I85: =K85*CO2_C -> 0 | J85: = | K85: =IF(ISERROR(E85*G85),0,E85*G85) -> 0
B87: =B83+1 -> 2010 | D87: Limestone | F87: x | G87: =INDIRECT($E$2&LEFT(D87,2)&"Factor") -> 0 | H87: = | I87: =K87*CO2_C -> 0 | J87: = | K87: =IF(ISERROR(E87*G87),0,E87*G87) -> 0
B88: =B87 -> 2010 | D88: Dolomite | F88: x | G88: =INDIRECT($E$2&LEFT(D88,2)&"Factor") -> 0 | H88: = | I88: =K88*CO2_C -> 0 | J88: = | K88: =IF(ISERROR(E88*G88),0,E88*G88) -> 0
D89: Magnesium Production from Dolomite | F89: x | G89: =INDIRECT($E$2&LEFT(D89,2)&"Factor") -> 0 | H89: = | I89: =K89*CO2_C -> 0 | J89: = | K89: =IF(ISERROR(E89*G89),0,E89*G89) -> 0
B91: =B87+1 -> 2011 | D91: Limestone | F91: x | G91: =INDIRECT($E$2&LEFT(D91,2)&"Factor") -> 0 | H91: = | I91: =K91*CO2_C -> 0 | J91: = | K91: =IF(ISERROR(E91*G91),0,E91*G91) -> 0
B92: =B91 -> 2011 | D92: Dolomite | F92: x | G92: =INDIRECT($E$2&LEFT(D92,2)&"Factor") -> 0 | H92: = | I92: =K92*CO2_C -> 0 | J92: = | K92: =IF(ISERROR(E92*G92),0,E92*G92) -> 0
D93: Magnesium Production from Dolomite | F93: x | G93: =INDIRECT($E$2&LEFT(D93,2)&"Factor") -> 0 | H93: = | I93: =K93*CO2_C -> 0 | J93: = | K93: =IF(ISERROR(E93*G93),0,E93*G93) -> 0
B95: =B91+1 -> 2012 | D95: Limestone | F95: x | G95: =INDIRECT($E$2&LEFT(D95,2)&"Factor") -> 0 | H95: = | I95: =K95*CO2_C -> 0 | J95: = | K95: =IF(ISERROR(E95*G95),0,E95*G95) -> 0
B96: =B95 -> 2012 | D96: Dolomite | F96: x | G96: =INDIRECT($E$2&LEFT(D96,2)&"Factor") -> 0 | H96: = | I96: =K96*CO2_C -> 0 | J96: = | K96: =IF(ISERROR(E96*G96),0,E96*G96) -> 0
D97: Magnesium Production from Dolomite | F97: x | G97: =INDIRECT($E$2&LEFT(D97,2)&"Factor") -> 0 | H97: = | I97: =K97*CO2_C -> 0 | J97: = | K97: =IF(ISERROR(E97*G97),0,E97*G97) -> 0
B99: =B95+1 -> 2013 | D99: Limestone | F99: x | G99: =INDIRECT($E$2&LEFT(D99,2)&"Factor") -> 0 | H99: = | I99: =K99*CO2_C -> 0 | J99: = | K99: =IF(ISERROR(E99*G99),0,E99*G99) -> 0
B100: =B99 -> 2013 | D100: Dolomite | F100: x | G100: =INDIRECT($E$2&LEFT(D100,2)&"Factor") -> 0 | H100: = | I100: =K100*CO2_C -> 0 | J100: = | K100: =IF(ISERROR(E100*G100),0,E100*G100) -> 0
D101: Magnesium Production from Dolomite | F101: x | G101: =INDIRECT($E$2&LEFT(D101,2)&"Factor") -> 0 | H101: = | I101: =K101*CO2_C -> 0 | J101: = | K101: =IF(ISERROR(E101*G101),0,E101*G101) -> 0
B103: =B99+1 -> 2014 | D103: Limestone | F103: x | G103: =INDIRECT($E$2&LEFT(D103,2)&"Factor") -> 0 | H103: = | I103: =K103*CO2_C -> 0 | J103: = | K103: =IF(ISERROR(E103*G103),0,E103*G103) -> 0
B104: =B103 -> 2014 | D104: Dolomite | F104: x | G104: =INDIRECT($E$2&LEFT(D104,2)&"Factor") -> 0 | H104: = | I104: =K104*CO2_C -> 0 | J104: = | K104: =IF(ISERROR(E104*G104),0,E104*G104) -> 0
D105: Magnesium Production from Dolomite | F105: x | G105: =INDIRECT($E$2&LEFT(D105,2)&"Factor") -> 0 | H105: = | I105: =K105*CO2_C -> 0 | J105: = | K105: =IF(ISERROR(E105*G105),0,E105*G105) -> 0
B107: =B103+1 -> 2015 | D107: Limestone | F107: x | G107: =INDIRECT($E$2&LEFT(D107,2)&"Factor") -> 0 | H107: = | I107: =K107*CO2_C -> 0 | J107: = | K107: =IF(ISERROR(E107*G107),0,E107*G107) -> 0
B108: =B107 -> 2015 | D108: Dolomite | F108: x | G108: =INDIRECT($E$2&LEFT(D108,2)&"Factor") -> 0 | H108: = | I108: =K108*CO2_C -> 0 | J108: = | K108: =IF(ISERROR(E108*G108),0,E108*G108) -> 0
D109: Magnesium Production from Dolomite | F109: x | G109: =INDIRECT($E$2&LEFT(D109,2)&"Factor") -> 0 | H109: = | I109: =K109*CO2_C -> 0 | J109: = | K109: =IF(ISERROR(E109*G109),0,E109*G109) -> 0
B111: =B107+1 -> 2016 | D111: Limestone | F111: x | G111: =INDIRECT($E$2&LEFT(D111,2)&"Factor") -> 0 | H111: = | I111: =K111*CO2_C -> 0 | J111: = | K111: =IF(ISERROR(E111*G111),0,E111*G111) -> 0
B112: =B111 -> 2016 | D112: Dolomite | F112: x | G112: =INDIRECT($E$2&LEFT(D112,2)&"Factor") -> 0 | H112: = | I112: =K112*CO2_C -> 0 | J112: = | K112: =IF(ISERROR(E112*G112),0,E112*G112) -> 0
D113: Magnesium Production from Dolomite | F113: x | G113: =INDIRECT($E$2&LEFT(D113,2)&"Factor") -> 0 | H113: = | I113: =K113*CO2_C -> 0 | J113: = | K113: =IF(ISERROR(E113*G113),0,E113*G113) -> 0
B115: =B111+1 -> 2017 | D115: Limestone | F115: x | G115: =INDIRECT($E$2&LEFT(D115,2)&"Factor") -> 0 | H115: = | I115: =K115*CO2_C -> 0 | J115: = | K115: =IF(ISERROR(E115*G115),0,E115*G115) -> 0
B116: =B115 -> 2017 | D116: Dolomite | F116: x | G116: =INDIRECT($E$2&LEFT(D116,2)&"Factor") -> 0 | H116: = | I116: =K116*CO2_C -> 0 | J116: = | K116: =IF(ISERROR(E116*G116),0,E116*G116) -> 0
D117: Magnesium Production from Dolomite | F117: x | G117: =INDIRECT($E$2&LEFT(D117,2)&"Factor") -> 0 | H117: = | I117: =K117*CO2_C -> 0 | J117: = | K117: =IF(ISERROR(E117*G117),0,E117*G117) -> 0
B119: =B115+1 -> 2018 | D119: Limestone | F119: x | G119: =INDIRECT($E$2&LEFT(D119,2)&"Factor") -> 0 | H119: = | I119: =K119*CO2_C -> 0 | J119: = | K119: =IF(ISERROR(E119*G119),0,E119*G119) -> 0
B120: =B119 -> 2018 | D120: Dolomite | F120: x | G120: =INDIRECT($E$2&LEFT(D120,2)&"Factor") -> 0 | H120: = | I120: =K120*CO2_C -> 0 | J120: = | K120: =IF(ISERROR(E120*G120),0,E120*G120) -> 0
D121: Magnesium Production from Dolomite | F121: x | G121: =INDIRECT($E$2&LEFT(D121,2)&"Factor") -> 0 | H121: = | I121: =K121*CO2_C -> 0 | J121: = | K121: =IF(ISERROR(E121*G121),0,E121*G121) -> 0
B123: =B119+1 -> 2019 | D123: Limestone | F123: x | G123: =INDIRECT($E$2&LEFT(D123,2)&"Factor") -> 0 | H123: = | I123: =K123*CO2_C -> 0 | J123: = | K123: =IF(ISERROR(E123*G123),0,E123*G123) -> 0
B124: =B123 -> 2019 | D124: Dolomite | F124: x | G124: =INDIRECT($E$2&LEFT(D124,2)&"Factor") -> 0 | H124: = | I124: =K124*CO2_C -> 0 | J124: = | K124: =IF(ISERROR(E124*G124),0,E124*G124) -> 0
D125: Magnesium Production from Dolomite | F125: x | G125: =INDIRECT($E$2&LEFT(D125,2)&"Factor") -> 0 | H125: = | I125: =K125*CO2_C -> 0 | J125: = | K125: =IF(ISERROR(E125*G125),0,E125*G125) -> 0
B127: =B123+1 -> 2020 | D127: Limestone | F127: x | G127: =INDIRECT($E$2&LEFT(D127,2)&"Factor") -> 0 | H127: = | I127: =K127*CO2_C -> 0 | J127: = | K127: =IF(ISERROR(E127*G127),0,E127*G127) -> 0
B128: =B127 -> 2020 | D128: Dolomite | F128: x | G128: =INDIRECT($E$2&LEFT(D128,2)&"Factor") -> 0 | H128: = | I128: =K128*CO2_C -> 0 | J128: = | K128: =IF(ISERROR(E128*G128),0,E128*G128) -> 0
D129: Magnesium Production from Dolomite | F129: x | G129: =INDIRECT($E$2&LEFT(D129,2)&"Factor") -> 0 | H129: = | I129: =K129*CO2_C -> 0 | J129: = | K129: =IF(ISERROR(E129*G129),0,E129*G129) -> 0
B131: =B127+1 -> 2021 | D131: Limestone | F131: x | G131: =INDIRECT($E$2&LEFT(D131,2)&"Factor") -> 0 | H131: = | I131: =K131*CO2_C -> 0 | J131: = | K131: =IF(ISERROR(E131*G131),0,E131*G131) -> 0
B132: =B131 -> 2021 | D132: Dolomite | F132: x | G132: =INDIRECT($E$2&LEFT(D132,2)&"Factor") -> 0 | H132: = | I132: =K132*CO2_C -> 0 | J132: = | K132: =IF(ISERROR(E132*G132),0,E132*G132) -> 0
D133: Magnesium Production from Dolomite | F133: x | G133: =INDIRECT($E$2&LEFT(D133,2)&"Factor") -> 0 | H133: = | I133: =K133*CO2_C -> 0 | J133: = | K133: =IF(ISERROR(E133*G133),0,E133*G133) -> 0
B135: =B131+1 -> 2022 | D135: Limestone | F135: x | G135: =INDIRECT($E$2&LEFT(D135,2)&"Factor") -> 0 | H135: = | I135: =K135*CO2_C -> 0 | J135: = | K135: =IF(ISERROR(E135*G135),0,E135*G135) -> 0
B136: =B135 -> 2022 | D136: Dolomite | F136: x | G136: =INDIRECT($E$2&LEFT(D136,2)&"Factor") -> 0 | H136: = | I136: =K136*CO2_C -> 0 | J136: = | K136: =IF(ISERROR(E136*G136),0,E136*G136) -> 0
D137: Magnesium Production from Dolomite | F137: x | G137: =INDIRECT($E$2&LEFT(D137,2)&"Factor") -> 0 | H137: = | I137: =K137*CO2_C -> 0 | J137: = | K137: =IF(ISERROR(E137*G137),0,E137*G137) -> 0
B139: =B135+1 -> 2023 | D139: Limestone | F139: x | G139: =INDIRECT($E$2&LEFT(D139,2)&"Factor") -> 0 | H139: = | I139: =K139*CO2_C -> 0 | J139: = | K139: =IF(ISERROR(E139*G139),0,E139*G139) -> 0
B140: =B139 -> 2023 | D140: Dolomite | F140: x | G140: =INDIRECT($E$2&LEFT(D140,2)&"Factor") -> 0 | H140: = | I140: =K140*CO2_C -> 0 | J140: = | K140: =IF(ISERROR(E140*G140),0,E140*G140) -> 0
D141: Magnesium Production from Dolomite | F141: x | G141: =INDIRECT($E$2&LEFT(D141,2)&"Factor") -> 0 | H141: = | I141: =K141*CO2_C -> 0 | J141: = | K141: =IF(ISERROR(E141*G141),0,E141*G141) -> 0
B143: =B139+1 -> 2024 | D143: Limestone | F143: x | G143: =INDIRECT($E$2&LEFT(D143,2)&"Factor") -> 0 | H143: = | I143: =K143*CO2_C -> 0 | J143: = | K143: =IF(ISERROR(E143*G143),0,E143*G143) -> 0
B144: =B143 -> 2024 | D144: Dolomite | F144: x | G144: =INDIRECT($E$2&LEFT(D144,2)&"Factor") -> 0 | H144: = | I144: =K144*CO2_C -> 0 | J144: = | K144: =IF(ISERROR(E144*G144),0,E144*G144) -> 0
D145: Magnesium Production from Dolomite | F145: x | G145: =INDIRECT($E$2&LEFT(D145,2)&"Factor") -> 0 | H145: = | I145: =K145*CO2_C -> 0 | J145: = | K145: =IF(ISERROR(E145*G145),0,E145*G145) -> 0
B147: =B143+1 -> 2025 | D147: Limestone | F147: x | G147: =INDIRECT($E$2&LEFT(D147,2)&"Factor") -> 0 | H147: = | I147: =K147*CO2_C -> 0 | J147: = | K147: =IF(ISERROR(E147*G147),0,E147*G147) -> 0
B148: =B147 -> 2025 | D148: Dolomite | F148: x | G148: =INDIRECT($E$2&LEFT(D148,2)&"Factor") -> 0 | H148: = | I148: =K148*CO2_C -> 0 | J148: = | K148: =IF(ISERROR(E148*G148),0,E148*G148) -> 0
D149: Magnesium Production from Dolomite | F149: x | G149: =INDIRECT($E$2&LEFT(D149,2)&"Factor") -> 0 | H149: = | I149: =K149*CO2_C -> 0 | J149: = | K149: =IF(ISERROR(E149*G149),0,E149*G149) -> 0

Sheet Soda Ash
B1: ="5. Soda Ash Manufacture and Consumption in "&'List Data'!B3 -> 5. Soda Ash Manufacture and Consumption in Select a State . . .
D2: ='List Data'!$A$3 -> XX | E2: Soda | F2: =" " -> 
E4: Manufacture and Consumption | G4: Emission Factor | I4: Emissions | K4: Emissions
E5: (Metric Tons) | G5: (t CO2/t production) | I5: (MTCE) | K5: (MTCO2E)
B7: 1990 | D7: Manufacture | F7: x | G7: =INDIRECT($E$2&LEFT(D7,2)&"Factor") -> 0 | H7: = | I7: =K7*CO2_C -> 0 | J7: = | K7: =IF(ISERROR(E7*G7),0,E7*G7) -> 0
B8: =B7 -> 1990 | D8: Consumption | F8: x | G8: =INDIRECT($E$2&LEFT(D8,2)&"Factor") -> 0 | H8: = | I8: =K8*CO2_C -> 0 | J8: = | K8: =IF(ISERROR(E8*G8),0,E8*G8) -> 0
B10: =B7+1 -> 1991 | D10: =$D$7 -> Manufacture | F10: x | G10: =INDIRECT($E$2&LEFT(D10,2)&"Factor") -> 0 | H10: = | I10: =K10*CO2_C -> 0 | J10: = | K10: =IF(ISERROR(E10*G10),0,E10*G10) -> 0
B11: =B10 -> 1991 | D11: =$D$8 -> Consumption | F11: x | G11: =INDIRECT($E$2&LEFT(D11,2)&"Factor") -> 0 | H11: = | I11: =K11*CO2_C -> 0 | J11: = | K11: =IF(ISERROR(E11*G11),0,E11*G11) -> 0
B13: =B10+1 -> 1992 | D13: =$D$7 -> Manufacture | F13: x | G13: =INDIRECT($E$2&LEFT(D13,2)&"Factor") -> 0 | H13: = | I13: =K13*CO2_C -> 0 | J13: = | K13: =IF(ISERROR(E13*G13),0,E13*G13) -> 0
B14: =B13 -> 1992 | D14: =$D$8 -> Consumption | F14: x | G14: =INDIRECT($E$2&LEFT(D14,2)&"Factor") -> 0 | H14: = | I14: =K14*CO2_C -> 0 | J14: = | K14: =IF(ISERROR(E14*G14),0,E14*G14) -> 0
B16: =B13+1 -> 1993 | D16: =$D$7 -> Manufacture | F16: x | G16: =INDIRECT($E$2&LEFT(D16,2)&"Factor") -> 0 | H16: = | I16: =K16*CO2_C -> 0 | J16: = | K16: =IF(ISERROR(E16*G16),0,E16*G16) -> 0
B17: =B16 -> 1993 | D17: =$D$8 -> Consumption | F17: x | G17: =INDIRECT($E$2&LEFT(D17,2)&"Factor") -> 0 | H17: = | I17: =K17*CO2_C -> 0 | J17: = | K17: =IF(ISERROR(E17*G17),0,E17*G17) -> 0
B19: =B16+1 -> 1994 | D19: =$D$7 -> Manufacture | F19: x | G19: =INDIRECT($E$2&LEFT(D19,2)&"Factor") -> 0 | H19: = | I19: =K19*CO2_C -> 0 | J19: = | K19: =IF(ISERROR(E19*G19),0,E19*G19) -> 0
B20: =B19 -> 1994 | D20: =$D$8 -> Consumption | F20: x | G20: =INDIRECT($E$2&LEFT(D20,2)&"Factor") -> 0 | H20: = | I20: =K20*CO2_C -> 0 | J20: = | K20: =IF(ISERROR(E20*G20),0,E20*G20) -> 0
B22: =B19+1 -> 1995 | D22: =$D$7 -> Manufacture | F22: x | G22: =INDIRECT($E$2&LEFT(D22,2)&"Factor") -> 0 | H22: = | I22: =K22*CO2_C -> 0 | J22: = | K22: =IF(ISERROR(E22*G22),0,E22*G22) -> 0
B23: =B22 -> 1995 | D23: =$D$8 -> Consumption | F23: x | G23: =INDIRECT($E$2&LEFT(D23,2)&"Factor") -> 0 | H23: = | I23: =K23*CO2_C -> 0 | J23: = | K23: =IF(ISERROR(E23*G23),0,E23*G23) -> 0
B25: =B22+1 -> 1996 | D25: =$D$7 -> Manufacture | F25: x | G25: =INDIRECT($E$2&LEFT(D25,2)&"Factor") -> 0 | H25: = | I25: =K25*CO2_C -> 0 | J25: = | K25: =IF(ISERROR(E25*G25),0,E25*G25) -> 0
B26: =B25 -> 1996 | D26: =$D$8 -> Consumption | F26: x | G26: =INDIRECT($E$2&LEFT(D26,2)&"Factor") -> 0 | H26: = | I26: =K26*CO2_C -> 0 | J26: = | K26: =IF(ISERROR(E26*G26),0,E26*G26) -> 0
B28: =B25+1 -> 1997 | D28: =$D$7 -> Manufacture | F28: x | G28: =INDIRECT($E$2&LEFT(D28,2)&"Factor") -> 0 | H28: = | I28: =K28*CO2_C -> 0 | J28: = | K28: =IF(ISERROR(E28*G28),0,E28*G28) -> 0
B29: =B28 -> 1997 | D29: =$D$8 -> Consumption | F29: x | G29: =INDIRECT($E$2&LEFT(D29,2)&"Factor") -> 0 | H29: = | I29: =K29*CO2_C -> 0 | J29: = | K29: =IF(ISERROR(E29*G29),0,E29*G29) -> 0
B31: =B28+1 -> 1998 | D31: =$D$7 -> Manufacture | F31: x | G31: =INDIRECT($E$2&LEFT(D31,2)&"Factor") -> 0 | H31: = | I31: =K31*CO2_C -> 0 | J31: = | K31: =IF(ISERROR(E31*G31),0,E31*G31) -> 0
B32: =B31 -> 1998 | D32: =$D$8 -> Consumption | F32: x | G32: =INDIRECT($E$2&LEFT(D32,2)&"Factor") -> 0 | H32: = | I32: =K32*CO2_C -> 0 | J32: = | K32: =IF(ISERROR(E32*G32),0,E32*G32) -> 0
B34: =B31+1 -> 1999 | D34: =$D$7 -> Manufacture | F34: x | G34: =INDIRECT($E$2&LEFT(D34,2)&"Factor") -> 0 | H34: = | I34: =K34*CO2_C -> 0 | J34: = | K34: =IF(ISERROR(E34*G34),0,E34*G34) -> 0
B35: =B34 -> 1999 | D35: =$D$8 -> Consumption | F35: x | G35: =INDIRECT($E$2&LEFT(D35,2)&"Factor") -> 0 | H35: = | I35: =K35*CO2_C -> 0 | J35: = | K35: =IF(ISERROR(E35*G35),0,E35*G35) -> 0
B37: =B34+1 -> 2000 | D37: =$D$7 -> Manufacture | F37: x | G37: =INDIRECT($E$2&LEFT(D37,2)&"Factor") -> 0 | H37: = | I37: =K37*CO2_C -> 0 | J37: = | K37: =IF(ISERROR(E37*G37),0,E37*G37) -> 0
B38: =B37 -> 2000 | D38: =$D$8 -> Consumption | F38: x | G38: =INDIRECT($E$2&LEFT(D38,2)&"Factor") -> 0 | H38: = | I38: =K38*CO2_C -> 0 | J38: = | K38: =IF(ISERROR(E38*G38),0,E38*G38) -> 0
B40: =B37+1 -> 2001 | D40: =$D$7 -> Manufacture | F40: x | G40: =INDIRECT($E$2&LEFT(D40,2)&"Factor") -> 0 | H40: = | I40: =K40*CO2_C -> 0 | J40: = | K40: =IF(ISERROR(E40*G40),0,E40*G40) -> 0
B41: =B40 -> 2001 | D41: =$D$8 -> Consumption | F41: x | G41: =INDIRECT($E$2&LEFT(D41,2)&"Factor") -> 0 | H41: = | I41: =K41*CO2_C -> 0 | J41: = | K41: =IF(ISERROR(E41*G41),0,E41*G41) -> 0
B43: =B40+1 -> 2002 | D43: =$D$7 -> Manufacture | F43: x | G43: =INDIRECT($E$2&LEFT(D43,2)&"Factor") -> 0 | H43: = | I43: =K43*CO2_C -> 0 | J43: = | K43: =IF(ISERROR(E43*G43),0,E43*G43) -> 0
B44: =B43 -> 2002 | D44: =$D$8 -> Consumption | F44: x | G44: =INDIRECT($E$2&LEFT(D44,2)&"Factor") -> 0 | H44: = | I44: =K44*CO2_C -> 0 | J44: = | K44: =IF(ISERROR(E44*G44),0,E44*G44) -> 0
B46: =B43+1 -> 2003 | D46: =$D$7 -> Manufacture | F46: x | G46: =INDIRECT($E$2&LEFT(D46,2)&"Factor") -> 0 | H46: = | I46: =K46*CO2_C -> 0 | J46: = | K46: =IF(ISERROR(E46*G46),0,E46*G46) -> 0
B47: =B46 -> 2003 | D47: =$D$8 -> Consumption | F47: x | G47: =INDIRECT($E$2&LEFT(D47,2)&"Factor") -> 0 | H47: = | I47: =K47*CO2_C -> 0 | J47: = | K47: =IF(ISERROR(E47*G47),0,E47*G47) -> 0
B49: =B46+1 -> 2004 | D49: =$D$7 -> Manufacture | F49: x | G49: =INDIRECT($E$2&LEFT(D49,2)&"Factor") -> 0 | H49: = | I49: =K49*CO2_C -> 0 | J49: = | K49: =IF(ISERROR(E49*G49),0,E49*G49) -> 0
B50: =B49 -> 2004 | D50: =$D$8 -> Consumption | F50: x | G50: =INDIRECT($E$2&LEFT(D50,2)&"Factor") -> 0 | H50: = | I50: =K50*CO2_C -> 0 | J50: = | K50: =IF(ISERROR(E50*G50),0,E50*G50) -> 0
B52: =B49+1 -> 2005 | D52: =$D$7 -> Manufacture | F52: x | G52: =INDIRECT($E$2&LEFT(D52,2)&"Factor") -> 0 | H52: = | I52: =K52*CO2_C -> 0 | J52: = | K52: =IF(ISERROR(E52*G52),0,E52*G52) -> 0
B53: =B52 -> 2005 | D53: =$D$8 -> Consumption | F53: x | G53: =INDIRECT($E$2&LEFT(D53,2)&"Factor") -> 0 | H53: = | I53: =K53*CO2_C -> 0 | J53: = | K53: =IF(ISERROR(E53*G53),0,E53*G53) -> 0
B55: =B52+1 -> 2006 | D55: =$D$7 -> Manufacture | F55: x | G55: =INDIRECT($E$2&LEFT(D55,2)&"Factor") -> 0 | H55: = | I55: =K55*CO2_C -> 0 | J55: = | K55: =IF(ISERROR(E55*G55),0,E55*G55) -> 0
B56: =B55 -> 2006 | D56: =$D$8 -> Consumption | F56: x | G56: =INDIRECT($E$2&LEFT(D56,2)&"Factor") -> 0 | H56: = | I56: =K56*CO2_C -> 0 | J56: = | K56: =IF(ISERROR(E56*G56),0,E56*G56) -> 0
B58: =B55+1 -> 2007 | D58: =$D$7 -> Manufacture | F58: x | G58: =INDIRECT($E$2&LEFT(D58,2)&"Factor") -> 0 | H58: = | I58: =K58*CO2_C -> 0 | J58: = | K58: =IF(ISERROR(E58*G58),0,E58*G58) -> 0
B59: =B58 -> 2007 | D59: =$D$8 -> Consumption | F59: x | G59: =INDIRECT($E$2&LEFT(D59,2)&"Factor") -> 0 | H59: = | I59: =K59*CO2_C -> 0 | J59: = | K59: =IF(ISERROR(E59*G59),0,E59*G59) -> 0
B61: =B58+1 -> 2008 | D61: =$D$7 -> Manufacture | F61: x | G61: =INDIRECT($E$2&LEFT(D61,2)&"Factor") -> 0 | H61: = | I61: =K61*CO2_C -> 0 | J61: = | K61: =IF(ISERROR(E61*G61),0,E61*G61) -> 0
B62: =B61 -> 2008 | D62: =$D$8 -> Consumption | F62: x | G62: =INDIRECT($E$2&LEFT(D62,2)&"Factor") -> 0 | H62: = | I62: =K62*CO2_C -> 0 | J62: = | K62: =IF(ISERROR(E62*G62),0,E62*G62) -> 0
B64: =B61+1 -> 2009 | D64: =$D$7 -> Manufacture | F64: x | G64: =INDIRECT($E$2&LEFT(D64,2)&"Factor") -> 0 | H64: = | I64: =K64*CO2_C -> 0 | J64: = | K64: =IF(ISERROR(E64*G64),0,E64*G64) -> 0
B65: =B64 -> 2009 | D65: =$D$8 -> Consumption | F65: x | G65: =INDIRECT($E$2&LEFT(D65,2)&"Factor") -> 0 | H65: = | I65: =K65*CO2_C -> 0 | J65: = | K65: =IF(ISERROR(E65*G65),0,E65*G65) -> 0
B67: =B64+1 -> 2010 | D67: =$D$7 -> Manufacture | F67: x | G67: =INDIRECT($E$2&LEFT(D67,2)&"Factor") -> 0 | H67: = | I67: =K67*CO2_C -> 0 | J67: = | K67: =IF(ISERROR(E67*G67),0,E67*G67) -> 0
B68: =B67 -> 2010 | D68: =$D$8 -> Consumption | F68: x | G68: =INDIRECT($E$2&LEFT(D68,2)&"Factor") -> 0 | H68: = | I68: =K68*CO2_C -> 0 | J68: = | K68: =IF(ISERROR(E68*G68),0,E68*G68) -> 0
B70: =B67+1 -> 2011 | D70: =$D$7 -> Manufacture | F70: x | G70: =INDIRECT($E$2&LEFT(D70,2)&"Factor") -> 0 | H70: = | I70: =K70*CO2_C -> 0 | J70: = | K70: =IF(ISERROR(E70*G70),0,E70*G70) -> 0
B71: =B70 -> 2011 | D71: =$D$8 -> Consumption | F71: x | G71: =INDIRECT($E$2&LEFT(D71,2)&"Factor") -> 0 | H71: = | I71: =K71*CO2_C -> 0 | J71: = | K71: =IF(ISERROR(E71*G71),0,E71*G71) -> 0
B73: =B70+1 -> 2012 | D73: =$D$7 -> Manufacture | F73: x | G73: =INDIRECT($E$2&LEFT(D73,2)&"Factor") -> 0 | H73: = | I73: =K73*CO2_C -> 0 | J73: = | K73: =IF(ISERROR(E73*G73),0,E73*G73) -> 0
B74: =B73 -> 2012 | D74: =$D$8 -> Consumption | F74: x | G74: =INDIRECT($E$2&LEFT(D74,2)&"Factor") -> 0 | H74: = | I74: =K74*CO2_C -> 0 | J74: = | K74: =IF(ISERROR(E74*G74),0,E74*G74) -> 0
B76: =B73+1 -> 2013 | D76: =$D$7 -> Manufacture | F76: x | G76: =INDIRECT($E$2&LEFT(D76,2)&"Factor") -> 0 | H76: = | I76: =K76*CO2_C -> 0 | J76: = | K76: =IF(ISERROR(E76*G76),0,E76*G76) -> 0
B77: =B76 -> 2013 | D77: =$D$8 -> Consumption | F77: x | G77: =INDIRECT($E$2&LEFT(D77,2)&"Factor") -> 0 | H77: = | I77: =K77*CO2_C -> 0 | J77: = | K77: =IF(ISERROR(E77*G77),0,E77*G77) -> 0
B79: =B76+1 -> 2014 | D79: =$D$7 -> Manufacture | F79: x | G79: =INDIRECT($E$2&LEFT(D79,2)&"Factor") -> 0 | H79: = | I79: =K79*CO2_C -> 0 | J79: = | K79: =IF(ISERROR(E79*G79),0,E79*G79) -> 0
B80: =B79 -> 2014 | D80: =$D$8 -> Consumption | F80: x | G80: =INDIRECT($E$2&LEFT(D80,2)&"Factor") -> 0 | H80: = | I80: =K80*CO2_C -> 0 | J80: = | K80: =IF(ISERROR(E80*G80),0,E80*G80) -> 0
B82: =B79+1 -> 2015 | D82: =$D$7 -> Manufacture | F82: x | G82: =INDIRECT($E$2&LEFT(D82,2)&"Factor") -> 0 | H82: = | I82: =K82*CO2_C -> 0 | J82: = | K82: =IF(ISERROR(E82*G82),0,E82*G82) -> 0
B83: =B82 -> 2015 | D83: =$D$8 -> Consumption | F83: x | G83: =INDIRECT($E$2&LEFT(D83,2)&"Factor") -> 0 | H83: = | I83: =K83*CO2_C -> 0 | J83: = | K83: =IF(ISERROR(E83*G83),0,E83*G83) -> 0
B85: =B82+1 -> 2016 | D85: =$D$7 -> Manufacture | F85: x | G85: =INDIRECT($E$2&LEFT(D85,2)&"Factor") -> 0 | H85: = | I85: =K85*CO2_C -> 0 | J85: = | K85: =IF(ISERROR(E85*G85),0,E85*G85) -> 0
B86: =B85 -> 2016 | D86: =$D$8 -> Consumption | F86: x | G86: =INDIRECT($E$2&LEFT(D86,2)&"Factor") -> 0 | H86: = | I86: =K86*CO2_C -> 0 | J86: = | K86: =IF(ISERROR(E86*G86),0,E86*G86) -> 0
B88: =B85+1 -> 2017 | D88: =$D$7 -> Manufacture | F88: x | G88: =INDIRECT($E$2&LEFT(D88,2)&"Factor") -> 0 | H88: = | I88: =K88*CO2_C -> 0 | J88: = | K88: =IF(ISERROR(E88*G88),0,E88*G88) -> 0
B89: =B88 -> 2017 | D89: =$D$8 -> Consumption | F89: x | G89: =INDIRECT($E$2&LEFT(D89,2)&"Factor") -> 0 | H89: = | I89: =K89*CO2_C -> 0 | J89: = | K89: =IF(ISERROR(E89*G89),0,E89*G89) -> 0
B91: =B88+1 -> 2018 | D91: =$D$7 -> Manufacture | F91: x | G91: =INDIRECT($E$2&LEFT(D91,2)&"Factor") -> 0 | H91: = | I91: =K91*CO2_C -> 0 | J91: = | K91: =IF(ISERROR(E91*G91),0,E91*G91) -> 0
B92: =B91 -> 2018 | D92: =$D$8 -> Consumption | F92: x | G92: =INDIRECT($E$2&LEFT(D92,2)&"Factor") -> 0 | H92: = | I92: =K92*CO2_C -> 0 | J92: = | K92: =IF(ISERROR(E92*G92),0,E92*G92) -> 0
B94: =B91+1 -> 2019 | D94: =$D$7 -> Manufacture | F94: x | G94: =INDIRECT($E$2&LEFT(D94,2)&"Factor") -> 0 | H94: = | I94: =K94*CO2_C -> 0 | J94: = | K94: =IF(ISERROR(E94*G94),0,E94*G94) -> 0
B95: =B94 -> 2019 | D95: =$D$8 -> Consumption | F95: x | G95: =INDIRECT($E$2&LEFT(D95,2)&"Factor") -> 0 | H95: = | I95: =K95*CO2_C -> 0 | J95: = | K95: =IF(ISERROR(E95*G95),0,E95*G95) -> 0
B97: =B94+1 -> 2020 | D97: =$D$7 -> Manufacture | F97: x | G97: =INDIRECT($E$2&LEFT(D97,2)&"Factor") -> 0 | H97: = | I97: =K97*CO2_C -> 0 | J97: = | K97: =IF(ISERROR(E97*G97),0,E97*G97) -> 0
B98: =B97 -> 2020 | D98: =$D$8 -> Consumption | F98: x | G98: =INDIRECT($E$2&LEFT(D98,2)&"Factor") -> 0 | H98: = | I98: =K98*CO2_C -> 0 | J98: = | K98: =IF(ISERROR(E98*G98),0,E98*G98) -> 0
B100: =B97+1 -> 2021 | D100: =$D$7 -> Manufacture | F100: x | G100: =INDIRECT($E$2&LEFT(D100,2)&"Factor") -> 0 | H100: = | I100: =K100*CO2_C -> 0 | J100: = | K100: =IF(ISERROR(E100*G100),0,E100*G100) -> 0
B101: =B100 -> 2021 | D101: =$D$8 -> Consumption | F101: x | G101: =INDIRECT($E$2&LEFT(D101,2)&"Factor") -> 0 | H101: = | I101: =K101*CO2_C -> 0 | J101: = | K101: =IF(ISERROR(E101*G101),0,E101*G101) -> 0
B103: =B100+1 -> 2022 | D103: =$D$7 -> Manufacture | F103: x | G103: =INDIRECT($E$2&LEFT(D103,2)&"Factor") -> 0 | H103: = | I103: =K103*CO2_C -> 0 | J103: = | K103: =IF(ISERROR(E103*G103),0,E103*G103) -> 0
B104: =B103 -> 2022 | D104: =$D$8 -> Consumption | F104: x | G104: =INDIRECT($E$2&LEFT(D104,2)&"Factor") -> 0 | H104: = | I104: =K104*CO2_C -> 0 | J104: = | K104: =IF(ISERROR(E104*G104),0,E104*G104) -> 0
B106: =B103+1 -> 2023 | D106: =$D$7 -> Manufacture | F106: x | G106: =INDIRECT($E$2&LEFT(D106,2)&"Factor") -> 0 | H106: = | I106: =K106*CO2_C -> 0 | J106: = | K106: =IF(ISERROR(E106*G106),0,E106*G106) -> 0
B107: =B106 -> 2023 | D107: =$D$8 -> Consumption | F107: x | G107: =INDIRECT($E$2&LEFT(D107,2)&"Factor") -> 0 | H107: = | I107: =K107*CO2_C -> 0 | J107: = | K107: =IF(ISERROR(E107*G107),0,E107*G107) -> 0
B109: =B106+1 -> 2024 | D109: =$D$7 -> Manufacture | F109: x | G109: =INDIRECT($E$2&LEFT(D109,2)&"Factor") -> 0 | H109: = | I109: =K109*CO2_C -> 0 | J109: = | K109: =IF(ISERROR(E109*G109),0,E109*G109) -> 0
B110: =B109 -> 2024 | D110: =$D$8 -> Consumption | F110: x | G110: =INDIRECT($E$2&LEFT(D110,2)&"Factor") -> 0 | H110: = | I110: =K110*CO2_C -> 0 | J110: = | K110: =IF(ISERROR(E110*G110),0,E110*G110) -> 0
B112: =B109+1 -> 2025 | D112: =$D$7 -> Manufacture | F112: x | G112: =INDIRECT($E$2&LEFT(D112,2)&"Factor") -> 0 | H112: = | I112: =K112*CO2_C -> 0 | J112: = | K112: =IF(ISERROR(E112*G112),0,E112*G112) -> 0
B113: =B112 -> 2025 | D113: =$D$8 -> Consumption | F113: x | G113: =INDIRECT($E$2&LEFT(D113,2)&"Factor") -> 0 | H113: = | I113: =K113*CO2_C -> 0 | J113: = | K113: =IF(ISERROR(E113*G113),0,E113*G113) -> 0

Sheet Iron & Steel
B1: ="6. Iron and Steel Production in "&'List Data'!B3 -> 6. Iron and Steel Production in Select a State . . .
D4: Production Method | F4: State Production | H4: Emission Factor | J4: Emissions | L4: Emissions
F5: (Metric Tons) | H5: (t CO2/t production) | J5: (MTCE) | L5: (MTCO2E)
B7: 1990 | D7: BOF with coke ovens | G7: x | H7: =Control!$D$25 -> 0 | I7: = | J7: =L7*CO2_C -> 0 | K7: = | L7: =IF(ISERROR(F7*H7),0,F7*H7) -> 0
B8: =B7 -> 1990 | D8: BOF without coke ovens | G8: x | H8: =Control!$D$26 -> 0 | I8: = | J8: =L8*CO2_C -> 0 | K8: = | L8: =IF(ISERROR(F8*H8),0,F8*H8) -> 0
B9: =B8 -> 1990 | D9: EAF | G9: x | H9: =Control!$D$27 -> 0 | I9: = | J9: =L9*CO2_C -> 0 | K9: = | L9: =IF(ISERROR(F9*H9),0,F9*H9) -> 0
B10: =B9 -> 1990 | D10: OHF | G10: x | H10: =Control!$D$28 -> 0 | I10: = | J10: =L10*CO2_C -> 0 | K10: = | L10: =IF(ISERROR(F10*H10),0,F10*H10) -> 0
D11: Total | I11: = | J11: =L11*CO2_C -> 0 | L11: =SUM(L7:L10) -> 0
B13: =B7+1 -> 1991 | D13: BOF with coke ovens | G13: x | H13: =Control!$D$25 -> 0 | I13: = | J13: =L13*CO2_C -> 0 | K13: = | L13: =IF(ISERROR(F13*H13),0,F13*H13) -> 0
B14: =B13 -> 1991 | D14: BOF without coke ovens | G14: x | H14: =Control!$D$26 -> 0 | I14: = | J14: =L14*CO2_C -> 0 | K14: = | L14: =IF(ISERROR(F14*H14),0,F14*H14) -> 0
B15: =B14 -> 1991 | D15: EAF | G15: x | H15: =Control!$D$27 -> 0 | I15: = | J15: =L15*CO2_C -> 0 | K15: = | L15: =IF(ISERROR(F15*H15),0,F15*H15) -> 0
B16: =B15 -> 1991 | D16: OHF | G16: x | H16: =Control!$D$28 -> 0 | I16: = | J16: =L16*CO2_C -> 0 | K16: = | L16: =IF(ISERROR(F16*H16),0,F16*H16) -> 0
D17: Total | I17: = | J17: =L17*CO2_C -> 0 | L17: =SUM(L13:L16) -> 0
B19: =B13+1 -> 1992 | D19: BOF with coke ovens | G19: x | H19: =Control!$D$25 -> 0 | I19: = | J19: =L19*CO2_C -> 0 | K19: = | L19: =IF(ISERROR(F19*H19),0,F19*H19) -> 0
B20: =B19 -> 1992 | D20: BOF without coke ovens | G20: x | H20: =Control!$D$26 -> 0 | I20: = | J20: =L20*CO2_C -> 0 | K20: = | L20: =IF(ISERROR(F20*H20),0,F20*H20) -> 0
B21: =B20 -> 1992 | D21: EAF | G21: x | H21: =Control!$D$27 -> 0 | I21: = | J21: =L21*CO2_C -> 0 | K21: = | L21: =IF(ISERROR(F21*H21),0,F21*H21) -> 0
B22: =B21 -> 1992 | D22: OHF | G22: x | H22: =Control!$D$28 -> 0 | I22: = | J22: =L22*CO2_C -> 0 | K22: = | L22: =IF(ISERROR(F22*H22),0,F22*H22) -> 0
D23: Total | I23: = | J23: =L23*CO2_C -> 0 | L23: =SUM(L19:L22) -> 0
B25: =B19+1 -> 1993 | D25: BOF with coke ovens | G25: x | H25: =Control!$D$25 -> 0 | I25: = | J25: =L25*CO2_C -> 0 | K25: = | L25: =IF(ISERROR(F25*H25),0,F25*H25) -> 0
B26: =B25 -> 1993 | D26: BOF without coke ovens | G26: x | H26: =Control!$D$26 -> 0 | I26: = | J26: =L26*CO2_C -> 0 | K26: = | L26: =IF(ISERROR(F26*H26),0,F26*H26) -> 0
B27: =B26 -> 1993 | D27: EAF | G27: x | H27: =Control!$D$27 -> 0 | I27: = | J27: =L27*CO2_C -> 0 | K27: = | L27: =IF(ISERROR(F27*H27),0,F27*H27) -> 0
B28: =B27 -> 1993 | D28: OHF | G28: x | H28: =Control!$D$28 -> 0 | I28: = | J28: =L28*CO2_C -> 0 | K28: = | L28: =IF(ISERROR(F28*H28),0,F28*H28) -> 0
D29: Total | I29: = | J29: =L29*CO2_C -> 0 | L29: =SUM(L25:L28) -> 0
B31: =B25+1 -> 1994 | D31: BOF with coke ovens | G31: x | H31: =Control!$D$25 -> 0 | I31: = | J31: =L31*CO2_C -> 0 | K31: = | L31: =IF(ISERROR(F31*H31),0,F31*H31) -> 0
B32: =B31 -> 1994 | D32: BOF without coke ovens | G32: x | H32: =Control!$D$26 -> 0 | I32: = | J32: =L32*CO2_C -> 0 | K32: = | L32: =IF(ISERROR(F32*H32),0,F32*H32) -> 0
B33: =B32 -> 1994 | D33: EAF | G33: x | H33: =Control!$D$27 -> 0 | I33: = | J33: =L33*CO2_C -> 0 | K33: = | L33: =IF(ISERROR(F33*H33),0,F33*H33) -> 0
B34: =B33 -> 1994 | D34: OHF | G34: x | H34: =Control!$D$28 -> 0 | I34: = | J34: =L34*CO2_C -> 0 | K34: = | L34: =IF(ISERROR(F34*H34),0,F34*H34) -> 0
D35: Total | I35: = | J35: =L35*CO2_C -> 0 | L35: =SUM(L31:L34) -> 0
B37: =B31+1 -> 1995 | D37: BOF with coke ovens | G37: x | H37: =Control!$D$25 -> 0 | I37: = | J37: =L37*CO2_C -> 0 | K37: = | L37: =IF(ISERROR(F37*H37),0,F37*H37) -> 0
B38: =B37 -> 1995 | D38: BOF without coke ovens | G38: x | H38: =Control!$D$26 -> 0 | I38: = | J38: =L38*CO2_C -> 0 | K38: = | L38: =IF(ISERROR(F38*H38),0,F38*H38) -> 0
B39: =B38 -> 1995 | D39: EAF | G39: x | H39: =Control!$D$27 -> 0 | I39: = | J39: =L39*CO2_C -> 0 | K39: = | L39: =IF(ISERROR(F39*H39),0,F39*H39) -> 0
B40: =B39 -> 1995 | D40: OHF | G40: x | H40: =Control!$D$28 -> 0 | I40: = | J40: =L40*CO2_C -> 0 | K40: = | L40: =IF(ISERROR(F40*H40),0,F40*H40) -> 0
D41: Total | I41: = | J41: =L41*CO2_C -> 0 | L41: =SUM(L37:L40) -> 0
B43: =B37+1 -> 1996 | D43: BOF with coke ovens | G43: x | H43: =Control!$D$25 -> 0 | I43: = | J43: =L43*CO2_C -> 0 | K43: = | L43: =IF(ISERROR(F43*H43),0,F43*H43) -> 0
B44: =B43 -> 1996 | D44: BOF without coke ovens | G44: x | H44: =Control!$D$26 -> 0 | I44: = | J44: =L44*CO2_C -> 0 | K44: = | L44: =IF(ISERROR(F44*H44),0,F44*H44) -> 0
B45: =B44 -> 1996 | D45: EAF | G45: x | H45: =Control!$D$27 -> 0 | I45: = | J45: =L45*CO2_C -> 0 | K45: = | L45: =IF(ISERROR(F45*H45),0,F45*H45) -> 0
B46: =B45 -> 1996 | D46: OHF | G46: x | H46: =Control!$D$28 -> 0 | I46: = | J46: =L46*CO2_C -> 0 | K46: = | L46: =IF(ISERROR(F46*H46),0,F46*H46) -> 0
D47: Total | I47: = | J47: =L47*CO2_C -> 0 | L47: =SUM(L43:L46) -> 0
B49: =B43+1 -> 1997 | D49: BOF with coke ovens | G49: x | H49: =Control!$D$25 -> 0 | I49: = | J49: =L49*CO2_C -> 0 | K49: = | L49: =IF(ISERROR(F49*H49),0,F49*H49) -> 0
B50: =B49 -> 1997 | D50: BOF without coke ovens | G50: x | H50: =Control!$D$26 -> 0 | I50: = | J50: =L50*CO2_C -> 0 | K50: = | L50: =IF(ISERROR(F50*H50),0,F50*H50) -> 0
B51: =B50 -> 1997 | D51: EAF | G51: x | H51: =Control!$D$27 -> 0 | I51: = | J51: =L51*CO2_C -> 0 | K51: = | L51: =IF(ISERROR(F51*H51),0,F51*H51) -> 0
B52: =B51 -> 1997 | D52: OHF | G52: x | H52: =Control!$D$28 -> 0 | I52: = | J52: =L52*CO2_C -> 0 | K52: = | L52: =IF(ISERROR(F52*H52),0,F52*H52) -> 0
D53: Total | I53: = | J53: =L53*CO2_C -> 0 | L53: =SUM(L49:L52) -> 0
B55: =B49+1 -> 1998 | D55: BOF with coke ovens | G55: x | H55: =Control!$D$25 -> 0 | I55: = | J55: =L55*CO2_C -> 0 | K55: = | L55: =IF(ISERROR(F55*H55),0,F55*H55) -> 0
B56: =B55 -> 1998 | D56: BOF without coke ovens | G56: x | H56: =Control!$D$26 -> 0 | I56: = | J56: =L56*CO2_C -> 0 | K56: = | L56: =IF(ISERROR(F56*H56),0,F56*H56) -> 0
B57: =B56 -> 1998 | D57: EAF | G57: x | H57: =Control!$D$27 -> 0 | I57: = | J57: =L57*CO2_C -> 0 | K57: = | L57: =IF(ISERROR(F57*H57),0,F57*H57) -> 0
B58: =B57 -> 1998 | D58: OHF | G58: x | H58: =Control!$D$28 -> 0 | I58: = | J58: =L58*CO2_C -> 0 | K58: = | L58: =IF(ISERROR(F58*H58),0,F58*H58) -> 0
D59: Total | I59: = | J59: =L59*CO2_C -> 0 | L59: =SUM(L55:L58) -> 0
B61: =B55+1 -> 1999 | D61: BOF with coke ovens | G61: x | H61: =Control!$D$25 -> 0 | I61: = | J61: =L61*CO2_C -> 0 | K61: = | L61: =IF(ISERROR(F61*H61),0,F61*H61) -> 0
B62: =B61 -> 1999 | D62: BOF without coke ovens | G62: x | H62: =Control!$D$26 -> 0 | I62: = | J62: =L62*CO2_C -> 0 | K62: = | L62: =IF(ISERROR(F62*H62),0,F62*H62) -> 0
B63: =B62 -> 1999 | D63: EAF | G63: x | H63: =Control!$D$27 -> 0 | I63: = | J63: =L63*CO2_C -> 0 | K63: = | L63: =IF(ISERROR(F63*H63),0,F63*H63) -> 0
B64: =B63 -> 1999 | D64: OHF | G64: x | H64: =Control!$D$28 -> 0 | I64: = | J64: =L64*CO2_C -> 0 | K64: = | L64: =IF(ISERROR(F64*H64),0,F64*H64) -> 0
D65: Total | I65: = | J65: =L65*CO2_C -> 0 | L65: =SUM(L61:L64) -> 0
B67: =B61+1 -> 2000 | D67: BOF with coke ovens | G67: x | H67: =Control!$D$25 -> 0 | I67: = | J67: =L67*CO2_C -> 0 | K67: = | L67: =IF(ISERROR(F67*H67),0,F67*H67) -> 0
B68: =B67 -> 2000 | D68: BOF without coke ovens | G68: x | H68: =Control!$D$26 -> 0 | I68: = | J68: =L68*CO2_C -> 0 | K68: = | L68: =IF(ISERROR(F68*H68),0,F68*H68) -> 0
B69: =B68 -> 2000 | D69: EAF | G69: x | H69: =Control!$D$27 -> 0 | I69: = | J69: =L69*CO2_C -> 0 | K69: = | L69: =IF(ISERROR(F69*H69),0,F69*H69) -> 0
B70: =B69 -> 2000 | D70: OHF | G70: x | H70: =Control!$D$28 -> 0 | I70: = | J70: =L70*CO2_C -> 0 | K70: = | L70: =IF(ISERROR(F70*H70),0,F70*H70) -> 0
D71: Total | I71: = | J71: =L71*CO2_C -> 0 | L71: =SUM(L67:L70) -> 0
B73: =B67+1 -> 2001 | D73: BOF with coke ovens | G73: x | H73: =Control!$D$25 -> 0 | I73: = | J73: =L73*CO2_C -> 0 | K73: = | L73: =IF(ISERROR(F73*H73),0,F73*H73) -> 0
B74: =B73 -> 2001 | D74: BOF without coke ovens | G74: x | H74: =Control!$D$26 -> 0 | I74: = | J74: =L74*CO2_C -> 0 | K74: = | L74: =IF(ISERROR(F74*H74),0,F74*H74) -> 0
B75: =B74 -> 2001 | D75: EAF | G75: x | H75: =Control!$D$27 -> 0 | I75: = | J75: =L75*CO2_C -> 0 | K75: = | L75: =IF(ISERROR(F75*H75),0,F75*H75) -> 0
B76: =B75 -> 2001 | D76: OHF | G76: x | H76: =Control!$D$28 -> 0 | I76: = | J76: =L76*CO2_C -> 0 | K76: = | L76: =IF(ISERROR(F76*H76),0,F76*H76) -> 0
D77: Total | I77: = | J77: =L77*CO2_C -> 0 | L77: =SUM(L73:L76) -> 0
B79: =B73+1 -> 2002 | D79: BOF with coke ovens | G79: x | H79: =Control!$D$25 -> 0 | I79: = | J79: =L79*CO2_C -> 0 | K79: = | L79: =IF(ISERROR(F79*H79),0,F79*H79) -> 0
B80: =B79 -> 2002 | D80: BOF without coke ovens | G80: x | H80: =Control!$D$26 -> 0 | I80: = | J80: =L80*CO2_C -> 0 | K80: = | L80: =IF(ISERROR(F80*H80),0,F80*H80) -> 0
B81: =B80 -> 2002 | D81: EAF | G81: x | H81: =Control!$D$27 -> 0 | I81: = | J81: =L81*CO2_C -> 0 | K81: = | L81: =IF(ISERROR(F81*H81),0,F81*H81) -> 0
B82: =B81 -> 2002 | D82: OHF | G82: x | H82: =Control!$D$28 -> 0 | I82: = | J82: =L82*CO2_C -> 0 | K82: = | L82: =IF(ISERROR(F82*H82),0,F82*H82) -> 0
D83: Total | I83: = | J83: =L83*CO2_C -> 0 | L83: =SUM(L79:L82) -> 0
B85: =B79+1 -> 2003 | D85: BOF with coke ovens | G85: x | H85: =Control!$D$25 -> 0 | I85: = | J85: =L85*CO2_C -> 0 | K85: = | L85: =IF(ISERROR(F85*H85),0,F85*H85) -> 0
B86: =B85 -> 2003 | D86: BOF without coke ovens | G86: x | H86: =Control!$D$26 -> 0 | I86: = | J86: =L86*CO2_C -> 0 | K86: = | L86: =IF(ISERROR(F86*H86),0,F86*H86) -> 0
B87: =B86 -> 2003 | D87: EAF | G87: x | H87: =Control!$D$27 -> 0 | I87: = | J87: =L87*CO2_C -> 0 | K87: = | L87: =IF(ISERROR(F87*H87),0,F87*H87) -> 0
B88: =B87 -> 2003 | D88: OHF | G88: x | H88: =Control!$D$28 -> 0 | I88: = | J88: =L88*CO2_C -> 0 | K88: = | L88: =IF(ISERROR(F88*H88),0,F88*H88) -> 0
D89: Total | I89: = | J89: =L89*CO2_C -> 0 | L89: =SUM(L85:L88) -> 0
B91: =B85+1 -> 2004 | D91: BOF with coke ovens | G91: x | H91: =Control!$D$25 -> 0 | I91: = | J91: =L91*CO2_C -> 0 | K91: = | L91: =IF(ISERROR(F91*H91),0,F91*H91) -> 0
B92: =B91 -> 2004 | D92: BOF without coke ovens | G92: x | H92: =Control!$D$26 -> 0 | I92: = | J92: =L92*CO2_C -> 0 | K92: = | L92: =IF(ISERROR(F92*H92),0,F92*H92) -> 0
B93: =B92 -> 2004 | D93: EAF | G93: x | H93: =Control!$D$27 -> 0 | I93: = | J93: =L93*CO2_C -> 0 | K93: = | L93: =IF(ISERROR(F93*H93),0,F93*H93) -> 0
B94: =B93 -> 2004 | D94: OHF | G94: x | H94: =Control!$D$28 -> 0 | I94: = | J94: =L94*CO2_C -> 0 | K94: = | L94: =IF(ISERROR(F94*H94),0,F94*H94) -> 0
D95: Total | I95: = | J95: =L95*CO2_C -> 0 | L95: =SUM(L91:L94) -> 0
B97: =B91+1 -> 2005 | D97: BOF with coke ovens | G97: x | H97: =Control!$D$25 -> 0 | I97: = | J97: =L97*CO2_C -> 0 | K97: = | L97: =IF(ISERROR(F97*H97),0,F97*H97) -> 0
B98: =B97 -> 2005 | D98: BOF without coke ovens | G98: x | H98: =Control!$D$26 -> 0 | I98: = | J98: =L98*CO2_C -> 0 | K98: = | L98: =IF(ISERROR(F98*H98),0,F98*H98) -> 0
B99: =B98 -> 2005 | D99: EAF | G99: x | H99: =Control!$D$27 -> 0 | I99: = | J99: =L99*CO2_C -> 0 | K99: = | L99: =IF(ISERROR(F99*H99),0,F99*H99) -> 0
B100: =B99 -> 2005 | D100: OHF | G100: x | H100: =Control!$D$28 -> 0 | I100: = | J100: =L100*CO2_C -> 0 | K100: = | L100: =IF(ISERROR(F100*H100),0,F100*H100) -> 0
D101: Total | I101: = | J101: =L101*CO2_C -> 0 | L101: =SUM(L97:L100) -> 0
B103: =B97+1 -> 2006 | D103: BOF with coke ovens | G103: x | H103: =Control!$D$25 -> 0 | I103: = | J103: =L103*CO2_C -> 0 | K103: = | L103: =IF(ISERROR(F103*H103),0,F103*H103) -> 0
B104: =B103 -> 2006 | D104: BOF without coke ovens | G104: x | H104: =Control!$D$26 -> 0 | I104: = | J104: =L104*CO2_C -> 0 | K104: = | L104: =IF(ISERROR(F104*H104),0,F104*H104) -> 0
B105: =B104 -> 2006 | D105: EAF | G105: x | H105: =Control!$D$27 -> 0 | I105: = | J105: =L105*CO2_C -> 0 | K105: = | L105: =IF(ISERROR(F105*H105),0,F105*H105) -> 0
B106: =B105 -> 2006 | D106: OHF | G106: x | H106: =Control!$D$28 -> 0 | I106: = | J106: =L106*CO2_C -> 0 | K106: = | L106: =IF(ISERROR(F106*H106),0,F106*H106) -> 0
D107: Total | I107: = | J107: =L107*CO2_C -> 0 | L107: =SUM(L103:L106) -> 0
B109: =B103+1 -> 2007 | D109: BOF with coke ovens | G109: x | H109: =Control!$D$25 -> 0 | I109: = | J109: =L109*CO2_C -> 0 | K109: = | L109: =IF(ISERROR(F109*H109),0,F109*H109) -> 0
B110: =B109 -> 2007 | D110: BOF without coke ovens | G110: x | H110: =Control!$D$26 -> 0 | I110: = | J110: =L110*CO2_C -> 0 | K110: = | L110: =IF(ISERROR(F110*H110),0,F110*H110) -> 0
B111: =B110 -> 2007 | D111: EAF | G111: x | H111: =Control!$D$27 -> 0 | I111: = | J111: =L111*CO2_C -> 0 | K111: = | L111: =IF(ISERROR(F111*H111),0,F111*H111) -> 0
B112: =B111 -> 2007 | D112: OHF | G112: x | H112: =Control!$D$28 -> 0 | I112: = | J112: =L112*CO2_C -> 0 | K112: = | L112: =IF(ISERROR(F112*H112),0,F112*H112) -> 0
D113: Total | I113: = | J113: =L113*CO2_C -> 0 | L113: =SUM(L109:L112) -> 0
B115: =B109+1 -> 2008 | D115: BOF with coke ovens | G115: x | H115: =Control!$D$25 -> 0 | I115: = | J115: =L115*CO2_C -> 0 | K115: = | L115: =IF(ISERROR(F115*H115),0,F115*H115) -> 0
B116: =B115 -> 2008 | D116: BOF without coke ovens | G116: x | H116: =Control!$D$26 -> 0 | I116: = | J116: =L116*CO2_C -> 0 | K116: = | L116: =IF(ISERROR(F116*H116),0,F116*H116) -> 0
B117: =B116 -> 2008 | D117: EAF | G117: x | H117: =Control!$D$27 -> 0 | I117: = | J117: =L117*CO2_C -> 0 | K117: = | L117: =IF(ISERROR(F117*H117),0,F117*H117) -> 0
B118: =B117 -> 2008 | D118: OHF | G118: x | H118: =Control!$D$28 -> 0 | I118: = | J118: =L118*CO2_C -> 0 | K118: = | L118: =IF(ISERROR(F118*H118),0,F118*H118) -> 0
D119: Total | I119: = | J119: =L119*CO2_C -> 0 | L119: =SUM(L115:L118) -> 0
B121: =B115+1 -> 2009 | D121: BOF with coke ovens | G121: x | H121: =Control!$D$25 -> 0 | I121: = | J121: =L121*CO2_C -> 0 | K121: = | L121: =IF(ISERROR(F121*H121),0,F121*H121) -> 0
B122: =B121 -> 2009 | D122: BOF without coke ovens | G122: x | H122: =Control!$D$26 -> 0 | I122: = | J122: =L122*CO2_C -> 0 | K122: = | L122: =IF(ISERROR(F122*H122),0,F122*H122) -> 0
B123: =B122 -> 2009 | D123: EAF | G123: x | H123: =Control!$D$27 -> 0 | I123: = | J123: =L123*CO2_C -> 0 | K123: = | L123: =IF(ISERROR(F123*H123),0,F123*H123) -> 0
B124: =B123 -> 2009 | D124: OHF | G124: x | H124: =Control!$D$28 -> 0 | I124: = | J124: =L124*CO2_C -> 0 | K124: = | L124: =IF(ISERROR(F124*H124),0,F124*H124) -> 0
D125: Total | I125: = | J125: =L125*CO2_C -> 0 | L125: =SUM(L121:L124) -> 0
B127: =B121+1 -> 2010 | D127: BOF with coke ovens | G127: x | H127: =Control!$D$25 -> 0 | I127: = | J127: =L127*CO2_C -> 0 | K127: = | L127: =IF(ISERROR(F127*H127),0,F127*H127) -> 0
B128: =B127 -> 2010 | D128: BOF without coke ovens | G128: x | H128: =Control!$D$26 -> 0 | I128: = | J128: =L128*CO2_C -> 0 | K128: = | L128: =IF(ISERROR(F128*H128),0,F128*H128) -> 0
B129: =B128 -> 2010 | D129: EAF | G129: x | H129: =Control!$D$27 -> 0 | I129: = | J129: =L129*CO2_C -> 0 | K129: = | L129: =IF(ISERROR(F129*H129),0,F129*H129) -> 0
B130: =B129 -> 2010 | D130: OHF | G130: x | H130: =Control!$D$28 -> 0 | I130: = | J130: =L130*CO2_C -> 0 | K130: = | L130: =IF(ISERROR(F130*H130),0,F130*H130) -> 0
D131: Total | I131: = | J131: =L131*CO2_C -> 0 | L131: =SUM(L127:L130) -> 0
B133: =B127+1 -> 2011 | D133: BOF with coke ovens | G133: x | H133: =Control!$D$25 -> 0 | I133: = | J133: =L133*CO2_C -> 0 | K133: = | L133: =IF(ISERROR(F133*H133),0,F133*H133) -> 0
B134: =B133 -> 2011 | D134: BOF without coke ovens | G134: x | H134: =Control!$D$26 -> 0 | I134: = | J134: =L134*CO2_C -> 0 | K134: = | L134: =IF(ISERROR(F134*H134),0,F134*H134) -> 0
B135: =B134 -> 2011 | D135: EAF | G135: x | H135: =Control!$D$27 -> 0 | I135: = | J135: =L135*CO2_C -> 0 | K135: = | L135: =IF(ISERROR(F135*H135),0,F135*H135) -> 0
B136: =B135 -> 2011 | D136: OHF | G136: x | H136: =Control!$D$28 -> 0 | I136: = | J136: =L136*CO2_C -> 0 | K136: = | L136: =IF(ISERROR(F136*H136),0,F136*H136) -> 0
D137: Total | I137: = | J137: =L137*CO2_C -> 0 | L137: =SUM(L133:L136) -> 0
B139: =B133+1 -> 2012 | D139: BOF with coke ovens | G139: x | H139: =Control!$D$25 -> 0 | I139: = | J139: =L139*CO2_C -> 0 | K139: = | L139: =IF(ISERROR(F139*H139),0,F139*H139) -> 0
B140: =B139 -> 2012 | D140: BOF without coke ovens | G140: x | H140: =Control!$D$26 -> 0 | I140: = | J140: =L140*CO2_C -> 0 | K140: = | L140: =IF(ISERROR(F140*H140),0,F140*H140) -> 0
B141: =B140 -> 2012 | D141: EAF | G141: x | H141: =Control!$D$27 -> 0 | I141: = | J141: =L141*CO2_C -> 0 | K141: = | L141: =IF(ISERROR(F141*H141),0,F141*H141) -> 0
B142: =B141 -> 2012 | D142: OHF | G142: x | H142: =Control!$D$28 -> 0 | I142: = | J142: =L142*CO2_C -> 0 | K142: = | L142: =IF(ISERROR(F142*H142),0,F142*H142) -> 0
D143: Total | I143: = | J143: =L143*CO2_C -> 0 | L143: =SUM(L139:L142) -> 0
B145: =B139+1 -> 2013 | D145: BOF with coke ovens | G145: x | H145: =Control!$D$25 -> 0 | I145: = | J145: =L145*CO2_C -> 0 | K145: = | L145: =IF(ISERROR(F145*H145),0,F145*H145) -> 0
B146: =B145 -> 2013 | D146: BOF without coke ovens | G146: x | H146: =Control!$D$26 -> 0 | I146: = | J146: =L146*CO2_C -> 0 | K146: = | L146: =IF(ISERROR(F146*H146),0,F146*H146) -> 0
B147: =B146 -> 2013 | D147: EAF | G147: x | H147: =Control!$D$27 -> 0 | I147: = | J147: =L147*CO2_C -> 0 | K147: = | L147: =IF(ISERROR(F147*H147),0,F147*H147) -> 0
B148: =B147 -> 2013 | D148: OHF | G148: x | H148: =Control!$D$28 -> 0 | I148: = | J148: =L148*CO2_C -> 0 | K148: = | L148: =IF(ISERROR(F148*H148),0,F148*H148) -> 0
D149: Total | I149: = | J149: =L149*CO2_C -> 0 | L149: =SUM(L145:L148) -> 0
B151: =B145+1 -> 2014 | D151: BOF with coke ovens | G151: x | H151: =Control!$D$25 -> 0 | I151: = | J151: =L151*CO2_C -> 0 | K151: = | L151: =IF(ISERROR(F151*H151),0,F151*H151) -> 0
B152: =B151 -> 2014 | D152: BOF without coke ovens | G152: x | H152: =Control!$D$26 -> 0 | I152: = | J152: =L152*CO2_C -> 0 | K152: = | L152: =IF(ISERROR(F152*H152),0,F152*H152) -> 0
B153: =B152 -> 2014 | D153: EAF | G153: x | H153: =Control!$D$27 -> 0 | I153: = | J153: =L153*CO2_C -> 0 | K153: = | L153: =IF(ISERROR(F153*H153),0,F153*H153) -> 0
B154: =B153 -> 2014 | D154: OHF | G154: x | H154: =Control!$D$28 -> 0 | I154: = | J154: =L154*CO2_C -> 0 | K154: = | L154: =IF(ISERROR(F154*H154),0,F154*H154) -> 0
D155: Total | I155: = | J155: =L155*CO2_C -> 0 | L155: =SUM(L151:L154) -> 0
B157: =B151+1 -> 2015 | D157: BOF with coke ovens | G157: x | H157: =Control!$D$25 -> 0 | I157: = | J157: =L157*CO2_C -> 0 | K157: = | L157: =IF(ISERROR(F157*H157),0,F157*H157) -> 0
B158: =B157 -> 2015 | D158: BOF without coke ovens | G158: x | H158: =Control!$D$26 -> 0 | I158: = | J158: =L158*CO2_C -> 0 | K158: = | L158: =IF(ISERROR(F158*H158),0,F158*H158) -> 0
B159: =B158 -> 2015 | D159: EAF | G159: x | H159: =Control!$D$27 -> 0 | I159: = | J159: =L159*CO2_C -> 0 | K159: = | L159: =IF(ISERROR(F159*H159),0,F159*H159) -> 0
B160: =B159 -> 2015 | D160: OHF | G160: x | H160: =Control!$D$28 -> 0 | I160: = | J160: =L160*CO2_C -> 0 | K160: = | L160: =IF(ISERROR(F160*H160),0,F160*H160) -> 0
D161: Total | I161: = | J161: =L161*CO2_C -> 0 | L161: =SUM(L157:L160) -> 0
B163: =B157+1 -> 2016 | D163: BOF with coke ovens | G163: x | H163: =Control!$D$25 -> 0 | I163: = | J163: =L163*CO2_C -> 0 | K163: = | L163: =IF(ISERROR(F163*H163),0,F163*H163) -> 0
B164: =B163 -> 2016 | D164: BOF without coke ovens | G164: x | H164: =Control!$D$26 -> 0 | I164: = | J164: =L164*CO2_C -> 0 | K164: = | L164: =IF(ISERROR(F164*H164),0,F164*H164) -> 0
B165: =B164 -> 2016 | D165: EAF | G165: x | H165: =Control!$D$27 -> 0 | I165: = | J165: =L165*CO2_C -> 0 | K165: = | L165: =IF(ISERROR(F165*H165),0,F165*H165) -> 0
B166: =B165 -> 2016 | D166: OHF | G166: x | H166: =Control!$D$28 -> 0 | I166: = | J166: =L166*CO2_C -> 0 | K166: = | L166: =IF(ISERROR(F166*H166),0,F166*H166) -> 0
D167: Total | I167: = | J167: =L167*CO2_C -> 0 | L167: =SUM(L163:L166) -> 0
B169: =B163+1 -> 2017 | D169: BOF with coke ovens | G169: x | H169: =Control!$D$25 -> 0 | I169: = | J169: =L169*CO2_C -> 0 | K169: = | L169: =IF(ISERROR(F169*H169),0,F169*H169) -> 0
B170: =B169 -> 2017 | D170: BOF without coke ovens | G170: x | H170: =Control!$D$26 -> 0 | I170: = | J170: =L170*CO2_C -> 0 | K170: = | L170: =IF(ISERROR(F170*H170),0,F170*H170) -> 0
B171: =B170 -> 2017 | D171: EAF | G171: x | H171: =Control!$D$27 -> 0 | I171: = | J171: =L171*CO2_C -> 0 | K171: = | L171: =IF(ISERROR(F171*H171),0,F171*H171) -> 0
B172: =B171 -> 2017 | D172: OHF | G172: x | H172: =Control!$D$28 -> 0 | I172: = | J172: =L172*CO2_C -> 0 | K172: = | L172: =IF(ISERROR(F172*H172),0,F172*H172) -> 0
D173: Total | I173: = | J173: =L173*CO2_C -> 0 | L173: =SUM(L169:L172) -> 0
B175: =B169+1 -> 2018 | D175: BOF with coke ovens | G175: x | H175: =Control!$D$25 -> 0 | I175: = | J175: =L175*CO2_C -> 0 | K175: = | L175: =IF(ISERROR(F175*H175),0,F175*H175) -> 0
B176: =B175 -> 2018 | D176: BOF without coke ovens | G176: x | H176: =Control!$D$26 -> 0 | I176: = | J176: =L176*CO2_C -> 0 | K176: = | L176: =IF(ISERROR(F176*H176),0,F176*H176) -> 0
B177: =B176 -> 2018 | D177: EAF | G177: x | H177: =Control!$D$27 -> 0 | I177: = | J177: =L177*CO2_C -> 0 | K177: = | L177: =IF(ISERROR(F177*H177),0,F177*H177) -> 0
B178: =B177 -> 2018 | D178: OHF | G178: x | H178: =Control!$D$28 -> 0 | I178: = | J178: =L178*CO2_C -> 0 | K178: = | L178: =IF(ISERROR(F178*H178),0,F178*H178) -> 0
D179: Total | I179: = | J179: =L179*CO2_C -> 0 | L179: =SUM(L175:L178) -> 0
B181: =B175+1 -> 2019 | D181: BOF with coke ovens | G181: x | H181: =Control!$D$25 -> 0 | I181: = | J181: =L181*CO2_C -> 0 | K181: = | L181: =IF(ISERROR(F181*H181),0,F181*H181) -> 0
B182: =B181 -> 2019 | D182: BOF without coke ovens | G182: x | H182: =Control!$D$26 -> 0 | I182: = | J182: =L182*CO2_C -> 0 | K182: = | L182: =IF(ISERROR(F182*H182),0,F182*H182) -> 0
B183: =B182 -> 2019 | D183: EAF | G183: x | H183: =Control!$D$27 -> 0 | I183: = | J183: =L183*CO2_C -> 0 | K183: = | L183: =IF(ISERROR(F183*H183),0,F183*H183) -> 0
B184: =B183 -> 2019 | D184: OHF | G184: x | H184: =Control!$D$28 -> 0 | I184: = | J184: =L184*CO2_C -> 0 | K184: = | L184: =IF(ISERROR(F184*H184),0,F184*H184) -> 0
D185: Total | I185: = | J185: =L185*CO2_C -> 0 | L185: =SUM(L181:L184) -> 0
B187: =B181+1 -> 2020 | D187: BOF with coke ovens | G187: x | H187: =Control!$D$25 -> 0 | I187: = | J187: =L187*CO2_C -> 0 | K187: = | L187: =IF(ISERROR(F187*H187),0,F187*H187) -> 0
B188: =B187 -> 2020 | D188: BOF without coke ovens | G188: x | H188: =Control!$D$26 -> 0 | I188: = | J188: =L188*CO2_C -> 0 | K188: = | L188: =IF(ISERROR(F188*H188),0,F188*H188) -> 0
B189: =B188 -> 2020 | D189: EAF | G189: x | H189: =Control!$D$27 -> 0 | I189: = | J189: =L189*CO2_C -> 0 | K189: = | L189: =IF(ISERROR(F189*H189),0,F189*H189) -> 0
B190: =B189 -> 2020 | D190: OHF | G190: x | H190: =Control!$D$28 -> 0 | I190: = | J190: =L190*CO2_C -> 0 | K190: = | L190: =IF(ISERROR(F190*H190),0,F190*H190) -> 0
D191: Total | I191: = | J191: =L191*CO2_C -> 0 | L191: =SUM(L187:L190) -> 0
B193: =B187+1 -> 2021 | D193: BOF with coke ovens | G193: x | H193: =Control!$D$25 -> 0 | I193: = | J193: =L193*CO2_C -> 0 | K193: = | L193: =IF(ISERROR(F193*H193),0,F193*H193) -> 0
B194: =B193 -> 2021 | D194: BOF without coke ovens | G194: x | H194: =Control!$D$26 -> 0 | I194: = | J194: =L194*CO2_C -> 0 | K194: = | L194: =IF(ISERROR(F194*H194),0,F194*H194) -> 0
B195: =B194 -> 2021 | D195: EAF | G195: x | H195: =Control!$D$27 -> 0 | I195: = | J195: =L195*CO2_C -> 0 | K195: = | L195: =IF(ISERROR(F195*H195),0,F195*H195) -> 0
B196: =B195 -> 2021 | D196: OHF | G196: x | H196: =Control!$D$28 -> 0 | I196: = | J196: =L196*CO2_C -> 0 | K196: = | L196: =IF(ISERROR(F196*H196),0,F196*H196) -> 0
D197: Total | I197: = | J197: =L197*CO2_C -> 0 | L197: =SUM(L193:L196) -> 0
B199: =B193+1 -> 2022 | D199: BOF with coke ovens | G199: x | H199: =Control!$D$25 -> 0 | I199: = | J199: =L199*CO2_C -> 0 | K199: = | L199: =IF(ISERROR(F199*H199),0,F199*H199) -> 0
B200: =B199 -> 2022 | D200: BOF without coke ovens | G200: x | H200: =Control!$D$26 -> 0 | I200: = | J200: =L200*CO2_C -> 0 | K200: = | L200: =IF(ISERROR(F200*H200),0,F200*H200) -> 0
B201: =B200 -> 2022 | D201: EAF | G201: x | H201: =Control!$D$27 -> 0 | I201: = | J201: =L201*CO2_C -> 0 | K201: = | L201: =IF(ISERROR(F201*H201),0,F201*H201) -> 0
B202: =B201 -> 2022 | D202: OHF | G202: x | H202: =Control!$D$28 -> 0 | I202: = | J202: =L202*CO2_C -> 0 | K202: = | L202: =IF(ISERROR(F202*H202),0,F202*H202) -> 0
D203: Total | I203: = | J203: =L203*CO2_C -> 0 | L203: =SUM(L199:L202) -> 0
B205: =B199+1 -> 2023 | D205: BOF with coke ovens | G205: x | H205: =Control!$D$25 -> 0 | I205: = | J205: =L205*CO2_C -> 0 | K205: = | L205: =IF(ISERROR(F205*H205),0,F205*H205) -> 0
B206: =B205 -> 2023 | D206: BOF without coke ovens | G206: x | H206: =Control!$D$26 -> 0 | I206: = | J206: =L206*CO2_C -> 0 | K206: = | L206: =IF(ISERROR(F206*H206),0,F206*H206) -> 0
B207: =B206 -> 2023 | D207: EAF | G207: x | H207: =Control!$D$27 -> 0 | I207: = | J207: =L207*CO2_C -> 0 | K207: = | L207: =IF(ISERROR(F207*H207),0,F207*H207) -> 0
B208: =B207 -> 2023 | D208: OHF | G208: x | H208: =Control!$D$28 -> 0 | I208: = | J208: =L208*CO2_C -> 0 | K208: = | L208: =IF(ISERROR(F208*H208),0,F208*H208) -> 0
D209: Total | I209: = | J209: =L209*CO2_C -> 0 | L209: =SUM(L205:L208) -> 0
B211: =B205+1 -> 2024 | D211: BOF with coke ovens | G211: x | H211: =Control!$D$25 -> 0 | I211: = | J211: =L211*CO2_C -> 0 | K211: = | L211: =IF(ISERROR(F211*H211),0,F211*H211) -> 0
B212: =B211 -> 2024 | D212: BOF without coke ovens | G212: x | H212: =Control!$D$26 -> 0 | I212: = | J212: =L212*CO2_C -> 0 | K212: = | L212: =IF(ISERROR(F212*H212),0,F212*H212) -> 0
B213: =B212 -> 2024 | D213: EAF | G213: x | H213: =Control!$D$27 -> 0 | I213: = | J213: =L213*CO2_C -> 0 | K213: = | L213: =IF(ISERROR(F213*H213),0,F213*H213) -> 0
B214: =B213 -> 2024 | D214: OHF | G214: x | H214: =Control!$D$28 -> 0 | I214: = | J214: =L214*CO2_C -> 0 | K214: = | L214: =IF(ISERROR(F214*H214),0,F214*H214) -> 0
D215: Total | I215: = | J215: =L215*CO2_C -> 0 | L215: =SUM(L211:L214) -> 0
B217: =B211+1 -> 2025 | D217: BOF with coke ovens | G217: x | H217: =Control!$D$25 -> 0 | I217: = | J217: =L217*CO2_C -> 0 | K217: = | L217: =IF(ISERROR(F217*H217),0,F217*H217) -> 0
B218: =B217 -> 2025 | D218: BOF without coke ovens | G218: x | H218: =Control!$D$26 -> 0 | I218: = | J218: =L218*CO2_C -> 0 | K218: = | L218: =IF(ISERROR(F218*H218),0,F218*H218) -> 0
B219: =B218 -> 2025 | D219: EAF | G219: x | H219: =Control!$D$27 -> 0 | I219: = | J219: =L219*CO2_C -> 0 | K219: = | L219: =IF(ISERROR(F219*H219),0,F219*H219) -> 0
B220: =B219 -> 2025 | D220: OHF | G220: x | H220: =Control!$D$28 -> 0 | I220: = | J220: =L220*CO2_C -> 0 | K220: = | L220: =IF(ISERROR(F220*H220),0,F220*H220) -> 0
D221: Total | I221: = | J221: =L221*CO2_C -> 0 | L221: =SUM(L217:L220) -> 0

Sheet Ammonia & Urea
B1: ="7. Ammonia Production and Urea Consumption in "&'List Data'!B3 -> 7. Ammonia Production and Urea Consumption in Select a State . . .
C2: =VLOOKUP(E2,'List Data'!A5:B56,2,FALSE) ->  | E2: =StateID -> XX | F2: Ammonia
E4: Production & Consumption | G4: Emission Factor | I4: Subtract emissions | K4: Emissions | M4: Emissions
E5: (Metric Tons) | G5: (mt CO2/mt activity) | I5: from Urea | K5: (MTCE) | M5: (MTCO2E)
B7: 1990 | C7: Ammonia Production | F7: x | G7: =Control!$B$30 -> 1.2 | H7: - ( | I7: =E8*G8 -> 0 | J7: ) = | K7: =M7*CO2_C -> 0 | L7: = | M7: =IF(E7>0,E7*G7-(I7),0) -> 0
B8: 2 | C8: Urea Consumption | F8: x | G8: =Control!$B$31 -> 0.73 | J8: = | K8: =M8*CO2_C -> 0 | L8: = | M8: =E8*G8 -> 0
B10: 1991 | C10: Ammonia Production | F10: x | G10: =Control!$B$30 -> 1.2 | H10: - ( | I10: =E11*G11 -> 0 | J10: ) = | K10: =M10*CO2_C -> 0 | L10: = | M10: =IF(E10>0,E10*G10-(I10),0) -> 0
B11: 3 | C11: Urea Consumption | G11: =Control!$B$31 -> 0.73 | J11: = | K11: =M11*CO2_C -> 0 | L11: = | M11: =E11*G11 -> 0
B13: 1992 | C13: Ammonia Production | F13: x | G13: =Control!$B$30 -> 1.2 | H13: - ( | I13: =E14*G14 -> 0 | J13: ) = | K13: =M13*CO2_C -> 0 | L13: = | M13: =IF(E13>0,E13*G13-(I13),0) -> 0
B14: 4 | C14: Urea Consumption | G14: =Control!$B$31 -> 0.73 | J14: = | K14: =M14*CO2_C -> 0 | L14: = | M14: =E14*G14 -> 0
B16: 1993 | C16: Ammonia Production | F16: x | G16: =Control!$B$30 -> 1.2 | H16: - ( | I16: =E17*G17 -> 0 | J16: ) = | K16: =M16*CO2_C -> 0 | L16: = | M16: =IF(E16>0,E16*G16-(I16),0) -> 0
B17: 5 | C17: Urea Consumption | G17: =Control!$B$31 -> 0.73 | J17: = | K17: =M17*CO2_C -> 0 | L17: = | M17: =E17*G17 -> 0
B19: 1994 | C19: Ammonia Production | F19: x | G19: =Control!$B$30 -> 1.2 | H19: - ( | I19: =E20*G20 -> 0 | J19: ) = | K19: =M19*CO2_C -> 0 | L19: = | M19: =IF(E19>0,E19*G19-(I19),0) -> 0
B20: 6 | C20: Urea Consumption | G20: =Control!$B$31 -> 0.73 | J20: = | K20: =M20*CO2_C -> 0 | L20: = | M20: =E20*G20 -> 0
B22: 1995 | C22: Ammonia Production | F22: x | G22: =Control!$B$30 -> 1.2 | H22: - ( | I22: =E23*G23 -> 0 | J22: ) = | K22: =M22*CO2_C -> 0 | L22: = | M22: =IF(E22>0,E22*G22-(I22),0) -> 0
B23: 7 | C23: Urea Consumption | G23: =Control!$B$31 -> 0.73 | J23: = | K23: =M23*CO2_C -> 0 | L23: = | M23: =E23*G23 -> 0
B25: 1996 | C25: Ammonia Production | F25: x | G25: =Control!$B$30 -> 1.2 | H25: - ( | I25: =E26*G26 -> 0 | J25: ) = | K25: =M25*CO2_C -> 0 | L25: = | M25: =IF(E25>0,E25*G25-(I25),0) -> 0
B26: 8 | C26: Urea Consumption | G26: =Control!$B$31 -> 0.73 | J26: = | K26: =M26*CO2_C -> 0 | L26: = | M26: =E26*G26 -> 0
B28: 1997 | C28: Ammonia Production | F28: x | G28: =Control!$B$30 -> 1.2 | H28: - ( | I28: =E29*G29 -> 0 | J28: ) = | K28: =M28*CO2_C -> 0 | L28: = | M28: =IF(E28>0,E28*G28-(I28),0) -> 0
B29: 9 | C29: Urea Consumption | G29: =Control!$B$31 -> 0.73 | J29: = | K29: =M29*CO2_C -> 0 | L29: = | M29: =E29*G29 -> 0
B31: 1998 | C31: Ammonia Production | F31: x | G31: =Control!$B$30 -> 1.2 | H31: - ( | I31: =E32*G32 -> 0 | J31: ) = | K31: =M31*CO2_C -> 0 | L31: = | M31: =IF(E31>0,E31*G31-(I31),0) -> 0
B32: 10 | C32: Urea Consumption | G32: =Control!$B$31 -> 0.73 | J32: = | K32: =M32*CO2_C -> 0 | L32: = | M32: =E32*G32 -> 0
B34: 1999 | C34: Ammonia Production | F34: x | G34: =Control!$B$30 -> 1.2 | H34: - ( | I34: =E35*G35 -> 0 | J34: ) = | K34: =M34*CO2_C -> 0 | L34: = | M34: =IF(E34>0,E34*G34-(I34),0) -> 0
B35: 11 | C35: Urea Consumption | G35: =Control!$B$31 -> 0.73 | J35: = | K35: =M35*CO2_C -> 0 | L35: = | M35: =E35*G35 -> 0
B37: 2000 | C37: Ammonia Production | F37: x | G37: =Control!$B$30 -> 1.2 | H37: - ( | I37: =E38*G38 -> 0 | J37: ) = | K37: =M37*CO2_C -> 0 | L37: = | M37: =IF(E37>0,E37*G37-(I37),0) -> 0
B38: 12 | C38: Urea Consumption | G38: =Control!$B$31 -> 0.73 | J38: = | K38: =M38*CO2_C -> 0 | L38: = | M38: =E38*G38 -> 0
B40: 2001 | C40: Ammonia Production | F40: x | G40: =Control!$B$30 -> 1.2 | H40: - ( | I40: =E41*G41 -> 0 | J40: ) = | K40: =M40*CO2_C -> 0 | L40: = | M40: =IF(E40>0,E40*G40-(I40),0) -> 0
B41: 13 | C41: Urea Consumption | G41: =Control!$B$31 -> 0.73 | J41: = | K41: =M41*CO2_C -> 0 | L41: = | M41: =E41*G41 -> 0
B43: 2002 | C43: Ammonia Production | F43: x | G43: =Control!$B$30 -> 1.2 | H43: - ( | I43: =E44*G44 -> 0 | J43: ) = | K43: =M43*CO2_C -> 0 | L43: = | M43: =IF(E43>0,E43*G43-(I43),0) -> 0
B44: 14 | C44: Urea Consumption | G44: =Control!$B$31 -> 0.73 | J44: = | K44: =M44*CO2_C -> 0 | L44: = | M44: =E44*G44 -> 0
B46: 2003 | C46: Ammonia Production | F46: x | G46: =Control!$B$30 -> 1.2 | H46: - ( | I46: =E47*G47 -> 0 | J46: ) = | K46: =M46*CO2_C -> 0 | L46: = | M46: =IF(E46>0,E46*G46-(I46),0) -> 0
B47: 15 | C47: Urea Consumption | G47: =Control!$B$31 -> 0.73 | J47: = | K47: =M47*CO2_C -> 0 | L47: = | M47: =E47*G47 -> 0
B49: 2004 | C49: Ammonia Production | F49: x | G49: =Control!$B$30 -> 1.2 | H49: - ( | I49: =E50*G50 -> 0 | J49: ) = | K49: =M49*CO2_C -> 0 | L49: = | M49: =IF(E49>0,E49*G49-(I49),0) -> 0
B50: 16 | C50: Urea Consumption | G50: =Control!$B$31 -> 0.73 | J50: = | K50: =M50*CO2_C -> 0 | L50: = | M50: =E50*G50 -> 0
B52: 2005 | C52: Ammonia Production | F52: x | G52: =Control!$B$30 -> 1.2 | H52: - ( | I52: =E53*G53 -> 0 | J52: ) = | K52: =M52*CO2_C -> 0 | L52: = | M52: =IF(E52>0,E52*G52-(I52),0) -> 0
B53: 17 | C53: Urea Consumption | G53: =Control!$B$31 -> 0.73 | J53: = | K53: =M53*CO2_C -> 0 | L53: = | M53: =E53*G53 -> 0
B55: 2006 | C55: Ammonia Production | F55: x | G55: =Control!$B$30 -> 1.2 | H55: - ( | I55: =E56*G56 -> 0 | J55: ) = | K55: =M55*CO2_C -> 0 | L55: = | M55: =IF(E55>0,E55*G55-(I55),0) -> 0
B56: 18 | C56: Urea Consumption | G56: =Control!$B$31 -> 0.73 | J56: = | K56: =M56*CO2_C -> 0 | L56: = | M56: =E56*G56 -> 0
B58: 2007 | C58: Ammonia Production | F58: x | G58: =Control!$B$30 -> 1.2 | H58: - ( | I58: =E59*G59 -> 0 | J58: ) = | K58: =M58*CO2_C -> 0 | L58: = | M58: =IF(E58>0,E58*G58-(I58),0) -> 0
B59: 19 | C59: Urea Consumption | G59: =Control!$B$31 -> 0.73 | J59: = | K59: =M59*CO2_C -> 0 | L59: = | M59: =E59*G59 -> 0
B61: 2008 | C61: Ammonia Production | F61: x | G61: =Control!$B$30 -> 1.2 | H61: - ( | I61: =E62*G62 -> 0 | J61: ) = | K61: =M61*CO2_C -> 0 | L61: = | M61: =IF(E61>0,E61*G61-(I61),0) -> 0
B62: 20 | C62: Urea Consumption | G62: =Control!$B$31 -> 0.73 | J62: = | K62: =M62*CO2_C -> 0 | L62: = | M62: =E62*G62 -> 0
B64: 2009 | C64: Ammonia Production | F64: x | G64: =Control!$B$30 -> 1.2 | H64: - ( | I64: =E65*G65 -> 0 | J64: ) = | K64: =M64*CO2_C -> 0 | L64: = | M64: =IF(E64>0,E64*G64-(I64),0) -> 0
B65: 21 | C65: Urea Consumption | G65: =Control!$B$31 -> 0.73 | J65: = | K65: =M65*CO2_C -> 0 | L65: = | M65: =E65*G65 -> 0
B67: 2010 | C67: Ammonia Production | F67: x | G67: =Control!$B$30 -> 1.2 | H67: - ( | I67: =E68*G68 -> 0 | J67: ) = | K67: =M67*CO2_C -> 0 | L67: = | M67: =IF(E67>0,E67*G67-(I67),0) -> 0
B68: 22 | C68: Urea Consumption | G68: =Control!$B$31 -> 0.73 | J68: = | K68: =M68*CO2_C -> 0 | L68: = | M68: =E68*G68 -> 0
B70: 2011 | C70: Ammonia Production | F70: x | G70: =Control!$B$30 -> 1.2 | H70: - ( | I70: =E71*G71 -> 0 | J70: ) = | K70: =M70*CO2_C -> 0 | L70: = | M70: =IF(E70>0,E70*G70-(I70),0) -> 0
B71: 23 | C71: Urea Consumption | G71: =Control!$B$31 -> 0.73 | J71: = | K71: =M71*CO2_C -> 0 | L71: = | M71: =E71*G71 -> 0
B73: 2012 | C73: Ammonia Production | F73: x | G73: =Control!$B$30 -> 1.2 | H73: - ( | I73: =E74*G74 -> 0 | J73: ) = | K73: =M73*CO2_C -> 0 | L73: = | M73: =IF(E73>0,E73*G73-(I73),0) -> 0
B74: 24 | C74: Urea Consumption | G74: =Control!$B$31 -> 0.73 | J74: = | K74: =M74*CO2_C -> 0 | L74: = | M74: =E74*G74 -> 0
B76: 2013 | C76: Ammonia Production | F76: x | G76: =Control!$B$30 -> 1.2 | H76: - ( | I76: =E77*G77 -> 0 | J76: ) = | K76: =M76*CO2_C -> 0 | L76: = | M76: =IF(E76>0,E76*G76-(I76),0) -> 0
B77: 25 | C77: Urea Consumption | G77: =Control!$B$31 -> 0.73 | J77: = | K77: =M77*CO2_C -> 0 | L77: = | M77: =E77*G77 -> 0
B79: 2014 | C79: Ammonia Production | F79: x | G79: =Control!$B$30 -> 1.2 | H79: - ( | I79: =E80*G80 -> 0 | J79: ) = | K79: =M79*CO2_C -> 0 | L79: = | M79: =IF(E79>0,E79*G79-(I79),0) -> 0
B80: 26 | C80: Urea Consumption | G80: =Control!$B$31 -> 0.73 | J80: = | K80: =M80*CO2_C -> 0 | L80: = | M80: =E80*G80 -> 0
B82: 2015 | C82: Ammonia Production | F82: x | G82: =Control!$B$30 -> 1.2 | H82: - ( | I82: =E83*G83 -> 0 | J82: ) = | K82: =M82*CO2_C -> 0 | L82: = | M82: =IF(E82>0,E82*G82-(I82),0) -> 0
B83: 27 | C83: Urea Consumption | G83: =Control!$B$31 -> 0.73 | J83: = | K83: =M83*CO2_C -> 0 | L83: = | M83: =E83*G83 -> 0
B85: 2016 | C85: Ammonia Production | F85: x | G85: =Control!$B$30 -> 1.2 | H85: - ( | I85: =E86*G86 -> 0 | J85: ) = | K85: =M85*CO2_C -> 0 | L85: = | M85: =IF(E85>0,E85*G85-(I85),0) -> 0
B86: 28 | C86: Urea Consumption | G86: =Control!$B$31 -> 0.73 | J86: = | K86: =M86*CO2_C -> 0 | L86: = | M86: =E86*G86 -> 0
B88: 2017 | C88: Ammonia Production | F88: x | G88: =Control!$B$30 -> 1.2 | H88: - ( | I88: =E89*G89 -> 0 | J88: ) = | K88: =M88*CO2_C -> 0 | L88: = | M88: =IF(E88>0,E88*G88-(I88),0) -> 0
B89: 29 | C89: Urea Consumption | G89: =Control!$B$31 -> 0.73 | J89: = | K89: =M89*CO2_C -> 0 | L89: = | M89: =E89*G89 -> 0
B91: 2018 | C91: Ammonia Production | F91: x | G91: =Control!$B$30 -> 1.2 | H91: - ( | I91: =E92*G92 -> 0 | J91: ) = | K91: =M91*CO2_C -> 0 | L91: = | M91: =IF(E91>0,E91*G91-(I91),0) -> 0
B92: 30 | C92: Urea Consumption | G92: =Control!$B$31 -> 0.73 | J92: = | K92: =M92*CO2_C -> 0 | L92: = | M92: =E92*G92 -> 0
B94: 2019 | C94: Ammonia Production | F94: x | G94: =Control!$B$30 -> 1.2 | H94: - ( | I94: =E95*G95 -> 0 | J94: ) = | K94: =M94*CO2_C -> 0 | L94: = | M94: =IF(E94>0,E94*G94-(I94),0) -> 0
B95: 31 | C95: Urea Consumption | G95: =Control!$B$31 -> 0.73 | J95: = | K95: =M95*CO2_C -> 0 | L95: = | M95: =E95*G95 -> 0
B97: 2020 | C97: Ammonia Production | F97: x | G97: =Control!$B$30 -> 1.2 | H97: - ( | I97: =E98*G98 -> 0 | J97: ) = | K97: =M97*CO2_C -> 0 | L97: = | M97: =IF(E97>0,E97*G97-(I97),0) -> 0
B98: 32 | C98: Urea Consumption | G98: =Control!$B$31 -> 0.73 | J98: = | K98: =M98*CO2_C -> 0 | L98: = | M98: =E98*G98 -> 0
B100: 2021 | C100: Ammonia Production | F100: x | G100: =Control!$B$30 -> 1.2 | H100: - ( | I100: =E101*G101 -> 0 | J100: ) = | K100: =M100*CO2_C -> 0 | L100: = | M100: =IF(E100>0,E100*G100-(I100),0) -> 0
B101: 33 | C101: Urea Consumption | G101: =Control!$B$31 -> 0.73 | J101: = | K101: =M101*CO2_C -> 0 | L101: = | M101: =E101*G101 -> 0
B103: 2022 | C103: Ammonia Production | F103: x | G103: =Control!$B$30 -> 1.2 | H103: - ( | I103: =E104*G104 -> 0 | J103: ) = | K103: =M103*CO2_C -> 0 | L103: = | M103: =IF(E103>0,E103*G103-(I103),0) -> 0
B104: 34 | C104: Urea Consumption | G104: =Control!$B$31 -> 0.73 | J104: = | K104: =M104*CO2_C -> 0 | L104: = | M104: =E104*G104 -> 0
B106: 2023 | C106: Ammonia Production | F106: x | G106: =Control!$B$30 -> 1.2 | H106: - ( | I106: =E107*G107 -> 0 | J106: ) = | K106: =M106*CO2_C -> 0 | L106: = | M106: =IF(E106>0,E106*G106-(I106),0) -> 0
B107: 35 | C107: Urea Consumption | G107: =Control!$B$31 -> 0.73 | J107: = | K107: =M107*CO2_C -> 0 | L107: = | M107: =E107*G107 -> 0
B109: 2024 | C109: Ammonia Production | F109: x | G109: =Control!$B$30 -> 1.2 | H109: - ( | I109: =E110*G110 -> 0 | J109: ) = | K109: =M109*CO2_C -> 0 | L109: = | M109: =IF(E109>0,E109*G109-(I109),0) -> 0
B110: 36 | C110: Urea Consumption | G110: =Control!$B$31 -> 0.73 | J110: = | K110: =M110*CO2_C -> 0 | L110: = | M110: =E110*G110 -> 0
B112: 2025 | C112: Ammonia Production | F112: x | G112: =Control!$B$30 -> 1.2 | H112: - ( | I112: =E113*G113 -> 0 | J112: ) = | K112: =M112*CO2_C -> 0 | L112: = | M112: =IF(E112>0,E112*G112-(I112),0) -> 0
B113: 37 | C113: Urea Consumption | G113: =Control!$B$31 -> 0.73 | J113: = | K113: =M113*CO2_C -> 0 | L113: = | M113: =E113*G113 -> 0

Sheet Aluminum
B1: ="11. "&'List Data'!B3&" Aluminum Production" -> 11. Select a State . . . Aluminum Production
D2: ='List Data'!$A$3 -> XX | E2: Aluminum | F2: =" " ->  | H2: =" " ->  | R2: =" " -> 
Y3: =50% -> 0.5
E4: Production | G4: PFC Emission Factor | I4: Søderberg Facilities | K4: Søderberg CO2 Emission Factor | M4: Prebake Facilities | O4: Prebake CO2 Emission Factor | Q4: PFC Emissions | S4: Carbon Emissions | U4: Total Emissions | Y4: =50% -> 0.5
E5: (Metric Tons) | G5: (t CE/t production) | I5: % | K5: (t CE/t production) | M5: % | O5: (t CE/t production) | Q5: (MTCE) | S5: (MTCE) | U5: (MTCO2E)
Y6: =50% -> 0.5
B7: 1990 | D7: Perfluorocarbons | F7: x ( | G7: =IF(ISNUMBER(INDIRECT($F$2&LEFT(D7,2)&"Factor")),INDIRECT($F$2&LEFT(D7,2)&"Factor"),VLOOKUP(B7,AlFactorBlock,4,FALSE)) -> 0.4254545455 | H7: + | J7: x | K7: =IF(Control!$D$34>0,Control!$D$34,Control!$B$34) -> 0.4636363636 | L7: + | M7: =1-I7 -> 1 | N7: x | O7: =IF(Control!$D$33>0,Control!$D$33,Control!$B$33) -> 0.4363636364 | P7: ) = | Q7: =IF(ISERROR(E7*G7),0,E7*G7) -> 0 | R7: + | S7: =IF(ISERROR(E7*((I7*K7)+(M7*O7))),0,E7*((I7*K7)+(M7*O7))) -> 0 | T7: = | U7: =(Q7+S7)/CO2_C -> 0 | Z7: =50% -> 0.5
B9: =B7+1 -> 1991 | D9: Perfluorocarbons | F9: x ( | G9: =IF(ISNUMBER(INDIRECT($F$2&LEFT(D9,2)&"Factor")),INDIRECT($F$2&LEFT(D9,2)&"Factor"),VLOOKUP(B9,AlFactorBlock,4,FALSE)) -> 0.4254545455 | H9: + | J9: x | K9: =IF(Control!$D$34>0,Control!$D$34,Control!$B$34) -> 0.4636363636 | L9: + | M9: =1-I9 -> 1 | N9: x | O9: =IF(Control!$D$33>0,Control!$D$33,Control!$B$33) -> 0.4363636364 | P9: ) = | Q9: =IF(ISERROR(E9*G9),0,E9*G9) -> 0 | R9: + | S9: =IF(ISERROR(E9*((I9*K9)+(M9*O9))),0,E9*((I9*K9)+(M9*O9))) -> 0 | T9: = | U9: =(Q9+S9)/CO2_C -> 0
Z10: =50% -> 0.5
B11: =B9+1 -> 1992 | D11: Perfluorocarbons | F11: x ( | G11: =IF(ISNUMBER(INDIRECT($F$2&LEFT(D11,2)&"Factor")),INDIRECT($F$2&LEFT(D11,2)&"Factor"),VLOOKUP(B11,AlFactorBlock,4,FALSE)) -> 0.4254545455 | H11: + | J11: x | K11: =IF(Control!$D$34>0,Control!$D$34,Control!$B$34) -> 0.4636363636 | L11: + | M11: =1-I11 -> 1 | N11: x | O11: =IF(Control!$D$33>0,Control!$D$33,Control!$B$33) -> 0.4363636364 | P11: ) = | Q11: =IF(ISERROR(E11*G11),0,E11*G11) -> 0 | R11: + | S11: =IF(ISERROR(E11*((I11*K11)+(M11*O11))),0,E11*((I11*K11)+(M11*O11))) -> 0 | T11: = | U11: =(Q11+S11)/CO2_C -> 0
B13: =B11+1 -> 1993 | D13: Perfluorocarbons | F13: x ( | G13: =IF(ISNUMBER(INDIRECT($F$2&LEFT(D13,2)&"Factor")),INDIRECT($F$2&LEFT(D13,2)&"Factor"),VLOOKUP(B13,AlFactorBlock,4,FALSE)) -> 0.4254545455 | H13: + | J13: x | K13: =IF(Control!$D$34>0,Control!$D$34,Control!$B$34) -> 0.4636363636 | L13: + | M13: =1-I13 -> 1 | N13: x | O13: =IF(Control!$D$33>0,Control!$D$33,Control!$B$33) -> 0.4363636364 | P13: ) = | Q13: =IF(ISERROR(E13*G13),0,E13*G13) -> 0 | R13: + | S13: =IF(ISERROR(E13*((I13*K13)+(M13*O13))),0,E13*((I13*K13)+(M13*O13))) -> 0 | T13: = | U13: =(Q13+S13)/CO2_C -> 0
B15: =B13+1 -> 1994 | D15: Perfluorocarbons | F15: x ( | G15: =IF(ISNUMBER(INDIRECT($F$2&LEFT(D15,2)&"Factor")),INDIRECT($F$2&LEFT(D15,2)&"Factor"),VLOOKUP(B15,AlFactorBlock,4,FALSE)) -> 0.4254545455 | H15: + | J15: x | K15: =IF(Control!$D$34>0,Control!$D$34,Control!$B$34) -> 0.4636363636 | L15: + | M15: =1-I15 -> 1 | N15: x | O15: =IF(Control!$D$33>0,Control!$D$33,Control!$B$33) -> 0.4363636364 | P15: ) = | Q15: =IF(ISERROR(E15*G15),0,E15*G15) -> 0 | R15: + | S15: =IF(ISERROR(E15*((I15*K15)+(M15*O15))),0,E15*((I15*K15)+(M15*O15))) -> 0 | T15: = | U15: =(Q15+S15)/CO2_C -> 0
B17: =B15+1 -> 1995 | D17: Perfluorocarbons | F17: x ( | G17: =IF(ISNUMBER(INDIRECT($F$2&LEFT(D17,2)&"Factor")),INDIRECT($F$2&LEFT(D17,2)&"Factor"),VLOOKUP(B17,AlFactorBlock,4,FALSE)) -> 0.4254545455 | H17: + | J17: x | K17: =IF(Control!$D$34>0,Control!$D$34,Control!$B$34) -> 0.4636363636 | L17: + | M17: =1-I17 -> 1 | N17: x | O17: =IF(Control!$D$33>0,Control!$D$33,Control!$B$33) -> 0.4363636364 | P17: ) = | Q17: =IF(ISERROR(E17*G17),0,E17*G17) -> 0 | R17: + | S17: =IF(ISERROR(E17*((I17*K17)+(M17*O17))),0,E17*((I17*K17)+(M17*O17))) -> 0 | T17: = | U17: =(Q17+S17)/CO2_C -> 0
B19: =B17+1 -> 1996 | D19: Perfluorocarbons | F19: x ( | G19: =IF(ISNUMBER(INDIRECT($F$2&LEFT(D19,2)&"Factor")),INDIRECT($F$2&LEFT(D19,2)&"Factor"),VLOOKUP(B19,AlFactorBlock,4,FALSE)) -> 0.4254545455 | H19: + | J19: x | K19: =IF(Control!$D$34>0,Control!$D$34,Control!$B$34) -> 0.4636363636 | L19: + | M19: =1-I19 -> 1 | N19: x | O19: =IF(Control!$D$33>0,Control!$D$33,Control!$B$33) -> 0.4363636364 | P19: ) = | Q19: =IF(ISERROR(E19*G19),0,E19*G19) -> 0 | R19: + | S19: =IF(ISERROR(E19*((I19*K19)+(M19*O19))),0,E19*((I19*K19)+(M19*O19))) -> 0 | T19: = | U19: =(Q19+S19)/CO2_C -> 0
B21: =B19+1 -> 1997 | D21: Perfluorocarbons | F21: x ( | G21: =IF(ISNUMBER(INDIRECT($F$2&LEFT(D21,2)&"Factor")),INDIRECT($F$2&LEFT(D21,2)&"Factor"),VLOOKUP(B21,AlFactorBlock,4,FALSE)) -> 0.4254545455 | H21: + | J21: x | K21: =IF(Control!$D$34>0,Control!$D$34,Control!$B$34) -> 0.4636363636 | L21: + | M21: =1-I21 -> 1 | N21: x | O21: =IF(Control!$D$33>0,Control!$D$33,Control!$B$33) -> 0.4363636364 | P21: ) = | Q21: =IF(ISERROR(E21*G21),0,E21*G21) -> 0 | R21: + | S21: =IF(ISERROR(E21*((I21*K21)+(M21*O21))),0,E21*((I21*K21)+(M21*O21))) -> 0 | T21: = | U21: =(Q21+S21)/CO2_C -> 0
AB22: =50% -> 0.5
B23: =B21+1 -> 1998 | D23: Perfluorocarbons | F23: x ( | G23: =IF(ISNUMBER(INDIRECT($F$2&LEFT(D23,2)&"Factor")),INDIRECT($F$2&LEFT(D23,2)&"Factor"),VLOOKUP(B23,AlFactorBlock,4,FALSE)) -> 0.4254545455 | H23: + | J23: x | K23: =IF(Control!$D$34>0,Control!$D$34,Control!$B$34) -> 0.4636363636 | L23: + | M23: =1-I23 -> 1 | N23: x | O23: =IF(Control!$D$33>0,Control!$D$33,Control!$B$33) -> 0.4363636364 | P23: ) = | Q23: =IF(ISERROR(E23*G23),0,E23*G23) -> 0 | R23: + | S23: =IF(ISERROR(E23*((I23*K23)+(M23*O23))),0,E23*((I23*K23)+(M23*O23))) -> 0 | T23: = | U23: =(Q23+S23)/CO2_C -> 0
B25: =B23+1 -> 1999 | D25: Perfluorocarbons | F25: x ( | G25: =IF(ISNUMBER(INDIRECT($F$2&LEFT(D25,2)&"Factor")),INDIRECT($F$2&LEFT(D25,2)&"Factor"),VLOOKUP(B25,AlFactorBlock,4,FALSE)) -> 0.4254545455 | H25: + | J25: x | K25: =IF(Control!$D$34>0,Control!$D$34,Control!$B$34) -> 0.4636363636 | L25: + | M25: =1-I25 -> 1 | N25: x | O25: =IF(Control!$D$33>0,Control!$D$33,Control!$B$33) -> 0.4363636364 | P25: ) = | Q25: =IF(ISERROR(E25*G25),0,E25*G25) -> 0 | R25: + | S25: =IF(ISERROR(E25*((I25*K25)+(M25*O25))),0,E25*((I25*K25)+(M25*O25))) -> 0 | T25: = | U25: =(Q25+S25)/CO2_C -> 0
B27: =B25+1 -> 2000 | D27: Perfluorocarbons | F27: x ( | G27: =IF(ISNUMBER(INDIRECT($F$2&LEFT(D27,2)&"Factor")),INDIRECT($F$2&LEFT(D27,2)&"Factor"),VLOOKUP(B27,AlFactorBlock,4,FALSE)) -> 0.4254545455 | H27: + | J27: x | K27: =IF(Control!$D$34>0,Control!$D$34,Control!$B$34) -> 0.4636363636 | L27: + | M27: =1-I27 -> 1 | N27: x | O27: =IF(Control!$D$33>0,Control!$D$33,Control!$B$33) -> 0.4363636364 | P27: ) = | Q27: =IF(ISERROR(E27*G27),0,E27*G27) -> 0 | R27: + | S27: =IF(ISERROR(E27*((I27*K27)+(M27*O27))),0,E27*((I27*K27)+(M27*O27))) -> 0 | T27: = | U27: =(Q27+S27)/CO2_C -> 0
B29: =B27+1 -> 2001 | D29: Perfluorocarbons | F29: x ( | G29: =IF(ISNUMBER(INDIRECT($F$2&LEFT(D29,2)&"Factor")),INDIRECT($F$2&LEFT(D29,2)&"Factor"),VLOOKUP(B29,AlFactorBlock,4,FALSE)) -> 0.4254545455 | H29: + | J29: x | K29: =IF(Control!$D$34>0,Control!$D$34,Control!$B$34) -> 0.4636363636 | L29: + | M29: =1-I29 -> 1 | N29: x | O29: =IF(Control!$D$33>0,Control!$D$33,Control!$B$33) -> 0.4363636364 | P29: ) = | Q29: =IF(ISERROR(E29*G29),0,E29*G29) -> 0 | R29: + | S29: =IF(ISERROR(E29*((I29*K29)+(M29*O29))),0,E29*((I29*K29)+(M29*O29))) -> 0 | T29: = | U29: =(Q29+S29)/CO2_C -> 0
B31: =B29+1 -> 2002 | D31: Perfluorocarbons | F31: x ( | G31: =IF(ISNUMBER(INDIRECT($F$2&LEFT(D31,2)&"Factor")),INDIRECT($F$2&LEFT(D31,2)&"Factor"),VLOOKUP(B31,AlFactorBlock,4,FALSE)) -> 0.4254545455 | H31: + | J31: x | K31: =IF(Control!$D$34>0,Control!$D$34,Control!$B$34) -> 0.4636363636 | L31: + | M31: =1-I31 -> 1 | N31: x | O31: =IF(Control!$D$33>0,Control!$D$33,Control!$B$33) -> 0.4363636364 | P31: ) = | Q31: =IF(ISERROR(E31*G31),0,E31*G31) -> 0 | R31: + | S31: =IF(ISERROR(E31*((I31*K31)+(M31*O31))),0,E31*((I31*K31)+(M31*O31))) -> 0 | T31: = | U31: =(Q31+S31)/CO2_C -> 0
B33: =B31+1 -> 2003 | D33: Perfluorocarbons | F33: x ( | G33: =IF(ISNUMBER(INDIRECT($F$2&LEFT(D33,2)&"Factor")),INDIRECT($F$2&LEFT(D33,2)&"Factor"),VLOOKUP(B33,AlFactorBlock,4,FALSE)) -> 0.4254545455 | H33: + | J33: x | K33: =IF(Control!$D$34>0,Control!$D$34,Control!$B$34) -> 0.4636363636 | L33: + | M33: =1-I33 -> 1 | N33: x | O33: =IF(Control!$D$33>0,Control!$D$33,Control!$B$33) -> 0.4363636364 | P33: ) = | Q33: =IF(ISERROR(E33*G33),0,E33*G33) -> 0 | R33: + | S33: =IF(ISERROR(E33*((I33*K33)+(M33*O33))),0,E33*((I33*K33)+(M33*O33))) -> 0 | T33: = | U33: =(Q33+S33)/CO2_C -> 0
B35: =B33+1 -> 2004 | D35: Perfluorocarbons | F35: x ( | G35: =IF(ISNUMBER(INDIRECT($F$2&LEFT(D35,2)&"Factor")),INDIRECT($F$2&LEFT(D35,2)&"Factor"),VLOOKUP(B35,AlFactorBlock,4,FALSE)) -> 0.4254545455 | H35: + | J35: x | K35: =IF(Control!$D$34>0,Control!$D$34,Control!$B$34) -> 0.4636363636 | L35: + | M35: =1-I35 -> 1 | N35: x | O35: =IF(Control!$D$33>0,Control!$D$33,Control!$B$33) -> 0.4363636364 | P35: ) = | Q35: =IF(ISERROR(E35*G35),0,E35*G35) -> 0 | R35: + | S35: =IF(ISERROR(E35*((I35*K35)+(M35*O35))),0,E35*((I35*K35)+(M35*O35))) -> 0 | T35: = | U35: =(Q35+S35)/CO2_C -> 0
B37: =B35+1 -> 2005 | D37: Perfluorocarbons | F37: x ( | G37: =IF(ISNUMBER(INDIRECT($F$2&LEFT(D37,2)&"Factor")),INDIRECT($F$2&LEFT(D37,2)&"Factor"),VLOOKUP(B37,AlFactorBlock,4,FALSE)) -> 0.4316046873 | H37: + | J37: x | K37: =IF(Control!$D$34>0,Control!$D$34,Control!$B$34) -> 0.4636363636 | L37: + | M37: =1-I37 -> 1 | N37: x | O37: =IF(Control!$D$33>0,Control!$D$33,Control!$B$33) -> 0.4363636364 | P37: ) = | Q37: =IF(ISERROR(E37*G37),0,E37*G37) -> 0 | R37: + | S37: =IF(ISERROR(E37*((I37*K37)+(M37*O37))),0,E37*((I37*K37)+(M37*O37))) -> 0 | T37: = | U37: =(Q37+S37)/CO2_C -> 0
B39: =B37+1 -> 2006 | D39: Perfluorocarbons | F39: x ( | G39: =IF(ISNUMBER(INDIRECT($F$2&LEFT(D39,2)&"Factor")),INDIRECT($F$2&LEFT(D39,2)&"Factor"),VLOOKUP(B39,AlFactorBlock,4,FALSE)) -> 0.4688315364 | H39: + | J39: x | K39: =IF(Control!$D$34>0,Control!$D$34,Control!$B$34) -> 0.4636363636 | L39: + | M39: =1-I39 -> 1 | N39: x | O39: =IF(Control!$D$33>0,Control!$D$33,Control!$B$33) -> 0.4363636364 | P39: ) = | Q39: =IF(ISERROR(E39*G39),0,E39*G39) -> 0 | R39: + | S39: =IF(ISERROR(E39*((I39*K39)+(M39*O39))),0,E39*((I39*K39)+(M39*O39))) -> 0 | T39: = | U39: =(Q39+S39)/CO2_C -> 0
B41: =B39+1 -> 2007 | D41: Perfluorocarbons | F41: x ( | G41: =IF(ISNUMBER(INDIRECT($F$2&LEFT(D41,2)&"Factor")),INDIRECT($F$2&LEFT(D41,2)&"Factor"),VLOOKUP(B41,AlFactorBlock,4,FALSE)) -> 0.4192682964 | H41: + | J41: x | K41: =IF(Control!$D$34>0,Control!$D$34,Control!$B$34) -> 0.4636363636 | L41: + | M41: =1-I41 -> 1 | N41: x | O41: =IF(Control!$D$33>0,Control!$D$33,Control!$B$33) -> 0.4363636364 | P41: ) = | Q41: =IF(ISERROR(E41*G41),0,E41*G41) -> 0 | R41: + | S41: =IF(ISERROR(E41*((I41*K41)+(M41*O41))),0,E41*((I41*K41)+(M41*O41))) -> 0 | T41: = | U41: =(Q41+S41)/CO2_C -> 0
B43: =B41+1 -> 2008 | D43: Perfluorocarbons | F43: x ( | G43: =IF(ISNUMBER(INDIRECT($F$2&LEFT(D43,2)&"Factor")),INDIRECT($F$2&LEFT(D43,2)&"Factor"),VLOOKUP(B43,AlFactorBlock,4,FALSE)) -> 0.4028635173 | H43: + | J43: x | K43: =IF(Control!$D$34>0,Control!$D$34,Control!$B$34) -> 0.4636363636 | L43: + | M43: =1-I43 -> 1 | N43: x | O43: =IF(Control!$D$33>0,Control!$D$33,Control!$B$33) -> 0.4363636364 | P43: ) = | Q43: =IF(ISERROR(E43*G43),0,E43*G43) -> 0 | R43: + | S43: =IF(ISERROR(E43*((I43*K43)+(M43*O43))),0,E43*((I43*K43)+(M43*O43))) -> 0 | T43: = | U43: =(Q43+S43)/CO2_C -> 0
B45: =B43+1 -> 2009 | D45: Perfluorocarbons | F45: x ( | G45: =IF(ISNUMBER(INDIRECT($F$2&LEFT(D45,2)&"Factor")),INDIRECT($F$2&LEFT(D45,2)&"Factor"),VLOOKUP(B45,AlFactorBlock,4,FALSE)) -> 0.6200412444 | H45: + | J45: x | K45: =IF(Control!$D$34>0,Control!$D$34,Control!$B$34) -> 0.4636363636 | L45: + | M45: =1-I45 -> 1 | N45: x | O45: =IF(Control!$D$33>0,Control!$D$33,Control!$B$33) -> 0.4363636364 | P45: ) = | Q45: =IF(ISERROR(E45*G45),0,E45*G45) -> 0 | R45: + | S45: =IF(ISERROR(E45*((I45*K45)+(M45*O45))),0,E45*((I45*K45)+(M45*O45))) -> 0 | T45: = | U45: =(Q45+S45)/CO2_C -> 0
B47: =B45+1 -> 2010 | D47: Perfluorocarbons | F47: x ( | G47: =IF(ISNUMBER(INDIRECT($F$2&LEFT(D47,2)&"Factor")),INDIRECT($F$2&LEFT(D47,2)&"Factor"),VLOOKUP(B47,AlFactorBlock,4,FALSE)) -> 0.6204004804 | H47: + | J47: x | K47: =IF(Control!$D$34>0,Control!$D$34,Control!$B$34) -> 0.4636363636 | L47: + | M47: =1-I47 -> 1 | N47: x | O47: =IF(Control!$D$33>0,Control!$D$33,Control!$B$33) -> 0.4363636364 | P47: ) = | Q47: =IF(ISERROR(E47*G47),0,E47*G47) -> 0 | R47: + | S47: =IF(ISERROR(E47*((I47*K47)+(M47*O47))),0,E47*((I47*K47)+(M47*O47))) -> 0 | T47: = | U47: =(Q47+S47)/CO2_C -> 0
B49: =B47+1 -> 2011 | D49: Perfluorocarbons | F49: x ( | G49: =IF(ISNUMBER(INDIRECT($F$2&LEFT(D49,2)&"Factor")),INDIRECT($F$2&LEFT(D49,2)&"Factor"),VLOOKUP(B49,AlFactorBlock,4,FALSE)) -> 0.5391798737 | H49: + | J49: x | K49: =IF(Control!$D$34>0,Control!$D$34,Control!$B$34) -> 0.4636363636 | L49: + | M49: =1-I49 -> 1 | N49: x | O49: =IF(Control!$D$33>0,Control!$D$33,Control!$B$33) -> 0.4363636364 | P49: ) = | Q49: =IF(ISERROR(E49*G49),0,E49*G49) -> 0 | R49: + | S49: =IF(ISERROR(E49*((I49*K49)+(M49*O49))),0,E49*((I49*K49)+(M49*O49))) -> 0 | T49: = | U49: =(Q49+S49)/CO2_C -> 0
B51: =B49+1 -> 2012 | D51: Perfluorocarbons | F51: x ( | G51: =IF(ISNUMBER(INDIRECT($F$2&LEFT(D51,2)&"Factor")),INDIRECT($F$2&LEFT(D51,2)&"Factor"),VLOOKUP(B51,AlFactorBlock,4,FALSE)) -> 0.5173001107 | H51: + | J51: x | K51: =IF(Control!$D$34>0,Control!$D$34,Control!$B$34) -> 0.4636363636 | L51: + | M51: =1-I51 -> 1 | N51: x | O51: =IF(Control!$D$33>0,Control!$D$33,Control!$B$33) -> 0.4363636364 | P51: ) = | Q51: =IF(ISERROR(E51*G51),0,E51*G51) -> 0 | R51: + | S51: =IF(ISERROR(E51*((I51*K51)+(M51*O51))),0,E51*((I51*K51)+(M51*O51))) -> 0 | T51: = | U51: =(Q51+S51)/CO2_C -> 0
B53: =B51+1 -> 2013 | D53: Perfluorocarbons | F53: x ( | G53: =IF(ISNUMBER(INDIRECT($F$2&LEFT(D53,2)&"Factor")),INDIRECT($F$2&LEFT(D53,2)&"Factor"),VLOOKUP(B53,AlFactorBlock,4,FALSE)) -> 0.5502627077 | H53: + | J53: x | K53: =IF(Control!$D$34>0,Control!$D$34,Control!$B$34) -> 0.4636363636 | L53: + | M53: =1-I53 -> 1 | N53: x | O53: =IF(Control!$D$33>0,Control!$D$33,Control!$B$33) -> 0.4363636364 | P53: ) = | Q53: =IF(ISERROR(E53*G53),0,E53*G53) -> 0 | R53: + | S53: =IF(ISERROR(E53*((I53*K53)+(M53*O53))),0,E53*((I53*K53)+(M53*O53))) -> 0 | T53: = | U53: =(Q53+S53)/CO2_C -> 0
B55: =B53+1 -> 2014 | D55: Perfluorocarbons | F55: x ( | G55: =IF(ISNUMBER(INDIRECT($F$2&LEFT(D55,2)&"Factor")),INDIRECT($F$2&LEFT(D55,2)&"Factor"),VLOOKUP(B55,AlFactorBlock,4,FALSE)) -> 0.6262053971 | H55: + | J55: x | K55: =IF(Control!$D$34>0,Control!$D$34,Control!$B$34) -> 0.4636363636 | L55: + | M55: =1-I55 -> 1 | N55: x | O55: =IF(Control!$D$33>0,Control!$D$33,Control!$B$33) -> 0.4363636364 | P55: ) = | Q55: =IF(ISERROR(E55*G55),0,E55*G55) -> 0 | R55: + | S55: =IF(ISERROR(E55*((I55*K55)+(M55*O55))),0,E55*((I55*K55)+(M55*O55))) -> 0 | T55: = | U55: =(Q55+S55)/CO2_C -> 0
B57: =B55+1 -> 2015 | D57: Perfluorocarbons | F57: x ( | G57: =IF(ISNUMBER(INDIRECT($F$2&LEFT(D57,2)&"Factor")),INDIRECT($F$2&LEFT(D57,2)&"Factor"),VLOOKUP(B57,AlFactorBlock,4,FALSE)) -> 0.6747392748 | H57: + | J57: x | K57: =IF(Control!$D$34>0,Control!$D$34,Control!$B$34) -> 0.4636363636 | L57: + | M57: =1-I57 -> 1 | N57: x | O57: =IF(Control!$D$33>0,Control!$D$33,Control!$B$33) -> 0.4363636364 | P57: ) = | Q57: =IF(ISERROR(E57*G57),0,E57*G57) -> 0 | R57: + | S57: =IF(ISERROR(E57*((I57*K57)+(M57*O57))),0,E57*((I57*K57)+(M57*O57))) -> 0 | T57: = | U57: =(Q57+S57)/CO2_C -> 0
B59: =B57+1 -> 2016 | D59: Perfluorocarbons | F59: x ( | G59: =IF(ISNUMBER(INDIRECT($F$2&LEFT(D59,2)&"Factor")),INDIRECT($F$2&LEFT(D59,2)&"Factor"),VLOOKUP(B59,AlFactorBlock,4,FALSE)) -> 1.309060182 | H59: + | J59: x | K59: =IF(Control!$D$34>0,Control!$D$34,Control!$B$34) -> 0.4636363636 | L59: + | M59: =1-I59 -> 1 | N59: x | O59: =IF(Control!$D$33>0,Control!$D$33,Control!$B$33) -> 0.4363636364 | P59: ) = | Q59: =IF(ISERROR(E59*G59),0,E59*G59) -> 0 | R59: + | S59: =IF(ISERROR(E59*((I59*K59)+(M59*O59))),0,E59*((I59*K59)+(M59*O59))) -> 0 | T59: = | U59: =(Q59+S59)/CO2_C -> 0
B61: =B59+1 -> 2017 | D61: Perfluorocarbons | F61: x ( | G61: =IF(ISNUMBER(INDIRECT($F$2&LEFT(D61,2)&"Factor")),INDIRECT($F$2&LEFT(D61,2)&"Factor"),VLOOKUP(B61,AlFactorBlock,4,FALSE)) -> 1.445089378 | H61: + | J61: x | K61: =IF(Control!$D$34>0,Control!$D$34,Control!$B$34) -> 0.4636363636 | L61: + | M61: =1-I61 -> 1 | N61: x | O61: =IF(Control!$D$33>0,Control!$D$33,Control!$B$33) -> 0.4363636364 | P61: ) = | Q61: =IF(ISERROR(E61*G61),0,E61*G61) -> 0 | R61: + | S61: =IF(ISERROR(E61*((I61*K61)+(M61*O61))),0,E61*((I61*K61)+(M61*O61))) -> 0 | T61: = | U61: =(Q61+S61)/CO2_C -> 0
B63: =B61+1 -> 2018 | D63: Perfluorocarbons | F63: x ( | G63: =IF(ISNUMBER(INDIRECT($F$2&LEFT(D63,2)&"Factor")),INDIRECT($F$2&LEFT(D63,2)&"Factor"),VLOOKUP(B63,AlFactorBlock,4,FALSE)) -> 1.201808338 | H63: + | J63: x | K63: =IF(Control!$D$34>0,Control!$D$34,Control!$B$34) -> 0.4636363636 | L63: + | M63: =1-I63 -> 1 | N63: x | O63: =IF(Control!$D$33>0,Control!$D$33,Control!$B$33) -> 0.4363636364 | P63: ) = | Q63: =IF(ISERROR(E63*G63),0,E63*G63) -> 0 | R63: + | S63: =IF(ISERROR(E63*((I63*K63)+(M63*O63))),0,E63*((I63*K63)+(M63*O63))) -> 0 | T63: = | U63: =(Q63+S63)/CO2_C -> 0
B65: =B63+1 -> 2019 | D65: Perfluorocarbons | F65: x ( | G65: =IF(ISNUMBER(INDIRECT($F$2&LEFT(D65,2)&"Factor")),INDIRECT($F$2&LEFT(D65,2)&"Factor"),VLOOKUP(B65,AlFactorBlock,4,FALSE)) -> 0.9796992032 | H65: + | J65: x | K65: =IF(Control!$D$34>0,Control!$D$34,Control!$B$34) -> 0.4636363636 | L65: + | M65: =1-I65 -> 1 | N65: x | O65: =IF(Control!$D$33>0,Control!$D$33,Control!$B$33) -> 0.4363636364 | P65: ) = | Q65: =IF(ISERROR(E65*G65),0,E65*G65) -> 0 | R65: + | S65: =IF(ISERROR(E65*((I65*K65)+(M65*O65))),0,E65*((I65*K65)+(M65*O65))) -> 0 | T65: = | U65: =(Q65+S65)/CO2_C -> 0
B67: =B65+1 -> 2020 | D67: Perfluorocarbons | F67: x ( | G67: =IF(ISNUMBER(INDIRECT($F$2&LEFT(D67,2)&"Factor")),INDIRECT($F$2&LEFT(D67,2)&"Factor"),VLOOKUP(B67,AlFactorBlock,4,FALSE)) -> 1.058113863 | H67: + | J67: x | K67: =IF(Control!$D$34>0,Control!$D$34,Control!$B$34) -> 0.4636363636 | L67: + | M67: =1-I67 -> 1 | N67: x | O67: =IF(Control!$D$33>0,Control!$D$33,Control!$B$33) -> 0.4363636364 | P67: ) = | Q67: =IF(ISERROR(E67*G67),0,E67*G67) -> 0 | R67: + | S67: =IF(ISERROR(E67*((I67*K67)+(M67*O67))),0,E67*((I67*K67)+(M67*O67))) -> 0 | T67: = | U67: =(Q67+S67)/CO2_C -> 0
B69: =B67+1 -> 2021 | D69: Perfluorocarbons | F69: x ( | G69: =IF(ISNUMBER(INDIRECT($F$2&LEFT(D69,2)&"Factor")),INDIRECT($F$2&LEFT(D69,2)&"Factor"),VLOOKUP(B69,AlFactorBlock,4,FALSE)) -> 1.204512069 | H69: + | J69: x | K69: =IF(Control!$D$34>0,Control!$D$34,Control!$B$34) -> 0.4636363636 | L69: + | M69: =1-I69 -> 1 | N69: x | O69: =IF(Control!$D$33>0,Control!$D$33,Control!$B$33) -> 0.4363636364 | P69: ) = | Q69: =IF(ISERROR(E69*G69),0,E69*G69) -> 0 | R69: + | S69: =IF(ISERROR(E69*((I69*K69)+(M69*O69))),0,E69*((I69*K69)+(M69*O69))) -> 0 | T69: = | U69: =(Q69+S69)/CO2_C -> 0
B71: =B69+1 -> 2022 | D71: Perfluorocarbons | F71: x ( | G71: =IF(ISNUMBER(INDIRECT($F$2&LEFT(D71,2)&"Factor")),INDIRECT($F$2&LEFT(D71,2)&"Factor"),VLOOKUP(B71,AlFactorBlock,4,FALSE)) -> 1.204512069 | H71: + | J71: x | K71: =IF(Control!$D$34>0,Control!$D$34,Control!$B$34) -> 0.4636363636 | L71: + | M71: =1-I71 -> 1 | N71: x | O71: =IF(Control!$D$33>0,Control!$D$33,Control!$B$33) -> 0.4363636364 | P71: ) = | Q71: =IF(ISERROR(E71*G71),0,E71*G71) -> 0 | R71: + | S71: =IF(ISERROR(E71*((I71*K71)+(M71*O71))),0,E71*((I71*K71)+(M71*O71))) -> 0 | T71: = | U71: =(Q71+S71)/CO2_C -> 0
B73: =B71+1 -> 2023 | D73: Perfluorocarbons | F73: x ( | G73: =IF(ISNUMBER(INDIRECT($F$2&LEFT(D73,2)&"Factor")),INDIRECT($F$2&LEFT(D73,2)&"Factor"),VLOOKUP(B73,AlFactorBlock,4,FALSE)) -> 1.204512069 | H73: + | J73: x | K73: =IF(Control!$D$34>0,Control!$D$34,Control!$B$34) -> 0.4636363636 | L73: + | M73: =1-I73 -> 1 | N73: x | O73: =IF(Control!$D$33>0,Control!$D$33,Control!$B$33) -> 0.4363636364 | P73: ) = | Q73: =IF(ISERROR(E73*G73),0,E73*G73) -> 0 | R73: + | S73: =IF(ISERROR(E73*((I73*K73)+(M73*O73))),0,E73*((I73*K73)+(M73*O73))) -> 0 | T73: = | U73: =(Q73+S73)/CO2_C -> 0
B75: =B73+1 -> 2024 | D75: Perfluorocarbons | F75: x ( | G75: =IF(ISNUMBER(INDIRECT($F$2&LEFT(D75,2)&"Factor")),INDIRECT($F$2&LEFT(D75,2)&"Factor"),VLOOKUP(B75,AlFactorBlock,4,FALSE)) -> 1.204512069 | H75: + | J75: x | K75: =IF(Control!$D$34>0,Control!$D$34,Control!$B$34) -> 0.4636363636 | L75: + | M75: =1-I75 -> 1 | N75: x | O75: =IF(Control!$D$33>0,Control!$D$33,Control!$B$33) -> 0.4363636364 | P75: ) = | Q75: =IF(ISERROR(E75*G75),0,E75*G75) -> 0 | R75: + | S75: =IF(ISERROR(E75*((I75*K75)+(M75*O75))),0,E75*((I75*K75)+(M75*O75))) -> 0 | T75: = | U75: =(Q75+S75)/CO2_C -> 0
B77: =B75+1 -> 2025 | D77: Perfluorocarbons | F77: x ( | G77: =IF(ISNUMBER(INDIRECT($F$2&LEFT(D77,2)&"Factor")),INDIRECT($F$2&LEFT(D77,2)&"Factor"),VLOOKUP(B77,AlFactorBlock,4,FALSE)) -> 1.204512069 | H77: + | J77: x | K77: =IF(Control!$D$34>0,Control!$D$34,Control!$B$34) -> 0.4636363636 | L77: + | M77: =1-I77 -> 1 | N77: x | O77: =IF(Control!$D$33>0,Control!$D$33,Control!$B$33) -> 0.4363636364 | P77: ) = | Q77: =IF(ISERROR(E77*G77),0,E77*G77) -> 0 | R77: + | S77: =IF(ISERROR(E77*((I77*K77)+(M77*O77))),0,E77*((I77*K77)+(M77*O77))) -> 0 | T77: = | U77: =(Q77+S77)/CO2_C -> 0

Sheet Nitric
B1: ="9. Nitric Acid Production in "&'List Data'!B3 -> 9. Nitric Acid Production in Select a State . . .
D2: ='List Data'!$A$3 -> XX | E2: Nitric | F2: =" " -> 
D4: Production | F4: Emission Factor | H4: Percent N2O Released after Pollution Control | J4: Emissions | L4: Emissions | N4: Emissions
D5: (Metric Tons) | F5: (t N2O/t production) | J5: (Metric Tons N2O) | L5: (MTCE) | N5: (MTCO2E)
B7: 1990 | E7: x | F7: =INDIRECT($E$2&"Factor") -> 0 | G7: x | I7: = | J7: =D7*F7*H7 -> 0 | K7: = | L7: =J7*310*CO2_C -> 0 | M7: = | N7: =L7/CO2_C -> 0
B9: 1991 | E9: x | F9: =INDIRECT($E$2&"Factor") -> 0 | G9: x | I9: = | J9: =D9*F9*H9 -> 0 | K9: = | L9: =J9*310*CO2_C -> 0 | M9: = | N9: =L9/CO2_C -> 0
B11: 1992 | E11: x | F11: =INDIRECT($E$2&"Factor") -> 0 | G11: x | I11: = | J11: =D11*F11*H11 -> 0 | K11: = | L11: =J11*310*CO2_C -> 0 | M11: = | N11: =L11/CO2_C -> 0
B13: 1993 | E13: x | F13: =INDIRECT($E$2&"Factor") -> 0 | G13: x | I13: = | J13: =D13*F13*H13 -> 0 | K13: = | L13: =J13*310*CO2_C -> 0 | M13: = | N13: =L13/CO2_C -> 0
B15: 1994 | E15: x | F15: =INDIRECT($E$2&"Factor") -> 0 | G15: x | I15: = | J15: =D15*F15*H15 -> 0 | K15: = | L15: =J15*310*CO2_C -> 0 | M15: = | N15: =L15/CO2_C -> 0
B17: 1995 | E17: x | F17: =INDIRECT($E$2&"Factor") -> 0 | G17: x | I17: = | J17: =D17*F17*H17 -> 0 | K17: = | L17: =J17*310*CO2_C -> 0 | M17: = | N17: =L17/CO2_C -> 0
B19: 1996 | E19: x | F19: =INDIRECT($E$2&"Factor") -> 0 | G19: x | I19: = | J19: =D19*F19*H19 -> 0 | K19: = | L19: =J19*310*CO2_C -> 0 | M19: = | N19: =L19/CO2_C -> 0
B21: 1997 | E21: x | F21: =INDIRECT($E$2&"Factor") -> 0 | G21: x | I21: = | J21: =D21*F21*H21 -> 0 | K21: = | L21: =J21*310*CO2_C -> 0 | M21: = | N21: =L21/CO2_C -> 0
B23: 1998 | E23: x | F23: =INDIRECT($E$2&"Factor") -> 0 | G23: x | I23: = | J23: =D23*F23*H23 -> 0 | K23: = | L23: =J23*310*CO2_C -> 0 | M23: = | N23: =L23/CO2_C -> 0
B25: 1999 | E25: x | F25: =INDIRECT($E$2&"Factor") -> 0 | G25: x | I25: = | J25: =D25*F25*H25 -> 0 | K25: = | L25: =J25*310*CO2_C -> 0 | M25: = | N25: =L25/CO2_C -> 0
B27: 2000 | E27: x | F27: =INDIRECT($E$2&"Factor") -> 0 | G27: x | I27: = | J27: =D27*F27*H27 -> 0 | K27: = | L27: =J27*310*CO2_C -> 0 | M27: = | N27: =L27/CO2_C -> 0
B29: 2001 | E29: x | F29: =INDIRECT($E$2&"Factor") -> 0 | G29: x | I29: = | J29: =D29*F29*H29 -> 0 | K29: = | L29: =J29*310*CO2_C -> 0 | M29: = | N29: =L29/CO2_C -> 0
B31: 2002 | E31: x | F31: =INDIRECT($E$2&"Factor") -> 0 | G31: x | I31: = | J31: =D31*F31*H31 -> 0 | K31: = | L31: =J31*310*CO2_C -> 0 | M31: = | N31: =L31/CO2_C -> 0
B33: 2003 | E33: x | F33: =INDIRECT($E$2&"Factor") -> 0 | G33: x | I33: = | J33: =D33*F33*H33 -> 0 | K33: = | L33: =J33*310*CO2_C -> 0 | M33: = | N33: =L33/CO2_C -> 0
B35: 2004 | E35: x | F35: =INDIRECT($E$2&"Factor") -> 0 | G35: x | I35: = | J35: =D35*F35*H35 -> 0 | K35: = | L35: =J35*310*CO2_C -> 0 | M35: = | N35: =L35/CO2_C -> 0
B37: 2005 | E37: x | F37: =INDIRECT($E$2&"Factor") -> 0 | G37: x | I37: = | J37: =D37*F37*H37 -> 0 | K37: = | L37: =J37*310*CO2_C -> 0 | M37: = | N37: =L37/CO2_C -> 0
B39: 2006 | E39: x | F39: =INDIRECT($E$2&"Factor") -> 0 | G39: x | I39: = | J39: =D39*F39*H39 -> 0 | K39: = | L39: =J39*310*CO2_C -> 0 | M39: = | N39: =L39/CO2_C -> 0
B41: 2007 | E41: x | F41: =INDIRECT($E$2&"Factor") -> 0 | G41: x | I41: = | J41: =D41*F41*H41 -> 0 | K41: = | L41: =J41*310*CO2_C -> 0 | M41: = | N41: =L41/CO2_C -> 0
B43: 2008 | E43: x | F43: =INDIRECT($E$2&"Factor") -> 0 | G43: x | I43: = | J43: =D43*F43*H43 -> 0 | K43: = | L43: =J43*310*CO2_C -> 0 | M43: = | N43: =L43/CO2_C -> 0
B45: 2009 | E45: x | F45: =INDIRECT($E$2&"Factor") -> 0 | G45: x | I45: = | J45: =D45*F45*H45 -> 0 | K45: = | L45: =J45*310*CO2_C -> 0 | M45: = | N45: =L45/CO2_C -> 0
B47: 2010 | E47: x | F47: =INDIRECT($E$2&"Factor") -> 0 | G47: x | I47: = | J47: =D47*F47*H47 -> 0 | K47: = | L47: =J47*310*CO2_C -> 0 | M47: = | N47: =L47/CO2_C -> 0
B49: 2011 | E49: x | F49: =INDIRECT($E$2&"Factor") -> 0 | G49: x | I49: = | J49: =D49*F49*H49 -> 0 | K49: = | L49: =J49*310*CO2_C -> 0 | M49: = | N49: =L49/CO2_C -> 0
B51: 2012 | E51: x | F51: =INDIRECT($E$2&"Factor") -> 0 | G51: x | I51: = | J51: =D51*F51*H51 -> 0 | K51: = | L51: =J51*310*CO2_C -> 0 | M51: = | N51: =L51/CO2_C -> 0
B53: 2013 | E53: x | F53: =INDIRECT($E$2&"Factor") -> 0 | G53: x | I53: = | J53: =D53*F53*H53 -> 0 | K53: = | L53: =J53*310*CO2_C -> 0 | M53: = | N53: =L53/CO2_C -> 0
B55: 2014 | E55: x | F55: =INDIRECT($E$2&"Factor") -> 0 | G55: x | I55: = | J55: =D55*F55*H55 -> 0 | K55: = | L55: =J55*310*CO2_C -> 0 | M55: = | N55: =L55/CO2_C -> 0
B57: 2015 | E57: x | F57: =INDIRECT($E$2&"Factor") -> 0 | G57: x | I57: = | J57: =D57*F57*H57 -> 0 | K57: = | L57: =J57*310*CO2_C -> 0 | M57: = | N57: =L57/CO2_C -> 0
B59: 2016 | E59: x | F59: =INDIRECT($E$2&"Factor") -> 0 | G59: x | I59: = | J59: =D59*F59*H59 -> 0 | K59: = | L59: =J59*310*CO2_C -> 0 | M59: = | N59: =L59/CO2_C -> 0
B61: 2017 | E61: x | F61: =INDIRECT($E$2&"Factor") -> 0 | G61: x | I61: = | J61: =D61*F61*H61 -> 0 | K61: = | L61: =J61*310*CO2_C -> 0 | M61: = | N61: =L61/CO2_C -> 0
B63: 2018 | E63: x | F63: =INDIRECT($E$2&"Factor") -> 0 | G63: x | I63: = | J63: =D63*F63*H63 -> 0 | K63: = | L63: =J63*310*CO2_C -> 0 | M63: = | N63: =L63/CO2_C -> 0
B65: 2019 | E65: x | F65: =INDIRECT($E$2&"Factor") -> 0 | G65: x | I65: = | J65: =D65*F65*H65 -> 0 | K65: = | L65: =J65*310*CO2_C -> 0 | M65: = | N65: =L65/CO2_C -> 0
B67: 2020 | E67: x | F67: =INDIRECT($E$2&"Factor") -> 0 | G67: x | I67: = | J67: =D67*F67*H67 -> 0 | K67: = | L67: =J67*310*CO2_C -> 0 | M67: = | N67: =L67/CO2_C -> 0
B69: 2021 | E69: x | F69: =INDIRECT($E$2&"Factor") -> 0 | G69: x | I69: = | J69: =D69*F69*H69 -> 0 | K69: = | L69: =J69*310*CO2_C -> 0 | M69: = | N69: =L69/CO2_C -> 0
B71: 2022 | E71: x | F71: =INDIRECT($E$2&"Factor") -> 0 | G71: x | I71: = | J71: =D71*F71*H71 -> 0 | K71: = | L71: =J71*310*CO2_C -> 0 | M71: = | N71: =L71/CO2_C -> 0
B73: 2023 | E73: x | F73: =INDIRECT($E$2&"Factor") -> 0 | G73: x | I73: = | J73: =D73*F73*H73 -> 0 | K73: = | L73: =J73*310*CO2_C -> 0 | M73: = | N73: =L73/CO2_C -> 0
B75: 2024 | E75: x | F75: =INDIRECT($E$2&"Factor") -> 0 | G75: x | I75: = | J75: =D75*F75*H75 -> 0 | K75: = | L75: =J75*310*CO2_C -> 0 | M75: = | N75: =L75/CO2_C -> 0
B77: 2025 | E77: x | F77: =INDIRECT($E$2&"Factor") -> 0 | G77: x | I77: = | J77: =D77*F77*H77 -> 0 | K77: = | L77: =J77*310*CO2_C -> 0 | M77: = | N77: =L77/CO2_C -> 0

Sheet Adipic
B1: ="10. Adipic Acid Production in "&'List Data'!B3 -> 10. Adipic Acid Production in Select a State . . .
D2: ='List Data'!$A$3 -> XX | E2: Adipic | F2: =" " ->  | G2: =AdipicCheck -> 0
D4: Production | F4: Emission Factor | H4: Percent N2O Released after Pollution Control | J4: Emissions | L4: Emissions | N4: Emissions
D5: (Metric Tons) | F5: (t N2O/t production) | J5: (Metric Tons N2O) | L5: (MTCE) | N5: (MTCO2E)
B7: 1990 | E7: x | F7: =INDIRECT($E$2&"Factor") -> 0 | G7: x | I7: = | J7: =D7*F7*H7 -> 0 | K7: = | L7: =J7*310*CO2_C -> 0 | M7: = | N7: =L7/CO2_C -> 0
B9: 1991 | E9: x | F9: =INDIRECT($E$2&"Factor") -> 0 | G9: x | I9: = | J9: =D9*F9*H9 -> 0 | K9: = | L9: =J9*310*CO2_C -> 0 | M9: = | N9: =L9/CO2_C -> 0
B11: 1992 | E11: x | F11: =INDIRECT($E$2&"Factor") -> 0 | G11: x | I11: = | J11: =D11*F11*H11 -> 0 | K11: = | L11: =J11*310*CO2_C -> 0 | M11: = | N11: =L11/CO2_C -> 0
B13: 1993 | E13: x | F13: =INDIRECT($E$2&"Factor") -> 0 | G13: x | I13: = | J13: =D13*F13*H13 -> 0 | K13: = | L13: =J13*310*CO2_C -> 0 | M13: = | N13: =L13/CO2_C -> 0
B15: 1994 | E15: x | F15: =INDIRECT($E$2&"Factor") -> 0 | G15: x | I15: = | J15: =D15*F15*H15 -> 0 | K15: = | L15: =J15*310*CO2_C -> 0 | M15: = | N15: =L15/CO2_C -> 0
B17: 1995 | E17: x | F17: =INDIRECT($E$2&"Factor") -> 0 | G17: x | I17: = | J17: =D17*F17*H17 -> 0 | K17: = | L17: =J17*310*CO2_C -> 0 | M17: = | N17: =L17/CO2_C -> 0
B19: 1996 | E19: x | F19: =INDIRECT($E$2&"Factor") -> 0 | G19: x | I19: = | J19: =D19*F19*H19 -> 0 | K19: = | L19: =J19*310*CO2_C -> 0 | M19: = | N19: =L19/CO2_C -> 0
B21: 1997 | E21: x | F21: =INDIRECT($E$2&"Factor") -> 0 | G21: x | I21: = | J21: =D21*F21*H21 -> 0 | K21: = | L21: =J21*310*CO2_C -> 0 | M21: = | N21: =L21/CO2_C -> 0
B23: 1998 | E23: x | F23: =INDIRECT($E$2&"Factor") -> 0 | G23: x | I23: = | J23: =D23*F23*H23 -> 0 | K23: = | L23: =J23*310*CO2_C -> 0 | M23: = | N23: =L23/CO2_C -> 0
B25: 1999 | E25: x | F25: =INDIRECT($E$2&"Factor") -> 0 | G25: x | I25: = | J25: =D25*F25*H25 -> 0 | K25: = | L25: =J25*310*CO2_C -> 0 | M25: = | N25: =L25/CO2_C -> 0
B27: 2000 | E27: x | F27: =INDIRECT($E$2&"Factor") -> 0 | G27: x | I27: = | J27: =D27*F27*H27 -> 0 | K27: = | L27: =J27*310*CO2_C -> 0 | M27: = | N27: =L27/CO2_C -> 0
B29: 2001 | E29: x | F29: =INDIRECT($E$2&"Factor") -> 0 | G29: x | I29: = | J29: =D29*F29*H29 -> 0 | K29: = | L29: =J29*310*CO2_C -> 0 | M29: = | N29: =L29/CO2_C -> 0
B31: 2002 | E31: x | F31: =INDIRECT($E$2&"Factor") -> 0 | G31: x | I31: = | J31: =D31*F31*H31 -> 0 | K31: = | L31: =J31*310*CO2_C -> 0 | M31: = | N31: =L31/CO2_C -> 0
B33: 2003 | E33: x | F33: =INDIRECT($E$2&"Factor") -> 0 | G33: x | I33: = | J33: =D33*F33*H33 -> 0 | K33: = | L33: =J33*310*CO2_C -> 0 | M33: = | N33: =L33/CO2_C -> 0
B35: 2004 | E35: x | F35: =INDIRECT($E$2&"Factor") -> 0 | G35: x | I35: = | J35: =D35*F35*H35 -> 0 | K35: = | L35: =J35*310*CO2_C -> 0 | M35: = | N35: =L35/CO2_C -> 0
B37: 2005 | E37: x | F37: =INDIRECT($E$2&"Factor") -> 0 | G37: x | I37: = | J37: =D37*F37*H37 -> 0 | K37: = | L37: =J37*310*CO2_C -> 0 | M37: = | N37: =L37/CO2_C -> 0
B39: 2006 | E39: x | F39: =INDIRECT($E$2&"Factor") -> 0 | G39: x | I39: = | J39: =D39*F39*H39 -> 0 | K39: = | L39: =J39*310*CO2_C -> 0 | M39: = | N39: =L39/CO2_C -> 0
B41: 2007 | E41: x | F41: =INDIRECT($E$2&"Factor") -> 0 | G41: x | I41: = | J41: =D41*F41*H41 -> 0 | K41: = | L41: =J41*310*CO2_C -> 0 | M41: = | N41: =L41/CO2_C -> 0
B43: 2008 | E43: x | F43: =INDIRECT($E$2&"Factor") -> 0 | G43: x | I43: = | J43: =D43*F43*H43 -> 0 | K43: = | L43: =J43*310*CO2_C -> 0 | M43: = | N43: =L43/CO2_C -> 0
B45: 2009 | E45: x | F45: =INDIRECT($E$2&"Factor") -> 0 | G45: x | I45: = | J45: =D45*F45*H45 -> 0 | K45: = | L45: =J45*310*CO2_C -> 0 | M45: = | N45: =L45/CO2_C -> 0
B47: 2010 | E47: x | F47: =INDIRECT($E$2&"Factor") -> 0 | G47: x | I47: = | J47: =D47*F47*H47 -> 0 | K47: = | L47: =J47*310*CO2_C -> 0 | M47: = | N47: =L47/CO2_C -> 0
B49: 2011 | E49: x | F49: =INDIRECT($E$2&"Factor") -> 0 | G49: x | I49: = | J49: =D49*F49*H49 -> 0 | K49: = | L49: =J49*310*CO2_C -> 0 | M49: = | N49: =L49/CO2_C -> 0
B51: 2012 | E51: x | F51: =INDIRECT($E$2&"Factor") -> 0 | G51: x | I51: = | J51: =D51*F51*H51 -> 0 | K51: = | L51: =J51*310*CO2_C -> 0 | M51: = | N51: =L51/CO2_C -> 0
B53: 2013 | E53: x | F53: =INDIRECT($E$2&"Factor") -> 0 | G53: x | I53: = | J53: =D53*F53*H53 -> 0 | K53: = | L53: =J53*310*CO2_C -> 0 | M53: = | N53: =L53/CO2_C -> 0
B55: 2014 | E55: x | F55: =INDIRECT($E$2&"Factor") -> 0 | G55: x | I55: = | J55: =D55*F55*H55 -> 0 | K55: = | L55: =J55*310*CO2_C -> 0 | M55: = | N55: =L55/CO2_C -> 0
B57: 2015 | E57: x | F57: =INDIRECT($E$2&"Factor") -> 0 | G57: x | I57: = | J57: =D57*F57*H57 -> 0 | K57: = | L57: =J57*310*CO2_C -> 0 | M57: = | N57: =L57/CO2_C -> 0
B59: 2016 | E59: x | F59: =INDIRECT($E$2&"Factor") -> 0 | G59: x | I59: = | J59: =D59*F59*H59 -> 0 | K59: = | L59: =J59*310*CO2_C -> 0 | M59: = | N59: =L59/CO2_C -> 0
B61: 2017 | E61: x | F61: =INDIRECT($E$2&"Factor") -> 0 | G61: x | I61: = | J61: =D61*F61*H61 -> 0 | K61: = | L61: =J61*310*CO2_C -> 0 | M61: = | N61: =L61/CO2_C -> 0
B63: 2018 | E63: x | F63: =INDIRECT($E$2&"Factor") -> 0 | G63: x | I63: = | J63: =D63*F63*H63 -> 0 | K63: = | L63: =J63*310*CO2_C -> 0 | M63: = | N63: =L63/CO2_C -> 0
B65: 2019 | E65: x | F65: =INDIRECT($E$2&"Factor") -> 0 | G65: x | I65: = | J65: =D65*F65*H65 -> 0 | K65: = | L65: =J65*310*CO2_C -> 0 | M65: = | N65: =L65/CO2_C -> 0
B67: 2020 | E67: x | F67: =INDIRECT($E$2&"Factor") -> 0 | G67: x | I67: = | J67: =D67*F67*H67 -> 0 | K67: = | L67: =J67*310*CO2_C -> 0 | M67: = | N67: =L67/CO2_C -> 0
B69: 2021 | E69: x | F69: =INDIRECT($E$2&"Factor") -> 0 | G69: x | I69: = | J69: =D69*F69*H69 -> 0 | K69: = | L69: =J69*310*CO2_C -> 0 | M69: = | N69: =L69/CO2_C -> 0
B71: 2022 | E71: x | F71: =INDIRECT($E$2&"Factor") -> 0 | G71: x | I71: = | J71: =D71*F71*H71 -> 0 | K71: = | L71: =J71*310*CO2_C -> 0 | M71: = | N71: =L71/CO2_C -> 0
B73: 2023 | E73: x | F73: =INDIRECT($E$2&"Factor") -> 0 | G73: x | I73: = | J73: =D73*F73*H73 -> 0 | K73: = | L73: =J73*310*CO2_C -> 0 | M73: = | N73: =L73/CO2_C -> 0
B75: 2024 | E75: x | F75: =INDIRECT($E$2&"Factor") -> 0 | G75: x | I75: = | J75: =D75*F75*H75 -> 0 | K75: = | L75: =J75*310*CO2_C -> 0 | M75: = | N75: =L75/CO2_C -> 0
B77: 2025 | E77: x | F77: =INDIRECT($E$2&"Factor") -> 0 | G77: x | I77: = | J77: =D77*F77*H77 -> 0 | K77: = | L77: =J77*310*CO2_C -> 0 | M77: = | N77: =L77/CO2_C -> 0

Sheet HCFC-22
B1: ="12. HCFC-22 Production in "&'List Data'!B3 -> 12. HCFC-22 Production in Select a State . . .
D2: ='List Data'!$A$3 -> XX | E2: HCFC22 | F2: =" " -> 
D4: Production | F4: Emission Factor | H4: Emissions | J4: Emissions | L4: Emissions
D5: (Metric Tons) | F5: (t HFC-23/t production) | H5: (Metric Tons HFC-23) | J5: (MTCE) | L5: (MTCO2E)
B7: 1990 | E7: x | F7: =INDIRECT($E$2&"Factor") -> 0 | G7: = | H7: =D7*F7 -> 0 | I7: = | J7: =H7*11700*CO2_C -> 0 | K7: = | L7: =J7/CO2_C -> 0
B9: 1991 | E9: x | F9: =INDIRECT($E$2&"Factor") -> 0 | G9: = | H9: =D9*F9 -> 0 | I9: = | J9: =H9*11700*CO2_C -> 0 | K9: = | L9: =J9/CO2_C -> 0
B11: 1992 | E11: x | F11: =INDIRECT($E$2&"Factor") -> 0 | G11: = | H11: =D11*F11 -> 0 | I11: = | J11: =H11*11700*CO2_C -> 0 | K11: = | L11: =J11/CO2_C -> 0
B13: 1993 | E13: x | F13: =INDIRECT($E$2&"Factor") -> 0 | G13: = | H13: =D13*F13 -> 0 | I13: = | J13: =H13*11700*CO2_C -> 0 | K13: = | L13: =J13/CO2_C -> 0
B15: 1994 | E15: x | F15: =INDIRECT($E$2&"Factor") -> 0 | G15: = | H15: =D15*F15 -> 0 | I15: = | J15: =H15*11700*CO2_C -> 0 | K15: = | L15: =J15/CO2_C -> 0
B17: 1995 | E17: x | F17: =INDIRECT($E$2&"Factor") -> 0 | G17: = | H17: =D17*F17 -> 0 | I17: = | J17: =H17*11700*CO2_C -> 0 | K17: = | L17: =J17/CO2_C -> 0
B19: 1996 | E19: x | F19: =INDIRECT($E$2&"Factor") -> 0 | G19: = | H19: =D19*F19 -> 0 | I19: = | J19: =H19*11700*CO2_C -> 0 | K19: = | L19: =J19/CO2_C -> 0
B21: 1997 | E21: x | F21: =INDIRECT($E$2&"Factor") -> 0 | G21: = | H21: =D21*F21 -> 0 | I21: = | J21: =H21*11700*CO2_C -> 0 | K21: = | L21: =J21/CO2_C -> 0
B23: 1998 | E23: x | F23: =INDIRECT($E$2&"Factor") -> 0 | G23: = | H23: =D23*F23 -> 0 | I23: = | J23: =H23*11700*CO2_C -> 0 | K23: = | L23: =J23/CO2_C -> 0
B25: 1999 | E25: x | F25: =INDIRECT($E$2&"Factor") -> 0 | G25: = | H25: =D25*F25 -> 0 | I25: = | J25: =H25*11700*CO2_C -> 0 | K25: = | L25: =J25/CO2_C -> 0
B27: 2000 | E27: x | F27: =INDIRECT($E$2&"Factor") -> 0 | G27: = | H27: =D27*F27 -> 0 | I27: = | J27: =H27*11700*CO2_C -> 0 | K27: = | L27: =J27/CO2_C -> 0
B29: 2001 | E29: x | F29: =INDIRECT($E$2&"Factor") -> 0 | G29: = | H29: =D29*F29 -> 0 | I29: = | J29: =H29*11700*CO2_C -> 0 | K29: = | L29: =J29/CO2_C -> 0
B31: 2002 | E31: x | F31: =INDIRECT($E$2&"Factor") -> 0 | G31: = | H31: =D31*F31 -> 0 | I31: = | J31: =H31*11700*CO2_C -> 0 | K31: = | L31: =J31/CO2_C -> 0
B33: 2003 | E33: x | F33: =INDIRECT($E$2&"Factor") -> 0 | G33: = | H33: =D33*F33 -> 0 | I33: = | J33: =H33*11700*CO2_C -> 0 | K33: = | L33: =J33/CO2_C -> 0
B35: 2004 | E35: x | F35: =INDIRECT($E$2&"Factor") -> 0 | G35: = | H35: =D35*F35 -> 0 | I35: = | J35: =H35*11700*CO2_C -> 0 | K35: = | L35: =J35/CO2_C -> 0
B37: 2005 | E37: x | F37: =INDIRECT($E$2&"Factor") -> 0 | G37: = | H37: =D37*F37 -> 0 | I37: = | J37: =H37*11700*CO2_C -> 0 | K37: = | L37: =J37/CO2_C -> 0
B39: 2006 | E39: x | F39: =INDIRECT($E$2&"Factor") -> 0 | G39: = | H39: =D39*F39 -> 0 | I39: = | J39: =H39*11700*CO2_C -> 0 | K39: = | L39: =J39/CO2_C -> 0
B41: 2007 | E41: x | F41: =INDIRECT($E$2&"Factor") -> 0 | G41: = | H41: =D41*F41 -> 0 | I41: = | J41: =H41*11700*CO2_C -> 0 | K41: = | L41: =J41/CO2_C -> 0
B43: 2008 | E43: x | F43: =INDIRECT($E$2&"Factor") -> 0 | G43: = | H43: =D43*F43 -> 0 | I43: = | J43: =H43*11700*CO2_C -> 0 | K43: = | L43: =J43/CO2_C -> 0
B45: 2009 | E45: x | F45: =INDIRECT($E$2&"Factor") -> 0 | G45: = | H45: =D45*F45 -> 0 | I45: = | J45: =H45*11700*CO2_C -> 0 | K45: = | L45: =J45/CO2_C -> 0
B47: 2010 | E47: x | F47: =INDIRECT($E$2&"Factor") -> 0 | G47: = | H47: =D47*F47 -> 0 | I47: = | J47: =H47*11700*CO2_C -> 0 | K47: = | L47: =J47/CO2_C -> 0
B49: 2011 | E49: x | F49: 0 | G49: = | H49: =D49*F49 -> 0 | I49: = | J49: =H49*11700*CO2_C -> 0 | K49: = | L49: =J49/CO2_C -> 0
B51: 2012 | E51: x | F51: 0 | G51: = | H51: =D51*F51 -> 0 | I51: = | J51: =H51*11700*CO2_C -> 0 | K51: = | L51: =J51/CO2_C -> 0
B53: 2013 | E53: x | F53: 0 | G53: = | H53: =D53*F53 -> 0 | I53: = | J53: =H53*11700*CO2_C -> 0 | K53: = | L53: =J53/CO2_C -> 0
B55: 2014 | E55: x | F55: 0 | G55: = | H55: =D55*F55 -> 0 | I55: = | J55: =H55*11700*CO2_C -> 0 | K55: = | L55: =J55/CO2_C -> 0
B57: 2015 | E57: x | F57: 0 | G57: = | H57: =D57*F57 -> 0 | I57: = | J57: =H57*11700*CO2_C -> 0 | K57: = | L57: =J57/CO2_C -> 0
B59: 2016 | E59: x | F59: 0 | G59: = | H59: =D59*F59 -> 0 | I59: = | J59: =H59*11700*CO2_C -> 0 | K59: = | L59: =J59/CO2_C -> 0
B61: 2017 | E61: x | F61: 0 | G61: = | H61: =D61*F61 -> 0 | I61: = | J61: =H61*11700*CO2_C -> 0 | K61: = | L61: =J61/CO2_C -> 0
B63: 2018 | E63: x | F63: 0 | G63: = | H63: =D63*F63 -> 0 | I63: = | J63: =H63*11700*CO2_C -> 0 | K63: = | L63: =J63/CO2_C -> 0
B65: 2019 | E65: x | F65: 0 | G65: = | H65: =D65*F65 -> 0 | I65: = | J65: =H65*11700*CO2_C -> 0 | K65: = | L65: =J65/CO2_C -> 0
B67: 2020 | E67: x | F67: 0 | G67: = | H67: =D67*F67 -> 0 | I67: = | J67: =H67*11700*CO2_C -> 0 | K67: = | L67: =J67/CO2_C -> 0
B69: 2021 | E69: x | F69: 0 | G69: = | H69: =D69*F69 -> 0 | I69: = | J69: =H69*11700*CO2_C -> 0 | K69: = | L69: =J69/CO2_C -> 0
B71: 2022 | E71: x | F71: 0 | G71: = | H71: =D71*F71 -> 0 | I71: = | J71: =H71*11700*CO2_C -> 0 | K71: = | L71: =J71/CO2_C -> 0
B73: 2023 | E73: x | F73: 0 | G73: = | H73: =D73*F73 -> 0 | I73: = | J73: =H73*11700*CO2_C -> 0 | K73: = | L73: =J73/CO2_C -> 0
B75: 2024 | E75: x | F75: 0 | G75: = | H75: =D75*F75 -> 0 | I75: = | J75: =H75*11700*CO2_C -> 0 | K75: = | L75: =J75/CO2_C -> 0
B77: 2025 | E77: x | F77: 0 | G77: = | H77: =D77*F77 -> 0 | I77: = | J77: =H77*11700*CO2_C -> 0 | K77: = | L77: =J77/CO2_C -> 0

Sheet ODS
B1: ="13. Consumption of ODS Substitutes in "&'List Data'!B3 -> 13. Consumption of ODS Substitutes in Select a State . . .
D2: ='List Data'!$A$3 -> XX | E2: =VLOOKUP(D2,'state population'!$B$3:$C$53,2,FALSE) ->  | F2: ODS | J2: =" " -> 
D4: Default US Inventory State-Level Emissions | F4: Emissions for Calculation | Q4: Apportioned National Emissions
D5: (Metric Tons CO2 Eq.) | F5: (MTCO2E) | Q5: (MTCE)
B7: 1990 | D7: =VLOOKUP($D$2&$J$2&$F$2&$J$2,DataBlock,HLOOKUP(B7,DataBlock,2,FALSE),FALSE) ->  | Q7: =IF(ISERROR(F7*CO2_C),,F7*CO2_C) -> 0
B9: 1991 | D9: =VLOOKUP($D$2&$J$2&$F$2&$J$2,DataBlock,HLOOKUP(B9,DataBlock,2,FALSE),FALSE) ->  | Q9: =IF(ISERROR(F9*CO2_C),,F9*CO2_C) -> 0
B11: 1992 | D11: =VLOOKUP($D$2&$J$2&$F$2&$J$2,DataBlock,HLOOKUP(B11,DataBlock,2,FALSE),FALSE) ->  | Q11: =IF(ISERROR(F11*CO2_C),,F11*CO2_C) -> 0
B13: 1993 | D13: =VLOOKUP($D$2&$J$2&$F$2&$J$2,DataBlock,HLOOKUP(B13,DataBlock,2,FALSE),FALSE) ->  | Q13: =IF(ISERROR(F13*CO2_C),,F13*CO2_C) -> 0
B15: 1994 | D15: =VLOOKUP($D$2&$J$2&$F$2&$J$2,DataBlock,HLOOKUP(B15,DataBlock,2,FALSE),FALSE) ->  | Q15: =IF(ISERROR(F15*CO2_C),,F15*CO2_C) -> 0
B17: 1995 | D17: =VLOOKUP($D$2&$J$2&$F$2&$J$2,DataBlock,HLOOKUP(B17,DataBlock,2,FALSE),FALSE) ->  | Q17: =IF(ISERROR(F17*CO2_C),,F17*CO2_C) -> 0
B19: 1996 | D19: =VLOOKUP($D$2&$J$2&$F$2&$J$2,DataBlock,HLOOKUP(B19,DataBlock,2,FALSE),FALSE) ->  | Q19: =IF(ISERROR(F19*CO2_C),,F19*CO2_C) -> 0
B21: 1997 | D21: =VLOOKUP($D$2&$J$2&$F$2&$J$2,DataBlock,HLOOKUP(B21,DataBlock,2,FALSE),FALSE) ->  | Q21: =IF(ISERROR(F21*CO2_C),,F21*CO2_C) -> 0
B23: 1998 | D23: =VLOOKUP($D$2&$J$2&$F$2&$J$2,DataBlock,HLOOKUP(B23,DataBlock,2,FALSE),FALSE) ->  | Q23: =IF(ISERROR(F23*CO2_C),,F23*CO2_C) -> 0
B25: 1999 | D25: =VLOOKUP($D$2&$J$2&$F$2&$J$2,DataBlock,HLOOKUP(B25,DataBlock,2,FALSE),FALSE) ->  | Q25: =IF(ISERROR(F25*CO2_C),,F25*CO2_C) -> 0
B27: 2000 | D27: =VLOOKUP($D$2&$J$2&$F$2&$J$2,DataBlock,HLOOKUP(B27,DataBlock,2,FALSE),FALSE) ->  | Q27: =IF(ISERROR(F27*CO2_C),,F27*CO2_C) -> 0
B29: 2001 | D29: =VLOOKUP($D$2&$J$2&$F$2&$J$2,DataBlock,HLOOKUP(B29,DataBlock,2,FALSE),FALSE) ->  | Q29: =IF(ISERROR(F29*CO2_C),,F29*CO2_C) -> 0
B31: 2002 | D31: =VLOOKUP($D$2&$J$2&$F$2&$J$2,DataBlock,HLOOKUP(B31,DataBlock,2,FALSE),FALSE) ->  | Q31: =IF(ISERROR(F31*CO2_C),,F31*CO2_C) -> 0
B33: 2003 | D33: =VLOOKUP($D$2&$J$2&$F$2&$J$2,DataBlock,HLOOKUP(B33,DataBlock,2,FALSE),FALSE) ->  | Q33: =IF(ISERROR(F33*CO2_C),,F33*CO2_C) -> 0
B35: 2004 | D35: =VLOOKUP($D$2&$J$2&$F$2&$J$2,DataBlock,HLOOKUP(B35,DataBlock,2,FALSE),FALSE) ->  | Q35: =IF(ISERROR(F35*CO2_C),,F35*CO2_C) -> 0
B37: 2005 | D37: =VLOOKUP($D$2&$J$2&$F$2&$J$2,DataBlock,HLOOKUP(B37,DataBlock,2,FALSE),FALSE) ->  | Q37: =IF(ISERROR(F37*CO2_C),,F37*CO2_C) -> 0
B39: 2006 | D39: =VLOOKUP($D$2&$J$2&$F$2&$J$2,DataBlock,HLOOKUP(B39,DataBlock,2,FALSE),FALSE) ->  | Q39: =IF(ISERROR(F39*CO2_C),,F39*CO2_C) -> 0
B41: 2007 | D41: =VLOOKUP($D$2&$J$2&$F$2&$J$2,DataBlock,HLOOKUP(B41,DataBlock,2,FALSE),FALSE) ->  | Q41: =IF(ISERROR(F41*CO2_C),,F41*CO2_C) -> 0
B43: 2008 | D43: =VLOOKUP($D$2&$J$2&$F$2&$J$2,DataBlock,HLOOKUP(B43,DataBlock,2,FALSE),FALSE) ->  | Q43: =IF(ISERROR(F43*CO2_C),,F43*CO2_C) -> 0
B45: 2009 | D45: =VLOOKUP($D$2&$J$2&$F$2&$J$2,DataBlock,HLOOKUP(B45,DataBlock,2,FALSE),FALSE) ->  | Q45: =IF(ISERROR(F45*CO2_C),,F45*CO2_C) -> 0
B47: 2010 | D47: =VLOOKUP($D$2&$J$2&$F$2&$J$2,DataBlock,HLOOKUP(B47,DataBlock,2,FALSE),FALSE) ->  | Q47: =IF(ISERROR(F47*CO2_C),,F47*CO2_C) -> 0
B49: 2011 | D49: =VLOOKUP($D$2&$J$2&$F$2&$J$2,DataBlock,HLOOKUP(B49,DataBlock,2,FALSE),FALSE) ->  | Q49: =IF(ISERROR(F49*CO2_C),,F49*CO2_C) -> 0
B51: 2012 | D51: =VLOOKUP($D$2&$J$2&$F$2&$J$2,DataBlock,HLOOKUP(B51,DataBlock,2,FALSE),FALSE) ->  | Q51: =IF(ISERROR(F51*CO2_C),,F51*CO2_C) -> 0
B53: 2013 | D53: =VLOOKUP($D$2&$J$2&$F$2&$J$2,DataBlock,HLOOKUP(B53,DataBlock,2,FALSE),FALSE) ->  | Q53: =IF(ISERROR(F53*CO2_C),,F53*CO2_C) -> 0
B55: 2014 | D55: =VLOOKUP($D$2&$J$2&$F$2&$J$2,DataBlock,HLOOKUP(B55,DataBlock,2,FALSE),FALSE) ->  | Q55: =IF(ISERROR(F55*CO2_C),,F55*CO2_C) -> 0
B57: 2015 | D57: =VLOOKUP($D$2&$J$2&$F$2&$J$2,DataBlock,HLOOKUP(B57,DataBlock,2,FALSE),FALSE) ->  | Q57: =IF(ISERROR(F57*CO2_C),,F57*CO2_C) -> 0
B59: 2016 | D59: =VLOOKUP($D$2&$J$2&$F$2&$J$2,DataBlock,HLOOKUP(B59,DataBlock,2,FALSE),FALSE) ->  | Q59: =IF(ISERROR(F59*CO2_C),,F59*CO2_C) -> 0
B61: 2017 | D61: =VLOOKUP($D$2&$J$2&$F$2&$J$2,DataBlock,HLOOKUP(B61,DataBlock,2,FALSE),FALSE) ->  | Q61: =IF(ISERROR(F61*CO2_C),,F61*CO2_C) -> 0
B63: 2018 | D63: =VLOOKUP($D$2&$J$2&$F$2&$J$2,DataBlock,HLOOKUP(B63,DataBlock,2,FALSE),FALSE) ->  | Q63: =IF(ISERROR(F63*CO2_C),,F63*CO2_C) -> 0
B65: 2019 | D65: =VLOOKUP($D$2&$J$2&$F$2&$J$2,DataBlock,HLOOKUP(B65,DataBlock,2,FALSE),FALSE) ->  | Q65: =IF(ISERROR(F65*CO2_C),,F65*CO2_C) -> 0
B67: 2020 | D67: =VLOOKUP($D$2&$J$2&$F$2&$J$2,DataBlock,HLOOKUP(B67,DataBlock,2,FALSE),FALSE) ->  | Q67: =IF(ISERROR(F67*CO2_C),,F67*CO2_C) -> 0
B69: 2021 | D69: =VLOOKUP($D$2&$J$2&$F$2&$J$2,DataBlock,HLOOKUP(B69,DataBlock,2,FALSE),FALSE) ->  | Q69: =IF(ISERROR(F69*CO2_C),,F69*CO2_C) -> 0
B71: 2022 | D71: =VLOOKUP($D$2&$J$2&$F$2&$J$2,DataBlock,HLOOKUP(B71,DataBlock,2,FALSE),FALSE) ->  | Q71: =IF(ISERROR(F71*CO2_C),,F71*CO2_C) -> 0
B73: 2023 | D73: =VLOOKUP($D$2&$J$2&$F$2&$J$2,DataBlock,HLOOKUP(B73,DataBlock,2,FALSE),FALSE) ->  | Q73: =IF(ISERROR(F73*CO2_C),,F73*CO2_C) -> 0
B75: 2024 | D75: =VLOOKUP($D$2&$J$2&$F$2&$J$2,DataBlock,HLOOKUP(B75,DataBlock,2,FALSE),FALSE) ->  | Q75: =IF(ISERROR(F75*CO2_C),,F75*CO2_C) -> 0
B77: 2025 | D77: =VLOOKUP($D$2&$J$2&$F$2&$J$2,DataBlock,HLOOKUP(B77,DataBlock,2,FALSE),FALSE) ->  | Q77: =IF(ISERROR(F77*CO2_C),,F77*CO2_C) -> 0

Sheet Semiconductor
B1: ="14. Semiconductor Manufacture in "&'List Data'!B3 -> 14. Semiconductor Manufacture in Select a State . . .
D2: ='List Data'!$A$3 -> XX | E2: Semi | F2: =" " -> 
D4: National Emissions | F4: Value of State Semiconductor Shipments- 1997, 2002, 2007, 2012, or 2017 intervening years interpolated | H4: Value of National Semiconductor Shipments- 1997, 2002, 2007, 2012, or 2017 intervening years interpolated | J4: Apportioned National Emissions | L4: Apportioned National Emissions
D5: (Metric Tons CO2 Eq.) | F5: ($1000's) | H5: ($1000's) | J5: (MTCE) | L5: (MTCO2E)
B7: 1990 | E7: x | G7: / | I7: = | J7: =L7*CO2_C -> 0 | K7: =
B9: 1991 | E9: x | G9: / | I9: = | J9: =L9*CO2_C -> 0 | K9: =
B11: 1992 | E11: x | G11: / | I11: = | J11: =L11*CO2_C -> 0 | K11: =
B13: 1993 | E13: x | G13: / | I13: = | J13: =L13*CO2_C -> 0 | K13: =
B15: 1994 | E15: x | G15: / | I15: = | J15: =L15*CO2_C -> 0 | K15: =
B17: 1995 | E17: x | G17: / | I17: = | J17: =L17*CO2_C -> 0 | K17: =
B19: 1996 | E19: x | G19: / | I19: = | J19: =L19*CO2_C -> 0 | K19: =
B21: 1997 | E21: x | G21: / | I21: = | J21: =L21*CO2_C -> 0 | K21: =
B23: 1998 | E23: x | G23: / | I23: = | J23: =L23*CO2_C -> 0 | K23: =
B25: 1999 | E25: x | G25: / | I25: = | J25: =L25*CO2_C -> 0 | K25: =
B27: 2000 | E27: x | G27: / | I27: = | J27: =L27*CO2_C -> 0 | K27: =
B29: 2001 | E29: x | G29: / | I29: = | J29: =L29*CO2_C -> 0 | K29: =
B31: 2002 | E31: x | G31: / | I31: = | J31: =L31*CO2_C -> 0 | K31: =
B33: 2003 | E33: x | G33: / | I33: = | J33: =L33*CO2_C -> 0 | K33: =
B35: 2004 | E35: x | G35: / | I35: = | J35: =L35*CO2_C -> 0 | K35: =
B37: 2005 | E37: x | G37: / | I37: = | J37: =L37*CO2_C -> 0 | K37: =
B39: 2006 | E39: x | G39: / | I39: = | J39: =L39*CO2_C -> 0 | K39: =
B41: 2007 | E41: x | G41: / | I41: = | J41: =L41*CO2_C -> 0 | K41: =
B43: 2008 | E43: x | G43: / | I43: = | J43: =L43*CO2_C -> 0 | K43: =
B45: 2009 | E45: x | G45: / | I45: = | J45: =L45*CO2_C -> 0 | K45: =
B47: 2010 | E47: x | G47: / | I47: = | J47: =L47*CO2_C -> 0 | K47: =
B49: 2011 | E49: x | G49: / | I49: = | J49: =L49*CO2_C -> 0 | K49: =
B51: 2012 | E51: x | G51: / | I51: = | J51: =L51*CO2_C -> 0 | K51: =
B53: 2013 | E53: x | G53: / | I53: = | J53: =L53*CO2_C -> 0 | K53: =
B55: 2014 | E55: x | G55: / | I55: = | J55: =L55*CO2_C -> 0 | K55: =
B57: 2015 | E57: x | G57: / | I57: = | J57: =L57*CO2_C -> 0 | K57: =
B59: 2016 | E59: x | G59: / | I59: = | J59: =L59*CO2_C -> 0 | K59: =
B61: 2017 | E61: x | G61: / | I61: = | J61: =L61*CO2_C -> 0 | K61: =
B63: 2018 | E63: x | G63: / | I63: = | J63: =L63*CO2_C -> 0 | K63: =
B65: 2019 | E65: x | G65: / | I65: = | J65: =L65*CO2_C -> 0 | K65: =
B67: 2020 | E67: x | G67: / | I67: = | J67: =L67*CO2_C -> 0 | K67: =
B69: 2021 | E69: x | G69: / | I69: = | J69: =L69*CO2_C -> 0 | K69: =
B71: 2022 | E71: x | G71: / | I71: = | J71: =L71*CO2_C -> 0 | K71: =
B73: 2023 | E73: x | G73: / | I73: = | J73: =L73*CO2_C -> 0 | K73: =
B75: 2024 | E75: x | G75: / | I75: = | J75: =L75*CO2_C -> 0 | K75: =
B77: 2025 | E77: x | G77: / | I77: = | J77: =L77*CO2_C -> 0 | K77: =

Sheet Electric Power
B1: ="15. Electric Power Transmission and Distribution in "&'List Data'!B3 -> 15. Electric Power Transmission and Distribution in Select a State . . .
D2: ='List Data'!$A$3 -> XX | E2: EU | F2: =" " -> 
D4: SF6 Consumption | F4: Emission Factor | H4: Emissions | J4: Emissions | L4: Emissions
D5: (Metric Tons) | F5: (t SF6/t Consumption) | H5: (Metric Tons SF6) | J5: (MTCE) | L5: (MTCO2E)
B7: 1990 | E7: x | F7: =INDIRECT($E$2&"Factor") -> 0 | G7: = | H7: =IF(ISERROR(D7*F7),,D7*F7) -> 0 | I7: = | J7: =H7*Control!$C$101*CO2_C -> 0 | K7: = | L7: =J7/CO2_C -> 0
B9: 1991 | E9: x | F9: =INDIRECT($E$2&"Factor") -> 0 | G9: = | H9: =IF(ISERROR(D9*F9),,D9*F9) -> 0 | I9: = | J9: =H9*Control!$C$101*CO2_C -> 0 | K9: = | L9: =J9/CO2_C -> 0
B11: 1992 | E11: x | F11: =INDIRECT($E$2&"Factor") -> 0 | G11: = | H11: =IF(ISERROR(D11*F11),,D11*F11) -> 0 | I11: = | J11: =H11*Control!$C$101*CO2_C -> 0 | K11: = | L11: =J11/CO2_C -> 0
B13: 1993 | E13: x | F13: =INDIRECT($E$2&"Factor") -> 0 | G13: = | H13: =IF(ISERROR(D13*F13),,D13*F13) -> 0 | I13: = | J13: =H13*Control!$C$101*CO2_C -> 0 | K13: = | L13: =J13/CO2_C -> 0
B15: 1994 | E15: x | F15: =INDIRECT($E$2&"Factor") -> 0 | G15: = | H15: =IF(ISERROR(D15*F15),,D15*F15) -> 0 | I15: = | J15: =H15*Control!$C$101*CO2_C -> 0 | K15: = | L15: =J15/CO2_C -> 0
B17: 1995 | E17: x | F17: =INDIRECT($E$2&"Factor") -> 0 | G17: = | H17: =IF(ISERROR(D17*F17),,D17*F17) -> 0 | I17: = | J17: =H17*Control!$C$101*CO2_C -> 0 | K17: = | L17: =J17/CO2_C -> 0
B19: 1996 | E19: x | F19: =INDIRECT($E$2&"Factor") -> 0 | G19: = | H19: =IF(ISERROR(D19*F19),,D19*F19) -> 0 | I19: = | J19: =H19*Control!$C$101*CO2_C -> 0 | K19: = | L19: =J19/CO2_C -> 0
B21: 1997 | E21: x | F21: =INDIRECT($E$2&"Factor") -> 0 | G21: = | H21: =IF(ISERROR(D21*F21),,D21*F21) -> 0 | I21: = | J21: =H21*Control!$C$101*CO2_C -> 0 | K21: = | L21: =J21/CO2_C -> 0
B23: 1998 | E23: x | F23: =INDIRECT($E$2&"Factor") -> 0 | G23: = | H23: =IF(ISERROR(D23*F23),,D23*F23) -> 0 | I23: = | J23: =H23*Control!$C$101*CO2_C -> 0 | K23: = | L23: =J23/CO2_C -> 0
B25: 1999 | E25: x | F25: =INDIRECT($E$2&"Factor") -> 0 | G25: = | H25: =IF(ISERROR(D25*F25),,D25*F25) -> 0 | I25: = | J25: =H25*Control!$C$101*CO2_C -> 0 | K25: = | L25: =J25/CO2_C -> 0
B27: 2000 | E27: x | F27: =INDIRECT($E$2&"Factor") -> 0 | G27: = | H27: =IF(ISERROR(D27*F27),,D27*F27) -> 0 | I27: = | J27: =H27*Control!$C$101*CO2_C -> 0 | K27: = | L27: =J27/CO2_C -> 0
B29: 2001 | E29: x | F29: =INDIRECT($E$2&"Factor") -> 0 | G29: = | H29: =IF(ISERROR(D29*F29),,D29*F29) -> 0 | I29: = | J29: =H29*Control!$C$101*CO2_C -> 0 | K29: = | L29: =J29/CO2_C -> 0
B31: 2002 | E31: x | F31: =INDIRECT($E$2&"Factor") -> 0 | G31: = | H31: =IF(ISERROR(D31*F31),,D31*F31) -> 0 | I31: = | J31: =H31*Control!$C$101*CO2_C -> 0 | K31: = | L31: =J31/CO2_C -> 0
B33: 2003 | E33: x | F33: =INDIRECT($E$2&"Factor") -> 0 | G33: = | H33: =IF(ISERROR(D33*F33),,D33*F33) -> 0 | I33: = | J33: =H33*Control!$C$101*CO2_C -> 0 | K33: = | L33: =J33/CO2_C -> 0
B35: 2004 | E35: x | F35: =INDIRECT($E$2&"Factor") -> 0 | G35: = | H35: =IF(ISERROR(D35*F35),,D35*F35) -> 0 | I35: = | J35: =H35*Control!$C$101*CO2_C -> 0 | K35: = | L35: =J35/CO2_C -> 0
B37: 2005 | E37: x | F37: =INDIRECT($E$2&"Factor") -> 0 | G37: = | H37: =IF(ISERROR(D37*F37),,D37*F37) -> 0 | I37: = | J37: =H37*Control!$C$101*CO2_C -> 0 | K37: = | L37: =J37/CO2_C -> 0
B39: 2006 | E39: x | F39: =INDIRECT($E$2&"Factor") -> 0 | G39: = | H39: =IF(ISERROR(D39*F39),,D39*F39) -> 0 | I39: = | J39: =H39*Control!$C$101*CO2_C -> 0 | K39: = | L39: =J39/CO2_C -> 0
B41: 2007 | E41: x | F41: =INDIRECT($E$2&"Factor") -> 0 | G41: = | H41: =IF(ISERROR(D41*F41),,D41*F41) -> 0 | I41: = | J41: =H41*Control!$C$101*CO2_C -> 0 | K41: = | L41: =J41/CO2_C -> 0
B43: 2008 | E43: x | F43: =INDIRECT($E$2&"Factor") -> 0 | G43: = | H43: =IF(ISERROR(D43*F43),,D43*F43) -> 0 | I43: = | J43: =H43*Control!$C$101*CO2_C -> 0 | K43: = | L43: =J43/CO2_C -> 0
B45: 2009 | E45: x | F45: =INDIRECT($E$2&"Factor") -> 0 | G45: = | H45: =IF(ISERROR(D45*F45),,D45*F45) -> 0 | I45: = | J45: =H45*Control!$C$101*CO2_C -> 0 | K45: = | L45: =J45/CO2_C -> 0
B47: 2010 | E47: x | F47: =INDIRECT($E$2&"Factor") -> 0 | G47: = | H47: =IF(ISERROR(D47*F47),,D47*F47) -> 0 | I47: = | J47: =H47*Control!$C$101*CO2_C -> 0 | K47: = | L47: =J47/CO2_C -> 0
B49: 2011 | E49: x | F49: =INDIRECT($E$2&"Factor") -> 0 | G49: = | H49: =IF(ISERROR(D49*F49),,D49*F49) -> 0 | I49: = | J49: =H49*Control!$C$101*CO2_C -> 0 | K49: = | L49: =J49/CO2_C -> 0
B51: 2012 | E51: x | F51: =INDIRECT($E$2&"Factor") -> 0 | G51: = | H51: =IF(ISERROR(D51*F51),,D51*F51) -> 0 | I51: = | J51: =H51*Control!$C$101*CO2_C -> 0 | K51: = | L51: =J51/CO2_C -> 0
B53: 2013 | E53: x | F53: =INDIRECT($E$2&"Factor") -> 0 | G53: = | H53: =IF(ISERROR(D53*F53),,D53*F53) -> 0 | I53: = | J53: =H53*Control!$C$101*CO2_C -> 0 | K53: = | L53: =J53/CO2_C -> 0
B55: 2014 | E55: x | F55: =INDIRECT($E$2&"Factor") -> 0 | G55: = | H55: =IF(ISERROR(D55*F55),,D55*F55) -> 0 | I55: = | J55: =H55*Control!$C$101*CO2_C -> 0 | K55: = | L55: =J55/CO2_C -> 0
B57: 2015 | E57: x | F57: =INDIRECT($E$2&"Factor") -> 0 | G57: = | H57: =IF(ISERROR(D57*F57),,D57*F57) -> 0 | I57: = | J57: =H57*Control!$C$101*CO2_C -> 0 | K57: = | L57: =J57/CO2_C -> 0
B59: 2016 | E59: x | F59: =INDIRECT($E$2&"Factor") -> 0 | G59: = | H59: =IF(ISERROR(D59*F59),,D59*F59) -> 0 | I59: = | J59: =H59*Control!$C$101*CO2_C -> 0 | K59: = | L59: =J59/CO2_C -> 0
B61: 2017 | E61: x | F61: =INDIRECT($E$2&"Factor") -> 0 | G61: = | H61: =IF(ISERROR(D61*F61),,D61*F61) -> 0 | I61: = | J61: =H61*Control!$C$101*CO2_C -> 0 | K61: = | L61: =J61/CO2_C -> 0
B63: 2018 | E63: x | F63: =INDIRECT($E$2&"Factor") -> 0 | G63: = | H63: =IF(ISERROR(D63*F63),,D63*F63) -> 0 | I63: = | J63: =H63*Control!$C$101*CO2_C -> 0 | K63: = | L63: =J63/CO2_C -> 0
B65: 2019 | E65: x | F65: =INDIRECT($E$2&"Factor") -> 0 | G65: = | H65: =IF(ISERROR(D65*F65),,D65*F65) -> 0 | I65: = | J65: =H65*Control!$C$101*CO2_C -> 0 | K65: = | L65: =J65/CO2_C -> 0
B67: 2020 | E67: x | F67: =INDIRECT($E$2&"Factor") -> 0 | G67: = | H67: =IF(ISERROR(D67*F67),,D67*F67) -> 0 | I67: = | J67: =H67*Control!$C$101*CO2_C -> 0 | K67: = | L67: =J67/CO2_C -> 0
B69: 2021 | E69: x | F69: =INDIRECT($E$2&"Factor") -> 0 | G69: = | H69: =IF(ISERROR(D69*F69),,D69*F69) -> 0 | I69: = | J69: =H69*Control!$C$101*CO2_C -> 0 | K69: = | L69: =J69/CO2_C -> 0
B71: 2022 | E71: x | F71: =INDIRECT($E$2&"Factor") -> 0 | G71: = | H71: =IF(ISERROR(D71*F71),,D71*F71) -> 0 | I71: = | J71: =H71*Control!$C$101*CO2_C -> 0 | K71: = | L71: =J71/CO2_C -> 0
B73: 2023 | E73: x | F73: =INDIRECT($E$2&"Factor") -> 0 | G73: = | H73: =IF(ISERROR(D73*F73),,D73*F73) -> 0 | I73: = | J73: =H73*Control!$C$101*CO2_C -> 0 | K73: = | L73: =J73/CO2_C -> 0
B75: 2024 | E75: x | F75: =INDIRECT($E$2&"Factor") -> 0 | G75: = | H75: =IF(ISERROR(D75*F75),,D75*F75) -> 0 | I75: = | J75: =H75*Control!$C$101*CO2_C -> 0 | K75: = | L75: =J75/CO2_C -> 0
B77: 2025 | E77: x | F77: =INDIRECT($E$2&"Factor") -> 0 | G77: = | H77: =IF(ISERROR(D77*F77),,D77*F77) -> 0 | I77: = | J77: =H77*Control!$C$101*CO2_C -> 0 | K77: = | L77: =J77/CO2_C -> 0

Sheet Magnesium
B1: ="16. Magnesium Production and Processing in "&'List Data'!B3 -> 16. Magnesium Production and Processing in Select a State . . .
E2: ='List Data'!$A$3 -> XX | F2: Mg | G2: =" " -> 
E4: Magnesium Production and Processing | G4: Emission Factor | I4: Emissions | K4: Emissions | M4: Emissions
E5: (Metric Tons) | G5: (t SF6/t Magnesium) | I5: (Metric Tons SF6) | K5: (MTCE) | M5: (MTCO2E)
B7: 1990 | D7: Primary Production | F7: x | G7: =IF(ISNUMBER(INDIRECT($F$2&LEFT(D7,2)&"Factor")),INDIRECT($F$2&LEFT(D7,2)&"Factor"),VLOOKUP(B7,MgEFs,2,FALSE)) -> 0.0012 | H7: = | I7: =E7*G7 -> 0 | J7: = | K7: =I7*Control!$C$101*CO2_C -> 0 | L7: = | M7: =K7/CO2_C -> 0
D8: Secondary Production | F8: x | G8: =IF(ISNUMBER(INDIRECT($F$2&LEFT(D8,2)&"Factor")),INDIRECT($F$2&LEFT(D8,2)&"Factor"),VLOOKUP(B7,MgEFs,3,FALSE)) -> 0.001 | H8: = | I8: =E8*G8 -> 0 | J8: = | K8: =I8*Control!$C$101*CO2_C -> 0 | L8: = | M8: =K8/CO2_C -> 0
D9: Casting | F9: x | G9: =IF(ISNUMBER(INDIRECT($F$2&LEFT(D9,2)&"Factor")),INDIRECT($F$2&LEFT(D9,2)&"Factor"),VLOOKUP(B7,MgEFs,4,FALSE)) -> 0.0041 | H9: = | I9: 0 | J9: = | K9: =I9*Control!$C$101*CO2_C -> 0 | L9: = | M9: =K9/CO2_C -> 0
B11: 1991 | D11: Primary Production | F11: x | G11: =IF(ISNUMBER(INDIRECT($F$2&LEFT(D11,2)&"Factor")),INDIRECT($F$2&LEFT(D11,2)&"Factor"),VLOOKUP(B11,MgEFs,2,FALSE)) -> 0.0012 | H11: = | I11: =E11*G11 -> 0 | J11: = | K11: =I11*Control!$C$101*CO2_C -> 0 | L11: = | M11: =K11/CO2_C -> 0
D12: Secondary Production | F12: x | G12: =IF(ISNUMBER(INDIRECT($F$2&LEFT(D12,2)&"Factor")),INDIRECT($F$2&LEFT(D12,2)&"Factor"),VLOOKUP(B11,MgEFs,3,FALSE)) -> 0.001 | H12: = | I12: 0 | J12: = | K12: =I12*Control!$C$101*CO2_C -> 0 | L12: = | M12: =K12/CO2_C -> 0
D13: Casting | F13: x | G13: =IF(ISNUMBER(INDIRECT($F$2&LEFT(D13,2)&"Factor")),INDIRECT($F$2&LEFT(D13,2)&"Factor"),VLOOKUP(B11,MgEFs,4,FALSE)) -> 0.0041 | H13: = | I13: 0 | J13: = | K13: =I13*Control!$C$101*CO2_C -> 0 | L13: = | M13: =K13/CO2_C -> 0
B15: 1992 | D15: Primary Production | F15: x | G15: =IF(ISNUMBER(INDIRECT($F$2&LEFT(D15,2)&"Factor")),INDIRECT($F$2&LEFT(D15,2)&"Factor"),VLOOKUP(B15,MgEFs,2,FALSE)) -> 0.0012 | H15: = | I15: =E15*G15 -> 0 | J15: = | K15: =I15*Control!$C$101*CO2_C -> 0 | L15: = | M15: =K15/CO2_C -> 0
D16: Secondary Production | F16: x | G16: =IF(ISNUMBER(INDIRECT($F$2&LEFT(D16,2)&"Factor")),INDIRECT($F$2&LEFT(D16,2)&"Factor"),VLOOKUP(B15,MgEFs,3,FALSE)) -> 0.001 | H16: = | I16: =E16*G16 -> 0 | J16: = | K16: =I16*Control!$C$101*CO2_C -> 0 | L16: = | M16: =K16/CO2_C -> 0
D17: Casting | F17: x | G17: =IF(ISNUMBER(INDIRECT($F$2&LEFT(D17,2)&"Factor")),INDIRECT($F$2&LEFT(D17,2)&"Factor"),VLOOKUP(B15,MgEFs,4,FALSE)) -> 0.0041 | H17: = | I17: =E17*G17 -> 0 | J17: = | K17: =I17*Control!$C$101*CO2_C -> 0 | L17: = | M17: =K17/CO2_C -> 0
B19: 1993 | D19: Primary Production | F19: x | G19: =IF(ISNUMBER(INDIRECT($F$2&LEFT(D19,2)&"Factor")),INDIRECT($F$2&LEFT(D19,2)&"Factor"),VLOOKUP(B19,MgEFs,2,FALSE)) -> 0.0012 | H19: = | I19: =E19*G19 -> 0 | J19: = | K19: =I19*Control!$C$101*CO2_C -> 0 | L19: = | M19: =K19/CO2_C -> 0
D20: Secondary Production | F20: x | G20: =IF(ISNUMBER(INDIRECT($F$2&LEFT(D20,2)&"Factor")),INDIRECT($F$2&LEFT(D20,2)&"Factor"),VLOOKUP(B19,MgEFs,3,FALSE)) -> 0.001 | H20: = | I20: =E20*G20 -> 0 | J20: = | K20: =I20*Control!$C$101*CO2_C -> 0 | L20: = | M20: =K20/CO2_C -> 0
D21: Casting | F21: x | G21: =IF(ISNUMBER(INDIRECT($F$2&LEFT(D21,2)&"Factor")),INDIRECT($F$2&LEFT(D21,2)&"Factor"),VLOOKUP(B19,MgEFs,4,FALSE)) -> 0.0041 | H21: = | I21: =E21*G21 -> 0 | J21: = | K21: =I21*Control!$C$101*CO2_C -> 0 | L21: = | M21: =K21/CO2_C -> 0
B23: 1994 | D23: Primary Production | F23: x | G23: =IF(ISNUMBER(INDIRECT($F$2&LEFT(D23,2)&"Factor")),INDIRECT($F$2&LEFT(D23,2)&"Factor"),VLOOKUP(B23,MgEFs,2,FALSE)) -> 0.0011 | H23: = | I23: =E23*G23 -> 0 | J23: = | K23: =I23*Control!$C$101*CO2_C -> 0 | L23: = | M23: =K23/CO2_C -> 0
D24: Secondary Production | F24: x | G24: =IF(ISNUMBER(INDIRECT($F$2&LEFT(D24,2)&"Factor")),INDIRECT($F$2&LEFT(D24,2)&"Factor"),VLOOKUP(B23,MgEFs,3,FALSE)) -> 0.001 | H24: = | I24: =E24*G24 -> 0 | J24: = | K24: =I24*Control!$C$101*CO2_C -> 0 | L24: = | M24: =K24/CO2_C -> 0
D25: Casting | F25: x | G25: =IF(ISNUMBER(INDIRECT($F$2&LEFT(D25,2)&"Factor")),INDIRECT($F$2&LEFT(D25,2)&"Factor"),VLOOKUP(B23,MgEFs,4,FALSE)) -> 0.0041 | H25: = | I25: =E25*G25 -> 0 | J25: = | K25: =I25*Control!$C$101*CO2_C -> 0 | L25: = | M25: =K25/CO2_C -> 0
B27: 1995 | D27: Primary Production | F27: x | G27: =IF(ISNUMBER(INDIRECT($F$2&LEFT(D27,2)&"Factor")),INDIRECT($F$2&LEFT(D27,2)&"Factor"),VLOOKUP(B27,MgEFs,2,FALSE)) -> 0.0011 | H27: = | I27: =E27*G27 -> 0 | J27: = | K27: =I27*Control!$C$101*CO2_C -> 0 | L27: = | M27: =K27/CO2_C -> 0
D28: Secondary Production | F28: x | G28: =IF(ISNUMBER(INDIRECT($F$2&LEFT(D28,2)&"Factor")),INDIRECT($F$2&LEFT(D28,2)&"Factor"),VLOOKUP(B27,MgEFs,3,FALSE)) -> 0.001 | H28: = | I28: =E28*G28 -> 0 | J28: = | K28: =I28*Control!$C$101*CO2_C -> 0 | L28: = | M28: =K28/CO2_C -> 0
D29: Casting | F29: x | G29: =IF(ISNUMBER(INDIRECT($F$2&LEFT(D29,2)&"Factor")),INDIRECT($F$2&LEFT(D29,2)&"Factor"),VLOOKUP(B27,MgEFs,4,FALSE)) -> 0.0041 | H29: = | I29: =E29*G29 -> 0 | J29: = | K29: =I29*Control!$C$101*CO2_C -> 0 | L29: = | M29: =K29/CO2_C -> 0
B31: 1996 | D31: Primary Production | F31: x | G31: =IF(ISNUMBER(INDIRECT($F$2&LEFT(D31,2)&"Factor")),INDIRECT($F$2&LEFT(D31,2)&"Factor"),VLOOKUP(B31,MgEFs,2,FALSE)) -> 0.0011 | H31: = | I31: =E31*G31 -> 0 | J31: = | K31: =I31*Control!$C$101*CO2_C -> 0 | L31: = | M31: =K31/CO2_C -> 0
D32: Secondary Production | F32: x | G32: =IF(ISNUMBER(INDIRECT($F$2&LEFT(D32,2)&"Factor")),INDIRECT($F$2&LEFT(D32,2)&"Factor"),VLOOKUP(B31,MgEFs,3,FALSE)) -> 0.001 | H32: = | I32: =E32*G32 -> 0 | J32: = | K32: =I32*Control!$C$101*CO2_C -> 0 | L32: = | M32: =K32/CO2_C -> 0
D33: Casting | F33: x | G33: =IF(ISNUMBER(INDIRECT($F$2&LEFT(D33,2)&"Factor")),INDIRECT($F$2&LEFT(D33,2)&"Factor"),VLOOKUP(B31,MgEFs,4,FALSE)) -> 0.0041 | H33: = | I33: =E33*G33 -> 0 | J33: = | K33: =I33*Control!$C$101*CO2_C -> 0 | L33: = | M33: =K33/CO2_C -> 0
B35: 1997 | D35: Primary Production | F35: x | G35: =IF(ISNUMBER(INDIRECT($F$2&LEFT(D35,2)&"Factor")),INDIRECT($F$2&LEFT(D35,2)&"Factor"),VLOOKUP(B35,MgEFs,2,FALSE)) -> 0.0011 | H35: = | I35: =E35*G35 -> 0 | J35: = | K35: =I35*Control!$C$101*CO2_C -> 0 | L35: = | M35: =K35/CO2_C -> 0
D36: Secondary Production | F36: x | G36: =IF(ISNUMBER(INDIRECT($F$2&LEFT(D36,2)&"Factor")),INDIRECT($F$2&LEFT(D36,2)&"Factor"),VLOOKUP(B35,MgEFs,3,FALSE)) -> 0.001 | H36: = | I36: =E36*G36 -> 0 | J36: = | K36: =I36*Control!$C$101*CO2_C -> 0 | L36: = | M36: =K36/CO2_C -> 0
D37: Casting | F37: x | G37: =IF(ISNUMBER(INDIRECT($F$2&LEFT(D37,2)&"Factor")),INDIRECT($F$2&LEFT(D37,2)&"Factor"),VLOOKUP(B35,MgEFs,4,FALSE)) -> 0.003446383567 | H37: = | I37: =E37*G37 -> 0 | J37: = | K37: =I37*Control!$C$101*CO2_C -> 0 | L37: = | M37: =K37/CO2_C -> 0
B39: 1998 | D39: Primary Production | F39: x | G39: =IF(ISNUMBER(INDIRECT($F$2&LEFT(D39,2)&"Factor")),INDIRECT($F$2&LEFT(D39,2)&"Factor"),VLOOKUP(B39,MgEFs,2,FALSE)) -> 0.001 | H39: = | I39: =E39*G39 -> 0 | J39: = | K39: =I39*Control!$C$101*CO2_C -> 0 | L39: = | M39: =K39/CO2_C -> 0
D40: Secondary Production | F40: x | G40: =IF(ISNUMBER(INDIRECT($F$2&LEFT(D40,2)&"Factor")),INDIRECT($F$2&LEFT(D40,2)&"Factor"),VLOOKUP(B39,MgEFs,3,FALSE)) -> 0.001 | H40: = | I40: =E40*G40 -> 0 | J40: = | K40: =I40*Control!$C$101*CO2_C -> 0 | L40: = | M40: =K40/CO2_C -> 0
D41: Casting | F41: x | G41: =IF(ISNUMBER(INDIRECT($F$2&LEFT(D41,2)&"Factor")),INDIRECT($F$2&LEFT(D41,2)&"Factor"),VLOOKUP(B39,MgEFs,4,FALSE)) -> 0.002792767134 | H41: = | I41: =E41*G41 -> 0 | J41: = | K41: =I41*Control!$C$101*CO2_C -> 0 | L41: = | M41: =K41/CO2_C -> 0
B43: 1999 | D43: Primary Production | F43: x | G43: =IF(ISNUMBER(INDIRECT($F$2&LEFT(D43,2)&"Factor")),INDIRECT($F$2&LEFT(D43,2)&"Factor"),VLOOKUP(B43,MgEFs,2,FALSE)) -> 0.001 | H43: = | I43: =E43*G43 -> 0 | J43: = | K43: =I43*Control!$C$101*CO2_C -> 0 | L43: = | M43: =K43/CO2_C -> 0
D44: Secondary Production | F44: x | G44: =IF(ISNUMBER(INDIRECT($F$2&LEFT(D44,2)&"Factor")),INDIRECT($F$2&LEFT(D44,2)&"Factor"),VLOOKUP(B43,MgEFs,3,FALSE)) -> 0.001 | H44: = | I44: =E44*G44 -> 0 | J44: = | K44: =I44*Control!$C$101*CO2_C -> 0 | L44: = | M44: =K44/CO2_C -> 0
D45: Casting | F45: x | G45: =IF(ISNUMBER(INDIRECT($F$2&LEFT(D45,2)&"Factor")),INDIRECT($F$2&LEFT(D45,2)&"Factor"),VLOOKUP(B43,MgEFs,4,FALSE)) -> 0.002139150701 | H45: = | I45: =E45*G45 -> 0 | J45: = | K45: =I45*Control!$C$101*CO2_C -> 0 | L45: = | M45: =K45/CO2_C -> 0
B47: 2000 | D47: Primary Production | F47: x | G47: =IF(ISNUMBER(INDIRECT($F$2&LEFT(D47,2)&"Factor")),INDIRECT($F$2&LEFT(D47,2)&"Factor"),VLOOKUP(B47,MgEFs,2,FALSE)) -> 0.001 | H47: = | I47: =E47*G47 -> 0 | J47: = | K47: =I47*Control!$C$101*CO2_C -> 0 | L47: = | M47: =K47/CO2_C -> 0
D48: Secondary Production | F48: x | G48: =IF(ISNUMBER(INDIRECT($F$2&LEFT(D48,2)&"Factor")),INDIRECT($F$2&LEFT(D48,2)&"Factor"),VLOOKUP(B47,MgEFs,3,FALSE)) -> 0.001 | H48: = | I48: =E48*G48 -> 0 | J48: = | K48: =I48*Control!$C$101*CO2_C -> 0 | L48: = | M48: =K48/CO2_C -> 0
D49: Casting | F49: x | G49: =IF(ISNUMBER(INDIRECT($F$2&LEFT(D49,2)&"Factor")),INDIRECT($F$2&LEFT(D49,2)&"Factor"),VLOOKUP(B47,MgEFs,4,FALSE)) -> 0.00071 | H49: = | I49: =E49*G49 -> 0 | J49: = | K49: =I49*Control!$C$101*CO2_C -> 0 | L49: = | M49: =K49/CO2_C -> 0
B51: 2001 | D51: Primary Production | F51: x | G51: =IF(ISNUMBER(INDIRECT($F$2&LEFT(D51,2)&"Factor")),INDIRECT($F$2&LEFT(D51,2)&"Factor"),VLOOKUP(B51,MgEFs,2,FALSE)) -> 0.001 | H51: = | I51: =E51*G51 -> 0 | J51: = | K51: =I51*Control!$C$101*CO2_C -> 0 | L51: = | M51: =K51/CO2_C -> 0
D52: Secondary Production | F52: x | G52: =IF(ISNUMBER(INDIRECT($F$2&LEFT(D52,2)&"Factor")),INDIRECT($F$2&LEFT(D52,2)&"Factor"),VLOOKUP(B51,MgEFs,3,FALSE)) -> 0.001 | H52: = | I52: =E52*G52 -> 0 | J52: = | K52: =I52*Control!$C$101*CO2_C -> 0 | L52: = | M52: =K52/CO2_C -> 0
D53: Casting | F53: x | G53: =IF(ISNUMBER(INDIRECT($F$2&LEFT(D53,2)&"Factor")),INDIRECT($F$2&LEFT(D53,2)&"Factor"),VLOOKUP(B51,MgEFs,4,FALSE)) -> 0.00073 | H53: = | I53: =E53*G53 -> 0 | J53: = | K53: =I53*Control!$C$101*CO2_C -> 0 | L53: = | M53: =K53/CO2_C -> 0
B55: 2002 | D55: Primary Production | F55: x | G55: =IF(ISNUMBER(INDIRECT($F$2&LEFT(D55,2)&"Factor")),INDIRECT($F$2&LEFT(D55,2)&"Factor"),VLOOKUP(B55,MgEFs,2,FALSE)) -> 0.001 | H55: = | I55: =E55*G55 -> 0 | J55: = | K55: =I55*Control!$C$101*CO2_C -> 0 | L55: = | M55: =K55/CO2_C -> 0
D56: Secondary Production | F56: x | G56: =IF(ISNUMBER(INDIRECT($F$2&LEFT(D56,2)&"Factor")),INDIRECT($F$2&LEFT(D56,2)&"Factor"),VLOOKUP(B55,MgEFs,3,FALSE)) -> 0.001 | H56: = | I56: =E56*G56 -> 0 | J56: = | K56: =I56*Control!$C$101*CO2_C -> 0 | L56: = | M56: =K56/CO2_C -> 0
D57: Casting | F57: x | G57: =IF(ISNUMBER(INDIRECT($F$2&LEFT(D57,2)&"Factor")),INDIRECT($F$2&LEFT(D57,2)&"Factor"),VLOOKUP(B55,MgEFs,4,FALSE)) -> 0.00071 | H57: = | I57: =E57*G57 -> 0 | J57: = | K57: =I57*Control!$C$101*CO2_C -> 0 | L57: = | M57: =K57/CO2_C -> 0
B59: 2003 | D59: Primary Production | F59: x | G59: =IF(ISNUMBER(INDIRECT($F$2&LEFT(D59,2)&"Factor")),INDIRECT($F$2&LEFT(D59,2)&"Factor"),VLOOKUP(B59,MgEFs,2,FALSE)) -> 0.001 | H59: = | I59: =E59*G59 -> 0 | J59: = | K59: =I59*Control!$C$101*CO2_C -> 0 | L59: = | M59: =K59/CO2_C -> 0
D60: Secondary Production | F60: x | G60: =IF(ISNUMBER(INDIRECT($F$2&LEFT(D60,2)&"Factor")),INDIRECT($F$2&LEFT(D60,2)&"Factor"),VLOOKUP(B59,MgEFs,3,FALSE)) -> 0.001 | H60: = | I60: =E60*G60 -> 0 | J60: = | K60: =I60*Control!$C$101*CO2_C -> 0 | L60: = | M60: =K60/CO2_C -> 0
D61: Casting | F61: x | G61: =IF(ISNUMBER(INDIRECT($F$2&LEFT(D61,2)&"Factor")),INDIRECT($F$2&LEFT(D61,2)&"Factor"),VLOOKUP(B59,MgEFs,4,FALSE)) -> 0.00071 | H61: = | I61: =E61*G61 -> 0 | J61: = | K61: =I61*Control!$C$101*CO2_C -> 0 | L61: = | M61: =K61/CO2_C -> 0
B63: 2004 | D63: Primary Production | F63: x | G63: =IF(ISNUMBER(INDIRECT($F$2&LEFT(D63,2)&"Factor")),INDIRECT($F$2&LEFT(D63,2)&"Factor"),VLOOKUP(B63,MgEFs,2,FALSE)) -> 0.001 | H63: = | I63: =E63*G63 -> 0 | J63: = | K63: =I63*Control!$C$101*CO2_C -> 0 | L63: = | M63: =K63/CO2_C -> 0
D64: Secondary Production | F64: x | G64: =IF(ISNUMBER(INDIRECT($F$2&LEFT(D64,2)&"Factor")),INDIRECT($F$2&LEFT(D64,2)&"Factor"),VLOOKUP(B63,MgEFs,3,FALSE)) -> 0.001 | H64: = | I64: =E64*G64 -> 0 | J64: = | K64: =I64*Control!$C$101*CO2_C -> 0 | L64: = | M64: =K64/CO2_C -> 0
D65: Casting | F65: x | G65: =IF(ISNUMBER(INDIRECT($F$2&LEFT(D65,2)&"Factor")),INDIRECT($F$2&LEFT(D65,2)&"Factor"),VLOOKUP(B63,MgEFs,4,FALSE)) -> 0.00071 | H65: = | I65: =E65*G65 -> 0 | J65: = | K65: =I65*Control!$C$101*CO2_C -> 0 | L65: = | M65: =K65/CO2_C -> 0
B67: 2005 | D67: Primary Production | F67: x | G67: =IF(ISNUMBER(INDIRECT($F$2&LEFT(D67,2)&"Factor")),INDIRECT($F$2&LEFT(D67,2)&"Factor"),VLOOKUP(B67,MgEFs,2,FALSE)) -> 0.001 | H67: = | I67: =E67*G67 -> 0 | J67: = | K67: =I67*Control!$C$101*CO2_C -> 0 | L67: = | M67: =K67/CO2_C -> 0
D68: Secondary Production | F68: x | G68: =IF(ISNUMBER(INDIRECT($F$2&LEFT(D68,2)&"Factor")),INDIRECT($F$2&LEFT(D68,2)&"Factor"),VLOOKUP(B67,MgEFs,3,FALSE)) -> 0.001 | H68: = | I68: =E68*G68 -> 0 | J68: = | K68: =I68*Control!$C$101*CO2_C -> 0 | L68: = | M68: =K68/CO2_C -> 0
D69: Casting | F69: x | G69: =IF(ISNUMBER(INDIRECT($F$2&LEFT(D69,2)&"Factor")),INDIRECT($F$2&LEFT(D69,2)&"Factor"),VLOOKUP(B67,MgEFs,4,FALSE)) -> 0.00071 | H69: = | I69: =E69*G69 -> 0 | J69: = | K69: =I69*Control!$C$101*CO2_C -> 0 | L69: = | M69: =K69/CO2_C -> 0
B71: 2006 | D71: Primary Production | F71: x | G71: =IF(ISNUMBER(INDIRECT($F$2&LEFT(D71,2)&"Factor")),INDIRECT($F$2&LEFT(D71,2)&"Factor"),VLOOKUP(B71,MgEFs,2,FALSE)) -> 0.001 | H71: = | I71: =E71*G71 -> 0 | J71: = | K71: =I71*Control!$C$101*CO2_C -> 0 | L71: = | M71: =K71/CO2_C -> 0
D72: Secondary Production | F72: x | G72: =IF(ISNUMBER(INDIRECT($F$2&LEFT(D72,2)&"Factor")),INDIRECT($F$2&LEFT(D72,2)&"Factor"),VLOOKUP(B71,MgEFs,3,FALSE)) -> 0.001 | H72: = | I72: =E72*G72 -> 0 | J72: = | K72: =I72*Control!$C$101*CO2_C -> 0 | L72: = | M72: =K72/CO2_C -> 0
D73: Casting | F73: x | G73: =IF(ISNUMBER(INDIRECT($F$2&LEFT(D73,2)&"Factor")),INDIRECT($F$2&LEFT(D73,2)&"Factor"),VLOOKUP(B71,MgEFs,4,FALSE)) -> 0.00071 | H73: = | I73: =E73*G73 -> 0 | J73: = | K73: =I73*Control!$C$101*CO2_C -> 0 | L73: = | M73: =K73/CO2_C -> 0
B75: 2007 | D75: Primary Production | F75: x | G75: =IF(ISNUMBER(INDIRECT($F$2&LEFT(D75,2)&"Factor")),INDIRECT($F$2&LEFT(D75,2)&"Factor"),VLOOKUP(B75,MgEFs,2,FALSE)) -> 0.001 | H75: = | I75: =E75*G75 -> 0 | J75: = | K75: =I75*Control!$C$101*CO2_C -> 0 | L75: = | M75: =K75/CO2_C -> 0
D76: Secondary Production | F76: x | G76: =IF(ISNUMBER(INDIRECT($F$2&LEFT(D76,2)&"Factor")),INDIRECT($F$2&LEFT(D76,2)&"Factor"),VLOOKUP(B75,MgEFs,3,FALSE)) -> 0.001 | H76: = | I76: =E76*G76 -> 0 | J76: = | K76: =I76*Control!$C$101*CO2_C -> 0 | L76: = | M76: =K76/CO2_C -> 0
D77: Casting | F77: x | G77: =IF(ISNUMBER(INDIRECT($F$2&LEFT(D77,2)&"Factor")),INDIRECT($F$2&LEFT(D77,2)&"Factor"),VLOOKUP(B75,MgEFs,4,FALSE)) -> 0.00071 | H77: = | I77: =E77*G77 -> 0 | J77: = | K77: =I77*Control!$C$101*CO2_C -> 0 | L77: = | M77: =K77/CO2_C -> 0
B79: 2008 | D79: Primary Production | F79: x | G79: =IF(ISNUMBER(INDIRECT($F$2&LEFT(D79,2)&"Factor")),INDIRECT($F$2&LEFT(D79,2)&"Factor"),VLOOKUP(B79,MgEFs,2,FALSE)) -> 0.001 | H79: = | I79: =E79*G79 -> 0 | J79: = | K79: =I79*Control!$C$101*CO2_C -> 0 | L79: = | M79: =K79/CO2_C -> 0
D80: Secondary Production | F80: x | G80: =IF(ISNUMBER(INDIRECT($F$2&LEFT(D80,2)&"Factor")),INDIRECT($F$2&LEFT(D80,2)&"Factor"),VLOOKUP(B79,MgEFs,3,FALSE)) -> 0.001 | H80: = | I80: =E80*G80 -> 0 | J80: = | K80: =I80*Control!$C$101*CO2_C -> 0 | L80: = | M80: =K80/CO2_C -> 0
D81: Casting | F81: x | G81: =IF(ISNUMBER(INDIRECT($F$2&LEFT(D81,2)&"Factor")),INDIRECT($F$2&LEFT(D81,2)&"Factor"),VLOOKUP(B79,MgEFs,4,FALSE)) -> 0.00071 | H81: = | I81: =E81*G81 -> 0 | J81: = | K81: =I81*Control!$C$101*CO2_C -> 0 | L81: = | M81: =K81/CO2_C -> 0
B83: 2009 | D83: Primary Production | F83: x | G83: =IF(ISNUMBER(INDIRECT($F$2&LEFT(D83,2)&"Factor")),INDIRECT($F$2&LEFT(D83,2)&"Factor"),VLOOKUP(B83,MgEFs,2,FALSE)) -> 0.001 | H83: = | I83: =E83*G83 -> 0 | J83: = | K83: =I83*Control!$C$101*CO2_C -> 0 | L83: = | M83: =K83/CO2_C -> 0
D84: Secondary Production | F84: x | G84: =IF(ISNUMBER(INDIRECT($F$2&LEFT(D84,2)&"Factor")),INDIRECT($F$2&LEFT(D84,2)&"Factor"),VLOOKUP(B83,MgEFs,3,FALSE)) -> 0.001 | H84: = | I84: =E84*G84 -> 0 | J84: = | K84: =I84*Control!$C$101*CO2_C -> 0 | L84: = | M84: =K84/CO2_C -> 0
D85: Casting | F85: x | G85: =IF(ISNUMBER(INDIRECT($F$2&LEFT(D85,2)&"Factor")),INDIRECT($F$2&LEFT(D85,2)&"Factor"),VLOOKUP(B83,MgEFs,4,FALSE)) -> 0.00071 | H85: = | I85: =E85*G85 -> 0 | J85: = | K85: =I85*Control!$C$101*CO2_C -> 0 | L85: = | M85: =K85/CO2_C -> 0
B87: 2010 | D87: Primary Production | F87: x | G87: =IF(ISNUMBER(INDIRECT($F$2&LEFT(D87,2)&"Factor")),INDIRECT($F$2&LEFT(D87,2)&"Factor"),VLOOKUP(B87,MgEFs,2,FALSE)) -> 0.001 | H87: = | I87: =E87*G87 -> 0 | J87: = | K87: =I87*Control!$C$101*CO2_C -> 0 | L87: = | M87: =K87/CO2_C -> 0
D88: Secondary Production | F88: x | G88: =IF(ISNUMBER(INDIRECT($F$2&LEFT(D88,2)&"Factor")),INDIRECT($F$2&LEFT(D88,2)&"Factor"),VLOOKUP(B87,MgEFs,3,FALSE)) -> 0.001 | H88: = | I88: =E88*G88 -> 0 | J88: = | K88: =I88*Control!$C$101*CO2_C -> 0 | L88: = | M88: =K88/CO2_C -> 0
D89: Casting | F89: x | G89: =IF(ISNUMBER(INDIRECT($F$2&LEFT(D89,2)&"Factor")),INDIRECT($F$2&LEFT(D89,2)&"Factor"),VLOOKUP(B87,MgEFs,4,FALSE)) -> 0.00071 | H89: = | I89: =E89*G89 -> 0 | J89: = | K89: =I89*Control!$C$101*CO2_C -> 0 | L89: = | M89: =K89/CO2_C -> 0
B91: 2011 | D91: Primary Production | F91: x | G91: =IF(ISNUMBER(INDIRECT($F$2&LEFT(D91,2)&"Factor")),INDIRECT($F$2&LEFT(D91,2)&"Factor"),VLOOKUP(B91,MgEFs,2,FALSE)) -> 0.001 | H91: = | I91: =E91*G91 -> 0 | J91: = | K91: =I91*Control!$C$101*CO2_C -> 0 | L91: = | M91: =K91/CO2_C -> 0
D92: Secondary Production | F92: x | G92: =IF(ISNUMBER(INDIRECT($F$2&LEFT(D92,2)&"Factor")),INDIRECT($F$2&LEFT(D92,2)&"Factor"),VLOOKUP(B91,MgEFs,3,FALSE)) -> 0.001 | H92: = | I92: =E92*G92 -> 0 | J92: = | K92: =I92*Control!$C$101*CO2_C -> 0 | L92: = | M92: =K92/CO2_C -> 0
D93: Casting | F93: x | G93: =IF(ISNUMBER(INDIRECT($F$2&LEFT(D93,2)&"Factor")),INDIRECT($F$2&LEFT(D93,2)&"Factor"),VLOOKUP(B91,MgEFs,4,FALSE)) -> 0.00071 | H93: = | I93: =E93*G93 -> 0 | J93: = | K93: =I93*Control!$C$101*CO2_C -> 0 | L93: = | M93: =K93/CO2_C -> 0
B95: 2012 | D95: Primary Production | F95: x | G95: =IF(ISNUMBER(INDIRECT($F$2&LEFT(D95,2)&"Factor")),INDIRECT($F$2&LEFT(D95,2)&"Factor"),VLOOKUP(B95,MgEFs,2,FALSE)) -> 0.001 | H95: = | I95: =E95*G95 -> 0 | J95: = | K95: =I95*Control!$C$101*CO2_C -> 0 | L95: = | M95: =K95/CO2_C -> 0
D96: Secondary Production | F96: x | G96: =IF(ISNUMBER(INDIRECT($F$2&LEFT(D96,2)&"Factor")),INDIRECT($F$2&LEFT(D96,2)&"Factor"),VLOOKUP(B95,MgEFs,3,FALSE)) -> 0.001 | H96: = | I96: =E96*G96 -> 0 | J96: = | K96: =I96*Control!$C$101*CO2_C -> 0 | L96: = | M96: =K96/CO2_C -> 0
D97: Casting | F97: x | G97: =IF(ISNUMBER(INDIRECT($F$2&LEFT(D97,2)&"Factor")),INDIRECT($F$2&LEFT(D97,2)&"Factor"),VLOOKUP(B95,MgEFs,4,FALSE)) -> 0.00071 | H97: = | I97: =E97*G97 -> 0 | J97: = | K97: =I97*Control!$C$101*CO2_C -> 0 | L97: = | M97: =K97/CO2_C -> 0
B99: 2013 | D99: Primary Production | F99: x | G99: =IF(ISNUMBER(INDIRECT($F$2&LEFT(D99,2)&"Factor")),INDIRECT($F$2&LEFT(D99,2)&"Factor"),VLOOKUP(B99,MgEFs,2,FALSE)) -> 0.001 | H99: = | I99: =E99*G99 -> 0 | J99: = | K99: =I99*Control!$C$101*CO2_C -> 0 | L99: = | M99: =K99/CO2_C -> 0
D100: Secondary Production | F100: x | G100: =IF(ISNUMBER(INDIRECT($F$2&LEFT(D100,2)&"Factor")),INDIRECT($F$2&LEFT(D100,2)&"Factor"),VLOOKUP(B99,MgEFs,3,FALSE)) -> 0.001 | H100: = | I100: =E100*G100 -> 0 | J100: = | K100: =I100*Control!$C$101*CO2_C -> 0 | L100: = | M100: =K100/CO2_C -> 0
D101: Casting | F101: x | G101: =IF(ISNUMBER(INDIRECT($F$2&LEFT(D101,2)&"Factor")),INDIRECT($F$2&LEFT(D101,2)&"Factor"),VLOOKUP(B99,MgEFs,4,FALSE)) -> 0.00071 | H101: = | I101: =E101*G101 -> 0 | J101: = | K101: =I101*Control!$C$101*CO2_C -> 0 | L101: = | M101: =K101/CO2_C -> 0
B103: 2014 | D103: Primary Production | F103: x | G103: =IF(ISNUMBER(INDIRECT($F$2&LEFT(D103,2)&"Factor")),INDIRECT($F$2&LEFT(D103,2)&"Factor"),VLOOKUP(B103,MgEFs,2,FALSE)) -> 0.001 | H103: = | I103: =E103*G103 -> 0 | J103: = | K103: =I103*Control!$C$101*CO2_C -> 0 | L103: = | M103: =K103/CO2_C -> 0
D104: Secondary Production | F104: x | G104: =IF(ISNUMBER(INDIRECT($F$2&LEFT(D104,2)&"Factor")),INDIRECT($F$2&LEFT(D104,2)&"Factor"),VLOOKUP(B103,MgEFs,3,FALSE)) -> 0.001 | H104: = | I104: =E104*G104 -> 0 | J104: = | K104: =I104*Control!$C$101*CO2_C -> 0 | L104: = | M104: =K104/CO2_C -> 0
D105: Casting | F105: x | G105: =IF(ISNUMBER(INDIRECT($F$2&LEFT(D105,2)&"Factor")),INDIRECT($F$2&LEFT(D105,2)&"Factor"),VLOOKUP(B103,MgEFs,4,FALSE)) -> 0.00071 | H105: = | I105: =E105*G105 -> 0 | J105: = | K105: =I105*Control!$C$101*CO2_C -> 0 | L105: = | M105: =K105/CO2_C -> 0
B107: 2015 | D107: Primary Production | F107: x | G107: =IF(ISNUMBER(INDIRECT($F$2&LEFT(D107,2)&"Factor")),INDIRECT($F$2&LEFT(D107,2)&"Factor"),VLOOKUP(B107,MgEFs,2,FALSE)) -> 0.001 | H107: = | I107: =E107*G107 -> 0 | J107: = | K107: =I107*Control!$C$101*CO2_C -> 0 | L107: = | M107: =K107/CO2_C -> 0
D108: Secondary Production | F108: x | G108: =IF(ISNUMBER(INDIRECT($F$2&LEFT(D108,2)&"Factor")),INDIRECT($F$2&LEFT(D108,2)&"Factor"),VLOOKUP(B107,MgEFs,3,FALSE)) -> 0.001 | H108: = | I108: =E108*G108 -> 0 | J108: = | K108: =I108*Control!$C$101*CO2_C -> 0 | L108: = | M108: =K108/CO2_C -> 0
D109: Casting | F109: x | G109: =IF(ISNUMBER(INDIRECT($F$2&LEFT(D109,2)&"Factor")),INDIRECT($F$2&LEFT(D109,2)&"Factor"),VLOOKUP(B107,MgEFs,4,FALSE)) -> 0.00071 | H109: = | I109: =E109*G109 -> 0 | J109: = | K109: =I109*Control!$C$101*CO2_C -> 0 | L109: = | M109: =K109/CO2_C -> 0
B111: 2016 | D111: Primary Production | F111: x | G111: =IF(ISNUMBER(INDIRECT($F$2&LEFT(D111,2)&"Factor")),INDIRECT($F$2&LEFT(D111,2)&"Factor"),VLOOKUP(B111,MgEFs,2,FALSE)) -> 0.001 | H111: = | I111: =E111*G111 -> 0 | J111: = | K111: =I111*Control!$C$101*CO2_C -> 0 | L111: = | M111: =K111/CO2_C -> 0
D112: Secondary Production | F112: x | G112: =IF(ISNUMBER(INDIRECT($F$2&LEFT(D112,2)&"Factor")),INDIRECT($F$2&LEFT(D112,2)&"Factor"),VLOOKUP(B111,MgEFs,3,FALSE)) -> 0.001 | H112: = | I112: =E112*G112 -> 0 | J112: = | K112: =I112*Control!$C$101*CO2_C -> 0 | L112: = | M112: =K112/CO2_C -> 0
D113: Casting | F113: x | G113: =IF(ISNUMBER(INDIRECT($F$2&LEFT(D113,2)&"Factor")),INDIRECT($F$2&LEFT(D113,2)&"Factor"),VLOOKUP(B111,MgEFs,4,FALSE)) -> 0.00071 | H113: = | I113: =E113*G113 -> 0 | J113: = | K113: =I113*Control!$C$101*CO2_C -> 0 | L113: = | M113: =K113/CO2_C -> 0
B115: 2017 | D115: Primary Production | F115: x | G115: =IF(ISNUMBER(INDIRECT($F$2&LEFT(D115,2)&"Factor")),INDIRECT($F$2&LEFT(D115,2)&"Factor"),VLOOKUP(B115,MgEFs,2,FALSE)) -> 0.001 | H115: = | I115: =E115*G115 -> 0 | J115: = | K115: =I115*Control!$C$101*CO2_C -> 0 | L115: = | M115: =K115/CO2_C -> 0
D116: Secondary Production | F116: x | G116: =IF(ISNUMBER(INDIRECT($F$2&LEFT(D116,2)&"Factor")),INDIRECT($F$2&LEFT(D116,2)&"Factor"),VLOOKUP(B115,MgEFs,3,FALSE)) -> 0.001 | H116: = | I116: =E116*G116 -> 0 | J116: = | K116: =I116*Control!$C$101*CO2_C -> 0 | L116: = | M116: =K116/CO2_C -> 0
D117: Casting | F117: x | G117: =IF(ISNUMBER(INDIRECT($F$2&LEFT(D117,2)&"Factor")),INDIRECT($F$2&LEFT(D117,2)&"Factor"),VLOOKUP(B115,MgEFs,4,FALSE)) -> 0.00071 | H117: = | I117: =E117*G117 -> 0 | J117: = | K117: =I117*Control!$C$101*CO2_C -> 0 | L117: = | M117: =K117/CO2_C -> 0
B119: 2018 | D119: Primary Production | F119: x | G119: =IF(ISNUMBER(INDIRECT($F$2&LEFT(D119,2)&"Factor")),INDIRECT($F$2&LEFT(D119,2)&"Factor"),VLOOKUP(B119,MgEFs,2,FALSE)) -> 0.001 | H119: = | I119: =E119*G119 -> 0 | J119: = | K119: =I119*Control!$C$101*CO2_C -> 0 | L119: = | M119: =K119/CO2_C -> 0
D120: Secondary Production | F120: x | G120: =IF(ISNUMBER(INDIRECT($F$2&LEFT(D120,2)&"Factor")),INDIRECT($F$2&LEFT(D120,2)&"Factor"),VLOOKUP(B119,MgEFs,3,FALSE)) -> 0.001 | H120: = | I120: =E120*G120 -> 0 | J120: = | K120: =I120*Control!$C$101*CO2_C -> 0 | L120: = | M120: =K120/CO2_C -> 0
D121: Casting | F121: x | G121: =IF(ISNUMBER(INDIRECT($F$2&LEFT(D121,2)&"Factor")),INDIRECT($F$2&LEFT(D121,2)&"Factor"),VLOOKUP(B119,MgEFs,4,FALSE)) -> 0.00071 | H121: = | I121: =E121*G121 -> 0 | J121: = | K121: =I121*Control!$C$101*CO2_C -> 0 | L121: = | M121: =K121/CO2_C -> 0
B123: 2019 | D123: Primary Production | F123: x | G123: =IF(ISNUMBER(INDIRECT($F$2&LEFT(D123,2)&"Factor")),INDIRECT($F$2&LEFT(D123,2)&"Factor"),VLOOKUP(B123,MgEFs,2,FALSE)) -> 0.001 | H123: = | I123: =E123*G123 -> 0 | J123: = | K123: =I123*Control!$C$101*CO2_C -> 0 | L123: = | M123: =K123/CO2_C -> 0
D124: Secondary Production | F124: x | G124: =IF(ISNUMBER(INDIRECT($F$2&LEFT(D124,2)&"Factor")),INDIRECT($F$2&LEFT(D124,2)&"Factor"),VLOOKUP(B123,MgEFs,3,FALSE)) -> 0.001 | H124: = | I124: =E124*G124 -> 0 | J124: = | K124: =I124*Control!$C$101*CO2_C -> 0 | L124: = | M124: =K124/CO2_C -> 0
D125: Casting | F125: x | G125: =IF(ISNUMBER(INDIRECT($F$2&LEFT(D125,2)&"Factor")),INDIRECT($F$2&LEFT(D125,2)&"Factor"),VLOOKUP(B123,MgEFs,4,FALSE)) -> 0.00071 | H125: = | I125: =E125*G125 -> 0 | J125: = | K125: =I125*Control!$C$101*CO2_C -> 0 | L125: = | M125: =K125/CO2_C -> 0
B127: 2020 | D127: Primary Production | F127: x | G127: =IF(ISNUMBER(INDIRECT($F$2&LEFT(D127,2)&"Factor")),INDIRECT($F$2&LEFT(D127,2)&"Factor"),VLOOKUP(B127,MgEFs,2,FALSE)) -> 0.001 | H127: = | I127: =E127*G127 -> 0 | J127: = | K127: =I127*Control!$C$101*CO2_C -> 0 | L127: = | M127: =K127/CO2_C -> 0
D128: Secondary Production | F128: x | G128: =IF(ISNUMBER(INDIRECT($F$2&LEFT(D128,2)&"Factor")),INDIRECT($F$2&LEFT(D128,2)&"Factor"),VLOOKUP(B127,MgEFs,3,FALSE)) -> 0.001 | H128: = | I128: =E128*G128 -> 0 | J128: = | K128: =I128*Control!$C$101*CO2_C -> 0 | L128: = | M128: =K128/CO2_C -> 0
D129: Casting | F129: x | G129: =IF(ISNUMBER(INDIRECT($F$2&LEFT(D129,2)&"Factor")),INDIRECT($F$2&LEFT(D129,2)&"Factor"),VLOOKUP(B127,MgEFs,4,FALSE)) -> 0.00071 | H129: = | I129: =E129*G129 -> 0 | J129: = | K129: =I129*Control!$C$101*CO2_C -> 0 | L129: = | M129: =K129/CO2_C -> 0
B131: 2021 | D131: Primary Production | F131: x | G131: =IF(ISNUMBER(INDIRECT($F$2&LEFT(D131,2)&"Factor")),INDIRECT($F$2&LEFT(D131,2)&"Factor"),VLOOKUP(B131,MgEFs,2,FALSE)) -> 0.001 | H131: = | I131: =E131*G131 -> 0 | J131: = | K131: =I131*Control!$C$101*CO2_C -> 0 | L131: = | M131: =K131/CO2_C -> 0
D132: Secondary Production | F132: x | G132: =IF(ISNUMBER(INDIRECT($F$2&LEFT(D132,2)&"Factor")),INDIRECT($F$2&LEFT(D132,2)&"Factor"),VLOOKUP(B131,MgEFs,3,FALSE)) -> 0.001 | H132: = | I132: =E132*G132 -> 0 | J132: = | K132: =I132*Control!$C$101*CO2_C -> 0 | L132: = | M132: =K132/CO2_C -> 0
D133: Casting | F133: x | G133: =IF(ISNUMBER(INDIRECT($F$2&LEFT(D133,2)&"Factor")),INDIRECT($F$2&LEFT(D133,2)&"Factor"),VLOOKUP(B131,MgEFs,4,FALSE)) -> 0.00071 | H133: = | I133: =E133*G133 -> 0 | J133: = | K133: =I133*Control!$C$101*CO2_C -> 0 | L133: = | M133: =K133/CO2_C -> 0
B135: 2022 | D135: Primary Production | F135: x | G135: =IF(ISNUMBER(INDIRECT($F$2&LEFT(D135,2)&"Factor")),INDIRECT($F$2&LEFT(D135,2)&"Factor"),VLOOKUP(B135,MgEFs,2,FALSE)) -> 0.001 | H135: = | I135: =E135*G135 -> 0 | J135: = | K135: =I135*Control!$C$101*CO2_C -> 0 | L135: = | M135: =K135/CO2_C -> 0
D136: Secondary Production | F136: x | G136: =IF(ISNUMBER(INDIRECT($F$2&LEFT(D136,2)&"Factor")),INDIRECT($F$2&LEFT(D136,2)&"Factor"),VLOOKUP(B135,MgEFs,3,FALSE)) -> 0.001 | H136: = | I136: =E136*G136 -> 0 | J136: = | K136: =I136*Control!$C$101*CO2_C -> 0 | L136: = | M136: =K136/CO2_C -> 0
D137: Casting | F137: x | G137: =IF(ISNUMBER(INDIRECT($F$2&LEFT(D137,2)&"Factor")),INDIRECT($F$2&LEFT(D137,2)&"Factor"),VLOOKUP(B135,MgEFs,4,FALSE)) -> 0.00071 | H137: = | I137: =E137*G137 -> 0 | J137: = | K137: =I137*Control!$C$101*CO2_C -> 0 | L137: = | M137: =K137/CO2_C -> 0
B139: 2023 | D139: Primary Production | F139: x | G139: =IF(ISNUMBER(INDIRECT($F$2&LEFT(D139,2)&"Factor")),INDIRECT($F$2&LEFT(D139,2)&"Factor"),VLOOKUP(B139,MgEFs,2,FALSE)) -> 0.001 | H139: = | I139: =E139*G139 -> 0 | J139: = | K139: =I139*Control!$C$101*CO2_C -> 0 | L139: = | M139: =K139/CO2_C -> 0
D140: Secondary Production | F140: x | G140: =IF(ISNUMBER(INDIRECT($F$2&LEFT(D140,2)&"Factor")),INDIRECT($F$2&LEFT(D140,2)&"Factor"),VLOOKUP(B139,MgEFs,3,FALSE)) -> 0.001 | H140: = | I140: =E140*G140 -> 0 | J140: = | K140: =I140*Control!$C$101*CO2_C -> 0 | L140: = | M140: =K140/CO2_C -> 0
D141: Casting | F141: x | G141: =IF(ISNUMBER(INDIRECT($F$2&LEFT(D141,2)&"Factor")),INDIRECT($F$2&LEFT(D141,2)&"Factor"),VLOOKUP(B139,MgEFs,4,FALSE)) -> 0.00071 | H141: = | I141: =E141*G141 -> 0 | J141: = | K141: =I141*Control!$C$101*CO2_C -> 0 | L141: = | M141: =K141/CO2_C -> 0
B143: 2024 | D143: Primary Production | F143: x | G143: =IF(ISNUMBER(INDIRECT($F$2&LEFT(D143,2)&"Factor")),INDIRECT($F$2&LEFT(D143,2)&"Factor"),VLOOKUP(B143,MgEFs,2,FALSE)) -> 0.001 | H143: = | I143: =E143*G143 -> 0 | J143: = | K143: =I143*Control!$C$101*CO2_C -> 0 | L143: = | M143: =K143/CO2_C -> 0
D144: Secondary Production | F144: x | G144: =IF(ISNUMBER(INDIRECT($F$2&LEFT(D144,2)&"Factor")),INDIRECT($F$2&LEFT(D144,2)&"Factor"),VLOOKUP(B143,MgEFs,3,FALSE)) -> 0.001 | H144: = | I144: =E144*G144 -> 0 | J144: = | K144: =I144*Control!$C$101*CO2_C -> 0 | L144: = | M144: =K144/CO2_C -> 0
D145: Casting | F145: x | G145: =IF(ISNUMBER(INDIRECT($F$2&LEFT(D145,2)&"Factor")),INDIRECT($F$2&LEFT(D145,2)&"Factor"),VLOOKUP(B143,MgEFs,4,FALSE)) -> 0.00071 | H145: = | I145: =E145*G145 -> 0 | J145: = | K145: =I145*Control!$C$101*CO2_C -> 0 | L145: = | M145: =K145/CO2_C -> 0
B147: 2025 | D147: Primary Production | F147: x | G147: =IF(ISNUMBER(INDIRECT($F$2&LEFT(D147,2)&"Factor")),INDIRECT($F$2&LEFT(D147,2)&"Factor"),VLOOKUP(B147,MgEFs,2,FALSE)) -> 0.001 | H147: = | I147: =E147*G147 -> 0 | J147: = | K147: =I147*Control!$C$101*CO2_C -> 0 | L147: = | M147: =K147/CO2_C -> 0
D148: Secondary Production | F148: x | G148: =IF(ISNUMBER(INDIRECT($F$2&LEFT(D148,2)&"Factor")),INDIRECT($F$2&LEFT(D148,2)&"Factor"),VLOOKUP(B147,MgEFs,3,FALSE)) -> 0.001 | H148: = | I148: =E148*G148 -> 0 | J148: = | K148: =I148*Control!$C$101*CO2_C -> 0 | L148: = | M148: =K148/CO2_C -> 0
D149: Casting | F149: x | G149: =IF(ISNUMBER(INDIRECT($F$2&LEFT(D149,2)&"Factor")),INDIRECT($F$2&LEFT(D149,2)&"Factor"),VLOOKUP(B147,MgEFs,4,FALSE)) -> 0.00071 | H149: = | I149: =E149*G149 -> 0 | J149: = | K149: =I149*Control!$C$101*CO2_C -> 0 | L149: = | M149: =K149/CO2_C -> 0

Sheet Additional Emission Sources
B1: ="17. (OPTIONAL) Additional Emission Sources for "&'List Data'!B3 -> 17. (OPTIONAL) Additional Emission Sources for Select a State . . .
B15: GHGRP Emissions (MTCO2E) | D15: 2010 | E15: 2011 | F15: 2012 | G15: 2013 | H15: 2014 | I15: 2015 | J15: 2016 | K15: 2017 | L15: 2018 | M15: 2019 | N15: 2020 | O15: 2021 | P15: 2022 | Q15: 2023 | R15: 2024 | S15: 2025
B16: Cement Production, CO2
B17: Lime Manufacturing, CO2
B18: Soda Ash Manufacturing, CO2
B19: Ammonia Manufacturing, CO2
B20: Nitric Acid Production, N2O
B21: Adipic Acid Production, N2O
B22: Aluminum Production, PFC
B23: Aluminum Production, CO2
B24: HCFC-22 Production, HFC-23 Destruction Processes
B27: Additional Emission Sources (MTCO2E)
B28: Option A
B29: Source | C29: Gas | D29: 1990 | E29: 1991 | F29: 1992 | G29: 1993 | H29: 1994 | I29: 1995 | J29: 1996 | K29: 1997 | L29: 1998 | M29: 1999 | N29: 2000 | O29: 2001 | P29: 2002 | Q29: 2003 | R29: 2004 | S29: 2005 | T29: 2006 | U29: 2007 | V29: 2008 | W29: 2009 | X29: 2010 | Y29: 2011 | Z29: 2012 | AA29: 2013 | AB29: 2014 | AC29: 2015 | AD29: 2016 | AE29: 2017 | AF29: 2018 | AG29: 2019 | AH29: 2020 | AI29: 2021 | AJ29: 2022 | AK29: 2023 | AL29: 2024 | AM29: 2025
AR31: CO2
AR32: N2O
AR33: HFCs
AR34: PFCs
AR35: SF6
AR36: NF3
D42: 1990 | E42: 1991 | F42: 1992 | G42: 1993 | H42: 1994 | I42: 1995 | J42: 1996 | K42: 1997 | L42: 1998 | M42: 1999 | N42: 2000 | O42: 2001 | P42: 2002 | Q42: 2003 | R42: 2004 | S42: 2005 | T42: 2006 | U42: 2007 | V42: 2008 | W42: 2009 | X42: 2010 | Y42: 2011 | Z42: 2012 | AA42: 2013 | AB42: 2014 | AC42: 2015 | AD42: 2016 | AE42: 2017 | AF42: 2018 | AG42: 2019 | AH42: 2020 | AI42: 2021 | AJ42: 2022 | AK42: 2023 | AL42: 2024 | AM42: 2025
B43: Additional Carbon Dioxide Emissions | C43: CO2 | D43: =SUMIF($C$30:$C$39,$C43,D$30:D$39) -> 0 | E43: =SUMIF($C$30:$C$39,$C43,E$30:E$39) -> 0 | F43: 0 | G43: 0 | H43: 0 | I43: 0 | J43: 0 | K43: 0 | L43: 0 | M43: 0 | N43: 0 | O43: 0 | P43: 0 | Q43: 0 | R43: 0 | S43: 0 | T43: 0 | U43: 0 | V43: 0 | W43: 0 | X43: 0 | Y43: 0 | Z43: 0 | AA43: 0 | AB43: 0 | AC43: 0 | AD43: 0 | AE43: 0 | AF43: 0 | AG43: 0 | AH43: 0 | AI43: 0 | AJ43: 0 | AK43: 0 | AL43: 0 | AM43: 0
B44: Additional Nitrous Oxide Emissions | C44: N2O | D44: =SUMIF($C$30:$C$39,$C44,D$30:D$39) -> 0 | E44: 0 | F44: 0 | G44: 0 | H44: 0 | I44: 0 | J44: 0 | K44: 0 | L44: 0 | M44: 0 | N44: 0 | O44: 0 | P44: 0 | Q44: 0 | R44: 0 | S44: 0 | T44: 0 | U44: 0 | V44: 0 | W44: 0 | X44: 0 | Y44: 0 | Z44: 0 | AA44: 0 | AB44: 0 | AC44: 0 | AD44: 0 | AE44: 0 | AF44: 0 | AG44: 0 | AH44: 0 | AI44: 0 | AJ44: 0 | AK44: 0 | AL44: 0 | AM44: 0
B45: Additional HFC Emissions | C45: HFCs | D45: 0 | E45: 0 | F45: 0 | G45: 0 | H45: 0 | I45: 0 | J45: 0 | K45: 0 | L45: 0 | M45: 0 | N45: 0 | O45: 0 | P45: 0 | Q45: 0 | R45: 0 | S45: 0 | T45: 0 | U45: 0 | V45: 0 | W45: 0 | X45: 0 | Y45: 0 | Z45: 0 | AA45: 0 | AB45: 0 | AC45: 0 | AD45: 0 | AE45: 0 | AF45: 0 | AG45: 0 | AH45: 0 | AI45: 0 | AJ45: 0 | AK45: 0 | AL45: 0 | AM45: 0
B46: Additional PFC Emissions | C46: PFCs | D46: 0 | E46: 0 | F46: 0 | G46: 0 | H46: 0 | I46: 0 | J46: 0 | K46: 0 | L46: 0 | M46: 0 | N46: 0 | O46: 0 | P46: 0 | Q46: 0 | R46: 0 | S46: 0 | T46: 0 | U46: 0 | V46: 0 | W46: 0 | X46: 0 | Y46: 0 | Z46: 0 | AA46: 0 | AB46: 0 | AC46: 0 | AD46: 0 | AE46: 0 | AF46: 0 | AG46: 0 | AH46: 0 | AI46: 0 | AJ46: 0 | AK46: 0 | AL46: 0 | AM46: 0
B47: Additional SF6 Emissions | C47: SF6 | D47: 0 | E47: 0 | F47: 0 | G47: 0 | H47: 0 | I47: 0 | J47: 0 | K47: 0 | L47: 0 | M47: 0 | N47: 0 | O47: 0 | P47: 0 | Q47: 0 | R47: 0 | S47: 0 | T47: 0 | U47: 0 | V47: 0 | W47: 0 | X47: 0 | Y47: 0 | Z47: 0 | AA47: 0 | AB47: 0 | AC47: 0 | AD47: 0 | AE47: 0 | AF47: 0 | AG47: 0 | AH47: 0 | AI47: 0 | AJ47: 0 | AK47: 0 | AL47: 0 | AM47: 0
B48: Additional NF3 Emissions | C48: NF3 | D48: 0 | E48: 0 | F48: 0 | G48: 0 | H48: 0 | I48: 0 | J48: 0 | K48: 0 | L48: 0 | M48: 0 | N48: 0 | O48: 0 | P48: 0 | Q48: 0 | R48: 0 | S48: 0 | T48: 0 | U48: 0 | V48: 0 | W48: 0 | X48: 0 | Y48: 0 | Z48: 0 | AA48: 0 | AB48: 0 | AC48: 0 | AD48: 0 | AE48: 0 | AF48: 0 | AG48: 0 | AH48: 0 | AI48: 0 | AJ48: 0 | AK48: 0 | AL48: 0 | AM48: 0
B51: Option B
D52: 1990 | E52: 1991 | F52: 1992 | G52: 1993 | H52: 1994 | I52: 1995 | J52: 1996 | K52: 1997 | L52: 1998 | M52: 1999 | N52: 2000 | O52: 2001 | P52: 2002 | Q52: 2003 | R52: 2004 | S52: 2005 | T52: 2006 | U52: 2007 | V52: 2008 | W52: 2009 | X52: 2010 | Y52: 2011 | Z52: 2012 | AA52: 2013 | AB52: 2014 | AC52: 2015 | AD52: 2016 | AE52: 2017 | AF52: 2018 | AG52: 2019 | AH52: 2020 | AI52: 2021 | AJ52: 2022 | AK52: 2023 | AL52: 2024 | AM52: 2025
B53: Additional Carbon Dioxide Emissions | C53: CO2
B54: Additional Nitrous Oxide Emissions | C54: N2O
B55: Additional HFC Emissions | C55: HFCs
B56: Additional PFC Emissions | C56: PFCs
B57: Additional SF6 Emissions | C57: SF6
B58: Additional NF3 Emissions | C58: NF3

Sheet Summary, MTCE (hidden)
A1: ="16. "&'List Data'!B3&" Emissions Summary (MTCE)" -> 16. Select a State . . . Emissions Summary (MTCE)
B3: =Tracker!B24 -> Emissions were not calculated for the following sources: Cement Manufacture, Lime Manufacture, Limestone and Dolomite Use, Soda Ash, Aluminum Production, Carbon Dioxide, Iron & Steel, Ammonia Production, Urea Consumption, Nitric Acid Production, Adipic Acid Production, ODS Substitutes, Semiconductor Manufacturing, Magnesium Production, Electric Power Transmission and Distribution Systems, HCFC-22 Production, and Aluminum Production, PFCs.
B5: MTCE | C5: 1990 | D5: 1991 | E5: 1992 | F5: 1993 | G5: 1994 | H5: 1995 | I5: 1996 | J5: 1997 | K5: 1998 | L5: 1999 | M5: 2000 | N5: 2001 | O5: 2002 | P5: 2003 | Q5: 2004 | R5: 2005 | S5: 2006 | T5: 2007 | U5: 2008 | V5: 2009 | W5: 2010 | X5: 2011 | Y5: 2012 | Z5: 2013 | AA5: 2014 | AB5: 2015 | AC5: 2016 | AD5: 2017 | AE5: 2018 | AF5: 2019 | AG5: 2020 | AH5: 2021 | AI5: 2022 | AJ5: 2023 | AK5: 2024 | AL5: 2025
B6: Carbon Dioxide Emissions | C6: =SUM(C7:C15) -> 0 | D6: =SUM(D7:D15) -> 0 | E6: 0 | F6: 0 | G6: 0 | H6: 0 | I6: 0 | J6: 0 | K6: 0 | L6: 0 | M6: 0 | N6: 0 | O6: 0 | P6: 0 | Q6: 0 | R6: 0 | S6: 0 | T6: 0 | U6: 0 | V6: 0 | W6: 0 | X6: 0 | Y6: 0 | Z6: 0 | AA6: 0 | AB6: 0 | AC6: 0 | AD6: 0 | AE6: 0 | AF6: 0 | AG6: 0 | AH6: 0 | AI6: 0 | AJ6: 0 | AK6: 0 | AL6: =SUM(AL7:AL15) -> 0
B7: Cement Manufacture | C7: =Cement!$M$7 -> 0 | D7: =Cement!$M$9 -> 0 | E7: =Cement!$M$11 -> 0 | F7: =Cement!$M$13 -> 0 | G7: =Cement!$M$15 -> 0 | H7: =Cement!$M$17 -> 0 | I7: =Cement!$M$19 -> 0 | J7: =Cement!$M$21 -> 0 | K7: =Cement!$M$23 -> 0 | L7: =Cement!$M$25 -> 0 | M7: =Cement!$M$27 -> 0 | N7: =Cement!$M$29 -> 0 | O7: =Cement!$M$31 -> 0 | P7: =Cement!$M$33 -> 0 | Q7: =Cement!$M$35 -> 0 | R7: =Cement!$M$37 -> 0 | S7: =Cement!$M$39 -> 0 | T7: =Cement!$M$41 -> 0 | U7: =Cement!$M$43 -> 0 | V7: =Cement!$M$45 -> 0 | W7: =IF('Additional Emission Sources'!D16<>0,'Additional Emission Sources'!D16*CO2_C,Cement!$M$47) -> 0 | X7: =IF('Additional Emission Sources'!E16<>0,'Additional Emission Sources'!E16*CO2_C,Cement!$M$49) -> 0 | Y7: =IF('Additional Emission Sources'!F16<>0,'Additional Emission Sources'!F16*CO2_C,Cement!$M$51) -> 0 | Z7: =IF('Additional Emission Sources'!G16<>0,'Additional Emission Sources'!G16*CO2_C,Cement!$M$53) -> 0 | AA7: =IF('Additional Emission Sources'!H16<>0,'Additional Emission Sources'!H16*CO2_C,Cement!$M$55) -> 0 | AB7: =IF('Additional Emission Sources'!I16<>0,'Additional Emission Sources'!I16*CO2_C,Cement!$M$57) -> 0 | AC7: =IF('Additional Emission Sources'!J16<>0,'Additional Emission Sources'!J16*CO2_C,Cement!$M$59) -> 0 | AD7: =IF('Additional Emission Sources'!K16<>0,'Additional Emission Sources'!K16*CO2_C,Cement!$M$61) -> 0 | AE7: =IF('Additional Emission Sources'!L16<>0,'Additional Emission Sources'!L16*CO2_C,Cement!$M$63) -> 0 | AF7: =IF('Additional Emission Sources'!M16<>0,'Additional Emission Sources'!M16*CO2_C,Cement!$M$65) -> 0 | AG7: =IF('Additional Emission Sources'!N16<>0,'Additional Emission Sources'!N16*CO2_C,Cement!$M$67) -> 0 | AH7: =IF('Additional Emission Sources'!O16<>0,'Additional Emission Sources'!O16*CO2_C,Cement!$M$69) -> 0 | AI7: =IF('Additional Emission Sources'!P16<>0,'Additional Emission Sources'!P16*CO2_C,Cement!$M$71) -> 0 | AJ7: =IF('Additional Emission Sources'!Q16<>0,'Additional Emission Sources'!Q16*CO2_C,Cement!$M$73) -> 0 | AK7: =IF('Additional Emission Sources'!R16<>0,'Additional Emission Sources'!R16*CO2_C,Cement!$M$75) -> 0 | AL7: =IF('Additional Emission Sources'!S16<>0,'Additional Emission Sources'!S16*CO2_C,Cement!$M$77) -> 0
B8: Lime Manufacture | C8: =Lime!$O$7+Lime!$O$8 -> 0 | D8: =Lime!$O$10+Lime!$O$11 -> 0 | E8: =Lime!$O$13+Lime!$O$14 -> 0 | F8: =Lime!$O$16+Lime!$O$17 -> 0 | G8: =Lime!$O$19+Lime!$O$20 -> 0 | H8: =Lime!$O$22+Lime!$O$23 -> 0 | I8: =Lime!$O$25+Lime!$O$26 -> 0 | J8: =Lime!$O$28+Lime!$O$29 -> 0 | K8: =Lime!$O$31+Lime!$O$32 -> 0 | L8: =Lime!$O$34+Lime!$O$35 -> 0 | M8: =Lime!$O$37+Lime!$O$38 -> 0 | N8: =Lime!$O$40+Lime!$O$41 -> 0 | O8: =Lime!$O$43+Lime!$O$44 -> 0 | P8: =Lime!$O$46+Lime!$O$47 -> 0 | Q8: =Lime!$O$49+Lime!$O$50 -> 0 | R8: =Lime!$O$52+Lime!$O$53 -> 0 | S8: =Lime!$O$55+Lime!$O$56 -> 0 | T8: =Lime!$O$58+Lime!$O$59 -> 0 | U8: =Lime!$O$61+Lime!$O$62 -> 0 | V8: =Lime!$O$64+Lime!$O$65 -> 0 | W8: =IF('Additional Emission Sources'!D17<>0,'Additional Emission Sources'!D17*CO2_C,Lime!$O$67+Lime!$O$68) -> 0 | X8: =IF('Additional Emission Sources'!E17<>0,'Additional Emission Sources'!E17*CO2_C,Lime!$O$70+Lime!$O$71) -> 0 | Y8: =IF('Additional Emission Sources'!F17<>0,'Additional Emission Sources'!F17*CO2_C,Lime!$O$73+Lime!$O$74) -> 0 | Z8: =IF('Additional Emission Sources'!G17<>0,'Additional Emission Sources'!G17*CO2_C,Lime!$O$76+Lime!$O$77) -> 0 | AA8: =IF('Additional Emission Sources'!H17<>0,'Additional Emission Sources'!H17*CO2_C,Lime!$O$79+Lime!$O$80) -> 0 | AB8: =IF('Additional Emission Sources'!I17<>0,'Additional Emission Sources'!I17*CO2_C,Lime!$O$82+Lime!$O$83) -> 0 | AC8: =IF('Additional Emission Sources'!J17<>0,'Additional Emission Sources'!J17*CO2_C,Lime!$O$85+Lime!$O$86) -> 0 | AD8: =IF('Additional Emission Sources'!K17<>0,'Additional Emission Sources'!K17*CO2_C,Lime!$O$88+Lime!$O$89) -> 0 | AE8: =IF('Additional Emission Sources'!L17<>0,'Additional Emission Sources'!L17*CO2_C,Lime!$O$91+Lime!$O$92) -> 0 | AF8: =IF('Additional Emission Sources'!M17<>0,'Additional Emission Sources'!M17*CO2_C,Lime!$O$94+Lime!$O$95) -> 0 | AG8: =IF('Additional Emission Sources'!N17<>0,'Additional Emission Sources'!N17*CO2_C,Lime!$O$97+Lime!$O$98) -> 0 | AH8: =IF('Additional Emission Sources'!O17<>0,'Additional Emission Sources'!O17*CO2_C,Lime!$O$100+Lime!$O$101) -> 0 | AI8: =IF('Additional Emission Sources'!P17<>0,'Additional Emission Sources'!P17*CO2_C,Lime!$O$103+Lime!$O$104) -> 0 | AJ8: =IF('Additional Emission Sources'!Q17<>0,'Additional Emission Sources'!Q17*CO2_C,Lime!$O$106+Lime!$O$107) -> 0 | AK8: =IF('Additional Emission Sources'!R17<>0,'Additional Emission Sources'!R17*CO2_C,Lime!$O$109+Lime!$O$110) -> 0 | AL8: =IF('Additional Emission Sources'!S17<>0,'Additional Emission Sources'!S17*CO2_C,Lime!$O$112+Lime!$O$113) -> 0
B9: Limestone and Dolomite Use | C9: =SUM(Limestone!I7:I9) -> 0 | D9: =SUM(Limestone!I11:I13) -> 0 | E9: =SUM(Limestone!I15:I17) -> 0 | F9: =SUM(Limestone!I19:I21) -> 0 | G9: =SUM(Limestone!I23:I25) -> 0 | H9: =SUM(Limestone!I27:I29) -> 0 | I9: =SUM(Limestone!I31:I33) -> 0 | J9: =SUM(Limestone!I35:I37) -> 0 | K9: =SUM(Limestone!I39:I41) -> 0 | L9: =SUM(Limestone!I43:I45) -> 0 | M9: =SUM(Limestone!$I$47:$I$49) -> 0 | N9: =SUM(Limestone!$I$51:$I$53) -> 0 | O9: =SUM(Limestone!$I$55:$I$57) -> 0 | P9: =SUM(Limestone!$I$59:$I$61) -> 0 | Q9: =SUM(Limestone!$I$63:$I$65) -> 0 | R9: =SUM(Limestone!$I$67:$I$69) -> 0 | S9: =SUM(Limestone!$I$71:$I$73) -> 0 | T9: =SUM(Limestone!$I$75:$I$77) -> 0 | U9: =SUM(Limestone!$I$79:$I$81) -> 0 | V9: =SUM(Limestone!$I$83:$I$85) -> 0 | W9: =SUM(Limestone!$I$87:$I$89) -> 0 | X9: =SUM(Limestone!$I$91:$I$93) -> 0 | Y9: =SUM(Limestone!$I$95:$I$97) -> 0 | Z9: =SUM(Limestone!$I$99:$I$101) -> 0 | AA9: =SUM(Limestone!$I$103:$I$105) -> 0 | AB9: =SUM(Limestone!$I$107:$I$109) -> 0 | AC9: =SUM(Limestone!$I$111:$I$113) -> 0 | AD9: =SUM(Limestone!$I$115:$I$117) -> 0 | AE9: =SUM(Limestone!$I$119:$I$121) -> 0 | AF9: =SUM(Limestone!$I$123:$I$125) -> 0 | AG9: =SUM(Limestone!$I$127:$I$129) -> 0 | AH9: =SUM(Limestone!$I$131:$I$133) -> 0 | AI9: =SUM(Limestone!$I$135:$I$137) -> 0 | AJ9: =SUM(Limestone!$I$139:$I$141) -> 0 | AK9: =SUM(Limestone!$I$143:$I$145) -> 0 | AL9: =SUM(Limestone!$I$147:$I$149) -> 0
B10: Soda Ash | C10: ='Soda Ash'!$I$7+'Soda Ash'!$I$8 -> 0 | D10: ='Soda Ash'!$I$10+'Soda Ash'!$I$11 -> 0 | E10: ='Soda Ash'!$I$13+'Soda Ash'!$I$14 -> 0 | F10: ='Soda Ash'!$I$16+'Soda Ash'!$I$17 -> 0 | G10: ='Soda Ash'!$I$19+'Soda Ash'!$I$20 -> 0 | H10: ='Soda Ash'!$I$22+'Soda Ash'!$I$23 -> 0 | I10: ='Soda Ash'!$I$25+'Soda Ash'!$I$26 -> 0 | J10: ='Soda Ash'!$I$28+'Soda Ash'!$I$29 -> 0 | K10: ='Soda Ash'!$I$31+'Soda Ash'!$I$32 -> 0 | L10: ='Soda Ash'!$I$34+'Soda Ash'!$I$35 -> 0 | M10: ='Soda Ash'!$I$37+'Soda Ash'!$I$38 -> 0 | N10: ='Soda Ash'!$I$40+'Soda Ash'!$I$41 -> 0 | O10: ='Soda Ash'!$I$43+'Soda Ash'!$I$44 -> 0 | P10: ='Soda Ash'!$I$46+'Soda Ash'!$I$47 -> 0 | Q10: ='Soda Ash'!$I$49+'Soda Ash'!$I$50 -> 0 | R10: ='Soda Ash'!$I$52+'Soda Ash'!$I$53 -> 0 | S10: ='Soda Ash'!$I$55+'Soda Ash'!$I$56 -> 0 | T10: ='Soda Ash'!$I$58+'Soda Ash'!$I$59 -> 0 | U10: ='Soda Ash'!$I$61+'Soda Ash'!$I$62 -> 0 | V10: ='Soda Ash'!$I$64+'Soda Ash'!$I$65 -> 0 | W10: =IF('Additional Emission Sources'!D18<>0,'Additional Emission Sources'!D18*CO2_C,'Soda Ash'!$I$67+'Soda Ash'!$I$68) -> 0 | X10: =IF('Additional Emission Sources'!E18<>0,'Additional Emission Sources'!E18*CO2_C,'Soda Ash'!$I$70+'Soda Ash'!$I$71) -> 0 | Y10: =IF('Additional Emission Sources'!F18<>0,'Additional Emission Sources'!F18*CO2_C,'Soda Ash'!$I$73+'Soda Ash'!$I$74) -> 0 | Z10: =IF('Additional Emission Sources'!G18<>0,'Additional Emission Sources'!G18*CO2_C,'Soda Ash'!$I$76+'Soda Ash'!$I$77) -> 0 | AA10: =IF('Additional Emission Sources'!H18<>0,'Additional Emission Sources'!H18*CO2_C,'Soda Ash'!$I$79+'Soda Ash'!$I$80) -> 0 | AB10: =IF('Additional Emission Sources'!I18<>0,'Additional Emission Sources'!I18*CO2_C,'Soda Ash'!$I$82+'Soda Ash'!$I$83) -> 0 | AC10: =IF('Additional Emission Sources'!J18<>0,'Additional Emission Sources'!J18*CO2_C,'Soda Ash'!$I$85+'Soda Ash'!$I$86) -> 0 | AD10: =IF('Additional Emission Sources'!K18<>0,'Additional Emission Sources'!K18*CO2_C,'Soda Ash'!$I$88+'Soda Ash'!$I$89) -> 0 | AE10: =IF('Additional Emission Sources'!L18<>0,'Additional Emission Sources'!L18*CO2_C,'Soda Ash'!$I$91+'Soda Ash'!$I$92) -> 0 | AF10: =IF('Additional Emission Sources'!M18<>0,'Additional Emission Sources'!M18*CO2_C,'Soda Ash'!$I$94+'Soda Ash'!$I$95) -> 0 | AG10: =IF('Additional Emission Sources'!N18<>0,'Additional Emission Sources'!N18*CO2_C,'Soda Ash'!$I$97+'Soda Ash'!$I$98) -> 0 | AH10: =IF('Additional Emission Sources'!O18<>0,'Additional Emission Sources'!O18*CO2_C,'Soda Ash'!$I$100+'Soda Ash'!$I$101) -> 0 | AI10: =IF('Additional Emission Sources'!P18<>0,'Additional Emission Sources'!P18*CO2_C,'Soda Ash'!$I$103+'Soda Ash'!$I$104) -> 0 | AJ10: =IF('Additional Emission Sources'!Q18<>0,'Additional Emission Sources'!Q18*CO2_C,'Soda Ash'!$I$106+'Soda Ash'!$I$107) -> 0 | AK10: =IF('Additional Emission Sources'!R18<>0,'Additional Emission Sources'!R18*CO2_C,'Soda Ash'!$I$109+'Soda Ash'!$I$110) -> 0 | AL10: =IF('Additional Emission Sources'!S18<>0,'Additional Emission Sources'!S18*CO2_C,'Soda Ash'!$I$112+'Soda Ash'!$I$113) -> 0
B11: Aluminum Production, CO2 | C11: =Aluminum!$S$7 -> 0 | D11: =Aluminum!$S$9 -> 0 | E11: =Aluminum!$S$11 -> 0 | F11: =Aluminum!$S$13 -> 0 | G11: =Aluminum!$S$15 -> 0 | H11: =Aluminum!$S$17 -> 0 | I11: =Aluminum!$S$19 -> 0 | J11: =Aluminum!$S$21 -> 0 | K11: =Aluminum!$S$23 -> 0 | L11: =Aluminum!$S$25 -> 0 | M11: =Aluminum!$S$27 -> 0 | N11: =Aluminum!$S$29 -> 0 | O11: =Aluminum!$S$31 -> 0 | P11: =Aluminum!$S$33 -> 0 | Q11: =Aluminum!$S$35 -> 0 | R11: =Aluminum!$S$37 -> 0 | S11: =Aluminum!$S$39 -> 0 | T11: =Aluminum!$S$41 -> 0 | U11: =Aluminum!$S$43 -> 0 | V11: =Aluminum!$S$45 -> 0 | W11: =IF('Additional Emission Sources'!D$23<>0,'Additional Emission Sources'!D$23*CO2_C,Aluminum!$S$47) -> 0 | X11: =IF('Additional Emission Sources'!E$23<>0,'Additional Emission Sources'!E$23*CO2_C,Aluminum!$S$49) -> 0 | Y11: =IF('Additional Emission Sources'!F$23<>0,'Additional Emission Sources'!F$23*CO2_C,Aluminum!$S$51) -> 0 | Z11: =IF('Additional Emission Sources'!G$23<>0,'Additional Emission Sources'!G$23*CO2_C,Aluminum!$S$53) -> 0 | AA11: =IF('Additional Emission Sources'!H$23<>0,'Additional Emission Sources'!H$23*CO2_C,Aluminum!$S$55) -> 0 | AB11: =IF('Additional Emission Sources'!I$23<>0,'Additional Emission Sources'!I$23*CO2_C,Aluminum!$S$57) -> 0 | AC11: =IF('Additional Emission Sources'!J$23<>0,'Additional Emission Sources'!J$23*CO2_C,Aluminum!$S$59) -> 0 | AD11: =IF('Additional Emission Sources'!K$23<>0,'Additional Emission Sources'!K$23*CO2_C,Aluminum!$S$61) -> 0 | AE11: =IF('Additional Emission Sources'!L$23<>0,'Additional Emission Sources'!L$23*CO2_C,Aluminum!$S$63) -> 0 | AF11: =IF('Additional Emission Sources'!M$23<>0,'Additional Emission Sources'!M$23*CO2_C,Aluminum!$S$65) -> 0 | AG11: =IF('Additional Emission Sources'!N$23<>0,'Additional Emission Sources'!N$23*CO2_C,Aluminum!$S$67) -> 0 | AH11: =IF('Additional Emission Sources'!O$23<>0,'Additional Emission Sources'!O$23*CO2_C,Aluminum!$S$69) -> 0 | AI11: =IF('Additional Emission Sources'!P$23<>0,'Additional Emission Sources'!P$23*CO2_C,Aluminum!$S$71) -> 0 | AJ11: =IF('Additional Emission Sources'!Q$23<>0,'Additional Emission Sources'!Q$23*CO2_C,Aluminum!$S$73) -> 0 | AK11: =IF('Additional Emission Sources'!R$23<>0,'Additional Emission Sources'!R$23*CO2_C,Aluminum!$S$75) -> 0 | AL11: =IF('Additional Emission Sources'!S$23<>0,'Additional Emission Sources'!S$23*CO2_C,Aluminum!$S$77) -> 0
B12: Iron & Steel Production | C12: ='Iron & Steel'!J11 -> 0 | D12: ='Iron & Steel'!J17 -> 0 | E12: ='Iron & Steel'!J23 -> 0 | F12: ='Iron & Steel'!J29 -> 0 | G12: ='Iron & Steel'!J35 -> 0 | H12: ='Iron & Steel'!J41 -> 0 | I12: ='Iron & Steel'!J47 -> 0 | J12: ='Iron & Steel'!J53 -> 0 | K12: ='Iron & Steel'!J59 -> 0 | L12: ='Iron & Steel'!J65 -> 0 | M12: ='Iron & Steel'!J71 -> 0 | N12: ='Iron & Steel'!J77 -> 0 | O12: ='Iron & Steel'!J83 -> 0 | P12: ='Iron & Steel'!J89 -> 0 | Q12: ='Iron & Steel'!J95 -> 0 | R12: ='Iron & Steel'!J101 -> 0 | S12: ='Iron & Steel'!J107 -> 0 | T12: ='Iron & Steel'!J113 -> 0 | U12: ='Iron & Steel'!J119 -> 0 | V12: ='Iron & Steel'!J125 -> 0 | W12: ='Iron & Steel'!J131 -> 0 | X12: ='Iron & Steel'!J137 -> 0 | Y12: ='Iron & Steel'!J143 -> 0 | Z12: ='Iron & Steel'!J149 -> 0 | AA12: ='Iron & Steel'!J155 -> 0 | AB12: ='Iron & Steel'!J161 -> 0 | AC12: ='Iron & Steel'!J167 -> 0 | AD12: ='Iron & Steel'!J173 -> 0 | AE12: ='Iron & Steel'!J179 -> 0 | AF12: ='Iron & Steel'!J185 -> 0 | AG12: ='Iron & Steel'!J191 -> 0 | AH12: ='Iron & Steel'!J197 -> 0 | AI12: ='Iron & Steel'!J203 -> 0 | AJ12: ='Iron & Steel'!J209 -> 0 | AK12: ='Iron & Steel'!J215 -> 0 | AL12: ='Iron & Steel'!J221 -> 0
B13: Ammonia Production | C13: ='Ammonia & Urea'!K7 -> 0 | D13: ='Ammonia & Urea'!K10 -> 0 | E13: ='Ammonia & Urea'!K13 -> 0 | F13: ='Ammonia & Urea'!K16 -> 0 | G13: ='Ammonia & Urea'!K19 -> 0 | H13: ='Ammonia & Urea'!K22 -> 0 | I13: ='Ammonia & Urea'!K25 -> 0 | J13: ='Ammonia & Urea'!K28 -> 0 | K13: ='Ammonia & Urea'!K31 -> 0 | L13: ='Ammonia & Urea'!K34 -> 0 | M13: ='Ammonia & Urea'!K37 -> 0 | N13: ='Ammonia & Urea'!K40 -> 0 | O13: ='Ammonia & Urea'!K43 -> 0 | P13: ='Ammonia & Urea'!K46 -> 0 | Q13: ='Ammonia & Urea'!K49 -> 0 | R13: ='Ammonia & Urea'!K52 -> 0 | S13: ='Ammonia & Urea'!K55 -> 0 | T13: ='Ammonia & Urea'!K58 -> 0 | U13: ='Ammonia & Urea'!K61 -> 0 | V13: ='Ammonia & Urea'!K64 -> 0 | W13: =IF('Additional Emission Sources'!D19<>0,'Additional Emission Sources'!D19*CO2_C,'Ammonia & Urea'!$K$67) -> 0 | X13: =IF('Additional Emission Sources'!E19<>0,'Additional Emission Sources'!E19*CO2_C,'Ammonia & Urea'!$K$70) -> 0 | Y13: =IF('Additional Emission Sources'!F19<>0,'Additional Emission Sources'!F19*CO2_C,'Ammonia & Urea'!$K$73) -> 0 | Z13: =IF('Additional Emission Sources'!G19<>0,'Additional Emission Sources'!G19*CO2_C,'Ammonia & Urea'!$K$76) -> 0 | AA13: =IF('Additional Emission Sources'!H19<>0,'Additional Emission Sources'!H19*CO2_C,'Ammonia & Urea'!$K$79) -> 0 | AB13: =IF('Additional Emission Sources'!I19<>0,'Additional Emission Sources'!I19*CO2_C,'Ammonia & Urea'!$K$82) -> 0 | AC13: =IF('Additional Emission Sources'!J19<>0,'Additional Emission Sources'!J19*CO2_C,'Ammonia & Urea'!$K$85) -> 0 | AD13: =IF('Additional Emission Sources'!K19<>0,'Additional Emission Sources'!K19*CO2_C,'Ammonia & Urea'!$K$88) -> 0 | AE13: =IF('Additional Emission Sources'!L19<>0,'Additional Emission Sources'!L19*CO2_C,'Ammonia & Urea'!$K$91) -> 0 | AF13: =IF('Additional Emission Sources'!M19<>0,'Additional Emission Sources'!M19*CO2_C,'Ammonia & Urea'!$K$94) -> 0 | AG13: =IF('Additional Emission Sources'!N19<>0,'Additional Emission Sources'!N19*CO2_C,'Ammonia & Urea'!$K$97) -> 0 | AH13: =IF('Additional Emission Sources'!O19<>0,'Additional Emission Sources'!O19*CO2_C,'Ammonia & Urea'!$K$100) -> 0 | AI13: =IF('Additional Emission Sources'!P19<>0,'Additional Emission Sources'!P19*CO2_C,'Ammonia & Urea'!$K$103) -> 0 | AJ13: =IF('Additional Emission Sources'!Q19<>0,'Additional Emission Sources'!Q19*CO2_C,'Ammonia & Urea'!$K$106) -> 0 | AK13: =IF('Additional Emission Sources'!R19<>0,'Additional Emission Sources'!R19*CO2_C,'Ammonia & Urea'!$K$109) -> 0 | AL13: =IF('Additional Emission Sources'!S19<>0,'Additional Emission Sources'!S19*CO2_C,'Ammonia & Urea'!$K$112) -> 0
B14: Urea Consumption | C14: ='Ammonia & Urea'!K8 -> 0 | D14: ='Ammonia & Urea'!K11 -> 0 | E14: ='Ammonia & Urea'!K14 -> 0 | F14: ='Ammonia & Urea'!K17 -> 0 | G14: ='Ammonia & Urea'!K20 -> 0 | H14: ='Ammonia & Urea'!K23 -> 0 | I14: ='Ammonia & Urea'!K26 -> 0 | J14: ='Ammonia & Urea'!K29 -> 0 | K14: ='Ammonia & Urea'!K32 -> 0 | L14: ='Ammonia & Urea'!K35 -> 0 | M14: ='Ammonia & Urea'!K38 -> 0 | N14: ='Ammonia & Urea'!K41 -> 0 | O14: ='Ammonia & Urea'!K44 -> 0 | P14: ='Ammonia & Urea'!K47 -> 0 | Q14: ='Ammonia & Urea'!K50 -> 0 | R14: ='Ammonia & Urea'!K53 -> 0 | S14: ='Ammonia & Urea'!K56 -> 0 | T14: ='Ammonia & Urea'!K59 -> 0 | U14: ='Ammonia & Urea'!K62 -> 0 | V14: ='Ammonia & Urea'!K65 -> 0 | W14: ='Ammonia & Urea'!K68 -> 0 | X14: ='Ammonia & Urea'!K71 -> 0 | Y14: ='Ammonia & Urea'!K74 -> 0 | Z14: ='Ammonia & Urea'!K77 -> 0 | AA14: ='Ammonia & Urea'!K80 -> 0 | AB14: ='Ammonia & Urea'!K83 -> 0 | AC14: ='Ammonia & Urea'!K86 -> 0 | AD14: ='Ammonia & Urea'!K89 -> 0 | AE14: ='Ammonia & Urea'!K92 -> 0 | AF14: ='Ammonia & Urea'!K95 -> 0 | AG14: ='Ammonia & Urea'!K98 -> 0 | AH14: ='Ammonia & Urea'!K101 -> 0 | AI14: ='Ammonia & Urea'!K104 -> 0 | AJ14: ='Ammonia & Urea'!K107 -> 0 | AK14: ='Ammonia & Urea'!K110 -> 0 | AL14: ='Ammonia & Urea'!K113 -> 0
B15: Additional CO2 Emissions | C15: =IFERROR(IF('Additional Emission Sources'!D43<>0, 'Additional Emission Sources'!D43*CO2_C, 'Additional Emission Sources'!D53*CO2_C), 0) -> 0 | D15: =IFERROR(IF('Additional Emission Sources'!E43<>0, 'Additional Emission Sources'!E43*CO2_C, 'Additional Emission Sources'!E53*CO2_C), 0) -> 0 | E15: =IFERROR(IF('Additional Emission Sources'!F43<>0, 'Additional Emission Sources'!F43*CO2_C, 'Additional Emission Sources'!F53*CO2_C), 0) -> 0 | F15: =IFERROR(IF('Additional Emission Sources'!G43<>0, 'Additional Emission Sources'!G43*CO2_C, 'Additional Emission Sources'!G53*CO2_C), 0) -> 0 | G15: =IFERROR(IF('Additional Emission Sources'!H43<>0, 'Additional Emission Sources'!H43*CO2_C, 'Additional Emission Sources'!H53*CO2_C), 0) -> 0 | H15: =IFERROR(IF('Additional Emission Sources'!I43<>0, 'Additional Emission Sources'!I43*CO2_C, 'Additional Emission Sources'!I53*CO2_C), 0) -> 0 | I15: =IFERROR(IF('Additional Emission Sources'!J43<>0, 'Additional Emission Sources'!J43*CO2_C, 'Additional Emission Sources'!J53*CO2_C), 0) -> 0 | J15: =IFERROR(IF('Additional Emission Sources'!K43<>0, 'Additional Emission Sources'!K43*CO2_C, 'Additional Emission Sources'!K53*CO2_C), 0) -> 0 | K15: =IFERROR(IF('Additional Emission Sources'!L43<>0, 'Additional Emission Sources'!L43*CO2_C, 'Additional Emission Sources'!L53*CO2_C), 0) -> 0 | L15: =IFERROR(IF('Additional Emission Sources'!M43<>0, 'Additional Emission Sources'!M43*CO2_C, 'Additional Emission Sources'!M53*CO2_C), 0) -> 0 | M15: =IFERROR(IF('Additional Emission Sources'!N43<>0, 'Additional Emission Sources'!N43*CO2_C, 'Additional Emission Sources'!N53*CO2_C), 0) -> 0 | N15: =IFERROR(IF('Additional Emission Sources'!O43<>0, 'Additional Emission Sources'!O43*CO2_C, 'Additional Emission Sources'!O53*CO2_C), 0) -> 0 | O15: =IFERROR(IF('Additional Emission Sources'!P43<>0, 'Additional Emission Sources'!P43*CO2_C, 'Additional Emission Sources'!P53*CO2_C), 0) -> 0 | P15: =IFERROR(IF('Additional Emission Sources'!Q43<>0, 'Additional Emission Sources'!Q43*CO2_C, 'Additional Emission Sources'!Q53*CO2_C), 0) -> 0 | Q15: =IFERROR(IF('Additional Emission Sources'!R43<>0, 'Additional Emission Sources'!R43*CO2_C, 'Additional Emission Sources'!R53*CO2_C), 0) -> 0 | R15: =IFERROR(IF('Additional Emission Sources'!S43<>0, 'Additional Emission Sources'!S43*CO2_C, 'Additional Emission Sources'!S53*CO2_C), 0) -> 0 | S15: =IFERROR(IF('Additional Emission Sources'!T43<>0, 'Additional Emission Sources'!T43*CO2_C, 'Additional Emission Sources'!T53*CO2_C), 0) -> 0 | T15: =IFERROR(IF('Additional Emission Sources'!U43<>0, 'Additional Emission Sources'!U43*CO2_C, 'Additional Emission Sources'!U53*CO2_C), 0) -> 0 | U15: =IFERROR(IF('Additional Emission Sources'!V43<>0, 'Additional Emission Sources'!V43*CO2_C, 'Additional Emission Sources'!V53*CO2_C), 0) -> 0 | V15: =IFERROR(IF('Additional Emission Sources'!W43<>0, 'Additional Emission Sources'!W43*CO2_C, 'Additional Emission Sources'!W53*CO2_C), 0) -> 0 | W15: =IFERROR(IF('Additional Emission Sources'!X43<>0, 'Additional Emission Sources'!X43*CO2_C, 'Additional Emission Sources'!X53*CO2_C), 0) -> 0 | X15: =IFERROR(IF('Additional Emission Sources'!Y43<>0, 'Additional Emission Sources'!Y43*CO2_C, 'Additional Emission Sources'!Y53*CO2_C), 0) -> 0 | Y15: =IFERROR(IF('Additional Emission Sources'!Z43<>0, 'Additional Emission Sources'!Z43*CO2_C, 'Additional Emission Sources'!Z53*CO2_C), 0) -> 0 | Z15: =IFERROR(IF('Additional Emission Sources'!AA43<>0, 'Additional Emission Sources'!AA43*CO2_C, 'Additional Emission Sources'!AA53*CO2_C), 0) -> 0 | AA15: =IFERROR(IF('Additional Emission Sources'!AB43<>0, 'Additional Emission Sources'!AB43*CO2_C, 'Additional Emission Sources'!AB53*CO2_C), 0) -> 0 | AB15: =IFERROR(IF('Additional Emission Sources'!AC43<>0, 'Additional Emission Sources'!AC43*CO2_C, 'Additional Emission Sources'!AC53*CO2_C), 0) -> 0 | AC15: =IFERROR(IF('Additional Emission Sources'!AD43<>0, 'Additional Emission Sources'!AD43*CO2_C, 'Additional Emission Sources'!AD53*CO2_C), 0) -> 0 | AD15: =IFERROR(IF('Additional Emission Sources'!AE43<>0, 'Additional Emission Sources'!AE43*CO2_C, 'Additional Emission Sources'!AE53*CO2_C), 0) -> 0 | AE15: =IFERROR(IF('Additional Emission Sources'!AF43<>0, 'Additional Emission Sources'!AF43*CO2_C, 'Additional Emission Sources'!AF53*CO2_C), 0) -> 0 | AF15: =IFERROR(IF('Additional Emission Sources'!AG43<>0, 'Additional Emission Sources'!AG43*CO2_C, 'Additional Emission Sources'!AG53*CO2_C), 0) -> 0 | AG15: =IFERROR(IF('Additional Emission Sources'!AH43<>0, 'Additional Emission Sources'!AH43*CO2_C, 'Additional Emission Sources'!AH53*CO2_C), 0) -> 0 | AH15: =IFERROR(IF('Additional Emission Sources'!AI43<>0, 'Additional Emission Sources'!AI43*CO2_C, 'Additional Emission Sources'!AI53*CO2_C), 0) -> 0 | AI15: =IFERROR(IF('Additional Emission Sources'!AJ43<>0, 'Additional Emission Sources'!AJ43*CO2_C, 'Additional Emission Sources'!AJ53*CO2_C), 0) -> 0 | AJ15: =IFERROR(IF('Additional Emission Sources'!AK43<>0, 'Additional Emission Sources'!AK43*CO2_C, 'Additional Emission Sources'!AK53*CO2_C), 0) -> 0 | AK15: =IFERROR(IF('Additional Emission Sources'!AL43<>0, 'Additional Emission Sources'!AL43*CO2_C, 'Additional Emission Sources'!AL53*CO2_C), 0) -> 0 | AL15: =IFERROR(IF('Additional Emission Sources'!AM43<>0, 'Additional Emission Sources'!AM43*CO2_C, 'Additional Emission Sources'!AM53*CO2_C), 0) -> 0
B16: Nitrous Oxide Emissions | C16: =SUM(C17:C19) -> 0 | D16: =SUM(D17:D19) -> 0 | E16: 0 | F16: 0 | G16: 0 | H16: 0 | I16: 0 | J16: 0 | K16: 0 | L16: 0 | M16: 0 | N16: 0 | O16: 0 | P16: 0 | Q16: 0 | R16: 0 | S16: 0 | T16: 0 | U16: 0 | V16: 0 | W16: 0 | X16: 0 | Y16: 0 | Z16: 0 | AA16: 0 | AB16: 0 | AC16: 0 | AD16: 0 | AE16: 0 | AF16: 0 | AG16: 0 | AH16: 0 | AI16: 0 | AJ16: 0 | AK16: 0 | AL16: =SUM(AL17:AL19) -> 0
B17: Nitric Acid Production | C17: =Nitric!$L$7 -> 0 | D17: =Nitric!$L$9 -> 0 | E17: =Nitric!$L$11 -> 0 | F17: =Nitric!$L$13 -> 0 | G17: =Nitric!$L$15 -> 0 | H17: =Nitric!$L$17 -> 0 | I17: =Nitric!$L$19 -> 0 | J17: =Nitric!$L$21 -> 0 | K17: =Nitric!$L$23 -> 0 | L17: =Nitric!$L$25 -> 0 | M17: =Nitric!$L$27 -> 0 | N17: =Nitric!$L$29 -> 0 | O17: =Nitric!$L$31 -> 0 | P17: =Nitric!$L$33 -> 0 | Q17: =Nitric!$L$35 -> 0 | R17: =Nitric!$L$37 -> 0 | S17: =Nitric!$L$39 -> 0 | T17: =Nitric!$L$41 -> 0 | U17: =Nitric!$L$43 -> 0 | V17: =Nitric!$L$45 -> 0 | W17: =IF('Additional Emission Sources'!D20<>0,'Additional Emission Sources'!D20*CO2_C,Nitric!$L$47) -> 0 | X17: =IF('Additional Emission Sources'!E20<>0,'Additional Emission Sources'!E20*CO2_C,Nitric!$L$49) -> 0 | Y17: =IF('Additional Emission Sources'!F20<>0,'Additional Emission Sources'!F20*CO2_C,Nitric!$L$51) -> 0 | Z17: =IF('Additional Emission Sources'!G20<>0,'Additional Emission Sources'!G20*CO2_C,Nitric!$L$53) -> 0 | AA17: =IF('Additional Emission Sources'!H20<>0,'Additional Emission Sources'!H20*CO2_C,Nitric!$L$55) -> 0 | AB17: =IF('Additional Emission Sources'!I20<>0,'Additional Emission Sources'!I20*CO2_C,Nitric!$L$57) -> 0 | AC17: =IF('Additional Emission Sources'!J20<>0,'Additional Emission Sources'!J20*CO2_C,Nitric!$L$59) -> 0 | AD17: =IF('Additional Emission Sources'!K20<>0,'Additional Emission Sources'!K20*CO2_C,Nitric!$L$61) -> 0 | AE17: =IF('Additional Emission Sources'!L20<>0,'Additional Emission Sources'!L20*CO2_C,Nitric!$L$63) -> 0 | AF17: =IF('Additional Emission Sources'!M20<>0,'Additional Emission Sources'!M20*CO2_C,Nitric!$L$65) -> 0 | AG17: =IF('Additional Emission Sources'!N20<>0,'Additional Emission Sources'!N20*CO2_C,Nitric!$L$67) -> 0 | AH17: =IF('Additional Emission Sources'!O20<>0,'Additional Emission Sources'!O20*CO2_C,Nitric!$L$69) -> 0 | AI17: =IF('Additional Emission Sources'!P20<>0,'Additional Emission Sources'!P20*CO2_C,Nitric!$L$71) -> 0 | AJ17: =IF('Additional Emission Sources'!Q20<>0,'Additional Emission Sources'!Q20*CO2_C,Nitric!$L$73) -> 0 | AK17: =IF('Additional Emission Sources'!R20<>0,'Additional Emission Sources'!R20*CO2_C,Nitric!$L$75) -> 0 | AL17: =IF('Additional Emission Sources'!S20<>0,'Additional Emission Sources'!S20*CO2_C,Nitric!$L$77) -> 0
B18: Adipic Acid Production | C18: =Adipic!$L$7 -> 0 | D18: =Adipic!$L$9 -> 0 | E18: =Adipic!$L$11 -> 0 | F18: =Adipic!$L$13 -> 0 | G18: =Adipic!$L$15 -> 0 | H18: =Adipic!$L$17 -> 0 | I18: =Adipic!$L$19 -> 0 | J18: =Adipic!$L$21 -> 0 | K18: =Adipic!$L$23 -> 0 | L18: =Adipic!$L$25 -> 0 | M18: =Adipic!$L$27 -> 0 | N18: =Adipic!$L$29 -> 0 | O18: =Adipic!$L$31 -> 0 | P18: =Adipic!$L$33 -> 0 | Q18: =Adipic!$L$35 -> 0 | R18: =Adipic!$L$37 -> 0 | S18: =Adipic!$L$39 -> 0 | T18: =Adipic!$L$41 -> 0 | U18: =Adipic!$L$43 -> 0 | V18: =Adipic!$L$45 -> 0 | W18: =IF('Additional Emission Sources'!D21<>0,'Additional Emission Sources'!D21*CO2_C,Adipic!$L$47) -> 0 | X18: =IF('Additional Emission Sources'!E21<>0,'Additional Emission Sources'!E21*CO2_C,Adipic!$L$49) -> 0 | Y18: =IF('Additional Emission Sources'!F21<>0,'Additional Emission Sources'!F21*CO2_C,Adipic!$L$51) -> 0 | Z18: =IF('Additional Emission Sources'!G21<>0,'Additional Emission Sources'!G21*CO2_C,Adipic!$L$53) -> 0 | AA18: =IF('Additional Emission Sources'!H21<>0,'Additional Emission Sources'!H21*CO2_C,Adipic!$L$55) -> 0 | AB18: =IF('Additional Emission Sources'!I21<>0,'Additional Emission Sources'!I21*CO2_C,Adipic!$L$57) -> 0 | AC18: =IF('Additional Emission Sources'!J21<>0,'Additional Emission Sources'!J21*CO2_C,Adipic!$L$59) -> 0 | AD18: =IF('Additional Emission Sources'!K21<>0,'Additional Emission Sources'!K21*CO2_C,Adipic!$L$61) -> 0 | AE18: =IF('Additional Emission Sources'!L21<>0,'Additional Emission Sources'!L21*CO2_C,Adipic!$L$63) -> 0 | AF18: =IF('Additional Emission Sources'!M21<>0,'Additional Emission Sources'!M21*CO2_C,Adipic!$L$65) -> 0 | AG18: =IF('Additional Emission Sources'!N21<>0,'Additional Emission Sources'!N21*CO2_C,Adipic!$L$67) -> 0 | AH18: =IF('Additional Emission Sources'!O21<>0,'Additional Emission Sources'!O21*CO2_C,Adipic!$L$69) -> 0 | AI18: =IF('Additional Emission Sources'!P21<>0,'Additional Emission Sources'!P21*CO2_C,Adipic!$L$71) -> 0 | AJ18: =IF('Additional Emission Sources'!Q21<>0,'Additional Emission Sources'!Q21*CO2_C,Adipic!$L$73) -> 0 | AK18: =IF('Additional Emission Sources'!R21<>0,'Additional Emission Sources'!R21*CO2_C,Adipic!$L$75) -> 0 | AL18: =IF('Additional Emission Sources'!S21<>0,'Additional Emission Sources'!S21*CO2_C,Adipic!$L$77) -> 0
B19: Additional N2O Emissions | C19: =IFERROR(IF('Additional Emission Sources'!D44<>0, 'Additional Emission Sources'!D44*CO2_C, 'Additional Emission Sources'!D54*CO2_C), 0) -> 0 | D19: =IFERROR(IF('Additional Emission Sources'!E44<>0, 'Additional Emission Sources'!E44*CO2_C, 'Additional Emission Sources'!E54*CO2_C), 0) -> 0 | E19: =IFERROR(IF('Additional Emission Sources'!F44<>0, 'Additional Emission Sources'!F44*CO2_C, 'Additional Emission Sources'!F54*CO2_C), 0) -> 0 | F19: =IFERROR(IF('Additional Emission Sources'!G44<>0, 'Additional Emission Sources'!G44*CO2_C, 'Additional Emission Sources'!G54*CO2_C), 0) -> 0 | G19: =IFERROR(IF('Additional Emission Sources'!H44<>0, 'Additional Emission Sources'!H44*CO2_C, 'Additional Emission Sources'!H54*CO2_C), 0) -> 0 | H19: =IFERROR(IF('Additional Emission Sources'!I44<>0, 'Additional Emission Sources'!I44*CO2_C, 'Additional Emission Sources'!I54*CO2_C), 0) -> 0 | I19: =IFERROR(IF('Additional Emission Sources'!J44<>0, 'Additional Emission Sources'!J44*CO2_C, 'Additional Emission Sources'!J54*CO2_C), 0) -> 0 | J19: =IFERROR(IF('Additional Emission Sources'!K44<>0, 'Additional Emission Sources'!K44*CO2_C, 'Additional Emission Sources'!K54*CO2_C), 0) -> 0 | K19: =IFERROR(IF('Additional Emission Sources'!L44<>0, 'Additional Emission Sources'!L44*CO2_C, 'Additional Emission Sources'!L54*CO2_C), 0) -> 0 | L19: =IFERROR(IF('Additional Emission Sources'!M44<>0, 'Additional Emission Sources'!M44*CO2_C, 'Additional Emission Sources'!M54*CO2_C), 0) -> 0 | M19: =IFERROR(IF('Additional Emission Sources'!N44<>0, 'Additional Emission Sources'!N44*CO2_C, 'Additional Emission Sources'!N54*CO2_C), 0) -> 0 | N19: =IFERROR(IF('Additional Emission Sources'!O44<>0, 'Additional Emission Sources'!O44*CO2_C, 'Additional Emission Sources'!O54*CO2_C), 0) -> 0 | O19: =IFERROR(IF('Additional Emission Sources'!P44<>0, 'Additional Emission Sources'!P44*CO2_C, 'Additional Emission Sources'!P54*CO2_C), 0) -> 0 | P19: =IFERROR(IF('Additional Emission Sources'!Q44<>0, 'Additional Emission Sources'!Q44*CO2_C, 'Additional Emission Sources'!Q54*CO2_C), 0) -> 0 | Q19: =IFERROR(IF('Additional Emission Sources'!R44<>0, 'Additional Emission Sources'!R44*CO2_C, 'Additional Emission Sources'!R54*CO2_C), 0) -> 0 | R19: =IFERROR(IF('Additional Emission Sources'!S44<>0, 'Additional Emission Sources'!S44*CO2_C, 'Additional Emission Sources'!S54*CO2_C), 0) -> 0 | S19: =IFERROR(IF('Additional Emission Sources'!T44<>0, 'Additional Emission Sources'!T44*CO2_C, 'Additional Emission Sources'!T54*CO2_C), 0) -> 0 | T19: =IFERROR(IF('Additional Emission Sources'!U44<>0, 'Additional Emission Sources'!U44*CO2_C, 'Additional Emission Sources'!U54*CO2_C), 0) -> 0 | U19: =IFERROR(IF('Additional Emission Sources'!V44<>0, 'Additional Emission Sources'!V44*CO2_C, 'Additional Emission Sources'!V54*CO2_C), 0) -> 0 | V19: =IFERROR(IF('Additional Emission Sources'!W44<>0, 'Additional Emission Sources'!W44*CO2_C, 'Additional Emission Sources'!W54*CO2_C), 0) -> 0 | W19: =IFERROR(IF('Additional Emission Sources'!X44<>0, 'Additional Emission Sources'!X44*CO2_C, 'Additional Emission Sources'!X54*CO2_C), 0) -> 0 | X19: =IFERROR(IF('Additional Emission Sources'!Y44<>0, 'Additional Emission Sources'!Y44*CO2_C, 'Additional Emission Sources'!Y54*CO2_C), 0) -> 0 | Y19: =IFERROR(IF('Additional Emission Sources'!Z44<>0, 'Additional Emission Sources'!Z44*CO2_C, 'Additional Emission Sources'!Z54*CO2_C), 0) -> 0 | Z19: =IFERROR(IF('Additional Emission Sources'!AA44<>0, 'Additional Emission Sources'!AA44*CO2_C, 'Additional Emission Sources'!AA54*CO2_C), 0) -> 0 | AA19: =IFERROR(IF('Additional Emission Sources'!AB44<>0, 'Additional Emission Sources'!AB44*CO2_C, 'Additional Emission Sources'!AB54*CO2_C), 0) -> 0 | AB19: =IFERROR(IF('Additional Emission Sources'!AC44<>0, 'Additional Emission Sources'!AC44*CO2_C, 'Additional Emission Sources'!AC54*CO2_C), 0) -> 0 | AC19: =IFERROR(IF('Additional Emission Sources'!AD44<>0, 'Additional Emission Sources'!AD44*CO2_C, 'Additional Emission Sources'!AD54*CO2_C), 0) -> 0 | AD19: =IFERROR(IF('Additional Emission Sources'!AE44<>0, 'Additional Emission Sources'!AE44*CO2_C, 'Additional Emission Sources'!AE54*CO2_C), 0) -> 0 | AE19: =IFERROR(IF('Additional Emission Sources'!AF44<>0, 'Additional Emission Sources'!AF44*CO2_C, 'Additional Emission Sources'!AF54*CO2_C), 0) -> 0 | AF19: =IFERROR(IF('Additional Emission Sources'!AG44<>0, 'Additional Emission Sources'!AG44*CO2_C, 'Additional Emission Sources'!AG54*CO2_C), 0) -> 0 | AG19: =IFERROR(IF('Additional Emission Sources'!AH44<>0, 'Additional Emission Sources'!AH44*CO2_C, 'Additional Emission Sources'!AH54*CO2_C), 0) -> 0 | AH19: =IFERROR(IF('Additional Emission Sources'!AI44<>0, 'Additional Emission Sources'!AI44*CO2_C, 'Additional Emission Sources'!AI54*CO2_C), 0) -> 0 | AI19: =IFERROR(IF('Additional Emission Sources'!AJ44<>0, 'Additional Emission Sources'!AJ44*CO2_C, 'Additional Emission Sources'!AJ54*CO2_C), 0) -> 0 | AJ19: =IFERROR(IF('Additional Emission Sources'!AK44<>0, 'Additional Emission Sources'!AK44*CO2_C, 'Additional Emission Sources'!AK54*CO2_C), 0) -> 0 | AK19: =IFERROR(IF('Additional Emission Sources'!AL44<>0, 'Additional Emission Sources'!AL44*CO2_C, 'Additional Emission Sources'!AL54*CO2_C), 0) -> 0 | AL19: =IFERROR(IF('Additional Emission Sources'!AM44<>0, 'Additional Emission Sources'!AM44*CO2_C, 'Additional Emission Sources'!AM54*CO2_C), 0) -> 0
B20: HFC, PFC, NF3, and SF6 Emissions | C20: =SUM(C21:C27) -> 0 | D20: =SUM(D21:D27) -> 0 | E20: 0 | F20: 0 | G20: 0 | H20: 0 | I20: 0 | J20: 0 | K20: 0 | L20: 0 | M20: 0 | N20: 0 | O20: 0 | P20: 0 | Q20: 0 | R20: 0 | S20: 0 | T20: 0 | U20: 0 | V20: 0 | W20: 0 | X20: 0 | Y20: 0 | Z20: 0 | AA20: 0 | AB20: 0 | AC20: 0 | AD20: 0 | AE20: 0 | AF20: 0 | AG20: 0 | AH20: 0 | AI20: 0 | AJ20: 0 | AK20: 0 | AL20: =SUM(AL21:AL27) -> 0
B21: ODS Substitutes | C21: =ODS!$Q$7 -> 0 | D21: =ODS!$Q$9 -> 0 | E21: =ODS!$Q$11 -> 0 | F21: =ODS!$Q$13 -> 0 | G21: =ODS!$Q$15 -> 0 | H21: =ODS!$Q$17 -> 0 | I21: =ODS!$Q$19 -> 0 | J21: =ODS!$Q$21 -> 0 | K21: =ODS!$Q$23 -> 0 | L21: =ODS!$Q$25 -> 0 | M21: =ODS!$Q$27 -> 0 | N21: =ODS!$Q$29 -> 0 | O21: =ODS!$Q$31 -> 0 | P21: =ODS!$Q$33 -> 0 | Q21: =ODS!$Q$35 -> 0 | R21: =ODS!$Q$37 -> 0 | S21: =ODS!$Q$39 -> 0 | T21: =ODS!$Q$41 -> 0 | U21: =ODS!$Q$43 -> 0 | V21: =ODS!$Q$45 -> 0 | W21: =ODS!$Q$47 -> 0 | X21: =ODS!$Q$49 -> 0 | Y21: =ODS!$Q$51 -> 0 | Z21: =ODS!$Q$53 -> 0 | AA21: =ODS!$Q$55 -> 0 | AB21: =ODS!$Q$57 -> 0 | AC21: =ODS!$Q$59 -> 0 | AD21: =ODS!$Q$61 -> 0 | AE21: =ODS!$Q$63 -> 0 | AF21: =ODS!$Q$65 -> 0 | AG21: =ODS!$Q$67 -> 0 | AH21: =ODS!$Q$69 -> 0 | AI21: =ODS!$Q$71 -> 0 | AJ21: =ODS!$Q$73 -> 0 | AK21: =ODS!$Q$75 -> 0 | AL21: =ODS!$Q$77 -> 0
B22: Semiconductor Manufacturing | C22: =Semiconductor!$J$7 -> 0 | D22: =Semiconductor!$J$9 -> 0 | E22: =Semiconductor!$J$11 -> 0 | F22: =Semiconductor!$J$13 -> 0 | G22: =Semiconductor!$J$15 -> 0 | H22: =Semiconductor!$J$17 -> 0 | I22: =Semiconductor!$J$19 -> 0 | J22: =Semiconductor!$J$21 -> 0 | K22: =Semiconductor!$J$23 -> 0 | L22: =Semiconductor!$J$25 -> 0 | M22: =Semiconductor!$J$27 -> 0 | N22: =Semiconductor!$J$29 -> 0 | O22: =Semiconductor!$J$31 -> 0 | P22: =Semiconductor!$J$33 -> 0 | Q22: =Semiconductor!$J$35 -> 0 | R22: =Semiconductor!$J$37 -> 0 | S22: =Semiconductor!$J$39 -> 0 | T22: =Semiconductor!$J$41 -> 0 | U22: =Semiconductor!$J$43 -> 0 | V22: =Semiconductor!$J$45 -> 0 | W22: =Semiconductor!$J$47 -> 0 | X22: =Semiconductor!$J$49 -> 0 | Y22: =Semiconductor!$J$51 -> 0 | Z22: =Semiconductor!$J$53 -> 0 | AA22: =Semiconductor!$J$55 -> 0 | AB22: =Semiconductor!$J$57 -> 0 | AC22: =Semiconductor!$J$59 -> 0 | AD22: =Semiconductor!$J$61 -> 0 | AE22: =Semiconductor!$J$63 -> 0 | AF22: =Semiconductor!$J$65 -> 0 | AG22: =Semiconductor!$J$67 -> 0 | AH22: =Semiconductor!$J$69 -> 0 | AI22: =Semiconductor!$J$71 -> 0 | AJ22: =Semiconductor!$J$73 -> 0 | AK22: =Semiconductor!$J$75 -> 0 | AL22: =Semiconductor!$J$77 -> 0
B23: Magnesium Production | C23: =SUM(Magnesium!K7:K9) -> 0 | D23: =SUM(Magnesium!K11:K13) -> 0 | E23: =SUM(Magnesium!K15:K17) -> 0 | F23: =SUM(Magnesium!K19:K21) -> 0 | G23: =SUM(Magnesium!K23:K25) -> 0 | H23: =SUM(Magnesium!K27:K29) -> 0 | I23: =SUM(Magnesium!K31:K33) -> 0 | J23: =SUM(Magnesium!K35:K37) -> 0 | K23: =SUM(Magnesium!K39:K41) -> 0 | L23: =SUM(Magnesium!K43:K45) -> 0 | M23: =SUM(Magnesium!K47:K49) -> 0 | N23: =SUM(Magnesium!K51:K53) -> 0 | O23: =SUM(Magnesium!K55:K57) -> 0 | P23: =SUM(Magnesium!K59:K61) -> 0 | Q23: =SUM(Magnesium!K63:K65) -> 0 | R23: =SUM(Magnesium!K67:K69) -> 0 | S23: =SUM(Magnesium!K71:K73) -> 0 | T23: =SUM(Magnesium!K75:K77) -> 0 | U23: =SUM(Magnesium!K79:K81) -> 0 | V23: =SUM(Magnesium!K83:K85) -> 0 | W23: =SUM(Magnesium!K87:K89) -> 0 | X23: =SUM(Magnesium!K91:K93) -> 0 | Y23: =SUM(Magnesium!K95:K97) -> 0 | Z23: =SUM(Magnesium!K99:K101) -> 0 | AA23: =SUM(Magnesium!K103:K105) -> 0 | AB23: =SUM(Magnesium!K107:K109) -> 0 | AC23: =SUM(Magnesium!K111:K113) -> 0 | AD23: =SUM(Magnesium!K115:K117) -> 0 | AE23: =SUM(Magnesium!K119:K121) -> 0 | AF23: =SUM(Magnesium!K123:K125) -> 0 | AG23: =SUM(Magnesium!K127:K129) -> 0 | AH23: =SUM(Magnesium!K131:K133) -> 0 | AI23: =SUM(Magnesium!K135:K137) -> 0 | AJ23: =SUM(Magnesium!K139:K141) -> 0 | AK23: =SUM(Magnesium!K143:K145) -> 0 | AL23: =SUM(Magnesium!K147:K149) -> 0
B24: Electric Power Transmission and Distribution Systems | C24: ='Electric Power'!$J$7 -> 0 | D24: ='Electric Power'!$J$9 -> 0 | E24: ='Electric Power'!$J$11 -> 0 | F24: ='Electric Power'!$J$13 -> 0 | G24: ='Electric Power'!$J$15 -> 0 | H24: ='Electric Power'!$J$17 -> 0 | I24: ='Electric Power'!$J$19 -> 0 | J24: ='Electric Power'!$J$21 -> 0 | K24: ='Electric Power'!$J$23 -> 0 | L24: ='Electric Power'!$J$25 -> 0 | M24: ='Electric Power'!$J$27 -> 0 | N24: ='Electric Power'!$J$29 -> 0 | O24: ='Electric Power'!$J$31 -> 0 | P24: ='Electric Power'!$J$33 -> 0 | Q24: ='Electric Power'!$J$35 -> 0 | R24: ='Electric Power'!$J$37 -> 0 | S24: ='Electric Power'!$J$39 -> 0 | T24: ='Electric Power'!$J$41 -> 0 | U24: ='Electric Power'!$J$43 -> 0 | V24: ='Electric Power'!$J$45 -> 0 | W24: ='Electric Power'!$J$47 -> 0 | X24: ='Electric Power'!$J$49 -> 0 | Y24: ='Electric Power'!$J$51 -> 0 | Z24: ='Electric Power'!$J$53 -> 0 | AA24: ='Electric Power'!$J$55 -> 0 | AB24: ='Electric Power'!$J$57 -> 0 | AC24: ='Electric Power'!$J$59 -> 0 | AD24: ='Electric Power'!$J$61 -> 0 | AE24: ='Electric Power'!$J$63 -> 0 | AF24: ='Electric Power'!$J$65 -> 0 | AG24: ='Electric Power'!$J$67 -> 0 | AH24: ='Electric Power'!$J$69 -> 0 | AI24: ='Electric Power'!$J$71 -> 0 | AJ24: ='Electric Power'!$J$73 -> 0 | AK24: ='Electric Power'!$J$75 -> 0 | AL24: ='Electric Power'!$J$77 -> 0
B25: HCFC-22 Production | C25: ='HCFC-22'!$J$7 -> 0 | D25: ='HCFC-22'!$J$9 -> 0 | E25: ='HCFC-22'!$J$11 -> 0 | F25: ='HCFC-22'!$J$13 -> 0 | G25: ='HCFC-22'!$J$15 -> 0 | H25: ='HCFC-22'!$J$17 -> 0 | I25: ='HCFC-22'!$J$19 -> 0 | J25: ='HCFC-22'!$J$21 -> 0 | K25: ='HCFC-22'!$J$23 -> 0 | L25: ='HCFC-22'!$J$25 -> 0 | M25: ='HCFC-22'!$J$27 -> 0 | N25: ='HCFC-22'!$J$29 -> 0 | O25: ='HCFC-22'!$J$31 -> 0 | P25: ='HCFC-22'!$J$33 -> 0 | Q25: ='HCFC-22'!$J$35 -> 0 | R25: ='HCFC-22'!$J$37 -> 0 | S25: ='HCFC-22'!$J$39 -> 0 | T25: ='HCFC-22'!$J$41 -> 0 | U25: ='HCFC-22'!$J$43 -> 0 | V25: ='HCFC-22'!$J$45 -> 0 | W25: =IF('Additional Emission Sources'!D24<>0,'Additional Emission Sources'!D24*CO2_C,'HCFC-22'!$J$47) -> 0 | X25: =IF('Additional Emission Sources'!E24<>0,'Additional Emission Sources'!E24*CO2_C,'HCFC-22'!$J$49) -> 0 | Y25: =IF('Additional Emission Sources'!F24<>0,'Additional Emission Sources'!F24*CO2_C,'HCFC-22'!$J$51) -> 0 | Z25: =IF('Additional Emission Sources'!G24<>0,'Additional Emission Sources'!G24*CO2_C,'HCFC-22'!$J$53) -> 0 | AA25: =IF('Additional Emission Sources'!H24<>0,'Additional Emission Sources'!H24*CO2_C,'HCFC-22'!$J$55) -> 0 | AB25: =IF('Additional Emission Sources'!I24<>0,'Additional Emission Sources'!I24*CO2_C,'HCFC-22'!$J$57) -> 0 | AC25: =IF('Additional Emission Sources'!J24<>0,'Additional Emission Sources'!J24*CO2_C,'HCFC-22'!$J$59) -> 0 | AD25: =IF('Additional Emission Sources'!K24<>0,'Additional Emission Sources'!K24*CO2_C,'HCFC-22'!$J$61) -> 0 | AE25: =IF('Additional Emission Sources'!L24<>0,'Additional Emission Sources'!L24*CO2_C,'HCFC-22'!$J$63) -> 0 | AF25: =IF('Additional Emission Sources'!M24<>0,'Additional Emission Sources'!M24*CO2_C,'HCFC-22'!$J$65) -> 0 | AG25: =IF('Additional Emission Sources'!N24<>0,'Additional Emission Sources'!N24*CO2_C,'HCFC-22'!$J$67) -> 0 | AH25: =IF('Additional Emission Sources'!O24<>0,'Additional Emission Sources'!O24*CO2_C,'HCFC-22'!$J$69) -> 0 | AI25: =IF('Additional Emission Sources'!P24<>0,'Additional Emission Sources'!P24*CO2_C,'HCFC-22'!$J$71) -> 0 | AJ25: =IF('Additional Emission Sources'!Q24<>0,'Additional Emission Sources'!Q24*CO2_C,'HCFC-22'!$J$73) -> 0 | AK25: =IF('Additional Emission Sources'!R24<>0,'Additional Emission Sources'!R24*CO2_C,'HCFC-22'!$J$75) -> 0 | AL25: =IF('Additional Emission Sources'!S24<>0,'Additional Emission Sources'!S24*CO2_C,'HCFC-22'!$J$77) -> 0
B26: Aluminum Production, PFCs | C26: =Aluminum!$Q$7 -> 0 | D26: =Aluminum!$Q$9 -> 0 | E26: =Aluminum!$Q$11 -> 0 | F26: =Aluminum!$Q$13 -> 0 | G26: =Aluminum!$Q$15 -> 0 | H26: =Aluminum!$Q$17 -> 0 | I26: =Aluminum!$Q$19 -> 0 | J26: =Aluminum!$Q$21 -> 0 | K26: =Aluminum!$Q$23 -> 0 | L26: =Aluminum!$Q$25 -> 0 | M26: =Aluminum!$Q$27 -> 0 | N26: =Aluminum!$Q$29 -> 0 | O26: =Aluminum!$Q$31 -> 0 | P26: =Aluminum!$Q$33 -> 0 | Q26: =Aluminum!$Q$35 -> 0 | R26: =Aluminum!$Q$37 -> 0 | S26: =Aluminum!$Q$39 -> 0 | T26: =Aluminum!$Q$41 -> 0 | U26: =Aluminum!$Q$43 -> 0 | V26: =Aluminum!$Q$45 -> 0 | W26: =IF('Additional Emission Sources'!D22<>0,'Additional Emission Sources'!D22*CO2_C,Aluminum!$Q$47) -> 0 | X26: =IF('Additional Emission Sources'!E22<>0,'Additional Emission Sources'!E22*CO2_C,Aluminum!$Q$49) -> 0 | Y26: =IF('Additional Emission Sources'!F22<>0,'Additional Emission Sources'!F22*CO2_C,Aluminum!$Q$51) -> 0 | Z26: =IF('Additional Emission Sources'!G22<>0,'Additional Emission Sources'!G22*CO2_C,Aluminum!$Q$53) -> 0 | AA26: =IF('Additional Emission Sources'!H22<>0,'Additional Emission Sources'!H22*CO2_C,Aluminum!$Q$55) -> 0 | AB26: =IF('Additional Emission Sources'!I22<>0,'Additional Emission Sources'!I22*CO2_C,Aluminum!$Q$57) -> 0 | AC26: =IF('Additional Emission Sources'!J22<>0,'Additional Emission Sources'!J22*CO2_C,Aluminum!$Q$59) -> 0 | AD26: =IF('Additional Emission Sources'!K22<>0,'Additional Emission Sources'!K22*CO2_C,Aluminum!$Q$61) -> 0 | AE26: =IF('Additional Emission Sources'!L22<>0,'Additional Emission Sources'!L22*CO2_C,Aluminum!$Q$63) -> 0 | AF26: =IF('Additional Emission Sources'!M22<>0,'Additional Emission Sources'!M22*CO2_C,Aluminum!$Q$65) -> 0 | AG26: =IF('Additional Emission Sources'!N22<>0,'Additional Emission Sources'!N22*CO2_C,Aluminum!$Q$67) -> 0 | AH26: =IF('Additional Emission Sources'!O22<>0,'Additional Emission Sources'!O22*CO2_C,Aluminum!$Q$69) -> 0 | AI26: =IF('Additional Emission Sources'!P22<>0,'Additional Emission Sources'!P22*CO2_C,Aluminum!$Q$71) -> 0 | AJ26: =IF('Additional Emission Sources'!Q22<>0,'Additional Emission Sources'!Q22*CO2_C,Aluminum!$Q$73) -> 0 | AK26: =IF('Additional Emission Sources'!R22<>0,'Additional Emission Sources'!R22*CO2_C,Aluminum!$Q$75) -> 0 | AL26: =IF('Additional Emission Sources'!S22<>0,'Additional Emission Sources'!S22*CO2_C,Aluminum!$Q$77) -> 0
B27: Additional HFC, PFC, NF3, and SF6 Emissions | C27: =IFERROR(IF(SUM('Additional Emission Sources'!D45:D48)<>0, SUM('Additional Emission Sources'!D45:D48)*CO2_C, SUM('Additional Emission Sources'!D55:D58)*CO2_C),0) -> 0 | D27: =IFERROR(IF(SUM('Additional Emission Sources'!E45:E48)<>0, SUM('Additional Emission Sources'!E45:E48)*CO2_C, SUM('Additional Emission Sources'!E55:E58)*CO2_C),0) -> 0 | E27: =IFERROR(IF(SUM('Additional Emission Sources'!F45:F48)<>0, SUM('Additional Emission Sources'!F45:F48)*CO2_C, SUM('Additional Emission Sources'!F55:F58)*CO2_C),0) -> 0 | F27: =IFERROR(IF(SUM('Additional Emission Sources'!G45:G48)<>0, SUM('Additional Emission Sources'!G45:G48)*CO2_C, SUM('Additional Emission Sources'!G55:G58)*CO2_C),0) -> 0 | G27: =IFERROR(IF(SUM('Additional Emission Sources'!H45:H48)<>0, SUM('Additional Emission Sources'!H45:H48)*CO2_C, SUM('Additional Emission Sources'!H55:H58)*CO2_C),0) -> 0 | H27: =IFERROR(IF(SUM('Additional Emission Sources'!I45:I48)<>0, SUM('Additional Emission Sources'!I45:I48)*CO2_C, SUM('Additional Emission Sources'!I55:I58)*CO2_C),0) -> 0 | I27: =IFERROR(IF(SUM('Additional Emission Sources'!J45:J48)<>0, SUM('Additional Emission Sources'!J45:J48)*CO2_C, SUM('Additional Emission Sources'!J55:J58)*CO2_C),0) -> 0 | J27: =IFERROR(IF(SUM('Additional Emission Sources'!K45:K48)<>0, SUM('Additional Emission Sources'!K45:K48)*CO2_C, SUM('Additional Emission Sources'!K55:K58)*CO2_C),0) -> 0 | K27: =IFERROR(IF(SUM('Additional Emission Sources'!L45:L48)<>0, SUM('Additional Emission Sources'!L45:L48)*CO2_C, SUM('Additional Emission Sources'!L55:L58)*CO2_C),0) -> 0 | L27: =IFERROR(IF(SUM('Additional Emission Sources'!M45:M48)<>0, SUM('Additional Emission Sources'!M45:M48)*CO2_C, SUM('Additional Emission Sources'!M55:M58)*CO2_C),0) -> 0 | M27: =IFERROR(IF(SUM('Additional Emission Sources'!N45:N48)<>0, SUM('Additional Emission Sources'!N45:N48)*CO2_C, SUM('Additional Emission Sources'!N55:N58)*CO2_C),0) -> 0 | N27: =IFERROR(IF(SUM('Additional Emission Sources'!O45:O48)<>0, SUM('Additional Emission Sources'!O45:O48)*CO2_C, SUM('Additional Emission Sources'!O55:O58)*CO2_C),0) -> 0 | O27: =IFERROR(IF(SUM('Additional Emission Sources'!P45:P48)<>0, SUM('Additional Emission Sources'!P45:P48)*CO2_C, SUM('Additional Emission Sources'!P55:P58)*CO2_C),0) -> 0 | P27: =IFERROR(IF(SUM('Additional Emission Sources'!Q45:Q48)<>0, SUM('Additional Emission Sources'!Q45:Q48)*CO2_C, SUM('Additional Emission Sources'!Q55:Q58)*CO2_C),0) -> 0 | Q27: =IFERROR(IF(SUM('Additional Emission Sources'!R45:R48)<>0, SUM('Additional Emission Sources'!R45:R48)*CO2_C, SUM('Additional Emission Sources'!R55:R58)*CO2_C),0) -> 0 | R27: =IFERROR(IF(SUM('Additional Emission Sources'!S45:S48)<>0, SUM('Additional Emission Sources'!S45:S48)*CO2_C, SUM('Additional Emission Sources'!S55:S58)*CO2_C),0) -> 0 | S27: =IFERROR(IF(SUM('Additional Emission Sources'!T45:T48)<>0, SUM('Additional Emission Sources'!T45:T48)*CO2_C, SUM('Additional Emission Sources'!T55:T58)*CO2_C),0) -> 0 | T27: =IFERROR(IF(SUM('Additional Emission Sources'!U45:U48)<>0, SUM('Additional Emission Sources'!U45:U48)*CO2_C, SUM('Additional Emission Sources'!U55:U58)*CO2_C),0) -> 0 | U27: =IFERROR(IF(SUM('Additional Emission Sources'!V45:V48)<>0, SUM('Additional Emission Sources'!V45:V48)*CO2_C, SUM('Additional Emission Sources'!V55:V58)*CO2_C),0) -> 0 | V27: =IFERROR(IF(SUM('Additional Emission Sources'!W45:W48)<>0, SUM('Additional Emission Sources'!W45:W48)*CO2_C, SUM('Additional Emission Sources'!W55:W58)*CO2_C),0) -> 0 | W27: =IFERROR(IF(SUM('Additional Emission Sources'!X45:X48)<>0, SUM('Additional Emission Sources'!X45:X48)*CO2_C, SUM('Additional Emission Sources'!X55:X58)*CO2_C),0) -> 0 | X27: =IFERROR(IF(SUM('Additional Emission Sources'!Y45:Y48)<>0, SUM('Additional Emission Sources'!Y45:Y48)*CO2_C, SUM('Additional Emission Sources'!Y55:Y58)*CO2_C),0) -> 0 | Y27: =IFERROR(IF(SUM('Additional Emission Sources'!Z45:Z48)<>0, SUM('Additional Emission Sources'!Z45:Z48)*CO2_C, SUM('Additional Emission Sources'!Z55:Z58)*CO2_C),0) -> 0 | Z27: =IFERROR(IF(SUM('Additional Emission Sources'!AA45:AA48)<>0, SUM('Additional Emission Sources'!AA45:AA48)*CO2_C, SUM('Additional Emission Sources'!AA55:AA58)*CO2_C),0) -> 0 | AA27: =IFERROR(IF(SUM('Additional Emission Sources'!AB45:AB48)<>0, SUM('Additional Emission Sources'!AB45:AB48)*CO2_C, SUM('Additional Emission Sources'!AB55:AB58)*CO2_C),0) -> 0 | AB27: =IFERROR(IF(SUM('Additional Emission Sources'!AC45:AC48)<>0, SUM('Additional Emission Sources'!AC45:AC48)*CO2_C, SUM('Additional Emission Sources'!AC55:AC58)*CO2_C),0) -> 0 | AC27: =IFERROR(IF(SUM('Additional Emission Sources'!AD45:AD48)<>0, SUM('Additional Emission Sources'!AD45:AD48)*CO2_C, SUM('Additional Emission Sources'!AD55:AD58)*CO2_C),0) -> 0 | AD27: =IFERROR(IF(SUM('Additional Emission Sources'!AE45:AE48)<>0, SUM('Additional Emission Sources'!AE45:AE48)*CO2_C, SUM('Additional Emission Sources'!AE55:AE58)*CO2_C),0) -> 0 | AE27: =IFERROR(IF(SUM('Additional Emission Sources'!AF45:AF48)<>0, SUM('Additional Emission Sources'!AF45:AF48)*CO2_C, SUM('Additional Emission Sources'!AF55:AF58)*CO2_C),0) -> 0 | AF27: =IFERROR(IF(SUM('Additional Emission Sources'!AG45:AG48)<>0, SUM('Additional Emission Sources'!AG45:AG48)*CO2_C, SUM('Additional Emission Sources'!AG55:AG58)*CO2_C),0) -> 0 | AG27: =IFERROR(IF(SUM('Additional Emission Sources'!AH45:AH48)<>0, SUM('Additional Emission Sources'!AH45:AH48)*CO2_C, SUM('Additional Emission Sources'!AH55:AH58)*CO2_C),0) -> 0 | AH27: =IFERROR(IF(SUM('Additional Emission Sources'!AI45:AI48)<>0, SUM('Additional Emission Sources'!AI45:AI48)*CO2_C, SUM('Additional Emission Sources'!AI55:AI58)*CO2_C),0) -> 0 | AI27: =IFERROR(IF(SUM('Additional Emission Sources'!AJ45:AJ48)<>0, SUM('Additional Emission Sources'!AJ45:AJ48)*CO2_C, SUM('Additional Emission Sources'!AJ55:AJ58)*CO2_C),0) -> 0 | AJ27: =IFERROR(IF(SUM('Additional Emission Sources'!AK45:AK48)<>0, SUM('Additional Emission Sources'!AK45:AK48)*CO2_C, SUM('Additional Emission Sources'!AK55:AK58)*CO2_C),0) -> 0 | AK27: =IFERROR(IF(SUM('Additional Emission Sources'!AL45:AL48)<>0, SUM('Additional Emission Sources'!AL45:AL48)*CO2_C, SUM('Additional Emission Sources'!AL55:AL58)*CO2_C),0) -> 0 | AL27: =IFERROR(IF(SUM('Additional Emission Sources'!AM45:AM48)<>0, SUM('Additional Emission Sources'!AM45:AM48)*CO2_C, SUM('Additional Emission Sources'!AM55:AM58)*CO2_C),0) -> 0
B28: Total Emissions | C28: =SUM(C6,C16,C20) -> 0 | D28: =SUM(D6,D16,D20) -> 0 | E28: 0 | F28: 0 | G28: 0 | H28: 0 | I28: 0 | J28: 0 | K28: 0 | L28: 0 | M28: 0 | N28: 0 | O28: 0 | P28: 0 | Q28: 0 | R28: 0 | S28: 0 | T28: 0 | U28: 0 | V28: 0 | W28: 0 | X28: 0 | Y28: 0 | Z28: 0 | AA28: 0 | AB28: 0 | AC28: 0 | AD28: 0 | AE28: 0 | AF28: 0 | AG28: 0 | AH28: 0 | AI28: 0 | AJ28: 0 | AK28: 0 | AL28: 0
C30: 1 | D30: =IF(ISERROR(IF(D28=0,0,COLUMN()-2)),0,IF(D28=0,0,COLUMN()-2)) -> 0 | E30: =IF(ISERROR(IF(E28=0,0,COLUMN()-2)),0,IF(E28=0,0,COLUMN()-2)) -> 0 | F30: 0 | G30: 0 | H30: 0 | I30: 0 | J30: 0 | K30: 0 | L30: 0 | M30: 0 | N30: 0 | O30: 0 | P30: 0 | Q30: 0 | R30: 0 | S30: 0 | T30: 0 | U30: 0 | V30: 0 | W30: 0 | X30: 0 | Y30: 0 | Z30: 0 | AA30: 0 | AB30: 0 | AC30: 0 | AD30: 0 | AE30: 0 | AF30: 0 | AG30: 0 | AH30: =IF(ISERROR(IF(AH28=0,0,COLUMN()-2)),0,IF(AH28=0,0,COLUMN()-2)) -> 0 | AI30: 0 | AJ30: 0 | AK30: 0 | AL30: 0
C31: =IF(C30=0,0,C5) -> 1990 | D31: 0 | E31: 0 | F31: 0 | G31: 0 | H31: 0 | I31: 0 | J31: 0 | K31: 0 | L31: 0 | M31: 0 | N31: 0 | O31: 0 | P31: 0 | Q31: 0 | R31: 0 | S31: 0 | T31: 0 | U31: 0 | V31: 0 | W31: 0 | X31: 0 | Y31: 0 | Z31: 0 | AA31: 0 | AB31: 0 | AC31: 0 | AD31: 0 | AE31: 0 | AF31: 0 | AG31: 0 | AH31: 0 | AI31: 0 | AJ31: 0 | AK31: 0 | AL31: 0
C33: ="Emissions by Gas Type, 1990-"&MAX($C$31:$AG$31) -> Emissions by Gas Type, 1990-1990 | R33: ="Emissions by Gas Type, 1990-"&EF!B9 -> Emissions by Gas Type, 1990-2022
C34: ="Carbon Dioxide Emissions, 1990-"&MAX($C$31:$AG$31) -> Carbon Dioxide Emissions, 1990-1990 | R34: ="Carbon Dioxide Emissions, 1990-"&EF!B9 -> Carbon Dioxide Emissions, 1990-2022
C35: ="Nitrous Oxide Emissions, 1990-"&MAX($C$31:$AG$31) -> Nitrous Oxide Emissions, 1990-1990 | R35: ="Nitrous Oxide Emissions, 1990-"&EF!B9 -> Nitrous Oxide Emissions, 1990-2022
C36: ="High GWP Emissions, 1990-"&MAX($C$31:$AG$31) -> High GWP Emissions, 1990-1990 | R36: ="High GWP Emissions, 1990-"&EF!B9 -> High GWP Emissions, 1990-2022

Sheet Summary, MTCO2E
A1: ="16. "&'List Data'!B3&" Emissions Summary (MTCO2E)" -> 16. Select a State . . . Emissions Summary (MTCO2E)
B3: =Tracker!B24 -> Emissions were not calculated for the following sources: Cement Manufacture, Lime Manufacture, Limestone and Dolomite Use, Soda Ash, Aluminum Production, Carbon Dioxide, Iron & Steel, Ammonia Production, Urea Consumption, Nitric Acid Production, Adipic Acid Production, ODS Substitutes, Semiconductor Manufacturing, Magnesium Production, Electric Power Transmission and Distribution Systems, HCFC-22 Production, and Aluminum Production, PFCs.
C5: 1990 | D5: 1991 | E5: 1992 | F5: 1993 | G5: 1994 | H5: 1995 | I5: 1996 | J5: 1997 | K5: 1998 | L5: 1999 | M5: 2000 | N5: 2001 | O5: 2002 | P5: 2003 | Q5: 2004 | R5: 2005 | S5: 2006 | T5: 2007 | U5: 2008 | V5: 2009 | W5: 2010 | X5: 2011 | Y5: 2012 | Z5: 2013 | AA5: 2014 | AB5: 2015 | AC5: 2016 | AD5: 2017 | AE5: 2018 | AF5: 2019 | AG5: 2020 | AH5: 2021 | AI5: 2022 | AJ5: 2023 | AK5: 2024 | AL5: 2025
B6: Carbon Dioxide Emissions | C6: ='Summary, MTCE'!C6/CO2_C -> 0 | D6: ='Summary, MTCE'!D6/CO2_C -> 0 | E6: ='Summary, MTCE'!E6/CO2_C -> 0 | F6: ='Summary, MTCE'!F6/CO2_C -> 0 | G6: ='Summary, MTCE'!G6/CO2_C -> 0 | H6: ='Summary, MTCE'!H6/CO2_C -> 0 | I6: ='Summary, MTCE'!I6/CO2_C -> 0 | J6: ='Summary, MTCE'!J6/CO2_C -> 0 | K6: ='Summary, MTCE'!K6/CO2_C -> 0 | L6: ='Summary, MTCE'!L6/CO2_C -> 0 | M6: ='Summary, MTCE'!M6/CO2_C -> 0 | N6: ='Summary, MTCE'!N6/CO2_C -> 0 | O6: ='Summary, MTCE'!O6/CO2_C -> 0 | P6: ='Summary, MTCE'!P6/CO2_C -> 0 | Q6: ='Summary, MTCE'!Q6/CO2_C -> 0 | R6: ='Summary, MTCE'!R6/CO2_C -> 0 | S6: ='Summary, MTCE'!S6/CO2_C -> 0 | T6: ='Summary, MTCE'!T6/CO2_C -> 0 | U6: ='Summary, MTCE'!U6/CO2_C -> 0 | V6: ='Summary, MTCE'!V6/CO2_C -> 0 | W6: ='Summary, MTCE'!W6/CO2_C -> 0 | X6: ='Summary, MTCE'!X6/CO2_C -> 0 | Y6: ='Summary, MTCE'!Y6/CO2_C -> 0 | Z6: ='Summary, MTCE'!Z6/CO2_C -> 0 | AA6: ='Summary, MTCE'!AA6/CO2_C -> 0 | AB6: ='Summary, MTCE'!AB6/CO2_C -> 0 | AC6: ='Summary, MTCE'!AC6/CO2_C -> 0 | AD6: ='Summary, MTCE'!AD6/CO2_C -> 0 | AE6: ='Summary, MTCE'!AE6/CO2_C -> 0 | AF6: ='Summary, MTCE'!AF6/CO2_C -> 0 | AG6: ='Summary, MTCE'!AG6/CO2_C -> 0 | AH6: ='Summary, MTCE'!AH6/CO2_C -> 0 | AI6: ='Summary, MTCE'!AI6/CO2_C -> 0 | AJ6: ='Summary, MTCE'!AJ6/CO2_C -> 0 | AK6: ='Summary, MTCE'!AK6/CO2_C -> 0 | AL6: ='Summary, MTCE'!AL6/CO2_C -> 0
B7: Cement Manufacture | C7: ='Summary, MTCE'!C7/CO2_C -> 0 | D7: ='Summary, MTCE'!D7/CO2_C -> 0 | E7: ='Summary, MTCE'!E7/CO2_C -> 0 | F7: ='Summary, MTCE'!F7/CO2_C -> 0 | G7: ='Summary, MTCE'!G7/CO2_C -> 0 | H7: ='Summary, MTCE'!H7/CO2_C -> 0 | I7: ='Summary, MTCE'!I7/CO2_C -> 0 | J7: ='Summary, MTCE'!J7/CO2_C -> 0 | K7: ='Summary, MTCE'!K7/CO2_C -> 0 | L7: ='Summary, MTCE'!L7/CO2_C -> 0 | M7: ='Summary, MTCE'!M7/CO2_C -> 0 | N7: ='Summary, MTCE'!N7/CO2_C -> 0 | O7: ='Summary, MTCE'!O7/CO2_C -> 0 | P7: ='Summary, MTCE'!P7/CO2_C -> 0 | Q7: ='Summary, MTCE'!Q7/CO2_C -> 0 | R7: ='Summary, MTCE'!R7/CO2_C -> 0 | S7: ='Summary, MTCE'!S7/CO2_C -> 0 | T7: ='Summary, MTCE'!T7/CO2_C -> 0 | U7: ='Summary, MTCE'!U7/CO2_C -> 0 | V7: ='Summary, MTCE'!V7/CO2_C -> 0 | W7: ='Summary, MTCE'!W7/CO2_C -> 0 | X7: ='Summary, MTCE'!X7/CO2_C -> 0 | Y7: ='Summary, MTCE'!Y7/CO2_C -> 0 | Z7: ='Summary, MTCE'!Z7/CO2_C -> 0 | AA7: ='Summary, MTCE'!AA7/CO2_C -> 0 | AB7: ='Summary, MTCE'!AB7/CO2_C -> 0 | AC7: ='Summary, MTCE'!AC7/CO2_C -> 0 | AD7: ='Summary, MTCE'!AD7/CO2_C -> 0 | AE7: ='Summary, MTCE'!AE7/CO2_C -> 0 | AF7: ='Summary, MTCE'!AF7/CO2_C -> 0 | AG7: ='Summary, MTCE'!AG7/CO2_C -> 0 | AH7: ='Summary, MTCE'!AH7/CO2_C -> 0 | AI7: ='Summary, MTCE'!AI7/CO2_C -> 0 | AJ7: ='Summary, MTCE'!AJ7/CO2_C -> 0 | AK7: ='Summary, MTCE'!AK7/CO2_C -> 0 | AL7: ='Summary, MTCE'!AL7/CO2_C -> 0
B8: Lime Manufacture | C8: ='Summary, MTCE'!C8/CO2_C -> 0 | D8: ='Summary, MTCE'!D8/CO2_C -> 0 | E8: ='Summary, MTCE'!E8/CO2_C -> 0 | F8: ='Summary, MTCE'!F8/CO2_C -> 0 | G8: ='Summary, MTCE'!G8/CO2_C -> 0 | H8: ='Summary, MTCE'!H8/CO2_C -> 0 | I8: ='Summary, MTCE'!I8/CO2_C -> 0 | J8: ='Summary, MTCE'!J8/CO2_C -> 0 | K8: ='Summary, MTCE'!K8/CO2_C -> 0 | L8: ='Summary, MTCE'!L8/CO2_C -> 0 | M8: ='Summary, MTCE'!M8/CO2_C -> 0 | N8: ='Summary, MTCE'!N8/CO2_C -> 0 | O8: ='Summary, MTCE'!O8/CO2_C -> 0 | P8: ='Summary, MTCE'!P8/CO2_C -> 0 | Q8: ='Summary, MTCE'!Q8/CO2_C -> 0 | R8: ='Summary, MTCE'!R8/CO2_C -> 0 | S8: ='Summary, MTCE'!S8/CO2_C -> 0 | T8: ='Summary, MTCE'!T8/CO2_C -> 0 | U8: ='Summary, MTCE'!U8/CO2_C -> 0 | V8: ='Summary, MTCE'!V8/CO2_C -> 0 | W8: ='Summary, MTCE'!W8/CO2_C -> 0 | X8: ='Summary, MTCE'!X8/CO2_C -> 0 | Y8: ='Summary, MTCE'!Y8/CO2_C -> 0 | Z8: ='Summary, MTCE'!Z8/CO2_C -> 0 | AA8: ='Summary, MTCE'!AA8/CO2_C -> 0 | AB8: ='Summary, MTCE'!AB8/CO2_C -> 0 | AC8: ='Summary, MTCE'!AC8/CO2_C -> 0 | AD8: ='Summary, MTCE'!AD8/CO2_C -> 0 | AE8: ='Summary, MTCE'!AE8/CO2_C -> 0 | AF8: ='Summary, MTCE'!AF8/CO2_C -> 0 | AG8: ='Summary, MTCE'!AG8/CO2_C -> 0 | AH8: ='Summary, MTCE'!AH8/CO2_C -> 0 | AI8: ='Summary, MTCE'!AI8/CO2_C -> 0 | AJ8: ='Summary, MTCE'!AJ8/CO2_C -> 0 | AK8: ='Summary, MTCE'!AK8/CO2_C -> 0 | AL8: ='Summary, MTCE'!AL8/CO2_C -> 0
B9: Limestone and Dolomite Use | C9: ='Summary, MTCE'!C9/CO2_C -> 0 | D9: ='Summary, MTCE'!D9/CO2_C -> 0 | E9: ='Summary, MTCE'!E9/CO2_C -> 0 | F9: ='Summary, MTCE'!F9/CO2_C -> 0 | G9: ='Summary, MTCE'!G9/CO2_C -> 0 | H9: ='Summary, MTCE'!H9/CO2_C -> 0 | I9: ='Summary, MTCE'!I9/CO2_C -> 0 | J9: ='Summary, MTCE'!J9/CO2_C -> 0 | K9: ='Summary, MTCE'!K9/CO2_C -> 0 | L9: ='Summary, MTCE'!L9/CO2_C -> 0 | M9: ='Summary, MTCE'!M9/CO2_C -> 0 | N9: ='Summary, MTCE'!N9/CO2_C -> 0 | O9: ='Summary, MTCE'!O9/CO2_C -> 0 | P9: ='Summary, MTCE'!P9/CO2_C -> 0 | Q9: ='Summary, MTCE'!Q9/CO2_C -> 0 | R9: ='Summary, MTCE'!R9/CO2_C -> 0 | S9: ='Summary, MTCE'!S9/CO2_C -> 0 | T9: ='Summary, MTCE'!T9/CO2_C -> 0 | U9: ='Summary, MTCE'!U9/CO2_C -> 0 | V9: ='Summary, MTCE'!V9/CO2_C -> 0 | W9: ='Summary, MTCE'!W9/CO2_C -> 0 | X9: ='Summary, MTCE'!X9/CO2_C -> 0 | Y9: ='Summary, MTCE'!Y9/CO2_C -> 0 | Z9: ='Summary, MTCE'!Z9/CO2_C -> 0 | AA9: ='Summary, MTCE'!AA9/CO2_C -> 0 | AB9: ='Summary, MTCE'!AB9/CO2_C -> 0 | AC9: ='Summary, MTCE'!AC9/CO2_C -> 0 | AD9: ='Summary, MTCE'!AD9/CO2_C -> 0 | AE9: ='Summary, MTCE'!AE9/CO2_C -> 0 | AF9: ='Summary, MTCE'!AF9/CO2_C -> 0 | AG9: ='Summary, MTCE'!AG9/CO2_C -> 0 | AH9: ='Summary, MTCE'!AH9/CO2_C -> 0 | AI9: ='Summary, MTCE'!AI9/CO2_C -> 0 | AJ9: ='Summary, MTCE'!AJ9/CO2_C -> 0 | AK9: ='Summary, MTCE'!AK9/CO2_C -> 0 | AL9: ='Summary, MTCE'!AL9/CO2_C -> 0
B10: Soda Ash | C10: ='Summary, MTCE'!C10/CO2_C -> 0 | D10: ='Summary, MTCE'!D10/CO2_C -> 0 | E10: ='Summary, MTCE'!E10/CO2_C -> 0 | F10: ='Summary, MTCE'!F10/CO2_C -> 0 | G10: ='Summary, MTCE'!G10/CO2_C -> 0 | H10: ='Summary, MTCE'!H10/CO2_C -> 0 | I10: ='Summary, MTCE'!I10/CO2_C -> 0 | J10: ='Summary, MTCE'!J10/CO2_C -> 0 | K10: ='Summary, MTCE'!K10/CO2_C -> 0 | L10: ='Summary, MTCE'!L10/CO2_C -> 0 | M10: ='Summary, MTCE'!M10/CO2_C -> 0 | N10: ='Summary, MTCE'!N10/CO2_C -> 0 | O10: ='Summary, MTCE'!O10/CO2_C -> 0 | P10: ='Summary, MTCE'!P10/CO2_C -> 0 | Q10: ='Summary, MTCE'!Q10/CO2_C -> 0 | R10: ='Summary, MTCE'!R10/CO2_C -> 0 | S10: ='Summary, MTCE'!S10/CO2_C -> 0 | T10: ='Summary, MTCE'!T10/CO2_C -> 0 | U10: ='Summary, MTCE'!U10/CO2_C -> 0 | V10: ='Summary, MTCE'!V10/CO2_C -> 0 | W10: ='Summary, MTCE'!W10/CO2_C -> 0 | X10: ='Summary, MTCE'!X10/CO2_C -> 0 | Y10: ='Summary, MTCE'!Y10/CO2_C -> 0 | Z10: ='Summary, MTCE'!Z10/CO2_C -> 0 | AA10: ='Summary, MTCE'!AA10/CO2_C -> 0 | AB10: ='Summary, MTCE'!AB10/CO2_C -> 0 | AC10: ='Summary, MTCE'!AC10/CO2_C -> 0 | AD10: ='Summary, MTCE'!AD10/CO2_C -> 0 | AE10: ='Summary, MTCE'!AE10/CO2_C -> 0 | AF10: ='Summary, MTCE'!AF10/CO2_C -> 0 | AG10: ='Summary, MTCE'!AG10/CO2_C -> 0 | AH10: ='Summary, MTCE'!AH10/CO2_C -> 0 | AI10: ='Summary, MTCE'!AI10/CO2_C -> 0 | AJ10: ='Summary, MTCE'!AJ10/CO2_C -> 0 | AK10: ='Summary, MTCE'!AK10/CO2_C -> 0 | AL10: ='Summary, MTCE'!AL10/CO2_C -> 0
B11: Aluminum Production, CO2 | C11: ='Summary, MTCE'!C11/CO2_C -> 0 | D11: ='Summary, MTCE'!D11/CO2_C -> 0 | E11: ='Summary, MTCE'!E11/CO2_C -> 0 | F11: ='Summary, MTCE'!F11/CO2_C -> 0 | G11: ='Summary, MTCE'!G11/CO2_C -> 0 | H11: ='Summary, MTCE'!H11/CO2_C -> 0 | I11: ='Summary, MTCE'!I11/CO2_C -> 0 | J11: ='Summary, MTCE'!J11/CO2_C -> 0 | K11: ='Summary, MTCE'!K11/CO2_C -> 0 | L11: ='Summary, MTCE'!L11/CO2_C -> 0 | M11: ='Summary, MTCE'!M11/CO2_C -> 0 | N11: ='Summary, MTCE'!N11/CO2_C -> 0 | O11: ='Summary, MTCE'!O11/CO2_C -> 0 | P11: ='Summary, MTCE'!P11/CO2_C -> 0 | Q11: ='Summary, MTCE'!Q11/CO2_C -> 0 | R11: ='Summary, MTCE'!R11/CO2_C -> 0 | S11: ='Summary, MTCE'!S11/CO2_C -> 0 | T11: ='Summary, MTCE'!T11/CO2_C -> 0 | U11: ='Summary, MTCE'!U11/CO2_C -> 0 | V11: ='Summary, MTCE'!V11/CO2_C -> 0 | W11: ='Summary, MTCE'!W11/CO2_C -> 0 | X11: ='Summary, MTCE'!X11/CO2_C -> 0 | Y11: ='Summary, MTCE'!Y11/CO2_C -> 0 | Z11: ='Summary, MTCE'!Z11/CO2_C -> 0 | AA11: ='Summary, MTCE'!AA11/CO2_C -> 0 | AB11: ='Summary, MTCE'!AB11/CO2_C -> 0 | AC11: ='Summary, MTCE'!AC11/CO2_C -> 0 | AD11: ='Summary, MTCE'!AD11/CO2_C -> 0 | AE11: ='Summary, MTCE'!AE11/CO2_C -> 0 | AF11: ='Summary, MTCE'!AF11/CO2_C -> 0 | AG11: ='Summary, MTCE'!AG11/CO2_C -> 0 | AH11: ='Summary, MTCE'!AH11/CO2_C -> 0 | AI11: ='Summary, MTCE'!AI11/CO2_C -> 0 | AJ11: ='Summary, MTCE'!AJ11/CO2_C -> 0 | AK11: ='Summary, MTCE'!AK11/CO2_C -> 0 | AL11: ='Summary, MTCE'!AL11/CO2_C -> 0
B12: Iron & Steel Production | C12: ='Summary, MTCE'!C12/CO2_C -> 0 | D12: ='Summary, MTCE'!D12/CO2_C -> 0 | E12: ='Summary, MTCE'!E12/CO2_C -> 0 | F12: ='Summary, MTCE'!F12/CO2_C -> 0 | G12: ='Summary, MTCE'!G12/CO2_C -> 0 | H12: ='Summary, MTCE'!H12/CO2_C -> 0 | I12: ='Summary, MTCE'!I12/CO2_C -> 0 | J12: ='Summary, MTCE'!J12/CO2_C -> 0 | K12: ='Summary, MTCE'!K12/CO2_C -> 0 | L12: ='Summary, MTCE'!L12/CO2_C -> 0 | M12: ='Summary, MTCE'!M12/CO2_C -> 0 | N12: ='Summary, MTCE'!N12/CO2_C -> 0 | O12: ='Summary, MTCE'!O12/CO2_C -> 0 | P12: ='Summary, MTCE'!P12/CO2_C -> 0 | Q12: ='Summary, MTCE'!Q12/CO2_C -> 0 | R12: ='Summary, MTCE'!R12/CO2_C -> 0 | S12: ='Summary, MTCE'!S12/CO2_C -> 0 | T12: ='Summary, MTCE'!T12/CO2_C -> 0 | U12: ='Summary, MTCE'!U12/CO2_C -> 0 | V12: ='Summary, MTCE'!V12/CO2_C -> 0 | W12: ='Summary, MTCE'!W12/CO2_C -> 0 | X12: ='Summary, MTCE'!X12/CO2_C -> 0 | Y12: ='Summary, MTCE'!Y12/CO2_C -> 0 | Z12: ='Summary, MTCE'!Z12/CO2_C -> 0 | AA12: ='Summary, MTCE'!AA12/CO2_C -> 0 | AB12: ='Summary, MTCE'!AB12/CO2_C -> 0 | AC12: ='Summary, MTCE'!AC12/CO2_C -> 0 | AD12: ='Summary, MTCE'!AD12/CO2_C -> 0 | AE12: ='Summary, MTCE'!AE12/CO2_C -> 0 | AF12: ='Summary, MTCE'!AF12/CO2_C -> 0 | AG12: ='Summary, MTCE'!AG12/CO2_C -> 0 | AH12: ='Summary, MTCE'!AH12/CO2_C -> 0 | AI12: ='Summary, MTCE'!AI12/CO2_C -> 0 | AJ12: ='Summary, MTCE'!AJ12/CO2_C -> 0 | AK12: ='Summary, MTCE'!AK12/CO2_C -> 0 | AL12: ='Summary, MTCE'!AL12/CO2_C -> 0
B13: Ammonia Production | C13: ='Summary, MTCE'!C13/CO2_C -> 0 | D13: ='Summary, MTCE'!D13/CO2_C -> 0 | E13: ='Summary, MTCE'!E13/CO2_C -> 0 | F13: ='Summary, MTCE'!F13/CO2_C -> 0 | G13: ='Summary, MTCE'!G13/CO2_C -> 0 | H13: ='Summary, MTCE'!H13/CO2_C -> 0 | I13: ='Summary, MTCE'!I13/CO2_C -> 0 | J13: ='Summary, MTCE'!J13/CO2_C -> 0 | K13: ='Summary, MTCE'!K13/CO2_C -> 0 | L13: ='Summary, MTCE'!L13/CO2_C -> 0 | M13: ='Summary, MTCE'!M13/CO2_C -> 0 | N13: ='Summary, MTCE'!N13/CO2_C -> 0 | O13: ='Summary, MTCE'!O13/CO2_C -> 0 | P13: ='Summary, MTCE'!P13/CO2_C -> 0 | Q13: ='Summary, MTCE'!Q13/CO2_C -> 0 | R13: ='Summary, MTCE'!R13/CO2_C -> 0 | S13: ='Summary, MTCE'!S13/CO2_C -> 0 | T13: ='Summary, MTCE'!T13/CO2_C -> 0 | U13: ='Summary, MTCE'!U13/CO2_C -> 0 | V13: ='Summary, MTCE'!V13/CO2_C -> 0 | W13: ='Summary, MTCE'!W13/CO2_C -> 0 | X13: ='Summary, MTCE'!X13/CO2_C -> 0 | Y13: ='Summary, MTCE'!Y13/CO2_C -> 0 | Z13: ='Summary, MTCE'!Z13/CO2_C -> 0 | AA13: ='Summary, MTCE'!AA13/CO2_C -> 0 | AB13: ='Summary, MTCE'!AB13/CO2_C -> 0 | AC13: ='Summary, MTCE'!AC13/CO2_C -> 0 | AD13: ='Summary, MTCE'!AD13/CO2_C -> 0 | AE13: ='Summary, MTCE'!AE13/CO2_C -> 0 | AF13: ='Summary, MTCE'!AF13/CO2_C -> 0 | AG13: ='Summary, MTCE'!AG13/CO2_C -> 0 | AH13: ='Summary, MTCE'!AH13/CO2_C -> 0 | AI13: ='Summary, MTCE'!AI13/CO2_C -> 0 | AJ13: ='Summary, MTCE'!AJ13/CO2_C -> 0 | AK13: ='Summary, MTCE'!AK13/CO2_C -> 0 | AL13: ='Summary, MTCE'!AL13/CO2_C -> 0
